Workbook

Sheet ACCUEILPRO
A1: Accueil
F7: =ACCUEIL!F7 -> 2021-07-25

Sheet ACCUEILPREM
A1: Accueil
F7: =ACCUEIL!F7 -> 2021-07-25

Sheet ACCUEILGP
A1: Accueil
F7: =ACCUEIL!F7 -> 2021-07-25

Sheet ACCUEIL
F7: 2021-07-25
C21: Item mensuels: ETP, satisfaction clientèle, remises commerciales, marges et accessoires crédits
E22: arrêtés au | F22: 2021-05-31

Sheet Accueilagence
A1: Accueil
E7: =ACCUEIL!F7 -> 2021-07-25

Sheet Accueilsecteur
A1: Accueil
E7: =ACCUEIL!F7 -> 2021-07-25

Sheet AccueilDircom
A1: Accueil
E7: =ACCUEIL!F7 -> 2021-07-25

Sheet DC_FICHE
A1: Accueil
A2: BAROMETRE BDD
A4: UNITE: | B4: DIRECTION REGIONALE | E4: ETP perf : | F4: =VLOOKUP(A5,'RECAP DIRCOM'!$G$6:$I$12,3,FALSE) -> 252.69
A5: =VLOOKUP(B5,LISTES!$M$6:$N$12,2,FALSE) -> 262 | B5: BAS-RHIN
C6: Coefficient du critére | E6: Résultats | I6: Ecart au 1ier | M6: Evolution | O6: Rang
E7: du 1ier | G7: DIRECTION | I7: Du mois | K7: Au 31/12/2019
A9: RANG au CLASSEMENT GENERAL | K9: =VLOOKUP($A$5,#REF!,168,FALSE) ->  | M9: =+K9-O9 ->  | O9: =VLOOKUP($A$5,'RECAP DIRCOM'!$G$6:$DG$312,168,FALSE) -> 
A11: CRITERE CLIENTS | C11: 15% | O11: =VLOOKUP($A$5,'RECAP DIRCOM'!$G$6:$DG$312,23,FALSE) -> 24.54430708
B12: PNB Evolution nette Clients BP | C12: 4% | E12: ='RECAP DIRCOM'!#REF! ->  | G12: =VLOOKUP($A$5,'RECAP DIRCOM'!$G$6:$DG$312,6,FALSE) -> 0.4 | I12: =VLOOKUP($A$5,'RECAP DIRCOM'!$G$6:$DG$312,7,FALSE) -> 400% | K12: =VLOOKUP($A$5,#REF!,7,FALSE) ->  | M12: =+K12-I12 ->  | O12: =VLOOKUP($A$5,'RECAP DIRCOM'!$G$6:$DG$312,8,FALSE) -> 0.5206996174
B13: PNB Evolution nette Clients PREMIUM | C13: 5% | E13: ='RECAP DIRCOM'!#REF! ->  | G13: =VLOOKUP($A$5,'RECAP DIRCOM'!$G$6:$DG$312,10,FALSE) -> 6.0 | I13: =VLOOKUP($A$5,'RECAP DIRCOM'!$G$6:$DG$312,11,FALSE) -> 33% | K13: =VLOOKUP($A$5,#REF!,11,FALSE) ->  | M13: =+K13-I13 ->  | O13: =VLOOKUP($A$5,'RECAP DIRCOM'!$G$6:$DG$312,12,FALSE) -> 0.3345239386
B14: PNB Evolution nette Clients Jeunes Equipés | C14: 3% | E14: ='RECAP DIRCOM'!#REF! ->  | G14: =VLOOKUP($A$5,'RECAP DIRCOM'!$G$6:$DG$312,14,FALSE) -> 0.0 | I14: =VLOOKUP($A$5,'RECAP DIRCOM'!$G$6:$DG$312,15,FALSE) -> 0% | K14: =VLOOKUP($A$5,#REF!,15,FALSE) ->  | M14: =+K14-I14 ->  | O14: =VLOOKUP($A$5,'RECAP DIRCOM'!$G$6:$DG$312,16,FALSE) -> 0
B15: PNB Evolution nette Clients Pro Actifs Equipés | C15: 3% | E15: ='RECAP DIRCOM'!W4 -> 0.0 | G15: =VLOOKUP($A$5,'RECAP DIRCOM'!$G$6:$DG$312,18,FALSE) -> 11777.0 | I15: =VLOOKUP($A$5,'RECAP DIRCOM'!$G$6:$DG$312,19,FALSE) -> 4661% | K15: =VLOOKUP($A$5,#REF!,19,FALSE) ->  | M15: =+K15-I15 ->  | O15: =VLOOKUP($A$5,'RECAP DIRCOM'!$G$6:$DG$312,20,FALSE) -> 0.1102166452
A17: CRITERE BANCARISATION | C17: 15% | O17: =VLOOKUP($A$5,'RECAP DIRCOM'!$G$6:$DG$312,48,FALSE) -> 1
B18: PNB Ventes nettes forfaits | C18: 4% | E18: ='RECAP DIRCOM'!X4 -> 52.4 | G18: =VLOOKUP($A$5,'RECAP DIRCOM'!$G$6:$DG$312,31,FALSE) -> -1.6 | I18: =VLOOKUP($A$5,'RECAP DIRCOM'!$G$6:$DG$312,32,FALSE) -> 24% | K18: =VLOOKUP($A$5,#REF!,32,FALSE) ->  | M18: =+K18-I18 ->  | O18: =VLOOKUP($A$5,'RECAP DIRCOM'!$G$6:$DG$312,33,FALSE) -> 7
B19: PNB Ventes nettes IZICARTES Débit Différé | C19: 4% | E19: ='RECAP DIRCOM'!AB4 -> 29.1 | G19: =VLOOKUP($A$5,'RECAP DIRCOM'!$G$6:$DG$312,35,FALSE) -> 0.2 | I19: =VLOOKUP($A$5,'RECAP DIRCOM'!$G$6:$DG$312,36,FALSE) -> 300% | K19: =VLOOKUP($A$5,#REF!,36,FALSE) ->  | M19: =+K19-I19 ->  | O19: =VLOOKUP($A$5,'RECAP DIRCOM'!$G$6:$DG$312,37,FALSE) -> 0
B20: PNB Ventes nettes cartes HDG Débit Différé | C20: 4% | E20: ='RECAP DIRCOM'!AF4 -> 8.4 | G20: =VLOOKUP($A$5,'RECAP DIRCOM'!$G$6:$DG$312,39,FALSE) -> 0.0 | I20: =VLOOKUP($A$5,'RECAP DIRCOM'!$G$6:$DG$312,40,FALSE) -> 0% | K20: =VLOOKUP($A$5,#REF!,40,FALSE) ->  | M20: =+K20-I20 ->  | O20: =VLOOKUP($A$5,'RECAP DIRCOM'!$G$6:$DG$312,41,FALSE) -> 90557.69315
B21: PNB Ventes nettes Forfaits Pro, Carte pro | C21: 3% | E21: ='RECAP DIRCOM'!AJ4 -> -1.3 | G21: =VLOOKUP($A$5,'RECAP DIRCOM'!$G$6:$DG$312,43,FALSE) -> 0.1 | I21: =VLOOKUP($A$5,'RECAP DIRCOM'!$G$6:$DG$312,44,FALSE) -> 200% | K21: =VLOOKUP($A$5,#REF!,44,FALSE) ->  | M21: =+K21-I21 ->  | O21: =VLOOKUP($A$5,'RECAP DIRCOM'!$G$6:$DG$312,45,FALSE) -> 4039
A23: CRITERE EPARGNE | C23: 10% | O23: =VLOOKUP($A$5,'RECAP DIRCOM'!$G$6:$DG$312,69,FALSE) -> 0.3270862565
B24: PNB Epargne Liquide | C24: 3% | E24: ='RECAP DIRCOM'!AU4 -> 394.3 | G24: =VLOOKUP($A$5,'RECAP DIRCOM'!$G$6:$DG$312,56,FALSE) -> 17102.5 | I24: =VLOOKUP($A$5,'RECAP DIRCOM'!$G$6:$DG$312,57,FALSE) -> 6768% | K24: =VLOOKUP($A$5,#REF!,57,FALSE) ->  | M24: =+K24-I24 ->  | O24: =VLOOKUP($A$5,'RECAP DIRCOM'!$G$6:$DG$312,58,FALSE) -> 0.4857371962
B25: PNB CA UC + arbitrage | C25: 4% | E25: ='RECAP DIRCOM'!AY4 -> 16.0 | G25: =VLOOKUP($A$5,'RECAP DIRCOM'!$G$6:$DG$312,60,FALSE) -> 8846.7 | I25: =VLOOKUP($A$5,'RECAP DIRCOM'!$G$6:$DG$312,61,FALSE) -> 3501% | K25: =VLOOKUP($A$5,#REF!,61,FALSE) ->  | M25: =+K25-I25 ->  | O25: =VLOOKUP($A$5,'RECAP DIRCOM'!$G$6:$DG$312,62,FALSE) -> 0.1103274667
B26: PNB Excédent assurance vie | C26: 3% | E26: ='RECAP DIRCOM'!#REF! ->  | G26: =VLOOKUP($A$5,'RECAP DIRCOM'!$G$6:$DG$312,64,FALSE) -> 2172.0 | I26: =VLOOKUP($A$5,'RECAP DIRCOM'!$G$6:$DG$312,65,FALSE) -> 860% | K26: =VLOOKUP($A$5,#REF!,65,FALSE) ->  | M26: =+K26-I26 ->  | O26: =VLOOKUP($A$5,'RECAP DIRCOM'!$G$6:$DG$312,66,FALSE) -> 0.3404237656
A28: CRITERE CREDITS | C28: 15% | O28: =VLOOKUP($A$5,'RECAP DIRCOM'!$G$6:$DG$312,102,FALSE) -> 0.2000342031
B29: PNB crédit conso | C29: 4% | E29: ='RECAP DIRCOM'!BJ4 -> 131.6 | G29: =VLOOKUP($A$5,'RECAP DIRCOM'!$G$6:$DG$312,77,FALSE) -> 0.1 | I29: =VLOOKUP($A$5,'RECAP DIRCOM'!$G$6:$DG$312,78,FALSE) -> 300% | K29: =VLOOKUP($A$5,#REF!,78,FALSE) ->  | M29: =+K29-I29 ->  | O29: =VLOOKUP($A$5,'RECAP DIRCOM'!$G$6:$DG$312,79,FALSE) -> 5432
B30: PNB ADE crédit conso | C30: 1% | E30: ='RECAP DIRCOM'!#REF! ->  | G30: =VLOOKUP($A$5,'RECAP DIRCOM'!$G$6:$DG$312,81,FALSE) -> 0.2 | I30: =VLOOKUP($A$5,'RECAP DIRCOM'!$G$6:$DG$312,82,FALSE) -> 400% | K30: =VLOOKUP($A$5,#REF!,82,FALSE) ->  | O30: =VLOOKUP($A$5,'RECAP DIRCOM'!$G$6:$DG$312,83,FALSE) -> 0.1407257471
B31: PNB crédit immo | C31: 4% | E31: ='RECAP DIRCOM'!BN4 -> 39.4 | G31: =VLOOKUP($A$5,'RECAP DIRCOM'!$G$6:$DG$312,85,FALSE) -> 3.0 | I31: =VLOOKUP($A$5,'RECAP DIRCOM'!$G$6:$DG$312,86,FALSE) -> 0% | K31: =VLOOKUP($A$5,#REF!,86,FALSE) ->  | O31: =VLOOKUP($A$5,'RECAP DIRCOM'!$G$6:$DG$312,87,FALSE) -> 0
B32: PNB ADE crédit immo | C32: 2% | E32: ='RECAP DIRCOM'!#REF! ->  | G32: =VLOOKUP($A$5,'RECAP DIRCOM'!$G$6:$DG$312,89,FALSE) -> 0.0 | I32: =VLOOKUP($A$5,'RECAP DIRCOM'!$G$6:$DG$312,90,FALSE) -> 0% | K32: =VLOOKUP($A$5,#REF!,90,FALSE) ->  | O32: =VLOOKUP($A$5,'RECAP DIRCOM'!$G$6:$DG$312,91,FALSE) -> 0
B33: PNB SACCEF | C33: 2% | E33: ='RECAP DIRCOM'!#REF! ->  | G33: =VLOOKUP($A$5,'RECAP DIRCOM'!$G$6:$DG$312,93,FALSE) -> 0.0 | I33: =VLOOKUP($A$5,'RECAP DIRCOM'!$G$6:$DG$312,94,FALSE) -> 0% | K33: =VLOOKUP($A$5,#REF!,94,FALSE) ->  | O33: =VLOOKUP($A$5,'RECAP DIRCOM'!$G$6:$DG$312,95,FALSE) -> 0
B34: PNB Crédit MLT + Crédit Bail | C34: 2% | E34: ='RECAP DIRCOM'!BR4 -> 13.0 | G34: =VLOOKUP($A$5,'RECAP DIRCOM'!$G$6:$DG$312,97,FALSE) -> 0.0 | I34: =VLOOKUP($A$5,'RECAP DIRCOM'!$G$6:$DG$312,98,FALSE) -> 0% | K34: =VLOOKUP($A$5,#REF!,98,FALSE) ->  | O34: =VLOOKUP($A$5,'RECAP DIRCOM'!$G$6:$DG$312,99,FALSE) -> 0
A36: CRITERE IARD PREVOYANCE | C36: 15% | O36: =VLOOKUP($A$5,'RECAP DIRCOM'!$G$6:$DG$312,119,FALSE) -> 
B37: PNB Ventes nettes IARD | C37: 9% | E37: ='RECAP DIRCOM'!CC4 -> 155.1 | G37: =VLOOKUP($A$5,'RECAP DIRCOM'!$G$6:$DG$312,110,FALSE) ->  | I37: =VLOOKUP($A$5,'RECAP DIRCOM'!$G$6:$DG$312,111,FALSE) ->  | K37: =VLOOKUP($A$5,#REF!,111,FALSE) ->  | M37: =+K37-I37 ->  | O37: =VLOOKUP($A$5,'RECAP DIRCOM'!$G$6:$DG$312,112,FALSE) -> 
B38: PNB Ventes nettes Prévoyance | C38: 6% | E38: ='RECAP DIRCOM'!CG4 -> 26.4 | G38: =VLOOKUP($A$5,'RECAP DIRCOM'!$G$6:$DG$312,114,FALSE) ->  | I38: =VLOOKUP($A$5,'RECAP DIRCOM'!$G$6:$DG$312,115,FALSE) ->  | K38: =VLOOKUP($A$5,#REF!,115,FALSE) ->  | M38: =+K38-I38 ->  | O38: =VLOOKUP($A$5,'RECAP DIRCOM'!$G$6:$DG$312,116,FALSE) -> 
A40: CRITERE ACCELERATEURS PNB | C40: 15% | O40: =VLOOKUP($A$5,'RECAP DIRCOM'!$G$6:$DG$312,144,FALSE) -> 
B41: PNB Ventes brutes SED Finalisées | C41: 6% | E41: ='RECAP DIRCOM'!#REF! ->  | G41: =VLOOKUP($A$5,'RECAP DIRCOM'!$G$6:$DG$312,127,FALSE) ->  | I41: =VLOOKUP($A$5,'RECAP DIRCOM'!$G$6:$DG$312,128,FALSE) ->  | K41: =VLOOKUP($A$5,#REF!,128,FALSE) ->  | M41: =+K41-I41 ->  | O41: =VLOOKUP($A$5,'RECAP DIRCOM'!$G$6:$DG$312,129,FALSE) -> 
B42: PNB clients équipés E documents | C42: 3% | E42: ='RECAP DIRCOM'!#REF! ->  | G42: =VLOOKUP($A$5,'RECAP DIRCOM'!$G$6:$DG$312,131,FALSE) ->  | I42: =VLOOKUP($A$5,'RECAP DIRCOM'!$G$6:$DG$312,132,FALSE) ->  | K42: =VLOOKUP($A$5,#REF!,132,FALSE) ->  | M42: =+K42-I42 ->  | O42: =VLOOKUP($A$5,'RECAP DIRCOM'!$G$6:$DG$312,133,FALSE) -> 
B43: Economie opt'in | C43: 3% | E43: ='RECAP DIRCOM'!#REF! ->  | G43: =VLOOKUP($A$5,'RECAP DIRCOM'!$G$6:$DG$312,135,FALSE) ->  | I43: =VLOOKUP($A$5,'RECAP DIRCOM'!$G$6:$DG$312,136,FALSE) ->  | K43: =VLOOKUP($A$5,#REF!,136,FALSE) ->  | M43: =+K43-I43 ->  | O43: =VLOOKUP($A$5,'RECAP DIRCOM'!$G$6:$DG$312,137,FALSE) -> 
B44: Remises commerciales | C44: 3% | E44: ='RECAP DIRCOM'!#REF! ->  | G44: =VLOOKUP($A$5,'RECAP DIRCOM'!$G$6:$DG$312,139,FALSE) ->  | I44: =VLOOKUP($A$5,'RECAP DIRCOM'!$G$6:$DG$312,140,FALSE) ->  | K44: =VLOOKUP($A$5,#REF!,140,FALSE) ->  | M44: =+K44-I44 ->  | O44: =VLOOKUP($A$5,'RECAP DIRCOM'!$G$6:$DG$312,141,FALSE) -> 
A46: CRITERE Qualité-Satisfaction Clients | C46: 15% | O46: =VLOOKUP($A$5,'RECAP DIRCOM'!$G$6:$DG$312,159,FALSE) -> 
B47: Objectifs NPS* | C47: 8% | E47: ='RECAP DIRCOM'!K4 -> 23 | G47: =VLOOKUP($A$5,'RECAP DIRCOM'!$G$6:$DG$312,151,FALSE) ->  | I47: =VLOOKUP($A$5,'RECAP DIRCOM'!$G$6:$DG$312,152,FALSE) ->  | K47: =VLOOKUP($A$5,#REF!,152,FALSE) ->  | M47: =+K47-I47 ->  | O47: =VLOOKUP($A$5,'RECAP DIRCOM'!$G$6:$DG$312,153,FALSE) -> 
B48: Enquête Qualité Haute Définition | C48: 7% | E48: ='RECAP DIRCOM'!N4 -> 68% | G48: =VLOOKUP($A$5,'RECAP DIRCOM'!$G$6:$DG$312,154,FALSE) ->  | I48: =VLOOKUP($A$5,'RECAP DIRCOM'!$G$6:$DG$312,155,FALSE) ->  | K48: =VLOOKUP($A$5,#REF!,155,FALSE) ->  | M48: =+K48-I48 ->  | O48: =VLOOKUP($A$5,'RECAP DIRCOM'!$G$6:$DG$312,156,FALSE) -> 

Sheet DC_TOTAL
B1: Accueil | D1: BAROMETRE BDD - DIRECTIONS REGIONALES
D2: TOTAL GENERAL
D3: =ACCUEIL!F7 -> 2021-07-25
D7: TOTAL GENERAL | G7: Total Satisfaction Clients | J7: Total Bancarisation | M7: Total Epargne | P7: Total IARD Prévoyance | S7: Total Crédits
E8: coef | F8: 100% | H8: coef | I8: =DC_SATISFACTION!L8 -> 20% | K8: coef | L8: =DC_BANCA!V8 -> 20% | N8: coef | O8: =DC_EPARGNE!N8 -> 20% | Q8: coef | R8: =DC_IARD!N8 -> 20% | T8: coef | U8: =DC_CREDIT!R8 -> 20%
A9: eds | B9: Direction | C9: ="ETP perf "&DATEMAJ!$C$28 -> ETP perf 31-mai | D9: Moyenne ecart au 1er | E9: % Ecart au 1er | F9: Rang CEGEE | G9: Moyenne ecart au 1er | H9: % Ecart au 1er | I9: Rang CEGEE | J9: Moyenne ecart au 1er | K9: % Ecart au 1er | L9: Rang CEGEE | M9: Moyenne ecart au 1er | N9: % Ecart au 1er | O9: Rang CEGEE | P9: Moyenne ecart au 1er | Q9: % Ecart au 1er | R9: Rang CEGEE | S9: Moyenne ecart au 1er | T9: % Ecart au 1er | U9: Rang CEGEE
A10: 50 | B10: Meurthe et Moselle Meuse | C10: 242 | D10: 7% | E10: 0% | F10: 1 | G10: 30% | H10: 30% | I10: 4 | J10: 2% | K10: 0% | L10: 1 | M10: 2% | N10: 0% | O10: 1 | P10: 7% | Q10: 5% | R10: 2 | S10: 0% | T10: 0% | U10: 1
A11: 262 | B11: Marne-Ardennes | C11: 227 | D11: 12% | E11: 5% | F11: 2 | G11: 17% | H11: 17% | I11: 2 | J11: 19% | K11: 18% | L11: 2 | M11: 18% | N11: 16% | O11: 3 | P11: 2% | Q11: 0% | R11: 1 | S11: 9% | T11: 9% | U11: 2
A12: 264 | B12: Vosges | C12: 133 | D12: 18% | E12: 11% | F12: 3 | G12: 0% | H12: 0% | I12: 1 | J12: 32% | K12: 30% | L12: 6 | M12: 19% | N12: 17% | O12: 5 | P12: 18% | Q12: 16% | R12: 5 | S12: 28% | T12: 27% | U12: 4
A13: 30 | B13: Bas-Rhin | C13: 253 | D13: 20% | E13: 13% | F13: 4 | G13: 33% | H13: 33% | I13: 6 | J13: 20% | K13: 18% | L13: 3 | M13: 6% | N13: 4% | O13: 2 | P13: 14% | Q13: 12% | R13: 3 | S13: 33% | T13: 33% | U13: 6
A14: 110 | B14: Moselle | C14: 266 | D14: 20% | E14: 13% | F14: 5 | G14: 32% | H14: 32% | I14: 5 | J14: 22% | K14: 20% | L14: 4 | M14: 18% | N14: 16% | O14: 4 | P14: 14% | Q14: 12% | R14: 4 | S14: 22% | T14: 22% | U14: 3
A15: 160 | B15: Aube Haute Marne | C15: 128 | D15: 31% | E15: 24% | F15: 6 | G15: 24% | H15: 24% | I15: 3 | J15: 25% | K15: 24% | L15: 5 | M15: 53% | N15: 50% | O15: 7 | P15: 31% | Q15: 29% | R15: 6 | S15: 30% | T15: 29% | U15: 5
A16: 80 | B16: Haut-Rhin | C16: 157 | D16: 45% | E16: 38% | F16: 7 | G16: 58% | H16: 58% | I16: 7 | J16: 45% | K16: 43% | L16: 7 | M16: 50% | N16: 47% | O16: 6 | P16: 33% | Q16: 31% | R16: 7 | S16: 45% | T16: 45% | U16: 7
B17: Total CEGEE Directions Régionales | C17: =SUM(C10:C16) -> 1406

Sheet DC_BANCA
B1: Accueil | D1: BAROMETRE BDD - DIRECTIONS REGIONALES
D2: BANCARISATION
D3: =ACCUEIL!F7 -> 2021-07-25
D7: Ventes Nettes produits pondérés | H7: Ventes sur client non détenteur de l’univers | L7: Mobilité Macron | P7: Remises commerciales | T7: Total Bancarisation
D8: =DATEMAJ!C8 -> au 25/07 | F8: coef | G8: ='RECAP DIRCOM'!AA4 -> 10% | H8: =DATEMAJ!C9 -> au 25/07 | J8: coef | K8: ='RECAP DIRCOM'!AE4 -> 4% | L8: =DATEMAJ!C10 -> au 25/07 | N8: coef | O8: ='RECAP DIRCOM'!AI4 -> 3% | P8: =DATEMAJ!C11 -> au 31/05 | R8: coef | S8: ='RECAP DIRCOM'!AM4 -> 3% | U8: coef | V8: ='RECAP DIRCOM'!AP4 -> 20%
B9: Direction | C9: ="ETP perf "&DATEMAJ!$C$28 -> ETP perf 31-mai | D9: VN | E9: VN / ETP | F9: % Ecart au 1er | G9: Rang | H9: VB | I9: VB / ETP | J9: % Ecart au 1er | K9: Rang | L9: Nb | M9: Nb / ETP | N9: % Ecart au 1er | O9: Rang | P9: Montant | Q9: Montant / ETP | R9: % Ecart au 1er | S9: Rang | T9: Moyenne ecart au 1er | U9: % Ecart au 1er | V9: Rang CEGEE
A10: 50 | B10: Aube Haute Marne | C10: =VLOOKUP($A10,'RECAP DIRCOM'!$G$6:$DC$12,3,FALSE) -> 128 | D10: =VLOOKUP($A10,'RECAP DIRCOM'!$G$6:$DC$12,18,FALSE) -> 4,622 | E10: =VLOOKUP($A10,'RECAP DIRCOM'!$G$6:$DC$12,19,FALSE) -> 36.20 | F10: =VLOOKUP($A10,'RECAP DIRCOM'!$G$6:$DC$12,20,FALSE) -> 31% | G10: =VLOOKUP($A10,'RECAP DIRCOM'!$G$6:$DC$12,21,FALSE) -> 4 | H10: =VLOOKUP($A10,'RECAP DIRCOM'!$G$6:$DC$12,22,FALSE) -> 3,146 | I10: =VLOOKUP($A10,'RECAP DIRCOM'!$G$6:$DC$12,23,FALSE) -> 24.64 | J10: =VLOOKUP($A10,'RECAP DIRCOM'!$G$6:$DC$12,24,FALSE) -> 15% | K10: =VLOOKUP($A10,'RECAP DIRCOM'!$G$6:$DC$12,25,FALSE) -> 4 | L10: =VLOOKUP($A10,'RECAP DIRCOM'!$G$6:$DC$12,26,FALSE) -> 586 | M10: =VLOOKUP($A10,'RECAP DIRCOM'!$G$6:$DC$12,27,FALSE) -> 4.59 | N10: =VLOOKUP($A10,'RECAP DIRCOM'!$G$6:$DC$12,28,FALSE) -> 46% | O10: =VLOOKUP($A10,'RECAP DIRCOM'!$G$6:$DC$12,29,FALSE) -> 3 | P10: =VLOOKUP($A10,'RECAP DIRCOM'!$G$6:$DC$12,30,FALSE) -> -164 | Q10: =VLOOKUP($A10,'RECAP DIRCOM'!$G$6:$DC$12,31,FALSE) -> -1.29 | R10: =VLOOKUP($A10,'RECAP DIRCOM'!$G$6:$DC$12,32,FALSE) -> 0% | S10: =VLOOKUP($A10,'RECAP DIRCOM'!$G$6:$DC$12,33,FALSE) -> 1 | T10: =VLOOKUP($A10,'RECAP DIRCOM'!$G$6:$DC$12,34,FALSE) -> 25% | U10: =VLOOKUP($A10,'RECAP DIRCOM'!$G$6:$DC$12,35,FALSE) -> 24% | V10: =VLOOKUP($A10,'RECAP DIRCOM'!$G$6:$DC$12,36,FALSE) -> 5
A11: 262 | B11: Bas-Rhin | C11: =VLOOKUP($A11,'RECAP DIRCOM'!$G$6:$DC$12,3,FALSE) -> 253 | D11: =VLOOKUP($A11,'RECAP DIRCOM'!$G$6:$DC$12,18,FALSE) -> 11,777 | E11: =VLOOKUP($A11,'RECAP DIRCOM'!$G$6:$DC$12,19,FALSE) -> 46.61 | F11: =VLOOKUP($A11,'RECAP DIRCOM'!$G$6:$DC$12,20,FALSE) -> 11% | G11: =VLOOKUP($A11,'RECAP DIRCOM'!$G$6:$DC$12,21,FALSE) -> 2 | H11: =VLOOKUP($A11,'RECAP DIRCOM'!$G$6:$DC$12,22,FALSE) -> 6,202 | I11: =VLOOKUP($A11,'RECAP DIRCOM'!$G$6:$DC$12,23,FALSE) -> 24.54 | J11: =VLOOKUP($A11,'RECAP DIRCOM'!$G$6:$DC$12,24,FALSE) -> 16% | K11: =VLOOKUP($A11,'RECAP DIRCOM'!$G$6:$DC$12,25,FALSE) -> 5 | L11: =VLOOKUP($A11,'RECAP DIRCOM'!$G$6:$DC$12,26,FALSE) -> 1,095 | M11: =VLOOKUP($A11,'RECAP DIRCOM'!$G$6:$DC$12,27,FALSE) -> 4.33 | N11: =VLOOKUP($A11,'RECAP DIRCOM'!$G$6:$DC$12,28,FALSE) -> 49% | O11: =VLOOKUP($A11,'RECAP DIRCOM'!$G$6:$DC$12,29,FALSE) -> 4 | P11: =VLOOKUP($A11,'RECAP DIRCOM'!$G$6:$DC$12,30,FALSE) -> -403 | Q11: =VLOOKUP($A11,'RECAP DIRCOM'!$G$6:$DC$12,31,FALSE) -> -1.60 | R11: =VLOOKUP($A11,'RECAP DIRCOM'!$G$6:$DC$12,32,FALSE) -> 24% | S11: =VLOOKUP($A11,'RECAP DIRCOM'!$G$6:$DC$12,33,FALSE) -> 7 | T11: =VLOOKUP($A11,'RECAP DIRCOM'!$G$6:$DC$12,34,FALSE) -> 20% | U11: =VLOOKUP($A11,'RECAP DIRCOM'!$G$6:$DC$12,35,FALSE) -> 18% | V11: =VLOOKUP($A11,'RECAP DIRCOM'!$G$6:$DC$12,36,FALSE) -> 3
A12: 264 | B12: Haut-Rhin | C12: =VLOOKUP($A12,'RECAP DIRCOM'!$G$6:$DC$12,3,FALSE) -> 157 | D12: =VLOOKUP($A12,'RECAP DIRCOM'!$G$6:$DC$12,18,FALSE) -> 3,641 | E12: =VLOOKUP($A12,'RECAP DIRCOM'!$G$6:$DC$12,19,FALSE) -> 23.13 | F12: =VLOOKUP($A12,'RECAP DIRCOM'!$G$6:$DC$12,20,FALSE) -> 56% | G12: =VLOOKUP($A12,'RECAP DIRCOM'!$G$6:$DC$12,21,FALSE) -> 7 | H12: =VLOOKUP($A12,'RECAP DIRCOM'!$G$6:$DC$12,22,FALSE) -> 3,347 | I12: =VLOOKUP($A12,'RECAP DIRCOM'!$G$6:$DC$12,23,FALSE) -> 21.26 | J12: =VLOOKUP($A12,'RECAP DIRCOM'!$G$6:$DC$12,24,FALSE) -> 27% | K12: =VLOOKUP($A12,'RECAP DIRCOM'!$G$6:$DC$12,25,FALSE) -> 7 | L12: =VLOOKUP($A12,'RECAP DIRCOM'!$G$6:$DC$12,26,FALSE) -> 376 | M12: =VLOOKUP($A12,'RECAP DIRCOM'!$G$6:$DC$12,27,FALSE) -> 2.39 | N12: =VLOOKUP($A12,'RECAP DIRCOM'!$G$6:$DC$12,28,FALSE) -> 72% | O12: =VLOOKUP($A12,'RECAP DIRCOM'!$G$6:$DC$12,29,FALSE) -> 7 | P12: =VLOOKUP($A12,'RECAP DIRCOM'!$G$6:$DC$12,30,FALSE) -> -213 | Q12: =VLOOKUP($A12,'RECAP DIRCOM'!$G$6:$DC$12,31,FALSE) -> -1.35 | R12: =VLOOKUP($A12,'RECAP DIRCOM'!$G$6:$DC$12,32,FALSE) -> 5% | S12: =VLOOKUP($A12,'RECAP DIRCOM'!$G$6:$DC$12,33,FALSE) -> 3 | T12: =VLOOKUP($A12,'RECAP DIRCOM'!$G$6:$DC$12,34,FALSE) -> 45% | U12: =VLOOKUP($A12,'RECAP DIRCOM'!$G$6:$DC$12,35,FALSE) -> 43% | V12: =VLOOKUP($A12,'RECAP DIRCOM'!$G$6:$DC$12,36,FALSE) -> 7
A13: 30 | B13: Marne-Ardennes | C13: =VLOOKUP($A13,'RECAP DIRCOM'!$G$6:$DC$12,3,FALSE) -> 227 | D13: =VLOOKUP($A13,'RECAP DIRCOM'!$G$6:$DC$12,18,FALSE) -> 7,904 | E13: =VLOOKUP($A13,'RECAP DIRCOM'!$G$6:$DC$12,19,FALSE) -> 34.88 | F13: =VLOOKUP($A13,'RECAP DIRCOM'!$G$6:$DC$12,20,FALSE) -> 33% | G13: =VLOOKUP($A13,'RECAP DIRCOM'!$G$6:$DC$12,21,FALSE) -> 5 | H13: =VLOOKUP($A13,'RECAP DIRCOM'!$G$6:$DC$12,22,FALSE) -> 6,208 | I13: =VLOOKUP($A13,'RECAP DIRCOM'!$G$6:$DC$12,23,FALSE) -> 27.39 | J13: =VLOOKUP($A13,'RECAP DIRCOM'!$G$6:$DC$12,24,FALSE) -> 6% | K13: =VLOOKUP($A13,'RECAP DIRCOM'!$G$6:$DC$12,25,FALSE) -> 2 | L13: =VLOOKUP($A13,'RECAP DIRCOM'!$G$6:$DC$12,26,FALSE) -> 1,910 | M13: =VLOOKUP($A13,'RECAP DIRCOM'!$G$6:$DC$12,27,FALSE) -> 8.43 | N13: =VLOOKUP($A13,'RECAP DIRCOM'!$G$6:$DC$12,28,FALSE) -> 0% | O13: =VLOOKUP($A13,'RECAP DIRCOM'!$G$6:$DC$12,29,FALSE) -> 1 | P13: =VLOOKUP($A13,'RECAP DIRCOM'!$G$6:$DC$12,30,FALSE) -> -319 | Q13: =VLOOKUP($A13,'RECAP DIRCOM'!$G$6:$DC$12,31,FALSE) -> -1.41 | R13: =VLOOKUP($A13,'RECAP DIRCOM'!$G$6:$DC$12,32,FALSE) -> 9% | S13: =VLOOKUP($A13,'RECAP DIRCOM'!$G$6:$DC$12,33,FALSE) -> 4 | T13: =VLOOKUP($A13,'RECAP DIRCOM'!$G$6:$DC$12,34,FALSE) -> 19% | U13: =VLOOKUP($A13,'RECAP DIRCOM'!$G$6:$DC$12,35,FALSE) -> 18% | V13: =VLOOKUP($A13,'RECAP DIRCOM'!$G$6:$DC$12,36,FALSE) -> 2
A14: 110 | B14: Meurthe et Moselle Meuse | C14: =VLOOKUP($A14,'RECAP DIRCOM'!$G$6:$DC$12,3,FALSE) -> 242 | D14: =VLOOKUP($A14,'RECAP DIRCOM'!$G$6:$DC$12,18,FALSE) -> 12,693 | E14: =VLOOKUP($A14,'RECAP DIRCOM'!$G$6:$DC$12,19,FALSE) -> 52.38 | F14: =VLOOKUP($A14,'RECAP DIRCOM'!$G$6:$DC$12,20,FALSE) -> 0% | G14: =VLOOKUP($A14,'RECAP DIRCOM'!$G$6:$DC$12,21,FALSE) -> 1 | H14: =VLOOKUP($A14,'RECAP DIRCOM'!$G$6:$DC$12,22,FALSE) -> 7,054 | I14: =VLOOKUP($A14,'RECAP DIRCOM'!$G$6:$DC$12,23,FALSE) -> 29.11 | J14: =VLOOKUP($A14,'RECAP DIRCOM'!$G$6:$DC$12,24,FALSE) -> 0% | K14: =VLOOKUP($A14,'RECAP DIRCOM'!$G$6:$DC$12,25,FALSE) -> 1 | L14: =VLOOKUP($A14,'RECAP DIRCOM'!$G$6:$DC$12,26,FALSE) -> 2,005 | M14: =VLOOKUP($A14,'RECAP DIRCOM'!$G$6:$DC$12,27,FALSE) -> 8.27 | N14: =VLOOKUP($A14,'RECAP DIRCOM'!$G$6:$DC$12,28,FALSE) -> 2% | O14: =VLOOKUP($A14,'RECAP DIRCOM'!$G$6:$DC$12,29,FALSE) -> 2 | P14: =VLOOKUP($A14,'RECAP DIRCOM'!$G$6:$DC$12,30,FALSE) -> -341 | Q14: =VLOOKUP($A14,'RECAP DIRCOM'!$G$6:$DC$12,31,FALSE) -> -1.41 | R14: =VLOOKUP($A14,'RECAP DIRCOM'!$G$6:$DC$12,32,FALSE) -> 9% | S14: =VLOOKUP($A14,'RECAP DIRCOM'!$G$6:$DC$12,33,FALSE) -> 5 | T14: =VLOOKUP($A14,'RECAP DIRCOM'!$G$6:$DC$12,34,FALSE) -> 2% | U14: =VLOOKUP($A14,'RECAP DIRCOM'!$G$6:$DC$12,35,FALSE) -> 0% | V14: =VLOOKUP($A14,'RECAP DIRCOM'!$G$6:$DC$12,36,FALSE) -> 1
A15: 160 | B15: Moselle | C15: =VLOOKUP($A15,'RECAP DIRCOM'!$G$6:$DC$12,3,FALSE) -> 266 | D15: =VLOOKUP($A15,'RECAP DIRCOM'!$G$6:$DC$12,18,FALSE) -> 10,973 | E15: =VLOOKUP($A15,'RECAP DIRCOM'!$G$6:$DC$12,19,FALSE) -> 41.28 | F15: =VLOOKUP($A15,'RECAP DIRCOM'!$G$6:$DC$12,20,FALSE) -> 21% | G15: =VLOOKUP($A15,'RECAP DIRCOM'!$G$6:$DC$12,21,FALSE) -> 3 | H15: =VLOOKUP($A15,'RECAP DIRCOM'!$G$6:$DC$12,22,FALSE) -> 6,648 | I15: =VLOOKUP($A15,'RECAP DIRCOM'!$G$6:$DC$12,23,FALSE) -> 25.01 | J15: =VLOOKUP($A15,'RECAP DIRCOM'!$G$6:$DC$12,24,FALSE) -> 14% | K15: =VLOOKUP($A15,'RECAP DIRCOM'!$G$6:$DC$12,25,FALSE) -> 3 | L15: =VLOOKUP($A15,'RECAP DIRCOM'!$G$6:$DC$12,26,FALSE) -> 1,034 | M15: =VLOOKUP($A15,'RECAP DIRCOM'!$G$6:$DC$12,27,FALSE) -> 3.89 | N15: =VLOOKUP($A15,'RECAP DIRCOM'!$G$6:$DC$12,28,FALSE) -> 54% | O15: =VLOOKUP($A15,'RECAP DIRCOM'!$G$6:$DC$12,29,FALSE) -> 6 | P15: =VLOOKUP($A15,'RECAP DIRCOM'!$G$6:$DC$12,30,FALSE) -> -351 | Q15: =VLOOKUP($A15,'RECAP DIRCOM'!$G$6:$DC$12,31,FALSE) -> -1.32 | R15: =VLOOKUP($A15,'RECAP DIRCOM'!$G$6:$DC$12,32,FALSE) -> 3% | S15: =VLOOKUP($A15,'RECAP DIRCOM'!$G$6:$DC$12,33,FALSE) -> 2 | T15: =VLOOKUP($A15,'RECAP DIRCOM'!$G$6:$DC$12,34,FALSE) -> 22% | U15: =VLOOKUP($A15,'RECAP DIRCOM'!$G$6:$DC$12,35,FALSE) -> 20% | V15: =VLOOKUP($A15,'RECAP DIRCOM'!$G$6:$DC$12,36,FALSE) -> 4
A16: 80 | B16: Vosges | C16: =VLOOKUP($A16,'RECAP DIRCOM'!$G$6:$DC$12,3,FALSE) -> 133 | D16: =VLOOKUP($A16,'RECAP DIRCOM'!$G$6:$DC$12,18,FALSE) -> 4,319 | E16: =VLOOKUP($A16,'RECAP DIRCOM'!$G$6:$DC$12,19,FALSE) -> 32.48 | F16: =VLOOKUP($A16,'RECAP DIRCOM'!$G$6:$DC$12,20,FALSE) -> 38% | G16: =VLOOKUP($A16,'RECAP DIRCOM'!$G$6:$DC$12,21,FALSE) -> 6 | H16: =VLOOKUP($A16,'RECAP DIRCOM'!$G$6:$DC$12,22,FALSE) -> 3,158 | I16: =VLOOKUP($A16,'RECAP DIRCOM'!$G$6:$DC$12,23,FALSE) -> 23.75 | J16: =VLOOKUP($A16,'RECAP DIRCOM'!$G$6:$DC$12,24,FALSE) -> 18% | K16: =VLOOKUP($A16,'RECAP DIRCOM'!$G$6:$DC$12,25,FALSE) -> 6 | L16: =VLOOKUP($A16,'RECAP DIRCOM'!$G$6:$DC$12,26,FALSE) -> 561 | M16: =VLOOKUP($A16,'RECAP DIRCOM'!$G$6:$DC$12,27,FALSE) -> 4.22 | N16: =VLOOKUP($A16,'RECAP DIRCOM'!$G$6:$DC$12,28,FALSE) -> 50% | O16: =VLOOKUP($A16,'RECAP DIRCOM'!$G$6:$DC$12,29,FALSE) -> 5 | P16: =VLOOKUP($A16,'RECAP DIRCOM'!$G$6:$DC$12,30,FALSE) -> -190 | Q16: =VLOOKUP($A16,'RECAP DIRCOM'!$G$6:$DC$12,31,FALSE) -> -1.43 | R16: =VLOOKUP($A16,'RECAP DIRCOM'!$G$6:$DC$12,32,FALSE) -> 11% | S16: =VLOOKUP($A16,'RECAP DIRCOM'!$G$6:$DC$12,33,FALSE) -> 6 | T16: =VLOOKUP($A16,'RECAP DIRCOM'!$G$6:$DC$12,34,FALSE) -> 32% | U16: =VLOOKUP($A16,'RECAP DIRCOM'!$G$6:$DC$12,35,FALSE) -> 30% | V16: =VLOOKUP($A16,'RECAP DIRCOM'!$G$6:$DC$12,36,FALSE) -> 6
B17: Total CEGEE Directions Régionales | C17: =SUM(C10:C16) -> 1406

Sheet DC_EPARGNE
B1: Accueil | D1: BAROMETRE BDD - DIRECTIONS REGIONALES
D2: EPARGNE
D3: =ACCUEIL!F7 -> 2021-07-25
D7: Excédent Epargne y/c DAV pondéré | H7: Ventes sur client non détenteur de l’univers | L7: Total Epargne
D8: =DATEMAJ!C14 -> au 25/07 | F8: coef | G8: ='RECAP DIRCOM'!AX4 -> 14% | H8: =DATEMAJ!C15 -> au 25/07 | J8: coef | K8: ='RECAP DIRCOM'!BB4 -> 6% | M8: coef | N8: ='RECAP DIRCOM'!BE4 -> 20%
B9: Direction | C9: ="ETP perf "&DATEMAJ!$C$28 -> ETP perf 31-mai | D9: Excédent | E9: Excédent / ETP | F9: % Ecart au 1er | G9: Rang | H9: VB | I9: VB / ETP | J9: % Ecart au 1er | K9: Rang | L9: Moyenne ecart au 1er | M9: % Ecart au 1er | N9: Rang CEGEE
A10: 50 | B10: Aube Haute Marne | C10: =VLOOKUP($A10,'RECAP DIRCOM'!$G$6:$DC$12,3,FALSE) -> 128 | D10: =VLOOKUP($A10,'RECAP DIRCOM'!$G$6:$DC$12,41,FALSE) -> 17,448 | E10: =VLOOKUP($A10,'RECAP DIRCOM'!$G$6:$DC$12,42,FALSE) -> 136.66 | F10: =VLOOKUP($A10,'RECAP DIRCOM'!$G$6:$DC$12,43,FALSE) -> 65% | G10: =VLOOKUP($A10,'RECAP DIRCOM'!$G$6:$DC$12,44,FALSE) -> 7 | H10: =VLOOKUP($A10,'RECAP DIRCOM'!$G$6:$DC$12,45,FALSE) -> 1,575 | I10: =VLOOKUP($A10,'RECAP DIRCOM'!$G$6:$DC$12,46,FALSE) -> 12.34 | J10: =VLOOKUP($A10,'RECAP DIRCOM'!$G$6:$DC$12,47,FALSE) -> 23% | K10: =VLOOKUP($A10,'RECAP DIRCOM'!$G$6:$DC$12,48,FALSE) -> 5 | L10: =VLOOKUP($A10,'RECAP DIRCOM'!$G$6:$DC$12,49,FALSE) -> 53% | M10: =VLOOKUP($A10,'RECAP DIRCOM'!$G$6:$DC$12,50,FALSE) -> 50% | N10: =VLOOKUP($A10,'RECAP DIRCOM'!$G$6:$DC$12,51,FALSE) -> 7
A11: 262 | B11: Bas-Rhin | C11: =VLOOKUP($A11,'RECAP DIRCOM'!$G$6:$DC$12,3,FALSE) -> 253 | D11: =VLOOKUP($A11,'RECAP DIRCOM'!$G$6:$DC$12,41,FALSE) -> 90,558 | E11: =VLOOKUP($A11,'RECAP DIRCOM'!$G$6:$DC$12,42,FALSE) -> 358.38 | F11: =VLOOKUP($A11,'RECAP DIRCOM'!$G$6:$DC$12,43,FALSE) -> 9% | G11: =VLOOKUP($A11,'RECAP DIRCOM'!$G$6:$DC$12,44,FALSE) -> 2 | H11: =VLOOKUP($A11,'RECAP DIRCOM'!$G$6:$DC$12,45,FALSE) -> 4,039 | I11: =VLOOKUP($A11,'RECAP DIRCOM'!$G$6:$DC$12,46,FALSE) -> 15.98 | J11: =VLOOKUP($A11,'RECAP DIRCOM'!$G$6:$DC$12,47,FALSE) -> 0% | K11: =VLOOKUP($A11,'RECAP DIRCOM'!$G$6:$DC$12,48,FALSE) -> 1 | L11: =VLOOKUP($A11,'RECAP DIRCOM'!$G$6:$DC$12,49,FALSE) -> 6% | M11: =VLOOKUP($A11,'RECAP DIRCOM'!$G$6:$DC$12,50,FALSE) -> 4% | N11: =VLOOKUP($A11,'RECAP DIRCOM'!$G$6:$DC$12,51,FALSE) -> 2
A12: 264 | B12: Haut-Rhin | C12: =VLOOKUP($A12,'RECAP DIRCOM'!$G$6:$DC$12,3,FALSE) -> 157 | D12: =VLOOKUP($A12,'RECAP DIRCOM'!$G$6:$DC$12,41,FALSE) -> 24,687 | E12: =VLOOKUP($A12,'RECAP DIRCOM'!$G$6:$DC$12,42,FALSE) -> 156.81 | F12: =VLOOKUP($A12,'RECAP DIRCOM'!$G$6:$DC$12,43,FALSE) -> 60% | G12: =VLOOKUP($A12,'RECAP DIRCOM'!$G$6:$DC$12,44,FALSE) -> 6 | H12: =VLOOKUP($A12,'RECAP DIRCOM'!$G$6:$DC$12,45,FALSE) -> 1,901 | I12: =VLOOKUP($A12,'RECAP DIRCOM'!$G$6:$DC$12,46,FALSE) -> 12.07 | J12: =VLOOKUP($A12,'RECAP DIRCOM'!$G$6:$DC$12,47,FALSE) -> 24% | K12: =VLOOKUP($A12,'RECAP DIRCOM'!$G$6:$DC$12,48,FALSE) -> 6 | L12: =VLOOKUP($A12,'RECAP DIRCOM'!$G$6:$DC$12,49,FALSE) -> 50% | M12: =VLOOKUP($A12,'RECAP DIRCOM'!$G$6:$DC$12,50,FALSE) -> 47% | N12: =VLOOKUP($A12,'RECAP DIRCOM'!$G$6:$DC$12,51,FALSE) -> 6
A13: 30 | B13: Marne-Ardennes | C13: =VLOOKUP($A13,'RECAP DIRCOM'!$G$6:$DC$12,3,FALSE) -> 227 | D13: =VLOOKUP($A13,'RECAP DIRCOM'!$G$6:$DC$12,41,FALSE) -> 66,982 | E13: =VLOOKUP($A13,'RECAP DIRCOM'!$G$6:$DC$12,42,FALSE) -> 295.54 | F13: =VLOOKUP($A13,'RECAP DIRCOM'!$G$6:$DC$12,43,FALSE) -> 25% | G13: =VLOOKUP($A13,'RECAP DIRCOM'!$G$6:$DC$12,44,FALSE) -> 4 | H13: =VLOOKUP($A13,'RECAP DIRCOM'!$G$6:$DC$12,45,FALSE) -> 3,523 | I13: =VLOOKUP($A13,'RECAP DIRCOM'!$G$6:$DC$12,46,FALSE) -> 15.54 | J13: =VLOOKUP($A13,'RECAP DIRCOM'!$G$6:$DC$12,47,FALSE) -> 3% | K13: =VLOOKUP($A13,'RECAP DIRCOM'!$G$6:$DC$12,48,FALSE) -> 3 | L13: =VLOOKUP($A13,'RECAP DIRCOM'!$G$6:$DC$12,49,FALSE) -> 18% | M13: =VLOOKUP($A13,'RECAP DIRCOM'!$G$6:$DC$12,50,FALSE) -> 16% | N13: =VLOOKUP($A13,'RECAP DIRCOM'!$G$6:$DC$12,51,FALSE) -> 3
A14: 110 | B14: Meurthe et Moselle Meuse | C14: =VLOOKUP($A14,'RECAP DIRCOM'!$G$6:$DC$12,3,FALSE) -> 242 | D14: =VLOOKUP($A14,'RECAP DIRCOM'!$G$6:$DC$12,41,FALSE) -> 95,556 | E14: =VLOOKUP($A14,'RECAP DIRCOM'!$G$6:$DC$12,42,FALSE) -> 394.33 | F14: =VLOOKUP($A14,'RECAP DIRCOM'!$G$6:$DC$12,43,FALSE) -> 0% | G14: =VLOOKUP($A14,'RECAP DIRCOM'!$G$6:$DC$12,44,FALSE) -> 1 | H14: =VLOOKUP($A14,'RECAP DIRCOM'!$G$6:$DC$12,45,FALSE) -> 3,563 | I14: =VLOOKUP($A14,'RECAP DIRCOM'!$G$6:$DC$12,46,FALSE) -> 14.70 | J14: =VLOOKUP($A14,'RECAP DIRCOM'!$G$6:$DC$12,47,FALSE) -> 8% | K14: =VLOOKUP($A14,'RECAP DIRCOM'!$G$6:$DC$12,48,FALSE) -> 4 | L14: =VLOOKUP($A14,'RECAP DIRCOM'!$G$6:$DC$12,49,FALSE) -> 2% | M14: =VLOOKUP($A14,'RECAP DIRCOM'!$G$6:$DC$12,50,FALSE) -> 0% | N14: =VLOOKUP($A14,'RECAP DIRCOM'!$G$6:$DC$12,51,FALSE) -> 1
A15: 160 | B15: Moselle | C15: =VLOOKUP($A15,'RECAP DIRCOM'!$G$6:$DC$12,3,FALSE) -> 266 | D15: =VLOOKUP($A15,'RECAP DIRCOM'!$G$6:$DC$12,41,FALSE) -> 77,631 | E15: =VLOOKUP($A15,'RECAP DIRCOM'!$G$6:$DC$12,42,FALSE) -> 292.03 | F15: =VLOOKUP($A15,'RECAP DIRCOM'!$G$6:$DC$12,43,FALSE) -> 26% | G15: =VLOOKUP($A15,'RECAP DIRCOM'!$G$6:$DC$12,44,FALSE) -> 5 | H15: =VLOOKUP($A15,'RECAP DIRCOM'!$G$6:$DC$12,45,FALSE) -> 4,205 | I15: =VLOOKUP($A15,'RECAP DIRCOM'!$G$6:$DC$12,46,FALSE) -> 15.82 | J15: =VLOOKUP($A15,'RECAP DIRCOM'!$G$6:$DC$12,47,FALSE) -> 1% | K15: =VLOOKUP($A15,'RECAP DIRCOM'!$G$6:$DC$12,48,FALSE) -> 2 | L15: =VLOOKUP($A15,'RECAP DIRCOM'!$G$6:$DC$12,49,FALSE) -> 18% | M15: =VLOOKUP($A15,'RECAP DIRCOM'!$G$6:$DC$12,50,FALSE) -> 16% | N15: =VLOOKUP($A15,'RECAP DIRCOM'!$G$6:$DC$12,51,FALSE) -> 4
A16: 80 | B16: Vosges | C16: =VLOOKUP($A16,'RECAP DIRCOM'!$G$6:$DC$12,3,FALSE) -> 133 | D16: =VLOOKUP($A16,'RECAP DIRCOM'!$G$6:$DC$12,41,FALSE) -> 46,281 | E16: =VLOOKUP($A16,'RECAP DIRCOM'!$G$6:$DC$12,42,FALSE) -> 348.05 | F16: =VLOOKUP($A16,'RECAP DIRCOM'!$G$6:$DC$12,43,FALSE) -> 12% | G16: =VLOOKUP($A16,'RECAP DIRCOM'!$G$6:$DC$12,44,FALSE) -> 3 | H16: =VLOOKUP($A16,'RECAP DIRCOM'!$G$6:$DC$12,45,FALSE) -> 1,352 | I16: =VLOOKUP($A16,'RECAP DIRCOM'!$G$6:$DC$12,46,FALSE) -> 10.17 | J16: =VLOOKUP($A16,'RECAP DIRCOM'!$G$6:$DC$12,47,FALSE) -> 36% | K16: =VLOOKUP($A16,'RECAP DIRCOM'!$G$6:$DC$12,48,FALSE) -> 7 | L16: =VLOOKUP($A16,'RECAP DIRCOM'!$G$6:$DC$12,49,FALSE) -> 19% | M16: =VLOOKUP($A16,'RECAP DIRCOM'!$G$6:$DC$12,50,FALSE) -> 17% | N16: =VLOOKUP($A16,'RECAP DIRCOM'!$G$6:$DC$12,51,FALSE) -> 5
B17: Total CEGEE Directions Régionales | C17: =SUM(C10:C16) -> 1406

Sheet DC_CREDIT
B1: Accueil | D1: BAROMETRE BDD - DIRECTIONS REGIONALES
D2: CREDITS
D3: =ACCUEIL!F7 -> 2021-07-25
D7: Engagements et ventes accessoires pondérés Immo | H7: Engagements et ventes accessoires pondérés Conso | L7: Ventes sur client non détenteur de l’univers | P7: Total Crédits
D8: =DATEMAJ!C18 -> au 25/07 | F8: coef | G8: ='RECAP DIRCOM'!BM4 -> 8% | H8: =DATEMAJ!C19 -> au 25/07 | J8: coef | K8: ='RECAP DIRCOM'!BQ4 -> 6% | L8: =DATEMAJ!C20 -> au 25/07 | N8: coef | O8: ='RECAP DIRCOM'!BU4 -> 6% | Q8: coef | R8: ='RECAP DIRCOM'!BX4 -> 20%
B9: Direction | C9: ="ETP perf "&DATEMAJ!$C$28 -> ETP perf 31-mai | D9: PNB | E9: PNB / ETP | F9: % Ecart au 1er | G9: Rang | H9: PNB | I9: PNB / ETP | J9: % Ecart au 1er | K9: Rang | L9: VB | M9: VB / ETP | N9: % Ecart au 1er | O9: Rang | P9: Moyenne ecart au 1er | Q9: % Ecart au 1er | R9: Rang CEGEE
A10: 50 | B10: Aube Haute Marne | C10: =VLOOKUP($A10,'RECAP DIRCOM'!$G$6:$DC$12,3,FALSE) -> 128 | D10: =VLOOKUP($A10,'RECAP DIRCOM'!$G$6:$DC$12,56,FALSE) -> 7,852 | E10: =VLOOKUP($A10,'RECAP DIRCOM'!$G$6:$DC$12,57,FALSE) -> 61.51 | F10: =VLOOKUP($A10,'RECAP DIRCOM'!$G$6:$DC$12,58,FALSE) -> 53% | G10: =VLOOKUP($A10,'RECAP DIRCOM'!$G$6:$DC$12,59,FALSE) -> 6 | H10: =VLOOKUP($A10,'RECAP DIRCOM'!$G$6:$DC$12,60,FALSE) -> 4,887 | I10: =VLOOKUP($A10,'RECAP DIRCOM'!$G$6:$DC$12,61,FALSE) -> 38.28 | J10: =VLOOKUP($A10,'RECAP DIRCOM'!$G$6:$DC$12,62,FALSE) -> 3% | K10: =VLOOKUP($A10,'RECAP DIRCOM'!$G$6:$DC$12,63,FALSE) -> 3 | L10: =VLOOKUP($A10,'RECAP DIRCOM'!$G$6:$DC$12,64,FALSE) -> 1,246 | M10: =VLOOKUP($A10,'RECAP DIRCOM'!$G$6:$DC$12,65,FALSE) -> 9.76 | N10: =VLOOKUP($A10,'RECAP DIRCOM'!$G$6:$DC$12,66,FALSE) -> 25% | O10: =VLOOKUP($A10,'RECAP DIRCOM'!$G$6:$DC$12,67,FALSE) -> 4 | P10: =VLOOKUP($A10,'RECAP DIRCOM'!$G$6:$DC$12,68,FALSE) -> 30% | Q10: =VLOOKUP($A10,'RECAP DIRCOM'!$G$6:$DC$12,69,FALSE) -> 29% | R10: =VLOOKUP($A10,'RECAP DIRCOM'!$G$6:$DC$12,70,FALSE) -> 5
A11: 262 | B11: Bas-Rhin | C11: =VLOOKUP($A11,'RECAP DIRCOM'!$G$6:$DC$12,3,FALSE) -> 253 | D11: =VLOOKUP($A11,'RECAP DIRCOM'!$G$6:$DC$12,56,FALSE) -> 17,103 | E11: =VLOOKUP($A11,'RECAP DIRCOM'!$G$6:$DC$12,57,FALSE) -> 67.68 | F11: =VLOOKUP($A11,'RECAP DIRCOM'!$G$6:$DC$12,58,FALSE) -> 49% | G11: =VLOOKUP($A11,'RECAP DIRCOM'!$G$6:$DC$12,59,FALSE) -> 5 | H11: =VLOOKUP($A11,'RECAP DIRCOM'!$G$6:$DC$12,60,FALSE) -> 8,847 | I11: =VLOOKUP($A11,'RECAP DIRCOM'!$G$6:$DC$12,61,FALSE) -> 35.01 | J11: =VLOOKUP($A11,'RECAP DIRCOM'!$G$6:$DC$12,62,FALSE) -> 11% | K11: =VLOOKUP($A11,'RECAP DIRCOM'!$G$6:$DC$12,63,FALSE) -> 4 | L11: =VLOOKUP($A11,'RECAP DIRCOM'!$G$6:$DC$12,64,FALSE) -> 2,172 | M11: =VLOOKUP($A11,'RECAP DIRCOM'!$G$6:$DC$12,65,FALSE) -> 8.60 | N11: =VLOOKUP($A11,'RECAP DIRCOM'!$G$6:$DC$12,66,FALSE) -> 34% | O11: =VLOOKUP($A11,'RECAP DIRCOM'!$G$6:$DC$12,67,FALSE) -> 6 | P11: =VLOOKUP($A11,'RECAP DIRCOM'!$G$6:$DC$12,68,FALSE) -> 33% | Q11: =VLOOKUP($A11,'RECAP DIRCOM'!$G$6:$DC$12,69,FALSE) -> 33% | R11: =VLOOKUP($A11,'RECAP DIRCOM'!$G$6:$DC$12,70,FALSE) -> 6
A12: 264 | B12: Haut-Rhin | C12: =VLOOKUP($A12,'RECAP DIRCOM'!$G$6:$DC$12,3,FALSE) -> 157 | D12: =VLOOKUP($A12,'RECAP DIRCOM'!$G$6:$DC$12,56,FALSE) -> 7,698 | E12: =VLOOKUP($A12,'RECAP DIRCOM'!$G$6:$DC$12,57,FALSE) -> 48.89 | F12: =VLOOKUP($A12,'RECAP DIRCOM'!$G$6:$DC$12,58,FALSE) -> 63% | G12: =VLOOKUP($A12,'RECAP DIRCOM'!$G$6:$DC$12,59,FALSE) -> 7 | H12: =VLOOKUP($A12,'RECAP DIRCOM'!$G$6:$DC$12,60,FALSE) -> 4,977 | I12: =VLOOKUP($A12,'RECAP DIRCOM'!$G$6:$DC$12,61,FALSE) -> 31.61 | J12: =VLOOKUP($A12,'RECAP DIRCOM'!$G$6:$DC$12,62,FALSE) -> 20% | K12: =VLOOKUP($A12,'RECAP DIRCOM'!$G$6:$DC$12,63,FALSE) -> 7 | L12: =VLOOKUP($A12,'RECAP DIRCOM'!$G$6:$DC$12,64,FALSE) -> 1,098 | M12: =VLOOKUP($A12,'RECAP DIRCOM'!$G$6:$DC$12,65,FALSE) -> 6.97 | N12: =VLOOKUP($A12,'RECAP DIRCOM'!$G$6:$DC$12,66,FALSE) -> 46% | O12: =VLOOKUP($A12,'RECAP DIRCOM'!$G$6:$DC$12,67,FALSE) -> 7 | P12: =VLOOKUP($A12,'RECAP DIRCOM'!$G$6:$DC$12,68,FALSE) -> 45% | Q12: =VLOOKUP($A12,'RECAP DIRCOM'!$G$6:$DC$12,69,FALSE) -> 45% | R12: =VLOOKUP($A12,'RECAP DIRCOM'!$G$6:$DC$12,70,FALSE) -> 7
A13: 30 | B13: Marne-Ardennes | C13: =VLOOKUP($A13,'RECAP DIRCOM'!$G$6:$DC$12,3,FALSE) -> 227 | D13: =VLOOKUP($A13,'RECAP DIRCOM'!$G$6:$DC$12,56,FALSE) -> 27,192 | E13: =VLOOKUP($A13,'RECAP DIRCOM'!$G$6:$DC$12,57,FALSE) -> 119.98 | F13: =VLOOKUP($A13,'RECAP DIRCOM'!$G$6:$DC$12,58,FALSE) -> 9% | G13: =VLOOKUP($A13,'RECAP DIRCOM'!$G$6:$DC$12,59,FALSE) -> 2 | H13: =VLOOKUP($A13,'RECAP DIRCOM'!$G$6:$DC$12,60,FALSE) -> 7,835 | I13: =VLOOKUP($A13,'RECAP DIRCOM'!$G$6:$DC$12,61,FALSE) -> 34.57 | J13: =VLOOKUP($A13,'RECAP DIRCOM'!$G$6:$DC$12,62,FALSE) -> 12% | K13: =VLOOKUP($A13,'RECAP DIRCOM'!$G$6:$DC$12,63,FALSE) -> 6 | L13: =VLOOKUP($A13,'RECAP DIRCOM'!$G$6:$DC$12,64,FALSE) -> 2,735 | M13: =VLOOKUP($A13,'RECAP DIRCOM'!$G$6:$DC$12,65,FALSE) -> 12.07 | N13: =VLOOKUP($A13,'RECAP DIRCOM'!$G$6:$DC$12,66,FALSE) -> 7% | O13: =VLOOKUP($A13,'RECAP DIRCOM'!$G$6:$DC$12,67,FALSE) -> 2 | P13: =VLOOKUP($A13,'RECAP DIRCOM'!$G$6:$DC$12,68,FALSE) -> 9% | Q13: =VLOOKUP($A13,'RECAP DIRCOM'!$G$6:$DC$12,69,FALSE) -> 9% | R13: =VLOOKUP($A13,'RECAP DIRCOM'!$G$6:$DC$12,70,FALSE) -> 2
A14: 110 | B14: Meurthe et Moselle Meuse | C14: =VLOOKUP($A14,'RECAP DIRCOM'!$G$6:$DC$12,3,FALSE) -> 242 | D14: =VLOOKUP($A14,'RECAP DIRCOM'!$G$6:$DC$12,56,FALSE) -> 31,893 | E14: =VLOOKUP($A14,'RECAP DIRCOM'!$G$6:$DC$12,57,FALSE) -> 131.61 | F14: =VLOOKUP($A14,'RECAP DIRCOM'!$G$6:$DC$12,58,FALSE) -> 0% | G14: =VLOOKUP($A14,'RECAP DIRCOM'!$G$6:$DC$12,59,FALSE) -> 1 | H14: =VLOOKUP($A14,'RECAP DIRCOM'!$G$6:$DC$12,60,FALSE) -> 9,459 | I14: =VLOOKUP($A14,'RECAP DIRCOM'!$G$6:$DC$12,61,FALSE) -> 39.03 | J14: =VLOOKUP($A14,'RECAP DIRCOM'!$G$6:$DC$12,62,FALSE) -> 1% | K14: =VLOOKUP($A14,'RECAP DIRCOM'!$G$6:$DC$12,63,FALSE) -> 2 | L14: =VLOOKUP($A14,'RECAP DIRCOM'!$G$6:$DC$12,64,FALSE) -> 3,158 | M14: =VLOOKUP($A14,'RECAP DIRCOM'!$G$6:$DC$12,65,FALSE) -> 13.03 | N14: =VLOOKUP($A14,'RECAP DIRCOM'!$G$6:$DC$12,66,FALSE) -> 0% | O14: =VLOOKUP($A14,'RECAP DIRCOM'!$G$6:$DC$12,67,FALSE) -> 1 | P14: =VLOOKUP($A14,'RECAP DIRCOM'!$G$6:$DC$12,68,FALSE) -> 0% | Q14: =VLOOKUP($A14,'RECAP DIRCOM'!$G$6:$DC$12,69,FALSE) -> 0% | R14: =VLOOKUP($A14,'RECAP DIRCOM'!$G$6:$DC$12,70,FALSE) -> 1
A15: 160 | B15: Moselle | C15: =VLOOKUP($A15,'RECAP DIRCOM'!$G$6:$DC$12,3,FALSE) -> 266 | D15: =VLOOKUP($A15,'RECAP DIRCOM'!$G$6:$DC$12,56,FALSE) -> 22,530 | E15: =VLOOKUP($A15,'RECAP DIRCOM'!$G$6:$DC$12,57,FALSE) -> 84.75 | F15: =VLOOKUP($A15,'RECAP DIRCOM'!$G$6:$DC$12,58,FALSE) -> 36% | G15: =VLOOKUP($A15,'RECAP DIRCOM'!$G$6:$DC$12,59,FALSE) -> 3 | H15: =VLOOKUP($A15,'RECAP DIRCOM'!$G$6:$DC$12,60,FALSE) -> 10,461 | I15: =VLOOKUP($A15,'RECAP DIRCOM'!$G$6:$DC$12,61,FALSE) -> 39.35 | J15: =VLOOKUP($A15,'RECAP DIRCOM'!$G$6:$DC$12,62,FALSE) -> 0% | K15: =VLOOKUP($A15,'RECAP DIRCOM'!$G$6:$DC$12,63,FALSE) -> 1 | L15: =VLOOKUP($A15,'RECAP DIRCOM'!$G$6:$DC$12,64,FALSE) -> 2,561 | M15: =VLOOKUP($A15,'RECAP DIRCOM'!$G$6:$DC$12,65,FALSE) -> 9.63 | N15: =VLOOKUP($A15,'RECAP DIRCOM'!$G$6:$DC$12,66,FALSE) -> 26% | O15: =VLOOKUP($A15,'RECAP DIRCOM'!$G$6:$DC$12,67,FALSE) -> 5 | P15: =VLOOKUP($A15,'RECAP DIRCOM'!$G$6:$DC$12,68,FALSE) -> 22% | Q15: =VLOOKUP($A15,'RECAP DIRCOM'!$G$6:$DC$12,69,FALSE) -> 22% | R15: =VLOOKUP($A15,'RECAP DIRCOM'!$G$6:$DC$12,70,FALSE) -> 3
A16: 80 | B16: Vosges | C16: =VLOOKUP($A16,'RECAP DIRCOM'!$G$6:$DC$12,3,FALSE) -> 133 | D16: =VLOOKUP($A16,'RECAP DIRCOM'!$G$6:$DC$12,56,FALSE) -> 9,570 | E16: =VLOOKUP($A16,'RECAP DIRCOM'!$G$6:$DC$12,57,FALSE) -> 71.97 | F16: =VLOOKUP($A16,'RECAP DIRCOM'!$G$6:$DC$12,58,FALSE) -> 45% | G16: =VLOOKUP($A16,'RECAP DIRCOM'!$G$6:$DC$12,59,FALSE) -> 4 | H16: =VLOOKUP($A16,'RECAP DIRCOM'!$G$6:$DC$12,60,FALSE) -> 4,653 | I16: =VLOOKUP($A16,'RECAP DIRCOM'!$G$6:$DC$12,61,FALSE) -> 34.99 | J16: =VLOOKUP($A16,'RECAP DIRCOM'!$G$6:$DC$12,62,FALSE) -> 11% | K16: =VLOOKUP($A16,'RECAP DIRCOM'!$G$6:$DC$12,63,FALSE) -> 5 | L16: =VLOOKUP($A16,'RECAP DIRCOM'!$G$6:$DC$12,64,FALSE) -> 1,371 | M16: =VLOOKUP($A16,'RECAP DIRCOM'!$G$6:$DC$12,65,FALSE) -> 10.31 | N16: =VLOOKUP($A16,'RECAP DIRCOM'!$G$6:$DC$12,66,FALSE) -> 21% | O16: =VLOOKUP($A16,'RECAP DIRCOM'!$G$6:$DC$12,67,FALSE) -> 3 | P16: =VLOOKUP($A16,'RECAP DIRCOM'!$G$6:$DC$12,68,FALSE) -> 28% | Q16: =VLOOKUP($A16,'RECAP DIRCOM'!$G$6:$DC$12,69,FALSE) -> 27% | R16: =VLOOKUP($A16,'RECAP DIRCOM'!$G$6:$DC$12,70,FALSE) -> 4
B17: Total CEGEE Directions Régionales | C17: =SUM(C10:C16) -> 1406

Sheet DC_IARD
B1: Accueil | D1: BAROMETRE BDD - DIRECTIONS REGIONALES
D2: IARD ET PREVOYANCE
D3: =ACCUEIL!F7 -> 2021-07-25
D7: Ventes Nettes produits pondérés | H7: Ventes sur client non détenteur de l’univers | L7: Total IARD Prévoyance
D8: =DATEMAJ!C23 -> au 25/07 | F8: coef | G8: ='RECAP DIRCOM'!CF4 -> 14% | H8: =DATEMAJ!C24 -> au 25/07 | J8: coef | K8: ='RECAP DIRCOM'!CJ4 -> 6% | M8: coef | N8: ='RECAP DIRCOM'!CM4 -> 20%
B9: Direction | C9: ="ETP perf "&DATEMAJ!$C$28 -> ETP perf 31-mai | D9: VN | E9: VN / ETP | F9: % Ecart au 1er | G9: Rang | H9: VB | I9: VB / ETP | J9: % Ecart au 1er | K9: Rang | L9: Moyenne ecart au 1er | M9: % Ecart au 1er | N9: Rang CEGEE
A10: 50 | B10: Aube Haute Marne | C10: =VLOOKUP($A10,'RECAP DIRCOM'!$G$6:$DC$12,3,FALSE) -> 128 | D10: =VLOOKUP($A10,'RECAP DIRCOM'!$G$6:$DC$12,75,FALSE) -> 12,794 | E10: =VLOOKUP($A10,'RECAP DIRCOM'!$G$6:$DC$12,76,FALSE) -> 100.22 | F10: =VLOOKUP($A10,'RECAP DIRCOM'!$G$6:$DC$12,77,FALSE) -> 35% | G10: =VLOOKUP($A10,'RECAP DIRCOM'!$G$6:$DC$12,78,FALSE) -> 6 | H10: =VLOOKUP($A10,'RECAP DIRCOM'!$G$6:$DC$12,79,FALSE) -> 2,702 | I10: =VLOOKUP($A10,'RECAP DIRCOM'!$G$6:$DC$12,80,FALSE) -> 21.16 | J10: =VLOOKUP($A10,'RECAP DIRCOM'!$G$6:$DC$12,81,FALSE) -> 20% | K10: =VLOOKUP($A10,'RECAP DIRCOM'!$G$6:$DC$12,82,FALSE) -> 5 | L10: =VLOOKUP($A10,'RECAP DIRCOM'!$G$6:$DC$12,83,FALSE) -> 31% | M10: =VLOOKUP($A10,'RECAP DIRCOM'!$G$6:$DC$12,84,FALSE) -> 29% | N10: =VLOOKUP($A10,'RECAP DIRCOM'!$G$6:$DC$12,85,FALSE) -> 6
A11: 262 | B11: Bas-Rhin | C11: =VLOOKUP($A11,'RECAP DIRCOM'!$G$6:$DC$12,3,FALSE) -> 253 | D11: =VLOOKUP($A11,'RECAP DIRCOM'!$G$6:$DC$12,75,FALSE) -> 34,408 | E11: =VLOOKUP($A11,'RECAP DIRCOM'!$G$6:$DC$12,76,FALSE) -> 136.17 | F11: =VLOOKUP($A11,'RECAP DIRCOM'!$G$6:$DC$12,77,FALSE) -> 12% | G11: =VLOOKUP($A11,'RECAP DIRCOM'!$G$6:$DC$12,78,FALSE) -> 3 | H11: =VLOOKUP($A11,'RECAP DIRCOM'!$G$6:$DC$12,79,FALSE) -> 5,432 | I11: =VLOOKUP($A11,'RECAP DIRCOM'!$G$6:$DC$12,80,FALSE) -> 21.50 | J11: =VLOOKUP($A11,'RECAP DIRCOM'!$G$6:$DC$12,81,FALSE) -> 18% | K11: =VLOOKUP($A11,'RECAP DIRCOM'!$G$6:$DC$12,82,FALSE) -> 4 | L11: =VLOOKUP($A11,'RECAP DIRCOM'!$G$6:$DC$12,83,FALSE) -> 14% | M11: =VLOOKUP($A11,'RECAP DIRCOM'!$G$6:$DC$12,84,FALSE) -> 12% | N11: =VLOOKUP($A11,'RECAP DIRCOM'!$G$6:$DC$12,85,FALSE) -> 3
A12: 264 | B12: Haut-Rhin | C12: =VLOOKUP($A12,'RECAP DIRCOM'!$G$6:$DC$12,3,FALSE) -> 157 | D12: =VLOOKUP($A12,'RECAP DIRCOM'!$G$6:$DC$12,75,FALSE) -> 15,614 | E12: =VLOOKUP($A12,'RECAP DIRCOM'!$G$6:$DC$12,76,FALSE) -> 99.18 | F12: =VLOOKUP($A12,'RECAP DIRCOM'!$G$6:$DC$12,77,FALSE) -> 36% | G12: =VLOOKUP($A12,'RECAP DIRCOM'!$G$6:$DC$12,78,FALSE) -> 7 | H12: =VLOOKUP($A12,'RECAP DIRCOM'!$G$6:$DC$12,79,FALSE) -> 3,088 | I12: =VLOOKUP($A12,'RECAP DIRCOM'!$G$6:$DC$12,80,FALSE) -> 19.61 | J12: =VLOOKUP($A12,'RECAP DIRCOM'!$G$6:$DC$12,81,FALSE) -> 26% | K12: =VLOOKUP($A12,'RECAP DIRCOM'!$G$6:$DC$12,82,FALSE) -> 7 | L12: =VLOOKUP($A12,'RECAP DIRCOM'!$G$6:$DC$12,83,FALSE) -> 33% | M12: =VLOOKUP($A12,'RECAP DIRCOM'!$G$6:$DC$12,84,FALSE) -> 31% | N12: =VLOOKUP($A12,'RECAP DIRCOM'!$G$6:$DC$12,85,FALSE) -> 7
A13: 30 | B13: Marne-Ardennes | C13: =VLOOKUP($A13,'RECAP DIRCOM'!$G$6:$DC$12,3,FALSE) -> 227 | D13: =VLOOKUP($A13,'RECAP DIRCOM'!$G$6:$DC$12,75,FALSE) -> 35,142 | E13: =VLOOKUP($A13,'RECAP DIRCOM'!$G$6:$DC$12,76,FALSE) -> 155.06 | F13: =VLOOKUP($A13,'RECAP DIRCOM'!$G$6:$DC$12,77,FALSE) -> 0% | G13: =VLOOKUP($A13,'RECAP DIRCOM'!$G$6:$DC$12,78,FALSE) -> 1 | H13: =VLOOKUP($A13,'RECAP DIRCOM'!$G$6:$DC$12,79,FALSE) -> 5,569 | I13: =VLOOKUP($A13,'RECAP DIRCOM'!$G$6:$DC$12,80,FALSE) -> 24.57 | J13: =VLOOKUP($A13,'RECAP DIRCOM'!$G$6:$DC$12,81,FALSE) -> 7% | K13: =VLOOKUP($A13,'RECAP DIRCOM'!$G$6:$DC$12,82,FALSE) -> 2 | L13: =VLOOKUP($A13,'RECAP DIRCOM'!$G$6:$DC$12,83,FALSE) -> 2% | M13: =VLOOKUP($A13,'RECAP DIRCOM'!$G$6:$DC$12,84,FALSE) -> 0% | N13: =VLOOKUP($A13,'RECAP DIRCOM'!$G$6:$DC$12,85,FALSE) -> 1
A14: 110 | B14: Meurthe et Moselle Meuse | C14: =VLOOKUP($A14,'RECAP DIRCOM'!$G$6:$DC$12,3,FALSE) -> 242 | D14: =VLOOKUP($A14,'RECAP DIRCOM'!$G$6:$DC$12,75,FALSE) -> 33,715 | E14: =VLOOKUP($A14,'RECAP DIRCOM'!$G$6:$DC$12,76,FALSE) -> 139.13 | F14: =VLOOKUP($A14,'RECAP DIRCOM'!$G$6:$DC$12,77,FALSE) -> 10% | G14: =VLOOKUP($A14,'RECAP DIRCOM'!$G$6:$DC$12,78,FALSE) -> 2 | H14: =VLOOKUP($A14,'RECAP DIRCOM'!$G$6:$DC$12,79,FALSE) -> 6,391 | I14: =VLOOKUP($A14,'RECAP DIRCOM'!$G$6:$DC$12,80,FALSE) -> 26.37 | J14: =VLOOKUP($A14,'RECAP DIRCOM'!$G$6:$DC$12,81,FALSE) -> 0% | K14: =VLOOKUP($A14,'RECAP DIRCOM'!$G$6:$DC$12,82,FALSE) -> 1 | L14: =VLOOKUP($A14,'RECAP DIRCOM'!$G$6:$DC$12,83,FALSE) -> 7% | M14: =VLOOKUP($A14,'RECAP DIRCOM'!$G$6:$DC$12,84,FALSE) -> 5% | N14: =VLOOKUP($A14,'RECAP DIRCOM'!$G$6:$DC$12,85,FALSE) -> 2
A15: 160 | B15: Moselle | C15: =VLOOKUP($A15,'RECAP DIRCOM'!$G$6:$DC$12,3,FALSE) -> 266 | D15: =VLOOKUP($A15,'RECAP DIRCOM'!$G$6:$DC$12,75,FALSE) -> 34,842 | E15: =VLOOKUP($A15,'RECAP DIRCOM'!$G$6:$DC$12,76,FALSE) -> 131.07 | F15: =VLOOKUP($A15,'RECAP DIRCOM'!$G$6:$DC$12,77,FALSE) -> 15% | G15: =VLOOKUP($A15,'RECAP DIRCOM'!$G$6:$DC$12,78,FALSE) -> 5 | H15: =VLOOKUP($A15,'RECAP DIRCOM'!$G$6:$DC$12,79,FALSE) -> 6,209 | I15: =VLOOKUP($A15,'RECAP DIRCOM'!$G$6:$DC$12,80,FALSE) -> 23.36 | J15: =VLOOKUP($A15,'RECAP DIRCOM'!$G$6:$DC$12,81,FALSE) -> 11% | K15: =VLOOKUP($A15,'RECAP DIRCOM'!$G$6:$DC$12,82,FALSE) -> 3 | L15: =VLOOKUP($A15,'RECAP DIRCOM'!$G$6:$DC$12,83,FALSE) -> 14% | M15: =VLOOKUP($A15,'RECAP DIRCOM'!$G$6:$DC$12,84,FALSE) -> 12% | N15: =VLOOKUP($A15,'RECAP DIRCOM'!$G$6:$DC$12,85,FALSE) -> 4
A16: 80 | B16: Vosges | C16: =VLOOKUP($A16,'RECAP DIRCOM'!$G$6:$DC$12,3,FALSE) -> 133 | D16: =VLOOKUP($A16,'RECAP DIRCOM'!$G$6:$DC$12,75,FALSE) -> 17,482 | E16: =VLOOKUP($A16,'RECAP DIRCOM'!$G$6:$DC$12,76,FALSE) -> 131.47 | F16: =VLOOKUP($A16,'RECAP DIRCOM'!$G$6:$DC$12,77,FALSE) -> 15% | G16: =VLOOKUP($A16,'RECAP DIRCOM'!$G$6:$DC$12,78,FALSE) -> 4 | H16: =VLOOKUP($A16,'RECAP DIRCOM'!$G$6:$DC$12,79,FALSE) -> 2,673 | I16: =VLOOKUP($A16,'RECAP DIRCOM'!$G$6:$DC$12,80,FALSE) -> 20.10 | J16: =VLOOKUP($A16,'RECAP DIRCOM'!$G$6:$DC$12,81,FALSE) -> 24% | K16: =VLOOKUP($A16,'RECAP DIRCOM'!$G$6:$DC$12,82,FALSE) -> 6 | L16: =VLOOKUP($A16,'RECAP DIRCOM'!$G$6:$DC$12,83,FALSE) -> 18% | M16: =VLOOKUP($A16,'RECAP DIRCOM'!$G$6:$DC$12,84,FALSE) -> 16% | N16: =VLOOKUP($A16,'RECAP DIRCOM'!$G$6:$DC$12,85,FALSE) -> 5
B17: Total CEGEE Directions Régionales | C17: =SUM(C10:C16) -> 1406

Sheet DC_SATISFACTION
B1: Accueil | D1: BAROMETRE BDD - DIRECTIONS REGIONALES
D2: SATISFACTION
D3: =ACCUEIL!F7 -> 2021-07-25
D7: NPS à froid (SAE) | G7: NPS à chaud (QHD) | J7: Total Satisfaction Clients
D8: =DATEMAJ!E4 -> au 31/05 | E8: coef | F8: ='RECAP DIRCOM'!M4 -> 10% | G8: =DATEMAJ!C5 -> au 31/05 | H8: coef | I8: ='RECAP DIRCOM'!P4 -> 10% | K8: coef | L8: ='RECAP DIRCOM'!S4 -> 20%
B9: Direction | C9: ="ETP perf "&DATEMAJ!$C$28 -> ETP perf 31-mai | E9: % Ecart au 1er | F9: Rang | H9: % Ecart au 1er | I9: Rang | J9: Moyenne ecart au 1er | K9: % Ecart au 1er | L9: Rang CEGEE
A10: 50 | B10: Aube Haute Marne | C10: =VLOOKUP($A10,'RECAP DIRCOM'!$G$6:$DC$12,3,FALSE) -> 128 | D10: =VLOOKUP($A10,'RECAP DIRCOM'!$G$6:$DC$12,5,FALSE) -> 16 | E10: =VLOOKUP($A10,'RECAP DIRCOM'!$G$6:$DC$12,6,FALSE) -> 30% | F10: =VLOOKUP($A10,'RECAP DIRCOM'!$G$6:$DC$12,7,FALSE) -> 2 | G10: =VLOOKUP($A10,'RECAP DIRCOM'!$G$6:$DC$12,8,FALSE) -> 56% | H10: =VLOOKUP($A10,'RECAP DIRCOM'!$G$6:$DC$12,9,FALSE) -> 18% | I10: =VLOOKUP($A10,'RECAP DIRCOM'!$G$6:$DC$12,10,FALSE) -> 5 | J10: =VLOOKUP($A10,'RECAP DIRCOM'!$G$6:$DC$12,11,FALSE) -> 24% | K10: =VLOOKUP($A10,'RECAP DIRCOM'!$G$6:$DC$12,12,FALSE) -> 24% | L10: =VLOOKUP($A10,'RECAP DIRCOM'!$G$6:$DC$12,13,FALSE) -> 3
A11: 262 | B11: Bas-Rhin | C11: =VLOOKUP($A11,'RECAP DIRCOM'!$G$6:$DC$12,3,FALSE) -> 253 | D11: =VLOOKUP($A11,'RECAP DIRCOM'!$G$6:$DC$12,5,FALSE) -> 13 | E11: =VLOOKUP($A11,'RECAP DIRCOM'!$G$6:$DC$12,6,FALSE) -> 43% | F11: =VLOOKUP($A11,'RECAP DIRCOM'!$G$6:$DC$12,7,FALSE) -> 4 | G11: =VLOOKUP($A11,'RECAP DIRCOM'!$G$6:$DC$12,8,FALSE) -> 52% | H11: =VLOOKUP($A11,'RECAP DIRCOM'!$G$6:$DC$12,9,FALSE) -> 23% | I11: =VLOOKUP($A11,'RECAP DIRCOM'!$G$6:$DC$12,10,FALSE) -> 6 | J11: =VLOOKUP($A11,'RECAP DIRCOM'!$G$6:$DC$12,11,FALSE) -> 33% | K11: =VLOOKUP($A11,'RECAP DIRCOM'!$G$6:$DC$12,12,FALSE) -> 33% | L11: =VLOOKUP($A11,'RECAP DIRCOM'!$G$6:$DC$12,13,FALSE) -> 6
A12: 264 | B12: Haut-Rhin | C12: =VLOOKUP($A12,'RECAP DIRCOM'!$G$6:$DC$12,3,FALSE) -> 157 | D12: =VLOOKUP($A12,'RECAP DIRCOM'!$G$6:$DC$12,5,FALSE) -> 6 | E12: =VLOOKUP($A12,'RECAP DIRCOM'!$G$6:$DC$12,6,FALSE) -> 74% | F12: =VLOOKUP($A12,'RECAP DIRCOM'!$G$6:$DC$12,7,FALSE) -> 7 | G12: =VLOOKUP($A12,'RECAP DIRCOM'!$G$6:$DC$12,8,FALSE) -> 39% | H12: =VLOOKUP($A12,'RECAP DIRCOM'!$G$6:$DC$12,9,FALSE) -> 43% | I12: =VLOOKUP($A12,'RECAP DIRCOM'!$G$6:$DC$12,10,FALSE) -> 7 | J12: =VLOOKUP($A12,'RECAP DIRCOM'!$G$6:$DC$12,11,FALSE) -> 58% | K12: =VLOOKUP($A12,'RECAP DIRCOM'!$G$6:$DC$12,12,FALSE) -> 58% | L12: =VLOOKUP($A12,'RECAP DIRCOM'!$G$6:$DC$12,13,FALSE) -> 7
A13: 30 | B13: Marne-Ardennes | C13: =VLOOKUP($A13,'RECAP DIRCOM'!$G$6:$DC$12,3,FALSE) -> 227 | D13: =VLOOKUP($A13,'RECAP DIRCOM'!$G$6:$DC$12,5,FALSE) -> 16 | E13: =VLOOKUP($A13,'RECAP DIRCOM'!$G$6:$DC$12,6,FALSE) -> 30% | F13: =VLOOKUP($A13,'RECAP DIRCOM'!$G$6:$DC$12,7,FALSE) -> 2 | G13: =VLOOKUP($A13,'RECAP DIRCOM'!$G$6:$DC$12,8,FALSE) -> 66% | H13: =VLOOKUP($A13,'RECAP DIRCOM'!$G$6:$DC$12,9,FALSE) -> 3% | I13: =VLOOKUP($A13,'RECAP DIRCOM'!$G$6:$DC$12,10,FALSE) -> 2 | J13: =VLOOKUP($A13,'RECAP DIRCOM'!$G$6:$DC$12,11,FALSE) -> 17% | K13: =VLOOKUP($A13,'RECAP DIRCOM'!$G$6:$DC$12,12,FALSE) -> 17% | L13: =VLOOKUP($A13,'RECAP DIRCOM'!$G$6:$DC$12,13,FALSE) -> 2
A14: 110 | B14: Meurthe et Moselle Meuse | C14: =VLOOKUP($A14,'RECAP DIRCOM'!$G$6:$DC$12,3,FALSE) -> 242 | D14: =VLOOKUP($A14,'RECAP DIRCOM'!$G$6:$DC$12,5,FALSE) -> 13 | E14: =VLOOKUP($A14,'RECAP DIRCOM'!$G$6:$DC$12,6,FALSE) -> 43% | F14: =VLOOKUP($A14,'RECAP DIRCOM'!$G$6:$DC$12,7,FALSE) -> 4 | G14: =VLOOKUP($A14,'RECAP DIRCOM'!$G$6:$DC$12,8,FALSE) -> 56% | H14: =VLOOKUP($A14,'RECAP DIRCOM'!$G$6:$DC$12,9,FALSE) -> 17% | I14: =VLOOKUP($A14,'RECAP DIRCOM'!$G$6:$DC$12,10,FALSE) -> 4 | J14: =VLOOKUP($A14,'RECAP DIRCOM'!$G$6:$DC$12,11,FALSE) -> 30% | K14: =VLOOKUP($A14,'RECAP DIRCOM'!$G$6:$DC$12,12,FALSE) -> 30% | L14: =VLOOKUP($A14,'RECAP DIRCOM'!$G$6:$DC$12,13,FALSE) -> 4
A15: 160 | B15: Moselle | C15: =VLOOKUP($A15,'RECAP DIRCOM'!$G$6:$DC$12,3,FALSE) -> 266 | D15: =VLOOKUP($A15,'RECAP DIRCOM'!$G$6:$DC$12,5,FALSE) -> 12 | E15: =VLOOKUP($A15,'RECAP DIRCOM'!$G$6:$DC$12,6,FALSE) -> 48% | F15: =VLOOKUP($A15,'RECAP DIRCOM'!$G$6:$DC$12,7,FALSE) -> 6 | G15: =VLOOKUP($A15,'RECAP DIRCOM'!$G$6:$DC$12,8,FALSE) -> 57% | H15: =VLOOKUP($A15,'RECAP DIRCOM'!$G$6:$DC$12,9,FALSE) -> 16% | I15: =VLOOKUP($A15,'RECAP DIRCOM'!$G$6:$DC$12,10,FALSE) -> 3 | J15: =VLOOKUP($A15,'RECAP DIRCOM'!$G$6:$DC$12,11,FALSE) -> 32% | K15: =VLOOKUP($A15,'RECAP DIRCOM'!$G$6:$DC$12,12,FALSE) -> 32% | L15: =VLOOKUP($A15,'RECAP DIRCOM'!$G$6:$DC$12,13,FALSE) -> 5
A16: 80 | B16: Vosges | C16: =VLOOKUP($A16,'RECAP DIRCOM'!$G$6:$DC$12,3,FALSE) -> 133 | D16: =VLOOKUP($A16,'RECAP DIRCOM'!$G$6:$DC$12,5,FALSE) -> 23 | E16: =VLOOKUP($A16,'RECAP DIRCOM'!$G$6:$DC$12,6,FALSE) -> 0% | F16: =VLOOKUP($A16,'RECAP DIRCOM'!$G$6:$DC$12,7,FALSE) -> 1 | G16: =VLOOKUP($A16,'RECAP DIRCOM'!$G$6:$DC$12,8,FALSE) -> 68% | H16: =VLOOKUP($A16,'RECAP DIRCOM'!$G$6:$DC$12,9,FALSE) -> 0% | I16: =VLOOKUP($A16,'RECAP DIRCOM'!$G$6:$DC$12,10,FALSE) -> 1 | J16: =VLOOKUP($A16,'RECAP DIRCOM'!$G$6:$DC$12,11,FALSE) -> 0% | K16: =VLOOKUP($A16,'RECAP DIRCOM'!$G$6:$DC$12,12,FALSE) -> 0% | L16: =VLOOKUP($A16,'RECAP DIRCOM'!$G$6:$DC$12,13,FALSE) -> 1
B17: Total CEGEE Directions Régionales | C17: =SUM(C10:C16) -> 1406

Sheet SE_FICHE
A1: Accueil
A2: BAROMETRE BDD
A4: UNITE: | B4: TERRITOIRE | E4: ETP perf : | F4: =VLOOKUP(A5,'RECAP SECT'!$G$6:$I$23,3,FALSE) -> 61.65
A5: =VLOOKUP(B5,LISTES!$H$6:$I$23,2,FALSE) -> 5130 | B5: COLMAR
C6: Coefficient du critére | E6: Résultats | I6: Ecart au 1ier | M6: Evolution | O6: Rang
E7: du 1ier | G7: du territoire | I7: Du mois | K7: Au 31/12/2019
A9: RANG au CLASSEMENT GENERAL | K9: =VLOOKUP($A$5,#REF!,168,FALSE) ->  | M9: =+K9-O9 ->  | O9: =VLOOKUP($A$5,'RECAP SECT'!$G$6:$DG$312,168,FALSE) ->  | S9: =VLOOKUP($A$5,#REF!,154,FALSE) ->  | U9: =+S9-O9 -> 
A11: CRITERE CONQUETE | C11: 15% | O11: =VLOOKUP($A$5,'RECAP SECT'!$G$6:$DG$312,23,FALSE) -> 28.0800563
B12: PNB Evolution nette Clients BP | C12: 4% | E12: ='RECAP SECT'!#REF! ->  | G12: =VLOOKUP($A$5,'RECAP SECT'!$G$6:$DG$312,6,FALSE) -> 0.8 | I12: =VLOOKUP($A$5,'RECAP SECT'!$G$6:$DG$312,7,FALSE) -> 1700% | K12: =VLOOKUP($A$5,#REF!,7,FALSE) ->  | M12: =+K12-I12 ->  | O12: =VLOOKUP($A$5,'RECAP SECT'!$G$6:$DG$312,8,FALSE) -> 0.4732728438 | S12: =VLOOKUP($A$5,#REF!,6,FALSE) ->  | U12: =+S12-I12 -> 
B13: PNB Evolution nette Clients PREMIUM | C13: 5% | E13: ='RECAP SECT'!#REF! ->  | G13: =VLOOKUP($A$5,'RECAP SECT'!$G$6:$DG$312,10,FALSE) -> 17.0 | I13: =VLOOKUP($A$5,'RECAP SECT'!$G$6:$DG$312,11,FALSE) -> 55% | K13: =VLOOKUP($A$5,#REF!,11,FALSE) ->  | M13: =+K13-I13 ->  | O13: =VLOOKUP($A$5,'RECAP SECT'!$G$6:$DG$312,12,FALSE) -> 0.5120321958 | S13: =VLOOKUP($A$5,#REF!,9,FALSE) ->  | U13: =+S13-I13 -> 
B14: PNB Evolution nette Clients Jeunes Equipés | C14: 3% | E14: ='RECAP SECT'!#REF! ->  | G14: =VLOOKUP($A$5,'RECAP SECT'!$G$6:$DG$312,14,FALSE) -> 0.0 | I14: =VLOOKUP($A$5,'RECAP SECT'!$G$6:$DG$312,15,FALSE) -> 0% | K14: =VLOOKUP($A$5,#REF!,15,FALSE) ->  | M14: =+K14-I14 ->  | O14: =VLOOKUP($A$5,'RECAP SECT'!$G$6:$DG$312,16,FALSE) -> 0 | S14: =VLOOKUP($A$5,#REF!,12,FALSE) ->  | U14: =+S14-I14 -> 
B15: PNB Evolution nette Clients Pro Actifs Equipés | C15: 3% | E15: ='RECAP SECT'!W4 -> 0.0 | G15: =VLOOKUP($A$5,'RECAP SECT'!$G$6:$DG$312,18,FALSE) -> 2591.6 | I15: =VLOOKUP($A$5,'RECAP SECT'!$G$6:$DG$312,19,FALSE) -> 4204% | K15: =VLOOKUP($A$5,#REF!,19,FALSE) ->  | M15: =+K15-I15 ->  | O15: =VLOOKUP($A$5,'RECAP SECT'!$G$6:$DG$312,20,FALSE) -> 0.3828785597 | S15: =VLOOKUP($A$5,#REF!,15,FALSE) ->  | U15: =+S15-I15 -> 
A17: CRITERE BANCARISATION | C17: 15% | O17: =VLOOKUP($A$5,'RECAP SECT'!$G$6:$DG$312,48,FALSE) -> 16
B18: PNB Ventes nettes forfaits | C18: 4% | E18: ='RECAP SECT'!X4 -> 68.1 | G18: =VLOOKUP($A$5,'RECAP SECT'!$G$6:$DG$312,31,FALSE) -> -1.7 | I18: =VLOOKUP($A$5,'RECAP SECT'!$G$6:$DG$312,32,FALSE) -> 18% | K18: =VLOOKUP($A$5,#REF!,32,FALSE) ->  | M18: =+K18-I18 ->  | O18: =VLOOKUP($A$5,'RECAP SECT'!$G$6:$DG$312,33,FALSE) -> 8 | S18: =VLOOKUP($A$5,#REF!,27,FALSE) ->  | U18: =+S18-I18 -> 
B19: PNB Ventes nettes IZICARTES Débit Différé | C19: 4% | E19: ='RECAP SECT'!AB4 -> 39.3 | G19: =VLOOKUP($A$5,'RECAP SECT'!$G$6:$DG$312,35,FALSE) -> 0.3 | I19: =VLOOKUP($A$5,'RECAP SECT'!$G$6:$DG$312,36,FALSE) -> 1600% | K19: =VLOOKUP($A$5,#REF!,36,FALSE) ->  | M19: =+K19-I19 ->  | O19: =VLOOKUP($A$5,'RECAP SECT'!$G$6:$DG$312,37,FALSE) -> 0 | S19: =VLOOKUP($A$5,#REF!,30,FALSE) ->  | U19: =+S19-I19 -> 
B20: PNB Ventes nettes cartes HDG Débit Différé | C20: 4% | E20: ='RECAP SECT'!AF4 -> 13.5 | G20: =VLOOKUP($A$5,'RECAP SECT'!$G$6:$DG$312,39,FALSE) -> 0.0 | I20: =VLOOKUP($A$5,'RECAP SECT'!$G$6:$DG$312,40,FALSE) -> 0% | K20: =VLOOKUP($A$5,#REF!,40,FALSE) ->  | M20: =+K20-I20 ->  | O20: =VLOOKUP($A$5,'RECAP SECT'!$G$6:$DG$312,41,FALSE) -> 15040.94113 | S20: =VLOOKUP($A$5,#REF!,33,FALSE) ->  | U20: =+S20-I20 -> 
B21: PNB Ventes nettes Forfaits Pro, Carte pro | C21: 3% | E21: ='RECAP SECT'!AJ4 -> -1.4 | G21: =VLOOKUP($A$5,'RECAP SECT'!$G$6:$DG$312,43,FALSE) -> 0.5 | I21: =VLOOKUP($A$5,'RECAP SECT'!$G$6:$DG$312,44,FALSE) -> 1600% | K21: =VLOOKUP($A$5,#REF!,44,FALSE) ->  | M21: =+K21-I21 ->  | O21: =VLOOKUP($A$5,'RECAP SECT'!$G$6:$DG$312,45,FALSE) -> 883 | S21: =VLOOKUP($A$5,#REF!,39,FALSE) ->  | U21: =+S21-I21 -> 
A23: CRITERE EPARGNE | C23: 10% | O23: =VLOOKUP($A$5,'RECAP SECT'!$G$6:$DG$312,69,FALSE) -> 0.448960138
B24: PNB Epargne Liquide | C24: 3% | E24: ='RECAP SECT'!AU4 -> 512.0 | G24: =VLOOKUP($A$5,'RECAP SECT'!$G$6:$DG$312,56,FALSE) -> 3558.0 | I24: =VLOOKUP($A$5,'RECAP SECT'!$G$6:$DG$312,57,FALSE) -> 5772% | K24: =VLOOKUP($A$5,#REF!,57,FALSE) ->  | M24: =+K24-I24 ->  | O24: =VLOOKUP($A$5,'RECAP SECT'!$G$6:$DG$312,58,FALSE) -> 0.6836401233 | S24: =VLOOKUP($A$5,#REF!,51,FALSE) ->  | U24: =+S24-I24 -> 
B25: PNB CA UC + arbitrage | C25: 4% | E25: ='RECAP SECT'!AY4 -> 22.1 | G25: =VLOOKUP($A$5,'RECAP SECT'!$G$6:$DG$312,60,FALSE) -> 2503.5 | I25: =VLOOKUP($A$5,'RECAP SECT'!$G$6:$DG$312,61,FALSE) -> 4061% | K25: =VLOOKUP($A$5,#REF!,61,FALSE) ->  | M25: =+K25-I25 ->  | O25: =VLOOKUP($A$5,'RECAP SECT'!$G$6:$DG$312,62,FALSE) -> 0.3044350822 | S25: =VLOOKUP($A$5,#REF!,57,FALSE) ->  | U25: =+S25-I25 -> 
B26: PNB Excédent assurance vie | C26: 3% | E26: ='RECAP SECT'!#REF! ->  | G26: =VLOOKUP($A$5,'RECAP SECT'!$G$6:$DG$312,64,FALSE) -> 560.0 | I26: =VLOOKUP($A$5,'RECAP SECT'!$G$6:$DG$312,65,FALSE) -> 908% | K26: =VLOOKUP($A$5,#REF!,65,FALSE) ->  | M26: =+K26-I26 ->  | O26: =VLOOKUP($A$5,'RECAP SECT'!$G$6:$DG$312,66,FALSE) -> 0.492525523 | S26: =VLOOKUP($A$5,#REF!,60,FALSE) ->  | U26: =+S26-I26 -> 
A28: CRITERE CREDITS | C28: 15% | O28: =VLOOKUP($A$5,'RECAP SECT'!$G$6:$DG$312,102,FALSE) -> 0.390106609
B29: PNB crédit conso | C29: 4% | E29: ='RECAP SECT'!BJ4 -> 182.4 | G29: =VLOOKUP($A$5,'RECAP SECT'!$G$6:$DG$312,77,FALSE) -> 0.2 | I29: =VLOOKUP($A$5,'RECAP SECT'!$G$6:$DG$312,78,FALSE) -> 1200% | K29: =VLOOKUP($A$5,#REF!,78,FALSE) ->  | M29: =+K29-I29 ->  | O29: =VLOOKUP($A$5,'RECAP SECT'!$G$6:$DG$312,79,FALSE) -> 1492 | S29: =VLOOKUP($A$5,#REF!,75,FALSE) ->  | U29: =+S29-I29 -> 
B30: PNB ADE crédit conso | C30: 1% | E30: ='RECAP SECT'!#REF! ->  | G30: =VLOOKUP($A$5,'RECAP SECT'!$G$6:$DG$312,81,FALSE) -> 0.3 | I30: =VLOOKUP($A$5,'RECAP SECT'!$G$6:$DG$312,82,FALSE) -> 1600% | K30: =VLOOKUP($A$5,#REF!,82,FALSE) ->  | O30: =VLOOKUP($A$5,'RECAP SECT'!$G$6:$DG$312,83,FALSE) -> 0.250291161 | S30: =VLOOKUP($A$5,#REF!,78,FALSE) -> 
B31: PNB crédit immo | C31: 4% | E31: ='RECAP SECT'!BN4 -> 58.4 | G31: =VLOOKUP($A$5,'RECAP SECT'!$G$6:$DG$312,85,FALSE) -> 12.0 | I31: =VLOOKUP($A$5,'RECAP SECT'!$G$6:$DG$312,86,FALSE) -> 0% | K31: =VLOOKUP($A$5,#REF!,86,FALSE) ->  | O31: =VLOOKUP($A$5,'RECAP SECT'!$G$6:$DG$312,87,FALSE) -> 0 | S31: =VLOOKUP($A$5,#REF!,81,FALSE) -> 
B32: PNB ADE crédit immo | C32: 2% | E32: ='RECAP SECT'!#REF! ->  | G32: =VLOOKUP($A$5,'RECAP SECT'!$G$6:$DG$312,89,FALSE) -> 0.0 | I32: =VLOOKUP($A$5,'RECAP SECT'!$G$6:$DG$312,90,FALSE) -> 0% | K32: =VLOOKUP($A$5,#REF!,90,FALSE) ->  | O32: =VLOOKUP($A$5,'RECAP SECT'!$G$6:$DG$312,91,FALSE) -> 0 | S32: =VLOOKUP($A$5,#REF!,84,FALSE) -> 
B33: PNB SACCEF | C33: 2% | E33: ='RECAP SECT'!#REF! ->  | G33: =VLOOKUP($A$5,'RECAP SECT'!$G$6:$DG$312,93,FALSE) -> 0.0 | I33: =VLOOKUP($A$5,'RECAP SECT'!$G$6:$DG$312,94,FALSE) -> 0% | K33: =VLOOKUP($A$5,#REF!,94,FALSE) ->  | O33: =VLOOKUP($A$5,'RECAP SECT'!$G$6:$DG$312,95,FALSE) -> 0 | S33: =VLOOKUP($A$5,#REF!,87,FALSE) -> 
B34: PNB Crédit MLT + Crédit Bail | C34: 2% | E34: ='RECAP SECT'!BR4 -> 17.9 | G34: =VLOOKUP($A$5,'RECAP SECT'!$G$6:$DG$312,97,FALSE) -> 0.0 | I34: =VLOOKUP($A$5,'RECAP SECT'!$G$6:$DG$312,98,FALSE) -> 0% | K34: =VLOOKUP($A$5,#REF!,98,FALSE) ->  | O34: =VLOOKUP($A$5,'RECAP SECT'!$G$6:$DG$312,99,FALSE) -> 0 | S34: =VLOOKUP($A$5,#REF!,90,FALSE) -> 
A36: CRITERE IARD PREVOYANCE | C36: 15% | O36: =VLOOKUP($A$5,'RECAP SECT'!$G$6:$DG$312,119,FALSE) -> 
B37: PNB Ventes nettes IARD | C37: 9% | E37: ='RECAP SECT'!CC4 -> 207.2 | G37: =VLOOKUP($A$5,'RECAP SECT'!$G$6:$DG$312,110,FALSE) ->  | I37: =VLOOKUP($A$5,'RECAP SECT'!$G$6:$DG$312,111,FALSE) ->  | K37: =VLOOKUP($A$5,#REF!,111,FALSE) ->  | M37: =+K37-I37 ->  | O37: =VLOOKUP($A$5,'RECAP SECT'!$G$6:$DG$312,112,FALSE) ->  | S37: =VLOOKUP($A$5,#REF!,102,FALSE) ->  | U37: =+S37-I37 -> 
B38: PNB Ventes nettes Prévoyance | C38: 6% | E38: ='RECAP SECT'!CG4 -> 35.6 | G38: =VLOOKUP($A$5,'RECAP SECT'!$G$6:$DG$312,114,FALSE) ->  | I38: =VLOOKUP($A$5,'RECAP SECT'!$G$6:$DG$312,115,FALSE) ->  | K38: =VLOOKUP($A$5,#REF!,115,FALSE) ->  | M38: =+K38-I38 ->  | O38: =VLOOKUP($A$5,'RECAP SECT'!$G$6:$DG$312,116,FALSE) ->  | S38: =VLOOKUP($A$5,#REF!,105,FALSE) ->  | U38: =+S38-I38 -> 
A40: CRITERE ACCELERATEURS PNB | C40: 15% | O40: =VLOOKUP($A$5,'RECAP SECT'!$G$6:$DG$312,144,FALSE) -> 
B41: PNB Ventes brutes SED Finalisées | C41: 6% | E41: ='RECAP SECT'!#REF! ->  | G41: =VLOOKUP($A$5,'RECAP SECT'!$G$6:$DG$312,127,FALSE) ->  | I41: =VLOOKUP($A$5,'RECAP SECT'!$G$6:$DG$312,128,FALSE) ->  | K41: =VLOOKUP($A$5,#REF!,128,FALSE) ->  | M41: =+K41-I41 ->  | O41: =VLOOKUP($A$5,'RECAP SECT'!$G$6:$DG$312,129,FALSE) ->  | S41: =VLOOKUP($A$5,#REF!,120,FALSE) ->  | U41: =+S41-I41 -> 
B42: PNB clients équipés E documents | C42: 3% | E42: ='RECAP SECT'!#REF! ->  | G42: =VLOOKUP($A$5,'RECAP SECT'!$G$6:$DG$312,131,FALSE) ->  | I42: =VLOOKUP($A$5,'RECAP SECT'!$G$6:$DG$312,132,FALSE) ->  | K42: =VLOOKUP($A$5,#REF!,132,FALSE) ->  | M42: =+K42-I42 ->  | O42: =VLOOKUP($A$5,'RECAP SECT'!$G$6:$DG$312,133,FALSE) ->  | S42: =VLOOKUP($A$5,#REF!,123,FALSE) ->  | U42: =+S42-I42 -> 
B43: Economie opt'in | C43: 3% | E43: ='RECAP SECT'!#REF! ->  | G43: =VLOOKUP($A$5,'RECAP SECT'!$G$6:$DG$312,135,FALSE) ->  | I43: =VLOOKUP($A$5,'RECAP SECT'!$G$6:$DG$312,136,FALSE) ->  | K43: =VLOOKUP($A$5,#REF!,136,FALSE) ->  | M43: =+K43-I43 ->  | O43: =VLOOKUP($A$5,'RECAP SECT'!$G$6:$DG$312,137,FALSE) -> 
B44: Remises commerciales | C44: 3% | E44: ='RECAP SECT'!#REF! ->  | G44: =VLOOKUP($A$5,'RECAP SECT'!$G$6:$DG$312,139,FALSE) ->  | I44: =VLOOKUP($A$5,'RECAP SECT'!$G$6:$DG$312,140,FALSE) ->  | K44: =VLOOKUP($A$5,#REF!,140,FALSE) ->  | M44: =+K44-I44 ->  | O44: =VLOOKUP($A$5,'RECAP SECT'!$G$6:$DG$312,141,FALSE) ->  | S44: =VLOOKUP($A$5,#REF!,126,FALSE) ->  | U44: =+S44-I44 -> 
A46: CRITERE Satisfaction Clients | C46: 15% | O46: =VLOOKUP($A$5,'RECAP SECT'!$G$6:$DG$312,159,FALSE) -> 
B47: Objectifs NPS* | C47: 8% | E47: ='RECAP SECT'!K4 -> 24 | G47: =VLOOKUP($A$5,'RECAP SECT'!$G$6:$DG$312,151,FALSE) ->  | I47: =VLOOKUP($A$5,'RECAP SECT'!$G$6:$DG$312,152,FALSE) ->  | K47: =VLOOKUP($A$5,#REF!,152,FALSE) ->  | M47: =+K47-I47 ->  | O47: =VLOOKUP($A$5,'RECAP SECT'!$G$6:$DG$312,153,FALSE) ->  | S47: =VLOOKUP($A$5,#REF!,138,FALSE) ->  | U47: =+S47-I47 -> 
B48: Enquête Qualité Haute Définition | C48: 7% | E48: ='RECAP SECT'!N4 -> 73% | G48: =VLOOKUP($A$5,'RECAP SECT'!$G$6:$DG$312,154,FALSE) ->  | I48: =VLOOKUP($A$5,'RECAP SECT'!$G$6:$DG$312,155,FALSE) ->  | K48: =VLOOKUP($A$5,#REF!,155,FALSE) ->  | M48: =+K48-I48 ->  | O48: =VLOOKUP($A$5,'RECAP SECT'!$G$6:$DG$312,156,FALSE) ->  | S48: =VLOOKUP($A$5,#REF!,141,FALSE) ->  | U48: =+S48-I48 -> 

Sheet SE_TOTAL
B1: Accueil | F1: BAROMETRE BDD - TERRITOIRES
F2: TOTAL GENERAL
F3: =ACCUEIL!F7 -> 2021-07-25
F7: TOTAL GENERAL | I7: Total Satisfaction Clients | L7: Total Bancarisation | O7: Total Epargne | R7: Total IARD Prévoyance | U7: Total Crédits
G8: coef | H8: 100% | J8: coef | K8: =SE_SATISFACTION!N8 -> 20% | M8: coef | N8: =SE_BANCA!X8 -> 20% | P8: coef | Q8: =SE_EPARGNE!P8 -> 20% | S8: coef | T8: =SE_IARD!P8 -> 20% | V8: coef | W8: =SE_CREDIT!T8 -> 20%
B9: Direction | C9: eds | D9: Territoire | E9: ="ETP perf "&DATEMAJ!$C$28 -> ETP perf 31-mai | F9: Moyenne ecart au 1er | G9: % Ecart au 1er | H9: Rang CEGEE | I9: Moyenne ecart au 1er | J9: % Ecart au 1er | K9: Rang CEGEE | L9: Moyenne ecart au 1er | M9: % Ecart au 1er | N9: Rang CEGEE | O9: Moyenne ecart au 1er | P9: % Ecart au 1er | Q9: Rang CEGEE | R9: Moyenne ecart au 1er | S9: % Ecart au 1er | T9: Rang CEGEE | U9: Moyenne ecart au 1er | V9: % Ecart au 1er | W9: Rang CEGEE
A10: 50 | B10: MEURTHE ET MOSELLE MEUSE | C10: 26 | D10: NANCY | E10: 66.4 | F10: 6% | G10: 0% | H10: 1 | I10: 36% | J10: 32% | K10: 9 | L10: 7% | M10: 0% | N10: 1 | O10: 2% | P10: 0% | Q10: 1 | R10: 3% | S10: 0% | T10: 1 | U10: 6% | V10: 0% | W10: 1
A11: 50 | B11: MARNE-ARDENNES | C11: 2 | D11: CHARLEVILLE MEZIERES | E11: 56.3 | F11: 10% | G11: 4% | H11: 2 | I11: 11% | J11: 7% | K11: 4 | L11: 28% | M11: 21% | N11: 9 | O11: 8% | P11: 6% | Q11: 4 | R11: 6% | S11: 3% | T11: 4 | U11: 21% | V11: 15% | W11: 4
A12: 262 | B12: MEURTHE ET MOSELLE MEUSE | C12: 27 | D12: PONT A MOUSSON | E12: 76.3 | F12: 14% | G12: 8% | H12: 3 | I12: 47% | J12: 43% | K12: 15 | L12: 9% | M12: 2% | N12: 2 | O12: 8% | P12: 6% | Q12: 3 | R12: 18% | S12: 15% | T12: 7 | U12: 11% | V12: 5% | W12: 2
A13: 262 | B13: MEURTHE ET MOSELLE MEUSE | C13: 31 | D13: VERDUN | E13: 54.9 | F13: 17% | G13: 11% | H13: 4 | I13: 18% | J13: 14% | K13: 5 | L13: 20% | M13: 13% | N13: 3 | O13: 20% | P13: 18% | Q13: 7 | R13: 26% | S13: 23% | T13: 13 | U13: 24% | V13: 18% | W13: 5
A14: 262 | B14: MARNE-ARDENNES | C14: 6 | D14: CHALONS EN CHAMPAGNE | E14: 44.6 | F14: 17% | G14: 11% | H14: 5 | I14: 6% | J14: 2% | K14: 3 | L14: 29% | M14: 22% | N14: 10 | O14: 30% | P14: 27% | Q14: 13 | R14: 15% | S14: 12% | T14: 5 | U14: 28% | V14: 22% | W14: 7
A15: 264 | B15: MARNE-ARDENNES | C15: 11 | D15: REIMS | E15: 79.9 | F15: 18% | G15: 11% | H15: 6 | I15: 37% | J15: 34% | K15: 12 | L15: 25% | M15: 18% | N15: 6 | O15: 29% | P15: 27% | Q15: 12 | R15: 6% | S15: 3% | T15: 3 | U15: 13% | V15: 7% | W15: 3
A16: 264 | B16: BAS-RHIN | C16: 5006 | D16: STRASBOURG | E16: 75.6 | F16: 18% | G16: 11% | H16: 7 | I16: 36% | J16: 32% | K16: 10 | L16: 25% | M16: 18% | N16: 5 | O16: 9% | P16: 6% | Q16: 5 | R16: 5% | S16: 2% | T16: 2 | U16: 38% | V16: 32% | W16: 12
A17: 30 | B17: VOSGES | C17: 57 | D17: EPINAL | E17: 61.2 | F17: 19% | G17: 13% | H17: 8 | I17: 4% | J17: 0% | K17: 1 | L17: 37% | M17: 30% | N17: 14 | O17: 24% | P17: 22% | Q17: 9 | R17: 17% | S17: 14% | T17: 6 | U17: 37% | V17: 31% | W17: 10
A18: 30 | B18: MOSELLE | C18: 44 | D18: MOSELLE NORD | E18: 65.5 | F18: 23% | G18: 16% | H18: 9 | I18: 48% | J18: 44% | K18: 16 | L18: 22% | M18: 15% | N18: 4 | O18: 19% | P18: 16% | Q18: 6 | R18: 19% | S18: 16% | T18: 9 | U18: 28% | V18: 22% | W18: 6
A19: 30 | B19: MOSELLE | C19: 42 | D19: MOSELLE EST | E19: 70.4 | F19: 23% | G19: 17% | H19: 10 | I19: 24% | J19: 21% | K19: 7 | L19: 28% | M19: 21% | N19: 8 | O19: 28% | P19: 26% | Q19: 11 | R19: 21% | S19: 18% | T19: 10 | U19: 37% | V19: 31% | W19: 9
A20: 110 | B20: VOSGES | C20: 55 | D20: SAINT DIE | E20: 47.1 | F20: 24% | G20: 18% | H20: 11 | I20: 5% | J20: 1% | K20: 2 | L20: 41% | M20: 34% | N20: 17 | O20: 25% | P20: 22% | Q20: 10 | R20: 34% | S20: 31% | T20: 15 | U20: 37% | V20: 31% | W20: 11
A21: 110 | B21: BAS-RHIN | C21: 5101 | D21: SELESTAT | E21: 59.7 | F21: 25% | G21: 18% | H21: 12 | I21: 43% | J21: 39% | K21: 14 | L21: 27% | M21: 20% | N21: 7 | O21: 8% | P21: 5% | Q21: 2 | R21: 22% | S21: 19% | T21: 11 | U21: 45% | V21: 39% | W21: 16
A22: 110 | B22: AUBE HAUTE MARNE | C22: 21 | D22: CHAUMONT | E22: 33.8 | F22: 26% | G22: 20% | H22: 13 | I22: 36% | J22: 32% | K22: 11 | L22: 30% | M22: 23% | N22: 11 | O22: 36% | P22: 34% | Q22: 15 | R22: 19% | S22: 16% | T22: 8 | U22: 32% | V22: 26% | W22: 8
A23: 160 | B23: BAS-RHIN | C23: 5060 | D23: HAGUENAU | E23: 69.7 | F23: 30% | G23: 23% | H23: 14 | I23: 38% | J23: 34% | K23: 13 | L23: 30% | M23: 23% | N23: 12 | O23: 22% | P23: 19% | Q23: 8 | R23: 37% | S23: 34% | T23: 16 | U23: 43% | V23: 37% | W23: 15
A24: 160 | B24: MOSELLE | C24: 45 | D24: METZ | E24: 89.0 | F24: 31% | G24: 25% | H24: 15 | I24: 36% | J24: 32% | K24: 8 | L24: 39% | M24: 32% | N24: 15 | O24: 33% | P24: 31% | Q24: 14 | R24: 31% | S24: 28% | T24: 14 | U24: 39% | V24: 32% | W24: 13
A25: 160 | B25: AUBE HAUTE MARNE | C25: 14 | D25: TROYES | E25: 66.8 | F25: 36% | G25: 30% | H25: 16 | I25: 24% | J25: 20% | K25: 6 | L25: 32% | M25: 25% | N25: 13 | O25: 65% | P25: 62% | Q25: 18 | R25: 42% | S25: 39% | T25: 17 | U25: 40% | V25: 33% | W25: 14
A26: 80 | B26: HAUT-RHIN | C26: 5130 | D26: COLMAR | E26: 61.6 | F26: 39% | G26: 33% | H26: 17 | I26: 55% | J26: 51% | K26: 17 | L26: 39% | M26: 32% | N26: 16 | O26: 47% | P26: 45% | Q26: 16 | R26: 25% | S26: 22% | T26: 12 | U26: 51% | V26: 45% | W26: 18
A27: 80 | B27: HAUT-RHIN | C27: 5169 | D27: MULHOUSE | E27: 61.0 | F27: 51% | G27: 45% | H27: 18 | I27: 66% | J27: 63% | K27: 18 | L27: 59% | M27: 52% | N27: 18 | O27: 56% | P27: 53% | Q27: 17 | R27: 47% | S27: 44% | T27: 18 | U27: 50% | V27: 43% | W27: 17
A28: Total CEGEE Directions Régionales | E28: =SUM(E10:E27) -> 1140

Sheet SE_BANCA
B1: Accueil | F1: BAROMETRE BDD - TERRITOIRES
F2: BANCARISATION
F3: =ACCUEIL!F7 -> 2021-07-25
F7: Ventes Nettes produits pondérés | J7: Ventes sur client non détenteur de l’univers | N7: Mobilité Macron | R7: Remises commerciales | V7: Total Bancarisation
F8: =DATEMAJ!C8 -> au 25/07 | H8: coef | I8: ='RECAP DIRCOM'!AA4 -> 10% | J8: =DATEMAJ!C9 -> au 25/07 | L8: coef | M8: ='RECAP DIRCOM'!AE4 -> 4% | N8: =DATEMAJ!C10 -> au 25/07 | P8: coef | Q8: ='RECAP DIRCOM'!AI4 -> 3% | R8: =DATEMAJ!C11 -> au 31/05 | T8: coef | U8: ='RECAP DIRCOM'!AM4 -> 3% | W8: coef | X8: ='RECAP DIRCOM'!AP4 -> 20%
B9: Direction | C9: eds | D9: Territoire | E9: ="ETP perf "&DATEMAJ!$C$28 -> ETP perf 31-mai | F9: VN | G9: VN / ETP | H9: % Ecart au 1er | I9: Rang | J9: VB | K9: VB / ETP | L9: % Ecart au 1er | M9: Rang | N9: Nb | O9: Nb / ETP | P9: % Ecart au 1er | Q9: Rang | R9: Montant | S9: Montant / ETP | T9: % Ecart au 1er | U9: Rang | V9: Moyenne ecart au 1er | W9: % Ecart au 1er | X9: Rang CEGEE
A10: 50 | B10: AUBE HAUTE MARNE | C10: 21 | D10: CHAUMONT | E10: =VLOOKUP($C10,'RECAP SECT'!$G$6:$DC$253,3,FALSE) -> 33.8 | F10: =VLOOKUP($C10,'RECAP SECT'!$G$6:$DC$253,18,FALSE) -> 1,578 | G10: =VLOOKUP($C10,'RECAP SECT'!$G$6:$DC$253,19,FALSE) -> 46.71 | H10: =VLOOKUP($C10,'RECAP SECT'!$G$6:$DC$253,20,FALSE) -> 31% | I10: =VLOOKUP($C10,'RECAP SECT'!$G$6:$DC$253,21,FALSE) -> 10 | J10: =VLOOKUP($C10,'RECAP SECT'!$G$6:$DC$253,22,FALSE) -> 1,110 | K10: =VLOOKUP($C10,'RECAP SECT'!$G$6:$DC$253,23,FALSE) -> 32.85 | L10: =VLOOKUP($C10,'RECAP SECT'!$G$6:$DC$253,24,FALSE) -> 16% | M10: =VLOOKUP($C10,'RECAP SECT'!$G$6:$DC$253,25,FALSE) -> 6 | N10: =VLOOKUP($C10,'RECAP SECT'!$G$6:$DC$253,26,FALSE) -> 201 | O10: =VLOOKUP($C10,'RECAP SECT'!$G$6:$DC$253,27,FALSE) -> 5.95 | P10: =VLOOKUP($C10,'RECAP SECT'!$G$6:$DC$253,28,FALSE) -> 56% | Q10: =VLOOKUP($C10,'RECAP SECT'!$G$6:$DC$253,29,FALSE) -> 9 | R10: =VLOOKUP($C10,'RECAP SECT'!$G$6:$DC$253,30,FALSE) -> -56.7 | S10: =VLOOKUP($C10,'RECAP SECT'!$G$6:$DC$253,31,FALSE) -> -1.68 | T10: =VLOOKUP($C10,'RECAP SECT'!$G$6:$DC$253,32,FALSE) -> 18% | U10: =VLOOKUP($C10,'RECAP SECT'!$G$6:$DC$253,33,FALSE) -> 9 | V10: =VLOOKUP($C10,'RECAP SECT'!$G$6:$DC$253,34,FALSE) -> 30% | W10: =VLOOKUP($C10,'RECAP SECT'!$G$6:$DC$253,35,FALSE) -> 23% | X10: =VLOOKUP($C10,'RECAP SECT'!$G$6:$DC$253,36,FALSE) -> 11
A11: 50 | B11: AUBE HAUTE MARNE | C11: 14 | D11: TROYES | E11: =VLOOKUP($C11,'RECAP SECT'!$G$6:$DC$253,3,FALSE) -> 66.8 | F11: =VLOOKUP($C11,'RECAP SECT'!$G$6:$DC$253,18,FALSE) -> 3,044 | G11: =VLOOKUP($C11,'RECAP SECT'!$G$6:$DC$253,19,FALSE) -> 45.57 | H11: =VLOOKUP($C11,'RECAP SECT'!$G$6:$DC$253,20,FALSE) -> 33% | I11: =VLOOKUP($C11,'RECAP SECT'!$G$6:$DC$253,21,FALSE) -> 11 | J11: =VLOOKUP($C11,'RECAP SECT'!$G$6:$DC$253,22,FALSE) -> 2,036 | K11: =VLOOKUP($C11,'RECAP SECT'!$G$6:$DC$253,23,FALSE) -> 30.48 | L11: =VLOOKUP($C11,'RECAP SECT'!$G$6:$DC$253,24,FALSE) -> 22% | M11: =VLOOKUP($C11,'RECAP SECT'!$G$6:$DC$253,25,FALSE) -> 10 | N11: =VLOOKUP($C11,'RECAP SECT'!$G$6:$DC$253,26,FALSE) -> 385 | O11: =VLOOKUP($C11,'RECAP SECT'!$G$6:$DC$253,27,FALSE) -> 5.76 | P11: =VLOOKUP($C11,'RECAP SECT'!$G$6:$DC$253,28,FALSE) -> 57% | Q11: =VLOOKUP($C11,'RECAP SECT'!$G$6:$DC$253,29,FALSE) -> 10 | R11: =VLOOKUP($C11,'RECAP SECT'!$G$6:$DC$253,30,FALSE) -> -107.5 | S11: =VLOOKUP($C11,'RECAP SECT'!$G$6:$DC$253,31,FALSE) -> -1.61 | T11: =VLOOKUP($C11,'RECAP SECT'!$G$6:$DC$253,32,FALSE) -> 13% | U11: =VLOOKUP($C11,'RECAP SECT'!$G$6:$DC$253,33,FALSE) -> 5 | V11: =VLOOKUP($C11,'RECAP SECT'!$G$6:$DC$253,34,FALSE) -> 32% | W11: =VLOOKUP($C11,'RECAP SECT'!$G$6:$DC$253,35,FALSE) -> 25% | X11: =VLOOKUP($C11,'RECAP SECT'!$G$6:$DC$253,36,FALSE) -> 13
A12: 262 | B12: BAS-RHIN | C12: 5060 | D12: HAGUENAU | E12: =VLOOKUP($C12,'RECAP SECT'!$G$6:$DC$253,3,FALSE) -> 69.7 | F12: =VLOOKUP($C12,'RECAP SECT'!$G$6:$DC$253,18,FALSE) -> 3,848 | G12: =VLOOKUP($C12,'RECAP SECT'!$G$6:$DC$253,19,FALSE) -> 55.21 | H12: =VLOOKUP($C12,'RECAP SECT'!$G$6:$DC$253,20,FALSE) -> 19% | I12: =VLOOKUP($C12,'RECAP SECT'!$G$6:$DC$253,21,FALSE) -> 7 | J12: =VLOOKUP($C12,'RECAP SECT'!$G$6:$DC$253,22,FALSE) -> 1,823 | K12: =VLOOKUP($C12,'RECAP SECT'!$G$6:$DC$253,23,FALSE) -> 26.16 | L12: =VLOOKUP($C12,'RECAP SECT'!$G$6:$DC$253,24,FALSE) -> 33% | M12: =VLOOKUP($C12,'RECAP SECT'!$G$6:$DC$253,25,FALSE) -> 18 | N12: =VLOOKUP($C12,'RECAP SECT'!$G$6:$DC$253,26,FALSE) -> 284 | O12: =VLOOKUP($C12,'RECAP SECT'!$G$6:$DC$253,27,FALSE) -> 4.07 | P12: =VLOOKUP($C12,'RECAP SECT'!$G$6:$DC$253,28,FALSE) -> 70% | Q12: =VLOOKUP($C12,'RECAP SECT'!$G$6:$DC$253,29,FALSE) -> 14 | R12: =VLOOKUP($C12,'RECAP SECT'!$G$6:$DC$253,30,FALSE) -> -122.0 | S12: =VLOOKUP($C12,'RECAP SECT'!$G$6:$DC$253,31,FALSE) -> -1.75 | T12: =VLOOKUP($C12,'RECAP SECT'!$G$6:$DC$253,32,FALSE) -> 23% | U12: =VLOOKUP($C12,'RECAP SECT'!$G$6:$DC$253,33,FALSE) -> 12 | V12: =VLOOKUP($C12,'RECAP SECT'!$G$6:$DC$253,34,FALSE) -> 30% | W12: =VLOOKUP($C12,'RECAP SECT'!$G$6:$DC$253,35,FALSE) -> 23% | X12: =VLOOKUP($C12,'RECAP SECT'!$G$6:$DC$253,36,FALSE) -> 12
A13: 262 | B13: BAS-RHIN | C13: 5101 | D13: SELESTAT | E13: =VLOOKUP($C13,'RECAP SECT'!$G$6:$DC$253,3,FALSE) -> 59.7 | F13: =VLOOKUP($C13,'RECAP SECT'!$G$6:$DC$253,18,FALSE) -> 3,523 | G13: =VLOOKUP($C13,'RECAP SECT'!$G$6:$DC$253,19,FALSE) -> 58.96 | H13: =VLOOKUP($C13,'RECAP SECT'!$G$6:$DC$253,20,FALSE) -> 13% | I13: =VLOOKUP($C13,'RECAP SECT'!$G$6:$DC$253,21,FALSE) -> 4 | J13: =VLOOKUP($C13,'RECAP SECT'!$G$6:$DC$253,22,FALSE) -> 1,608 | K13: =VLOOKUP($C13,'RECAP SECT'!$G$6:$DC$253,23,FALSE) -> 26.91 | L13: =VLOOKUP($C13,'RECAP SECT'!$G$6:$DC$253,24,FALSE) -> 31% | M13: =VLOOKUP($C13,'RECAP SECT'!$G$6:$DC$253,25,FALSE) -> 16 | N13: =VLOOKUP($C13,'RECAP SECT'!$G$6:$DC$253,26,FALSE) -> 260 | O13: =VLOOKUP($C13,'RECAP SECT'!$G$6:$DC$253,27,FALSE) -> 4.35 | P13: =VLOOKUP($C13,'RECAP SECT'!$G$6:$DC$253,28,FALSE) -> 68% | Q13: =VLOOKUP($C13,'RECAP SECT'!$G$6:$DC$253,29,FALSE) -> 13 | R13: =VLOOKUP($C13,'RECAP SECT'!$G$6:$DC$253,30,FALSE) -> -108.9 | S13: =VLOOKUP($C13,'RECAP SECT'!$G$6:$DC$253,31,FALSE) -> -1.82 | T13: =VLOOKUP($C13,'RECAP SECT'!$G$6:$DC$253,32,FALSE) -> 28% | U13: =VLOOKUP($C13,'RECAP SECT'!$G$6:$DC$253,33,FALSE) -> 14 | V13: =VLOOKUP($C13,'RECAP SECT'!$G$6:$DC$253,34,FALSE) -> 27% | W13: =VLOOKUP($C13,'RECAP SECT'!$G$6:$DC$253,35,FALSE) -> 20% | X13: =VLOOKUP($C13,'RECAP SECT'!$G$6:$DC$253,36,FALSE) -> 7
A14: 262 | B14: BAS-RHIN | C14: 5006 | D14: STRASBOURG | E14: =VLOOKUP($C14,'RECAP SECT'!$G$6:$DC$253,3,FALSE) -> 75.6 | F14: =VLOOKUP($C14,'RECAP SECT'!$G$6:$DC$253,18,FALSE) -> 4,406 | G14: =VLOOKUP($C14,'RECAP SECT'!$G$6:$DC$253,19,FALSE) -> 58.26 | H14: =VLOOKUP($C14,'RECAP SECT'!$G$6:$DC$253,20,FALSE) -> 14% | I14: =VLOOKUP($C14,'RECAP SECT'!$G$6:$DC$253,21,FALSE) -> 5 | J14: =VLOOKUP($C14,'RECAP SECT'!$G$6:$DC$253,22,FALSE) -> 2,771 | K14: =VLOOKUP($C14,'RECAP SECT'!$G$6:$DC$253,23,FALSE) -> 36.64 | L14: =VLOOKUP($C14,'RECAP SECT'!$G$6:$DC$253,24,FALSE) -> 7% | M14: =VLOOKUP($C14,'RECAP SECT'!$G$6:$DC$253,25,FALSE) -> 2 | N14: =VLOOKUP($C14,'RECAP SECT'!$G$6:$DC$253,26,FALSE) -> 551 | O14: =VLOOKUP($C14,'RECAP SECT'!$G$6:$DC$253,27,FALSE) -> 7.29 | P14: =VLOOKUP($C14,'RECAP SECT'!$G$6:$DC$253,28,FALSE) -> 46% | Q14: =VLOOKUP($C14,'RECAP SECT'!$G$6:$DC$253,29,FALSE) -> 6 | R14: =VLOOKUP($C14,'RECAP SECT'!$G$6:$DC$253,30,FALSE) -> -172.3 | S14: =VLOOKUP($C14,'RECAP SECT'!$G$6:$DC$253,31,FALSE) -> -2.28 | T14: =VLOOKUP($C14,'RECAP SECT'!$G$6:$DC$253,32,FALSE) -> 61% | U14: =VLOOKUP($C14,'RECAP SECT'!$G$6:$DC$253,33,FALSE) -> 18 | V14: =VLOOKUP($C14,'RECAP SECT'!$G$6:$DC$253,34,FALSE) -> 25% | W14: =VLOOKUP($C14,'RECAP SECT'!$G$6:$DC$253,35,FALSE) -> 18% | X14: =VLOOKUP($C14,'RECAP SECT'!$G$6:$DC$253,36,FALSE) -> 5
A15: 264 | B15: HAUT-RHIN | C15: 5130 | D15: COLMAR | E15: =VLOOKUP($C15,'RECAP SECT'!$G$6:$DC$253,3,FALSE) -> 61.6 | F15: =VLOOKUP($C15,'RECAP SECT'!$G$6:$DC$253,18,FALSE) -> 2,592 | G15: =VLOOKUP($C15,'RECAP SECT'!$G$6:$DC$253,19,FALSE) -> 42.04 | H15: =VLOOKUP($C15,'RECAP SECT'!$G$6:$DC$253,20,FALSE) -> 38% | I15: =VLOOKUP($C15,'RECAP SECT'!$G$6:$DC$253,21,FALSE) -> 13 | J15: =VLOOKUP($C15,'RECAP SECT'!$G$6:$DC$253,22,FALSE) -> 1,731 | K15: =VLOOKUP($C15,'RECAP SECT'!$G$6:$DC$253,23,FALSE) -> 28.08 | L15: =VLOOKUP($C15,'RECAP SECT'!$G$6:$DC$253,24,FALSE) -> 28% | M15: =VLOOKUP($C15,'RECAP SECT'!$G$6:$DC$253,25,FALSE) -> 14 | N15: =VLOOKUP($C15,'RECAP SECT'!$G$6:$DC$253,26,FALSE) -> 186 | O15: =VLOOKUP($C15,'RECAP SECT'!$G$6:$DC$253,27,FALSE) -> 3.02 | P15: =VLOOKUP($C15,'RECAP SECT'!$G$6:$DC$253,28,FALSE) -> 78% | Q15: =VLOOKUP($C15,'RECAP SECT'!$G$6:$DC$253,29,FALSE) -> 18 | R15: =VLOOKUP($C15,'RECAP SECT'!$G$6:$DC$253,30,FALSE) -> -103.2 | S15: =VLOOKUP($C15,'RECAP SECT'!$G$6:$DC$253,31,FALSE) -> -1.67 | T15: =VLOOKUP($C15,'RECAP SECT'!$G$6:$DC$253,32,FALSE) -> 18% | U15: =VLOOKUP($C15,'RECAP SECT'!$G$6:$DC$253,33,FALSE) -> 8 | V15: =VLOOKUP($C15,'RECAP SECT'!$G$6:$DC$253,34,FALSE) -> 39% | W15: =VLOOKUP($C15,'RECAP SECT'!$G$6:$DC$253,35,FALSE) -> 32% | X15: =VLOOKUP($C15,'RECAP SECT'!$G$6:$DC$253,36,FALSE) -> 16
A16: 264 | B16: HAUT-RHIN | C16: 5169 | D16: MULHOUSE | E16: =VLOOKUP($C16,'RECAP SECT'!$G$6:$DC$253,3,FALSE) -> 61.0 | F16: =VLOOKUP($C16,'RECAP SECT'!$G$6:$DC$253,18,FALSE) -> 1,050 | G16: =VLOOKUP($C16,'RECAP SECT'!$G$6:$DC$253,19,FALSE) -> 17.21 | H16: =VLOOKUP($C16,'RECAP SECT'!$G$6:$DC$253,20,FALSE) -> 75% | I16: =VLOOKUP($C16,'RECAP SECT'!$G$6:$DC$253,21,FALSE) -> 18 | J16: =VLOOKUP($C16,'RECAP SECT'!$G$6:$DC$253,22,FALSE) -> 1,616 | K16: =VLOOKUP($C16,'RECAP SECT'!$G$6:$DC$253,23,FALSE) -> 26.49 | L16: =VLOOKUP($C16,'RECAP SECT'!$G$6:$DC$253,24,FALSE) -> 33% | M16: =VLOOKUP($C16,'RECAP SECT'!$G$6:$DC$253,25,FALSE) -> 17 | N16: =VLOOKUP($C16,'RECAP SECT'!$G$6:$DC$253,26,FALSE) -> 190 | O16: =VLOOKUP($C16,'RECAP SECT'!$G$6:$DC$253,27,FALSE) -> 3.11 | P16: =VLOOKUP($C16,'RECAP SECT'!$G$6:$DC$253,28,FALSE) -> 77% | Q16: =VLOOKUP($C16,'RECAP SECT'!$G$6:$DC$253,29,FALSE) -> 17 | R16: =VLOOKUP($C16,'RECAP SECT'!$G$6:$DC$253,30,FALSE) -> -109.7 | S16: =VLOOKUP($C16,'RECAP SECT'!$G$6:$DC$253,31,FALSE) -> -1.80 | T16: =VLOOKUP($C16,'RECAP SECT'!$G$6:$DC$253,32,FALSE) -> 27% | U16: =VLOOKUP($C16,'RECAP SECT'!$G$6:$DC$253,33,FALSE) -> 13 | V16: =VLOOKUP($C16,'RECAP SECT'!$G$6:$DC$253,34,FALSE) -> 59% | W16: =VLOOKUP($C16,'RECAP SECT'!$G$6:$DC$253,35,FALSE) -> 52% | X16: =VLOOKUP($C16,'RECAP SECT'!$G$6:$DC$253,36,FALSE) -> 18
A17: 30 | B17: MARNE-ARDENNES | C17: 6 | D17: CHALONS EN CHAMPAGNE | E17: =VLOOKUP($C17,'RECAP SECT'!$G$6:$DC$253,3,FALSE) -> 44.6 | F17: =VLOOKUP($C17,'RECAP SECT'!$G$6:$DC$253,18,FALSE) -> 1,941 | G17: =VLOOKUP($C17,'RECAP SECT'!$G$6:$DC$253,19,FALSE) -> 43.52 | H17: =VLOOKUP($C17,'RECAP SECT'!$G$6:$DC$253,20,FALSE) -> 36% | I17: =VLOOKUP($C17,'RECAP SECT'!$G$6:$DC$253,21,FALSE) -> 12 | J17: =VLOOKUP($C17,'RECAP SECT'!$G$6:$DC$253,22,FALSE) -> 1,377 | K17: =VLOOKUP($C17,'RECAP SECT'!$G$6:$DC$253,23,FALSE) -> 30.87 | L17: =VLOOKUP($C17,'RECAP SECT'!$G$6:$DC$253,24,FALSE) -> 21% | M17: =VLOOKUP($C17,'RECAP SECT'!$G$6:$DC$253,25,FALSE) -> 9 | N17: =VLOOKUP($C17,'RECAP SECT'!$G$6:$DC$253,26,FALSE) -> 434 | O17: =VLOOKUP($C17,'RECAP SECT'!$G$6:$DC$253,27,FALSE) -> 9.73 | P17: =VLOOKUP($C17,'RECAP SECT'!$G$6:$DC$253,28,FALSE) -> 28% | Q17: =VLOOKUP($C17,'RECAP SECT'!$G$6:$DC$253,29,FALSE) -> 5 | R17: =VLOOKUP($C17,'RECAP SECT'!$G$6:$DC$253,30,FALSE) -> -74.3 | S17: =VLOOKUP($C17,'RECAP SECT'!$G$6:$DC$253,31,FALSE) -> -1.66 | T17: =VLOOKUP($C17,'RECAP SECT'!$G$6:$DC$253,32,FALSE) -> 17% | U17: =VLOOKUP($C17,'RECAP SECT'!$G$6:$DC$253,33,FALSE) -> 7 | V17: =VLOOKUP($C17,'RECAP SECT'!$G$6:$DC$253,34,FALSE) -> 29% | W17: =VLOOKUP($C17,'RECAP SECT'!$G$6:$DC$253,35,FALSE) -> 22% | X17: =VLOOKUP($C17,'RECAP SECT'!$G$6:$DC$253,36,FALSE) -> 10
A18: 30 | B18: MARNE-ARDENNES | C18: 2 | D18: CHARLEVILLE MEZIERES | E18: =VLOOKUP($C18,'RECAP SECT'!$G$6:$DC$253,3,FALSE) -> 56.3 | F18: =VLOOKUP($C18,'RECAP SECT'!$G$6:$DC$253,18,FALSE) -> 2,135 | G18: =VLOOKUP($C18,'RECAP SECT'!$G$6:$DC$253,19,FALSE) -> 37.96 | H18: =VLOOKUP($C18,'RECAP SECT'!$G$6:$DC$253,20,FALSE) -> 44% | I18: =VLOOKUP($C18,'RECAP SECT'!$G$6:$DC$253,21,FALSE) -> 16 | J18: =VLOOKUP($C18,'RECAP SECT'!$G$6:$DC$253,22,FALSE) -> 1,992 | K18: =VLOOKUP($C18,'RECAP SECT'!$G$6:$DC$253,23,FALSE) -> 35.41 | L18: =VLOOKUP($C18,'RECAP SECT'!$G$6:$DC$253,24,FALSE) -> 10% | M18: =VLOOKUP($C18,'RECAP SECT'!$G$6:$DC$253,25,FALSE) -> 4 | N18: =VLOOKUP($C18,'RECAP SECT'!$G$6:$DC$253,26,FALSE) -> 549 | O18: =VLOOKUP($C18,'RECAP SECT'!$G$6:$DC$253,27,FALSE) -> 9.76 | P18: =VLOOKUP($C18,'RECAP SECT'!$G$6:$DC$253,28,FALSE) -> 28% | Q18: =VLOOKUP($C18,'RECAP SECT'!$G$6:$DC$253,29,FALSE) -> 4 | R18: =VLOOKUP($C18,'RECAP SECT'!$G$6:$DC$253,30,FALSE) -> -80.9 | S18: =VLOOKUP($C18,'RECAP SECT'!$G$6:$DC$253,31,FALSE) -> -1.44 | T18: =VLOOKUP($C18,'RECAP SECT'!$G$6:$DC$253,32,FALSE) -> 1% | U18: =VLOOKUP($C18,'RECAP SECT'!$G$6:$DC$253,33,FALSE) -> 2 | V18: =VLOOKUP($C18,'RECAP SECT'!$G$6:$DC$253,34,FALSE) -> 28% | W18: =VLOOKUP($C18,'RECAP SECT'!$G$6:$DC$253,35,FALSE) -> 21% | X18: =VLOOKUP($C18,'RECAP SECT'!$G$6:$DC$253,36,FALSE) -> 9
A19: 30 | B19: MARNE-ARDENNES | C19: 11 | D19: REIMS | E19: =VLOOKUP($C19,'RECAP SECT'!$G$6:$DC$253,3,FALSE) -> 79.9 | F19: =VLOOKUP($C19,'RECAP SECT'!$G$6:$DC$253,18,FALSE) -> 3,828 | G19: =VLOOKUP($C19,'RECAP SECT'!$G$6:$DC$253,19,FALSE) -> 47.92 | H19: =VLOOKUP($C19,'RECAP SECT'!$G$6:$DC$253,20,FALSE) -> 30% | I19: =VLOOKUP($C19,'RECAP SECT'!$G$6:$DC$253,21,FALSE) -> 9 | J19: =VLOOKUP($C19,'RECAP SECT'!$G$6:$DC$253,22,FALSE) -> 2,839 | K19: =VLOOKUP($C19,'RECAP SECT'!$G$6:$DC$253,23,FALSE) -> 35.54 | L19: =VLOOKUP($C19,'RECAP SECT'!$G$6:$DC$253,24,FALSE) -> 9% | M19: =VLOOKUP($C19,'RECAP SECT'!$G$6:$DC$253,25,FALSE) -> 3 | N19: =VLOOKUP($C19,'RECAP SECT'!$G$6:$DC$253,26,FALSE) -> 927 | O19: =VLOOKUP($C19,'RECAP SECT'!$G$6:$DC$253,27,FALSE) -> 11.60 | P19: =VLOOKUP($C19,'RECAP SECT'!$G$6:$DC$253,28,FALSE) -> 14% | Q19: =VLOOKUP($C19,'RECAP SECT'!$G$6:$DC$253,29,FALSE) -> 2 | R19: =VLOOKUP($C19,'RECAP SECT'!$G$6:$DC$253,30,FALSE) -> -163.3 | S19: =VLOOKUP($C19,'RECAP SECT'!$G$6:$DC$253,31,FALSE) -> -2.04 | T19: =VLOOKUP($C19,'RECAP SECT'!$G$6:$DC$253,32,FALSE) -> 44% | U19: =VLOOKUP($C19,'RECAP SECT'!$G$6:$DC$253,33,FALSE) -> 17 | V19: =VLOOKUP($C19,'RECAP SECT'!$G$6:$DC$253,34,FALSE) -> 25% | W19: =VLOOKUP($C19,'RECAP SECT'!$G$6:$DC$253,35,FALSE) -> 18% | X19: =VLOOKUP($C19,'RECAP SECT'!$G$6:$DC$253,36,FALSE) -> 6
A20: 110 | B20: MEURTHE ET MOSELLE MEUSE | C20: 26 | D20: NANCY | E20: =VLOOKUP($C20,'RECAP SECT'!$G$6:$DC$253,3,FALSE) -> 66.4 | F20: =VLOOKUP($C20,'RECAP SECT'!$G$6:$DC$253,18,FALSE) -> 4,358 | G20: =VLOOKUP($C20,'RECAP SECT'!$G$6:$DC$253,19,FALSE) -> 65.66 | H20: =VLOOKUP($C20,'RECAP SECT'!$G$6:$DC$253,20,FALSE) -> 4% | I20: =VLOOKUP($C20,'RECAP SECT'!$G$6:$DC$253,21,FALSE) -> 2 | J20: =VLOOKUP($C20,'RECAP SECT'!$G$6:$DC$253,22,FALSE) -> 2,606 | K20: =VLOOKUP($C20,'RECAP SECT'!$G$6:$DC$253,23,FALSE) -> 39.27 | L20: =VLOOKUP($C20,'RECAP SECT'!$G$6:$DC$253,24,FALSE) -> 0% | M20: =VLOOKUP($C20,'RECAP SECT'!$G$6:$DC$253,25,FALSE) -> 1 | N20: =VLOOKUP($C20,'RECAP SECT'!$G$6:$DC$253,26,FALSE) -> 898 | O20: =VLOOKUP($C20,'RECAP SECT'!$G$6:$DC$253,27,FALSE) -> 13.53 | P20: =VLOOKUP($C20,'RECAP SECT'!$G$6:$DC$253,28,FALSE) -> 0% | Q20: =VLOOKUP($C20,'RECAP SECT'!$G$6:$DC$253,29,FALSE) -> 1 | R20: =VLOOKUP($C20,'RECAP SECT'!$G$6:$DC$253,30,FALSE) -> -127.3 | S20: =VLOOKUP($C20,'RECAP SECT'!$G$6:$DC$253,31,FALSE) -> -1.92 | T20: =VLOOKUP($C20,'RECAP SECT'!$G$6:$DC$253,32,FALSE) -> 35% | U20: =VLOOKUP($C20,'RECAP SECT'!$G$6:$DC$253,33,FALSE) -> 16 | V20: =VLOOKUP($C20,'RECAP SECT'!$G$6:$DC$253,34,FALSE) -> 7% | W20: =VLOOKUP($C20,'RECAP SECT'!$G$6:$DC$253,35,FALSE) -> 0% | X20: =VLOOKUP($C20,'RECAP SECT'!$G$6:$DC$253,36,FALSE) -> 1
A21: 110 | B21: MEURTHE ET MOSELLE MEUSE | C21: 27 | D21: PONT A MOUSSON | E21: =VLOOKUP($C21,'RECAP SECT'!$G$6:$DC$253,3,FALSE) -> 76.3 | F21: =VLOOKUP($C21,'RECAP SECT'!$G$6:$DC$253,18,FALSE) -> 5,200 | G21: =VLOOKUP($C21,'RECAP SECT'!$G$6:$DC$253,19,FALSE) -> 68.12 | H21: =VLOOKUP($C21,'RECAP SECT'!$G$6:$DC$253,20,FALSE) -> 0% | I21: =VLOOKUP($C21,'RECAP SECT'!$G$6:$DC$253,21,FALSE) -> 1 | J21: =VLOOKUP($C21,'RECAP SECT'!$G$6:$DC$253,22,FALSE) -> 2,669 | K21: =VLOOKUP($C21,'RECAP SECT'!$G$6:$DC$253,23,FALSE) -> 34.96 | L21: =VLOOKUP($C21,'RECAP SECT'!$G$6:$DC$253,24,FALSE) -> 11% | M21: =VLOOKUP($C21,'RECAP SECT'!$G$6:$DC$253,25,FALSE) -> 5 | N21: =VLOOKUP($C21,'RECAP SECT'!$G$6:$DC$253,26,FALSE) -> 761 | O21: =VLOOKUP($C21,'RECAP SECT'!$G$6:$DC$253,27,FALSE) -> 9.97 | P21: =VLOOKUP($C21,'RECAP SECT'!$G$6:$DC$253,28,FALSE) -> 26% | Q21: =VLOOKUP($C21,'RECAP SECT'!$G$6:$DC$253,29,FALSE) -> 3 | R21: =VLOOKUP($C21,'RECAP SECT'!$G$6:$DC$253,30,FALSE) -> -132.4 | S21: =VLOOKUP($C21,'RECAP SECT'!$G$6:$DC$253,31,FALSE) -> -1.73 | T21: =VLOOKUP($C21,'RECAP SECT'!$G$6:$DC$253,32,FALSE) -> 22% | U21: =VLOOKUP($C21,'RECAP SECT'!$G$6:$DC$253,33,FALSE) -> 11 | V21: =VLOOKUP($C21,'RECAP SECT'!$G$6:$DC$253,34,FALSE) -> 9% | W21: =VLOOKUP($C21,'RECAP SECT'!$G$6:$DC$253,35,FALSE) -> 2% | X21: =VLOOKUP($C21,'RECAP SECT'!$G$6:$DC$253,36,FALSE) -> 2
A22: 110 | B22: MEURTHE ET MOSELLE MEUSE | C22: 31 | D22: VERDUN | E22: =VLOOKUP($C22,'RECAP SECT'!$G$6:$DC$253,3,FALSE) -> 54.9 | F22: =VLOOKUP($C22,'RECAP SECT'!$G$6:$DC$253,18,FALSE) -> 3,135 | G22: =VLOOKUP($C22,'RECAP SECT'!$G$6:$DC$253,19,FALSE) -> 57.14 | H22: =VLOOKUP($C22,'RECAP SECT'!$G$6:$DC$253,20,FALSE) -> 16% | I22: =VLOOKUP($C22,'RECAP SECT'!$G$6:$DC$253,21,FALSE) -> 6 | J22: =VLOOKUP($C22,'RECAP SECT'!$G$6:$DC$253,22,FALSE) -> 1,779 | K22: =VLOOKUP($C22,'RECAP SECT'!$G$6:$DC$253,23,FALSE) -> 32.42 | L22: =VLOOKUP($C22,'RECAP SECT'!$G$6:$DC$253,24,FALSE) -> 17% | M22: =VLOOKUP($C22,'RECAP SECT'!$G$6:$DC$253,25,FALSE) -> 7 | N22: =VLOOKUP($C22,'RECAP SECT'!$G$6:$DC$253,26,FALSE) -> 346 | O22: =VLOOKUP($C22,'RECAP SECT'!$G$6:$DC$253,27,FALSE) -> 6.31 | P22: =VLOOKUP($C22,'RECAP SECT'!$G$6:$DC$253,28,FALSE) -> 53% | Q22: =VLOOKUP($C22,'RECAP SECT'!$G$6:$DC$253,29,FALSE) -> 7 | R22: =VLOOKUP($C22,'RECAP SECT'!$G$6:$DC$253,30,FALSE) -> -81.4 | S22: =VLOOKUP($C22,'RECAP SECT'!$G$6:$DC$253,31,FALSE) -> -1.48 | T22: =VLOOKUP($C22,'RECAP SECT'!$G$6:$DC$253,32,FALSE) -> 5% | U22: =VLOOKUP($C22,'RECAP SECT'!$G$6:$DC$253,33,FALSE) -> 3 | V22: =VLOOKUP($C22,'RECAP SECT'!$G$6:$DC$253,34,FALSE) -> 20% | W22: =VLOOKUP($C22,'RECAP SECT'!$G$6:$DC$253,35,FALSE) -> 13% | X22: =VLOOKUP($C22,'RECAP SECT'!$G$6:$DC$253,36,FALSE) -> 3
A23: 160 | B23: MOSELLE | C23: 45 | D23: METZ | E23: =VLOOKUP($C23,'RECAP SECT'!$G$6:$DC$253,3,FALSE) -> 89.0 | F23: =VLOOKUP($C23,'RECAP SECT'!$G$6:$DC$253,18,FALSE) -> 3,580 | G23: =VLOOKUP($C23,'RECAP SECT'!$G$6:$DC$253,19,FALSE) -> 40.21 | H23: =VLOOKUP($C23,'RECAP SECT'!$G$6:$DC$253,20,FALSE) -> 41% | I23: =VLOOKUP($C23,'RECAP SECT'!$G$6:$DC$253,21,FALSE) -> 15 | J23: =VLOOKUP($C23,'RECAP SECT'!$G$6:$DC$253,22,FALSE) -> 2,542 | K23: =VLOOKUP($C23,'RECAP SECT'!$G$6:$DC$253,23,FALSE) -> 28.55 | L23: =VLOOKUP($C23,'RECAP SECT'!$G$6:$DC$253,24,FALSE) -> 27% | M23: =VLOOKUP($C23,'RECAP SECT'!$G$6:$DC$253,25,FALSE) -> 13 | N23: =VLOOKUP($C23,'RECAP SECT'!$G$6:$DC$253,26,FALSE) -> 432 | O23: =VLOOKUP($C23,'RECAP SECT'!$G$6:$DC$253,27,FALSE) -> 4.85 | P23: =VLOOKUP($C23,'RECAP SECT'!$G$6:$DC$253,28,FALSE) -> 64% | Q23: =VLOOKUP($C23,'RECAP SECT'!$G$6:$DC$253,29,FALSE) -> 12 | R23: =VLOOKUP($C23,'RECAP SECT'!$G$6:$DC$253,30,FALSE) -> -153.2 | S23: =VLOOKUP($C23,'RECAP SECT'!$G$6:$DC$253,31,FALSE) -> -1.72 | T23: =VLOOKUP($C23,'RECAP SECT'!$G$6:$DC$253,32,FALSE) -> 21% | U23: =VLOOKUP($C23,'RECAP SECT'!$G$6:$DC$253,33,FALSE) -> 10 | V23: =VLOOKUP($C23,'RECAP SECT'!$G$6:$DC$253,34,FALSE) -> 39% | W23: =VLOOKUP($C23,'RECAP SECT'!$G$6:$DC$253,35,FALSE) -> 32% | X23: =VLOOKUP($C23,'RECAP SECT'!$G$6:$DC$253,36,FALSE) -> 15
A24: 160 | B24: MOSELLE | C24: 42 | D24: MOSELLE EST | E24: =VLOOKUP($C24,'RECAP SECT'!$G$6:$DC$253,3,FALSE) -> 70.4 | F24: =VLOOKUP($C24,'RECAP SECT'!$G$6:$DC$253,18,FALSE) -> 3,529 | G24: =VLOOKUP($C24,'RECAP SECT'!$G$6:$DC$253,19,FALSE) -> 50.14 | H24: =VLOOKUP($C24,'RECAP SECT'!$G$6:$DC$253,20,FALSE) -> 26% | I24: =VLOOKUP($C24,'RECAP SECT'!$G$6:$DC$253,21,FALSE) -> 8 | J24: =VLOOKUP($C24,'RECAP SECT'!$G$6:$DC$253,22,FALSE) -> 2,076 | K24: =VLOOKUP($C24,'RECAP SECT'!$G$6:$DC$253,23,FALSE) -> 29.50 | L24: =VLOOKUP($C24,'RECAP SECT'!$G$6:$DC$253,24,FALSE) -> 25% | M24: =VLOOKUP($C24,'RECAP SECT'!$G$6:$DC$253,25,FALSE) -> 12 | N24: =VLOOKUP($C24,'RECAP SECT'!$G$6:$DC$253,26,FALSE) -> 350 | O24: =VLOOKUP($C24,'RECAP SECT'!$G$6:$DC$253,27,FALSE) -> 4.97 | P24: =VLOOKUP($C24,'RECAP SECT'!$G$6:$DC$253,28,FALSE) -> 63% | Q24: =VLOOKUP($C24,'RECAP SECT'!$G$6:$DC$253,29,FALSE) -> 11 | R24: =VLOOKUP($C24,'RECAP SECT'!$G$6:$DC$253,30,FALSE) -> -105.3 | S24: =VLOOKUP($C24,'RECAP SECT'!$G$6:$DC$253,31,FALSE) -> -1.50 | T24: =VLOOKUP($C24,'RECAP SECT'!$G$6:$DC$253,32,FALSE) -> 6% | U24: =VLOOKUP($C24,'RECAP SECT'!$G$6:$DC$253,33,FALSE) -> 4 | V24: =VLOOKUP($C24,'RECAP SECT'!$G$6:$DC$253,34,FALSE) -> 28% | W24: =VLOOKUP($C24,'RECAP SECT'!$G$6:$DC$253,35,FALSE) -> 21% | X24: =VLOOKUP($C24,'RECAP SECT'!$G$6:$DC$253,36,FALSE) -> 8
A25: 160 | B25: MOSELLE | C25: 44 | D25: MOSELLE NORD | E25: =VLOOKUP($C25,'RECAP SECT'!$G$6:$DC$253,3,FALSE) -> 65.5 | F25: =VLOOKUP($C25,'RECAP SECT'!$G$6:$DC$253,18,FALSE) -> 3,864 | G25: =VLOOKUP($C25,'RECAP SECT'!$G$6:$DC$253,19,FALSE) -> 58.99 | H25: =VLOOKUP($C25,'RECAP SECT'!$G$6:$DC$253,20,FALSE) -> 13% | I25: =VLOOKUP($C25,'RECAP SECT'!$G$6:$DC$253,21,FALSE) -> 3 | J25: =VLOOKUP($C25,'RECAP SECT'!$G$6:$DC$253,22,FALSE) -> 2,030 | K25: =VLOOKUP($C25,'RECAP SECT'!$G$6:$DC$253,23,FALSE) -> 30.99 | L25: =VLOOKUP($C25,'RECAP SECT'!$G$6:$DC$253,24,FALSE) -> 21% | M25: =VLOOKUP($C25,'RECAP SECT'!$G$6:$DC$253,25,FALSE) -> 8 | N25: =VLOOKUP($C25,'RECAP SECT'!$G$6:$DC$253,26,FALSE) -> 252 | O25: =VLOOKUP($C25,'RECAP SECT'!$G$6:$DC$253,27,FALSE) -> 3.85 | P25: =VLOOKUP($C25,'RECAP SECT'!$G$6:$DC$253,28,FALSE) -> 72% | Q25: =VLOOKUP($C25,'RECAP SECT'!$G$6:$DC$253,29,FALSE) -> 16 | R25: =VLOOKUP($C25,'RECAP SECT'!$G$6:$DC$253,30,FALSE) -> -92.9 | S25: =VLOOKUP($C25,'RECAP SECT'!$G$6:$DC$253,31,FALSE) -> -1.42 | T25: =VLOOKUP($C25,'RECAP SECT'!$G$6:$DC$253,32,FALSE) -> 0% | U25: =VLOOKUP($C25,'RECAP SECT'!$G$6:$DC$253,33,FALSE) -> 1 | V25: =VLOOKUP($C25,'RECAP SECT'!$G$6:$DC$253,34,FALSE) -> 22% | W25: =VLOOKUP($C25,'RECAP SECT'!$G$6:$DC$253,35,FALSE) -> 15% | X25: =VLOOKUP($C25,'RECAP SECT'!$G$6:$DC$253,36,FALSE) -> 4
A26: 80 | B26: VOSGES | C26: 57 | D26: EPINAL | E26: =VLOOKUP($C26,'RECAP SECT'!$G$6:$DC$253,3,FALSE) -> 61.2 | F26: =VLOOKUP($C26,'RECAP SECT'!$G$6:$DC$253,18,FALSE) -> 2,548 | G26: =VLOOKUP($C26,'RECAP SECT'!$G$6:$DC$253,19,FALSE) -> 41.62 | H26: =VLOOKUP($C26,'RECAP SECT'!$G$6:$DC$253,20,FALSE) -> 39% | I26: =VLOOKUP($C26,'RECAP SECT'!$G$6:$DC$253,21,FALSE) -> 14 | J26: =VLOOKUP($C26,'RECAP SECT'!$G$6:$DC$253,22,FALSE) -> 1,853 | K26: =VLOOKUP($C26,'RECAP SECT'!$G$6:$DC$253,23,FALSE) -> 30.26 | L26: =VLOOKUP($C26,'RECAP SECT'!$G$6:$DC$253,24,FALSE) -> 23% | M26: =VLOOKUP($C26,'RECAP SECT'!$G$6:$DC$253,25,FALSE) -> 11 | N26: =VLOOKUP($C26,'RECAP SECT'!$G$6:$DC$253,26,FALSE) -> 374 | O26: =VLOOKUP($C26,'RECAP SECT'!$G$6:$DC$253,27,FALSE) -> 6.11 | P26: =VLOOKUP($C26,'RECAP SECT'!$G$6:$DC$253,28,FALSE) -> 55% | Q26: =VLOOKUP($C26,'RECAP SECT'!$G$6:$DC$253,29,FALSE) -> 8 | R26: =VLOOKUP($C26,'RECAP SECT'!$G$6:$DC$253,30,FALSE) -> -113.4 | S26: =VLOOKUP($C26,'RECAP SECT'!$G$6:$DC$253,31,FALSE) -> -1.85 | T26: =VLOOKUP($C26,'RECAP SECT'!$G$6:$DC$253,32,FALSE) -> 31% | U26: =VLOOKUP($C26,'RECAP SECT'!$G$6:$DC$253,33,FALSE) -> 15 | V26: =VLOOKUP($C26,'RECAP SECT'!$G$6:$DC$253,34,FALSE) -> 37% | W26: =VLOOKUP($C26,'RECAP SECT'!$G$6:$DC$253,35,FALSE) -> 30% | X26: =VLOOKUP($C26,'RECAP SECT'!$G$6:$DC$253,36,FALSE) -> 14
A27: 80 | B27: VOSGES | C27: 55 | D27: SAINT DIE | E27: =VLOOKUP($C27,'RECAP SECT'!$G$6:$DC$253,3,FALSE) -> 47.1 | F27: =VLOOKUP($C27,'RECAP SECT'!$G$6:$DC$253,18,FALSE) -> 1,771 | G27: =VLOOKUP($C27,'RECAP SECT'!$G$6:$DC$253,19,FALSE) -> 37.63 | H27: =VLOOKUP($C27,'RECAP SECT'!$G$6:$DC$253,20,FALSE) -> 45% | I27: =VLOOKUP($C27,'RECAP SECT'!$G$6:$DC$253,21,FALSE) -> 17 | J27: =VLOOKUP($C27,'RECAP SECT'!$G$6:$DC$253,22,FALSE) -> 1,305 | K27: =VLOOKUP($C27,'RECAP SECT'!$G$6:$DC$253,23,FALSE) -> 27.74 | L27: =VLOOKUP($C27,'RECAP SECT'!$G$6:$DC$253,24,FALSE) -> 29% | M27: =VLOOKUP($C27,'RECAP SECT'!$G$6:$DC$253,25,FALSE) -> 15 | N27: =VLOOKUP($C27,'RECAP SECT'!$G$6:$DC$253,26,FALSE) -> 187 | O27: =VLOOKUP($C27,'RECAP SECT'!$G$6:$DC$253,27,FALSE) -> 3.97 | P27: =VLOOKUP($C27,'RECAP SECT'!$G$6:$DC$253,28,FALSE) -> 71% | Q27: =VLOOKUP($C27,'RECAP SECT'!$G$6:$DC$253,29,FALSE) -> 15 | R27: =VLOOKUP($C27,'RECAP SECT'!$G$6:$DC$253,30,FALSE) -> -76.8 | S27: =VLOOKUP($C27,'RECAP SECT'!$G$6:$DC$253,31,FALSE) -> -1.63 | T27: =VLOOKUP($C27,'RECAP SECT'!$G$6:$DC$253,32,FALSE) -> 15% | U27: =VLOOKUP($C27,'RECAP SECT'!$G$6:$DC$253,33,FALSE) -> 6 | V27: =VLOOKUP($C27,'RECAP SECT'!$G$6:$DC$253,34,FALSE) -> 41% | W27: =VLOOKUP($C27,'RECAP SECT'!$G$6:$DC$253,35,FALSE) -> 34% | X27: =VLOOKUP($C27,'RECAP SECT'!$G$6:$DC$253,36,FALSE) -> 17
A28: Total CEGEE Directions Régionales | E28: =SUM(E10:E27) -> 1140

Sheet SE_EPARGNE
B1: Accueil | F1: BAROMETRE BDD - TERRITOIRES
F2: EPARGNE
F3: =ACCUEIL!F7 -> 2021-07-25
F7: Excédent Epargne y/c DAV pondéré | J7: Ventes sur client non détenteur de l’univers | N7: Total Epargne
F8: =DATEMAJ!C14 -> au 25/07 | H8: coef | I8: ='RECAP DIRCOM'!AX4 -> 14% | J8: =DATEMAJ!C15 -> au 25/07 | L8: coef | M8: ='RECAP DIRCOM'!BB4 -> 6% | O8: coef | P8: ='RECAP DIRCOM'!BE4 -> 20%
A9: eds | B9: Direction | C9: eds | D9: Territoire | E9: ="ETP perf "&DATEMAJ!$C$28 -> ETP perf 31-mai | F9: Excédent | G9: Excédent / ETP | H9: % Ecart au 1er | I9: Rang | J9: VB | K9: VB / ETP | L9: % Ecart au 1er | M9: Rang | N9: Moyenne ecart au 1er | O9: % Ecart au 1er | P9: Rang CEGEE
A10: 50 | B10: AUBE HAUTE MARNE | C10: 21 | D10: CHAUMONT | E10: =VLOOKUP($C10,'RECAP SECT'!$G$6:$DC$253,3,FALSE) -> 33.8 | F10: =VLOOKUP($C10,'RECAP SECT'!$G$6:$DC$253,41,FALSE) -> 10,143 | G10: =VLOOKUP($C10,'RECAP SECT'!$G$6:$DC$253,42,FALSE) -> 300.19 | H10: =VLOOKUP($C10,'RECAP SECT'!$G$6:$DC$253,43,FALSE) -> 41% | I10: =VLOOKUP($C10,'RECAP SECT'!$G$6:$DC$253,44,FALSE) -> 14 | J10: =VLOOKUP($C10,'RECAP SECT'!$G$6:$DC$253,45,FALSE) -> 567 | K10: =VLOOKUP($C10,'RECAP SECT'!$G$6:$DC$253,46,FALSE) -> 16.78 | L10: =VLOOKUP($C10,'RECAP SECT'!$G$6:$DC$253,47,FALSE) -> 24% | M10: =VLOOKUP($C10,'RECAP SECT'!$G$6:$DC$253,48,FALSE) -> 11 | N10: =VLOOKUP($C10,'RECAP SECT'!$G$6:$DC$253,49,FALSE) -> 36% | O10: =VLOOKUP($C10,'RECAP SECT'!$G$6:$DC$253,50,FALSE) -> 34% | P10: =VLOOKUP($C10,'RECAP SECT'!$G$6:$DC$253,51,FALSE) -> 15
A11: 50 | B11: AUBE HAUTE MARNE | C11: 14 | D11: TROYES | E11: =VLOOKUP($C11,'RECAP SECT'!$G$6:$DC$253,3,FALSE) -> 66.8 | F11: =VLOOKUP($C11,'RECAP SECT'!$G$6:$DC$253,41,FALSE) -> 7,304 | G11: =VLOOKUP($C11,'RECAP SECT'!$G$6:$DC$253,42,FALSE) -> 109.36 | H11: =VLOOKUP($C11,'RECAP SECT'!$G$6:$DC$253,43,FALSE) -> 79% | I11: =VLOOKUP($C11,'RECAP SECT'!$G$6:$DC$253,44,FALSE) -> 18 | J11: =VLOOKUP($C11,'RECAP SECT'!$G$6:$DC$253,45,FALSE) -> 1,008 | K11: =VLOOKUP($C11,'RECAP SECT'!$G$6:$DC$253,46,FALSE) -> 15.09 | L11: =VLOOKUP($C11,'RECAP SECT'!$G$6:$DC$253,47,FALSE) -> 32% | M11: =VLOOKUP($C11,'RECAP SECT'!$G$6:$DC$253,48,FALSE) -> 15 | N11: =VLOOKUP($C11,'RECAP SECT'!$G$6:$DC$253,49,FALSE) -> 65% | O11: =VLOOKUP($C11,'RECAP SECT'!$G$6:$DC$253,50,FALSE) -> 62% | P11: =VLOOKUP($C11,'RECAP SECT'!$G$6:$DC$253,51,FALSE) -> 18
A12: 262 | B12: BAS-RHIN | C12: 5060 | D12: HAGUENAU | E12: =VLOOKUP($C12,'RECAP SECT'!$G$6:$DC$253,3,FALSE) -> 69.7 | F12: =VLOOKUP($C12,'RECAP SECT'!$G$6:$DC$253,41,FALSE) -> 28,149 | G12: =VLOOKUP($C12,'RECAP SECT'!$G$6:$DC$253,42,FALSE) -> 403.88 | H12: =VLOOKUP($C12,'RECAP SECT'!$G$6:$DC$253,43,FALSE) -> 21% | I12: =VLOOKUP($C12,'RECAP SECT'!$G$6:$DC$253,44,FALSE) -> 9 | J12: =VLOOKUP($C12,'RECAP SECT'!$G$6:$DC$253,45,FALSE) -> 1,185 | K12: =VLOOKUP($C12,'RECAP SECT'!$G$6:$DC$253,46,FALSE) -> 17.00 | L12: =VLOOKUP($C12,'RECAP SECT'!$G$6:$DC$253,47,FALSE) -> 23% | M12: =VLOOKUP($C12,'RECAP SECT'!$G$6:$DC$253,48,FALSE) -> 8 | N12: =VLOOKUP($C12,'RECAP SECT'!$G$6:$DC$253,49,FALSE) -> 22% | O12: =VLOOKUP($C12,'RECAP SECT'!$G$6:$DC$253,50,FALSE) -> 19% | P12: =VLOOKUP($C12,'RECAP SECT'!$G$6:$DC$253,51,FALSE) -> 8
A13: 262 | B13: BAS-RHIN | C13: 5101 | D13: SELESTAT | E13: =VLOOKUP($C13,'RECAP SECT'!$G$6:$DC$253,3,FALSE) -> 59.7 | F13: =VLOOKUP($C13,'RECAP SECT'!$G$6:$DC$253,41,FALSE) -> 28,300 | G13: =VLOOKUP($C13,'RECAP SECT'!$G$6:$DC$253,42,FALSE) -> 473.70 | H13: =VLOOKUP($C13,'RECAP SECT'!$G$6:$DC$253,43,FALSE) -> 7% | I13: =VLOOKUP($C13,'RECAP SECT'!$G$6:$DC$253,44,FALSE) -> 3 | J13: =VLOOKUP($C13,'RECAP SECT'!$G$6:$DC$253,45,FALSE) -> 1,209 | K13: =VLOOKUP($C13,'RECAP SECT'!$G$6:$DC$253,46,FALSE) -> 20.24 | L13: =VLOOKUP($C13,'RECAP SECT'!$G$6:$DC$253,47,FALSE) -> 9% | M13: =VLOOKUP($C13,'RECAP SECT'!$G$6:$DC$253,48,FALSE) -> 5 | N13: =VLOOKUP($C13,'RECAP SECT'!$G$6:$DC$253,49,FALSE) -> 8% | O13: =VLOOKUP($C13,'RECAP SECT'!$G$6:$DC$253,50,FALSE) -> 5% | P13: =VLOOKUP($C13,'RECAP SECT'!$G$6:$DC$253,51,FALSE) -> 2
A14: 262 | B14: BAS-RHIN | C14: 5006 | D14: STRASBOURG | E14: =VLOOKUP($C14,'RECAP SECT'!$G$6:$DC$253,3,FALSE) -> 75.6 | F14: =VLOOKUP($C14,'RECAP SECT'!$G$6:$DC$253,41,FALSE) -> 34,109 | G14: =VLOOKUP($C14,'RECAP SECT'!$G$6:$DC$253,42,FALSE) -> 450.98 | H14: =VLOOKUP($C14,'RECAP SECT'!$G$6:$DC$253,43,FALSE) -> 12% | I14: =VLOOKUP($C14,'RECAP SECT'!$G$6:$DC$253,44,FALSE) -> 5 | J14: =VLOOKUP($C14,'RECAP SECT'!$G$6:$DC$253,45,FALSE) -> 1,645 | K14: =VLOOKUP($C14,'RECAP SECT'!$G$6:$DC$253,46,FALSE) -> 21.75 | L14: =VLOOKUP($C14,'RECAP SECT'!$G$6:$DC$253,47,FALSE) -> 2% | M14: =VLOOKUP($C14,'RECAP SECT'!$G$6:$DC$253,48,FALSE) -> 2 | N14: =VLOOKUP($C14,'RECAP SECT'!$G$6:$DC$253,49,FALSE) -> 9% | O14: =VLOOKUP($C14,'RECAP SECT'!$G$6:$DC$253,50,FALSE) -> 6% | P14: =VLOOKUP($C14,'RECAP SECT'!$G$6:$DC$253,51,FALSE) -> 5
A15: 264 | B15: HAUT-RHIN | C15: 5130 | D15: COLMAR | E15: =VLOOKUP($C15,'RECAP SECT'!$G$6:$DC$253,3,FALSE) -> 61.6 | F15: =VLOOKUP($C15,'RECAP SECT'!$G$6:$DC$253,41,FALSE) -> 15,041 | G15: =VLOOKUP($C15,'RECAP SECT'!$G$6:$DC$253,42,FALSE) -> 243.99 | H15: =VLOOKUP($C15,'RECAP SECT'!$G$6:$DC$253,43,FALSE) -> 52% | I15: =VLOOKUP($C15,'RECAP SECT'!$G$6:$DC$253,44,FALSE) -> 16 | J15: =VLOOKUP($C15,'RECAP SECT'!$G$6:$DC$253,45,FALSE) -> 883 | K15: =VLOOKUP($C15,'RECAP SECT'!$G$6:$DC$253,46,FALSE) -> 14.32 | L15: =VLOOKUP($C15,'RECAP SECT'!$G$6:$DC$253,47,FALSE) -> 35% | M15: =VLOOKUP($C15,'RECAP SECT'!$G$6:$DC$253,48,FALSE) -> 16 | N15: =VLOOKUP($C15,'RECAP SECT'!$G$6:$DC$253,49,FALSE) -> 47% | O15: =VLOOKUP($C15,'RECAP SECT'!$G$6:$DC$253,50,FALSE) -> 45% | P15: =VLOOKUP($C15,'RECAP SECT'!$G$6:$DC$253,51,FALSE) -> 16
A16: 264 | B16: HAUT-RHIN | C16: 5169 | D16: MULHOUSE | E16: =VLOOKUP($C16,'RECAP SECT'!$G$6:$DC$253,3,FALSE) -> 61.0 | F16: =VLOOKUP($C16,'RECAP SECT'!$G$6:$DC$253,41,FALSE) -> 9,646 | G16: =VLOOKUP($C16,'RECAP SECT'!$G$6:$DC$253,42,FALSE) -> 158.12 | H16: =VLOOKUP($C16,'RECAP SECT'!$G$6:$DC$253,43,FALSE) -> 69% | I16: =VLOOKUP($C16,'RECAP SECT'!$G$6:$DC$253,44,FALSE) -> 17 | J16: =VLOOKUP($C16,'RECAP SECT'!$G$6:$DC$253,45,FALSE) -> 1,018 | K16: =VLOOKUP($C16,'RECAP SECT'!$G$6:$DC$253,46,FALSE) -> 16.69 | L16: =VLOOKUP($C16,'RECAP SECT'!$G$6:$DC$253,47,FALSE) -> 25% | M16: =VLOOKUP($C16,'RECAP SECT'!$G$6:$DC$253,48,FALSE) -> 12 | N16: =VLOOKUP($C16,'RECAP SECT'!$G$6:$DC$253,49,FALSE) -> 56% | O16: =VLOOKUP($C16,'RECAP SECT'!$G$6:$DC$253,50,FALSE) -> 53% | P16: =VLOOKUP($C16,'RECAP SECT'!$G$6:$DC$253,51,FALSE) -> 17
A17: 30 | B17: MARNE-ARDENNES | C17: 6 | D17: CHALONS EN CHAMPAGNE | E17: =VLOOKUP($C17,'RECAP SECT'!$G$6:$DC$253,3,FALSE) -> 44.6 | F17: =VLOOKUP($C17,'RECAP SECT'!$G$6:$DC$253,41,FALSE) -> 13,110 | G17: =VLOOKUP($C17,'RECAP SECT'!$G$6:$DC$253,42,FALSE) -> 293.88 | H17: =VLOOKUP($C17,'RECAP SECT'!$G$6:$DC$253,43,FALSE) -> 43% | I17: =VLOOKUP($C17,'RECAP SECT'!$G$6:$DC$253,44,FALSE) -> 15 | J17: =VLOOKUP($C17,'RECAP SECT'!$G$6:$DC$253,45,FALSE) -> 988 | K17: =VLOOKUP($C17,'RECAP SECT'!$G$6:$DC$253,46,FALSE) -> 22.15 | L17: =VLOOKUP($C17,'RECAP SECT'!$G$6:$DC$253,47,FALSE) -> 0% | M17: =VLOOKUP($C17,'RECAP SECT'!$G$6:$DC$253,48,FALSE) -> 1 | N17: =VLOOKUP($C17,'RECAP SECT'!$G$6:$DC$253,49,FALSE) -> 30% | O17: =VLOOKUP($C17,'RECAP SECT'!$G$6:$DC$253,50,FALSE) -> 27% | P17: =VLOOKUP($C17,'RECAP SECT'!$G$6:$DC$253,51,FALSE) -> 13
A18: 30 | B18: MARNE-ARDENNES | C18: 2 | D18: CHARLEVILLE MEZIERES | E18: =VLOOKUP($C18,'RECAP SECT'!$G$6:$DC$253,3,FALSE) -> 56.3 | F18: =VLOOKUP($C18,'RECAP SECT'!$G$6:$DC$253,41,FALSE) -> 25,793 | G18: =VLOOKUP($C18,'RECAP SECT'!$G$6:$DC$253,42,FALSE) -> 458.53 | H18: =VLOOKUP($C18,'RECAP SECT'!$G$6:$DC$253,43,FALSE) -> 10% | I18: =VLOOKUP($C18,'RECAP SECT'!$G$6:$DC$253,44,FALSE) -> 4 | J18: =VLOOKUP($C18,'RECAP SECT'!$G$6:$DC$253,45,FALSE) -> 1,205 | K18: =VLOOKUP($C18,'RECAP SECT'!$G$6:$DC$253,46,FALSE) -> 21.42 | L18: =VLOOKUP($C18,'RECAP SECT'!$G$6:$DC$253,47,FALSE) -> 3% | M18: =VLOOKUP($C18,'RECAP SECT'!$G$6:$DC$253,48,FALSE) -> 3 | N18: =VLOOKUP($C18,'RECAP SECT'!$G$6:$DC$253,49,FALSE) -> 8% | O18: =VLOOKUP($C18,'RECAP SECT'!$G$6:$DC$253,50,FALSE) -> 6% | P18: =VLOOKUP($C18,'RECAP SECT'!$G$6:$DC$253,51,FALSE) -> 4
A19: 30 | B19: MARNE-ARDENNES | C19: 11 | D19: REIMS | E19: =VLOOKUP($C19,'RECAP SECT'!$G$6:$DC$253,3,FALSE) -> 79.9 | F19: =VLOOKUP($C19,'RECAP SECT'!$G$6:$DC$253,41,FALSE) -> 28,080 | G19: =VLOOKUP($C19,'RECAP SECT'!$G$6:$DC$253,42,FALSE) -> 351.52 | H19: =VLOOKUP($C19,'RECAP SECT'!$G$6:$DC$253,43,FALSE) -> 31% | I19: =VLOOKUP($C19,'RECAP SECT'!$G$6:$DC$253,44,FALSE) -> 11 | J19: =VLOOKUP($C19,'RECAP SECT'!$G$6:$DC$253,45,FALSE) -> 1,330 | K19: =VLOOKUP($C19,'RECAP SECT'!$G$6:$DC$253,46,FALSE) -> 16.65 | L19: =VLOOKUP($C19,'RECAP SECT'!$G$6:$DC$253,47,FALSE) -> 25% | M19: =VLOOKUP($C19,'RECAP SECT'!$G$6:$DC$253,48,FALSE) -> 13 | N19: =VLOOKUP($C19,'RECAP SECT'!$G$6:$DC$253,49,FALSE) -> 29% | O19: =VLOOKUP($C19,'RECAP SECT'!$G$6:$DC$253,50,FALSE) -> 27% | P19: =VLOOKUP($C19,'RECAP SECT'!$G$6:$DC$253,51,FALSE) -> 12
A20: 110 | B20: MEURTHE ET MOSELLE MEUSE | C20: 26 | D20: NANCY | E20: =VLOOKUP($C20,'RECAP SECT'!$G$6:$DC$253,3,FALSE) -> 66.4 | F20: =VLOOKUP($C20,'RECAP SECT'!$G$6:$DC$253,41,FALSE) -> 33,537 | G20: =VLOOKUP($C20,'RECAP SECT'!$G$6:$DC$253,42,FALSE) -> 505.34 | H20: =VLOOKUP($C20,'RECAP SECT'!$G$6:$DC$253,43,FALSE) -> 1% | I20: =VLOOKUP($C20,'RECAP SECT'!$G$6:$DC$253,44,FALSE) -> 2 | J20: =VLOOKUP($C20,'RECAP SECT'!$G$6:$DC$253,45,FALSE) -> 1,397 | K20: =VLOOKUP($C20,'RECAP SECT'!$G$6:$DC$253,46,FALSE) -> 21.05 | L20: =VLOOKUP($C20,'RECAP SECT'!$G$6:$DC$253,47,FALSE) -> 5% | M20: =VLOOKUP($C20,'RECAP SECT'!$G$6:$DC$253,48,FALSE) -> 4 | N20: =VLOOKUP($C20,'RECAP SECT'!$G$6:$DC$253,49,FALSE) -> 2% | O20: =VLOOKUP($C20,'RECAP SECT'!$G$6:$DC$253,50,FALSE) -> 0% | P20: =VLOOKUP($C20,'RECAP SECT'!$G$6:$DC$253,51,FALSE) -> 1
A21: 110 | B21: MEURTHE ET MOSELLE MEUSE | C21: 27 | D21: PONT A MOUSSON | E21: =VLOOKUP($C21,'RECAP SECT'!$G$6:$DC$253,3,FALSE) -> 76.3 | F21: =VLOOKUP($C21,'RECAP SECT'!$G$6:$DC$253,41,FALSE) -> 39,081 | G21: =VLOOKUP($C21,'RECAP SECT'!$G$6:$DC$253,42,FALSE) -> 511.96 | H21: =VLOOKUP($C21,'RECAP SECT'!$G$6:$DC$253,43,FALSE) -> 0% | I21: =VLOOKUP($C21,'RECAP SECT'!$G$6:$DC$253,44,FALSE) -> 1 | J21: =VLOOKUP($C21,'RECAP SECT'!$G$6:$DC$253,45,FALSE) -> 1,245 | K21: =VLOOKUP($C21,'RECAP SECT'!$G$6:$DC$253,46,FALSE) -> 16.31 | L21: =VLOOKUP($C21,'RECAP SECT'!$G$6:$DC$253,47,FALSE) -> 26% | M21: =VLOOKUP($C21,'RECAP SECT'!$G$6:$DC$253,48,FALSE) -> 14 | N21: =VLOOKUP($C21,'RECAP SECT'!$G$6:$DC$253,49,FALSE) -> 8% | O21: =VLOOKUP($C21,'RECAP SECT'!$G$6:$DC$253,50,FALSE) -> 6% | P21: =VLOOKUP($C21,'RECAP SECT'!$G$6:$DC$253,51,FALSE) -> 3
A22: 110 | B22: MEURTHE ET MOSELLE MEUSE | C22: 31 | D22: VERDUN | E22: =VLOOKUP($C22,'RECAP SECT'!$G$6:$DC$253,3,FALSE) -> 54.9 | F22: =VLOOKUP($C22,'RECAP SECT'!$G$6:$DC$253,41,FALSE) -> 22,938 | G22: =VLOOKUP($C22,'RECAP SECT'!$G$6:$DC$253,42,FALSE) -> 418.06 | H22: =VLOOKUP($C22,'RECAP SECT'!$G$6:$DC$253,43,FALSE) -> 18% | I22: =VLOOKUP($C22,'RECAP SECT'!$G$6:$DC$253,44,FALSE) -> 8 | J22: =VLOOKUP($C22,'RECAP SECT'!$G$6:$DC$253,45,FALSE) -> 921 | K22: =VLOOKUP($C22,'RECAP SECT'!$G$6:$DC$253,46,FALSE) -> 16.79 | L22: =VLOOKUP($C22,'RECAP SECT'!$G$6:$DC$253,47,FALSE) -> 24% | M22: =VLOOKUP($C22,'RECAP SECT'!$G$6:$DC$253,48,FALSE) -> 10 | N22: =VLOOKUP($C22,'RECAP SECT'!$G$6:$DC$253,49,FALSE) -> 20% | O22: =VLOOKUP($C22,'RECAP SECT'!$G$6:$DC$253,50,FALSE) -> 18% | P22: =VLOOKUP($C22,'RECAP SECT'!$G$6:$DC$253,51,FALSE) -> 7
A23: 160 | B23: MOSELLE | C23: 45 | D23: METZ | E23: =VLOOKUP($C23,'RECAP SECT'!$G$6:$DC$253,3,FALSE) -> 89.0 | F23: =VLOOKUP($C23,'RECAP SECT'!$G$6:$DC$253,41,FALSE) -> 28,599 | G23: =VLOOKUP($C23,'RECAP SECT'!$G$6:$DC$253,42,FALSE) -> 321.20 | H23: =VLOOKUP($C23,'RECAP SECT'!$G$6:$DC$253,43,FALSE) -> 37% | I23: =VLOOKUP($C23,'RECAP SECT'!$G$6:$DC$253,44,FALSE) -> 13 | J23: =VLOOKUP($C23,'RECAP SECT'!$G$6:$DC$253,45,FALSE) -> 1,504 | K23: =VLOOKUP($C23,'RECAP SECT'!$G$6:$DC$253,46,FALSE) -> 16.89 | L23: =VLOOKUP($C23,'RECAP SECT'!$G$6:$DC$253,47,FALSE) -> 24% | M23: =VLOOKUP($C23,'RECAP SECT'!$G$6:$DC$253,48,FALSE) -> 9 | N23: =VLOOKUP($C23,'RECAP SECT'!$G$6:$DC$253,49,FALSE) -> 33% | O23: =VLOOKUP($C23,'RECAP SECT'!$G$6:$DC$253,50,FALSE) -> 31% | P23: =VLOOKUP($C23,'RECAP SECT'!$G$6:$DC$253,51,FALSE) -> 14
A24: 160 | B24: MOSELLE | C24: 42 | D24: MOSELLE EST | E24: =VLOOKUP($C24,'RECAP SECT'!$G$6:$DC$253,3,FALSE) -> 70.4 | F24: =VLOOKUP($C24,'RECAP SECT'!$G$6:$DC$253,41,FALSE) -> 23,084 | G24: =VLOOKUP($C24,'RECAP SECT'!$G$6:$DC$253,42,FALSE) -> 327.98 | H24: =VLOOKUP($C24,'RECAP SECT'!$G$6:$DC$253,43,FALSE) -> 36% | I24: =VLOOKUP($C24,'RECAP SECT'!$G$6:$DC$253,44,FALSE) -> 12 | J24: =VLOOKUP($C24,'RECAP SECT'!$G$6:$DC$253,45,FALSE) -> 1,395 | K24: =VLOOKUP($C24,'RECAP SECT'!$G$6:$DC$253,46,FALSE) -> 19.82 | L24: =VLOOKUP($C24,'RECAP SECT'!$G$6:$DC$253,47,FALSE) -> 11% | M24: =VLOOKUP($C24,'RECAP SECT'!$G$6:$DC$253,48,FALSE) -> 7 | N24: =VLOOKUP($C24,'RECAP SECT'!$G$6:$DC$253,49,FALSE) -> 28% | O24: =VLOOKUP($C24,'RECAP SECT'!$G$6:$DC$253,50,FALSE) -> 26% | P24: =VLOOKUP($C24,'RECAP SECT'!$G$6:$DC$253,51,FALSE) -> 11
A25: 160 | B25: MOSELLE | C25: 44 | D25: MOSELLE NORD | E25: =VLOOKUP($C25,'RECAP SECT'!$G$6:$DC$253,3,FALSE) -> 65.5 | F25: =VLOOKUP($C25,'RECAP SECT'!$G$6:$DC$253,41,FALSE) -> 25,949 | G25: =VLOOKUP($C25,'RECAP SECT'!$G$6:$DC$253,42,FALSE) -> 396.15 | H25: =VLOOKUP($C25,'RECAP SECT'!$G$6:$DC$253,43,FALSE) -> 23% | I25: =VLOOKUP($C25,'RECAP SECT'!$G$6:$DC$253,44,FALSE) -> 10 | J25: =VLOOKUP($C25,'RECAP SECT'!$G$6:$DC$253,45,FALSE) -> 1,306 | K25: =VLOOKUP($C25,'RECAP SECT'!$G$6:$DC$253,46,FALSE) -> 19.94 | L25: =VLOOKUP($C25,'RECAP SECT'!$G$6:$DC$253,47,FALSE) -> 10% | M25: =VLOOKUP($C25,'RECAP SECT'!$G$6:$DC$253,48,FALSE) -> 6 | N25: =VLOOKUP($C25,'RECAP SECT'!$G$6:$DC$253,49,FALSE) -> 19% | O25: =VLOOKUP($C25,'RECAP SECT'!$G$6:$DC$253,50,FALSE) -> 16% | P25: =VLOOKUP($C25,'RECAP SECT'!$G$6:$DC$253,51,FALSE) -> 6
A26: 80 | B26: VOSGES | C26: 57 | D26: EPINAL | E26: =VLOOKUP($C26,'RECAP SECT'!$G$6:$DC$253,3,FALSE) -> 61.2 | F26: =VLOOKUP($C26,'RECAP SECT'!$G$6:$DC$253,41,FALSE) -> 26,547 | G26: =VLOOKUP($C26,'RECAP SECT'!$G$6:$DC$253,42,FALSE) -> 433.59 | H26: =VLOOKUP($C26,'RECAP SECT'!$G$6:$DC$253,43,FALSE) -> 15% | I26: =VLOOKUP($C26,'RECAP SECT'!$G$6:$DC$253,44,FALSE) -> 6 | J26: =VLOOKUP($C26,'RECAP SECT'!$G$6:$DC$253,45,FALSE) -> 734 | K26: =VLOOKUP($C26,'RECAP SECT'!$G$6:$DC$253,46,FALSE) -> 11.99 | L26: =VLOOKUP($C26,'RECAP SECT'!$G$6:$DC$253,47,FALSE) -> 46% | M26: =VLOOKUP($C26,'RECAP SECT'!$G$6:$DC$253,48,FALSE) -> 18 | N26: =VLOOKUP($C26,'RECAP SECT'!$G$6:$DC$253,49,FALSE) -> 24% | O26: =VLOOKUP($C26,'RECAP SECT'!$G$6:$DC$253,50,FALSE) -> 22% | P26: =VLOOKUP($C26,'RECAP SECT'!$G$6:$DC$253,51,FALSE) -> 9
A27: 80 | B27: VOSGES | C27: 55 | D27: SAINT DIE | E27: =VLOOKUP($C27,'RECAP SECT'!$G$6:$DC$253,3,FALSE) -> 47.1 | F27: =VLOOKUP($C27,'RECAP SECT'!$G$6:$DC$253,41,FALSE) -> 19,733 | G27: =VLOOKUP($C27,'RECAP SECT'!$G$6:$DC$253,42,FALSE) -> 419.40 | H27: =VLOOKUP($C27,'RECAP SECT'!$G$6:$DC$253,43,FALSE) -> 18% | I27: =VLOOKUP($C27,'RECAP SECT'!$G$6:$DC$253,44,FALSE) -> 7 | J27: =VLOOKUP($C27,'RECAP SECT'!$G$6:$DC$253,45,FALSE) -> 618 | K27: =VLOOKUP($C27,'RECAP SECT'!$G$6:$DC$253,46,FALSE) -> 13.13 | L27: =VLOOKUP($C27,'RECAP SECT'!$G$6:$DC$253,47,FALSE) -> 41% | M27: =VLOOKUP($C27,'RECAP SECT'!$G$6:$DC$253,48,FALSE) -> 17 | N27: =VLOOKUP($C27,'RECAP SECT'!$G$6:$DC$253,49,FALSE) -> 25% | O27: =VLOOKUP($C27,'RECAP SECT'!$G$6:$DC$253,50,FALSE) -> 22% | P27: =VLOOKUP($C27,'RECAP SECT'!$G$6:$DC$253,51,FALSE) -> 10
A28: Total CEGEE Directions Régionales | E28: =SUM(E10:E27) -> 1140

Sheet SE_CREDIT
B1: Accueil | F1: BAROMETRE BDD - TERRITOIRES
F2: CREDITS
F3: =ACCUEIL!F7 -> 2021-07-25
F7: Engagements et ventes accessoires pondérés Immo | J7: Engagements et ventes accessoires pondérés Conso | N7: Ventes sur client non détenteur de l’univers | R7: Total Crédits
F8: =DATEMAJ!C18 -> au 25/07 | H8: coef | I8: ='RECAP DIRCOM'!BM4 -> 8% | J8: =DATEMAJ!C19 -> au 25/07 | L8: coef | M8: ='RECAP DIRCOM'!BQ4 -> 6% | N8: =DATEMAJ!C20 -> au 25/07 | P8: coef | Q8: ='RECAP DIRCOM'!BU4 -> 6% | S8: coef | T8: ='RECAP DIRCOM'!BX4 -> 20%
B9: Direction | C9: eds | D9: Territoire | E9: ="ETP perf "&DATEMAJ!$C$28 -> ETP perf 31-mai | F9: PNB | G9: PNB / ETP | H9: % Ecart au 1er | I9: Rang | J9: PNB | K9: PNB / ETP | L9: % Ecart au 1er | M9: Rang | N9: VB | O9: VB / ETP | P9: % Ecart au 1er | Q9: Rang | R9: Moyenne ecart au 1er | S9: % Ecart au 1er | T9: Rang CEGEE
A10: 50 | B10: AUBE HAUTE MARNE | C10: 21 | D10: CHAUMONT | E10: =VLOOKUP($C10,'RECAP SECT'!$G$6:$DC$253,3,FALSE) -> 33.8 | F10: =VLOOKUP($C10,'RECAP SECT'!$G$6:$DC$253,56,FALSE) -> 2,347 | G10: =VLOOKUP($C10,'RECAP SECT'!$G$6:$DC$253,57,FALSE) -> 69.45 | H10: =VLOOKUP($C10,'RECAP SECT'!$G$6:$DC$253,58,FALSE) -> 62% | I10: =VLOOKUP($C10,'RECAP SECT'!$G$6:$DC$253,59,FALSE) -> 15 | J10: =VLOOKUP($C10,'RECAP SECT'!$G$6:$DC$253,60,FALSE) -> 1,973 | K10: =VLOOKUP($C10,'RECAP SECT'!$G$6:$DC$253,61,FALSE) -> 58.39 | L10: =VLOOKUP($C10,'RECAP SECT'!$G$6:$DC$253,62,FALSE) -> 0% | M10: =VLOOKUP($C10,'RECAP SECT'!$G$6:$DC$253,63,FALSE) -> 1 | N10: =VLOOKUP($C10,'RECAP SECT'!$G$6:$DC$253,64,FALSE) -> 457 | O10: =VLOOKUP($C10,'RECAP SECT'!$G$6:$DC$253,65,FALSE) -> 13.52 | P10: =VLOOKUP($C10,'RECAP SECT'!$G$6:$DC$253,66,FALSE) -> 24% | Q10: =VLOOKUP($C10,'RECAP SECT'!$G$6:$DC$253,67,FALSE) -> 7 | R10: =VLOOKUP($C10,'RECAP SECT'!$G$6:$DC$253,68,FALSE) -> 32% | S10: =VLOOKUP($C10,'RECAP SECT'!$G$6:$DC$253,69,FALSE) -> 26% | T10: =VLOOKUP($C10,'RECAP SECT'!$G$6:$DC$253,70,FALSE) -> 8
A11: 50 | B11: AUBE HAUTE MARNE | C11: 14 | D11: TROYES | E11: =VLOOKUP($C11,'RECAP SECT'!$G$6:$DC$253,3,FALSE) -> 66.8 | F11: =VLOOKUP($C11,'RECAP SECT'!$G$6:$DC$253,56,FALSE) -> 5,506 | G11: =VLOOKUP($C11,'RECAP SECT'!$G$6:$DC$253,57,FALSE) -> 82.43 | H11: =VLOOKUP($C11,'RECAP SECT'!$G$6:$DC$253,58,FALSE) -> 55% | I11: =VLOOKUP($C11,'RECAP SECT'!$G$6:$DC$253,59,FALSE) -> 13 | J11: =VLOOKUP($C11,'RECAP SECT'!$G$6:$DC$253,60,FALSE) -> 2,915 | K11: =VLOOKUP($C11,'RECAP SECT'!$G$6:$DC$253,61,FALSE) -> 43.63 | L11: =VLOOKUP($C11,'RECAP SECT'!$G$6:$DC$253,62,FALSE) -> 25% | M11: =VLOOKUP($C11,'RECAP SECT'!$G$6:$DC$253,63,FALSE) -> 11 | N11: =VLOOKUP($C11,'RECAP SECT'!$G$6:$DC$253,64,FALSE) -> 789 | O11: =VLOOKUP($C11,'RECAP SECT'!$G$6:$DC$253,65,FALSE) -> 11.81 | P11: =VLOOKUP($C11,'RECAP SECT'!$G$6:$DC$253,66,FALSE) -> 34% | Q11: =VLOOKUP($C11,'RECAP SECT'!$G$6:$DC$253,67,FALSE) -> 11 | R11: =VLOOKUP($C11,'RECAP SECT'!$G$6:$DC$253,68,FALSE) -> 40% | S11: =VLOOKUP($C11,'RECAP SECT'!$G$6:$DC$253,69,FALSE) -> 33% | T11: =VLOOKUP($C11,'RECAP SECT'!$G$6:$DC$253,70,FALSE) -> 14
A12: 262 | B12: BAS-RHIN | C12: 5060 | D12: HAGUENAU | E12: =VLOOKUP($C12,'RECAP SECT'!$G$6:$DC$253,3,FALSE) -> 69.7 | F12: =VLOOKUP($C12,'RECAP SECT'!$G$6:$DC$253,56,FALSE) -> 5,567 | G12: =VLOOKUP($C12,'RECAP SECT'!$G$6:$DC$253,57,FALSE) -> 79.87 | H12: =VLOOKUP($C12,'RECAP SECT'!$G$6:$DC$253,58,FALSE) -> 56% | I12: =VLOOKUP($C12,'RECAP SECT'!$G$6:$DC$253,59,FALSE) -> 14 | J12: =VLOOKUP($C12,'RECAP SECT'!$G$6:$DC$253,60,FALSE) -> 3,203 | K12: =VLOOKUP($C12,'RECAP SECT'!$G$6:$DC$253,61,FALSE) -> 45.96 | L12: =VLOOKUP($C12,'RECAP SECT'!$G$6:$DC$253,62,FALSE) -> 21% | M12: =VLOOKUP($C12,'RECAP SECT'!$G$6:$DC$253,63,FALSE) -> 8 | N12: =VLOOKUP($C12,'RECAP SECT'!$G$6:$DC$253,64,FALSE) -> 649 | O12: =VLOOKUP($C12,'RECAP SECT'!$G$6:$DC$253,65,FALSE) -> 9.31 | P12: =VLOOKUP($C12,'RECAP SECT'!$G$6:$DC$253,66,FALSE) -> 48% | Q12: =VLOOKUP($C12,'RECAP SECT'!$G$6:$DC$253,67,FALSE) -> 16 | R12: =VLOOKUP($C12,'RECAP SECT'!$G$6:$DC$253,68,FALSE) -> 43% | S12: =VLOOKUP($C12,'RECAP SECT'!$G$6:$DC$253,69,FALSE) -> 37% | T12: =VLOOKUP($C12,'RECAP SECT'!$G$6:$DC$253,70,FALSE) -> 15
A13: 262 | B13: BAS-RHIN | C13: 5101 | D13: SELESTAT | E13: =VLOOKUP($C13,'RECAP SECT'!$G$6:$DC$253,3,FALSE) -> 59.7 | F13: =VLOOKUP($C13,'RECAP SECT'!$G$6:$DC$253,56,FALSE) -> 3,615 | G13: =VLOOKUP($C13,'RECAP SECT'!$G$6:$DC$253,57,FALSE) -> 60.50 | H13: =VLOOKUP($C13,'RECAP SECT'!$G$6:$DC$253,58,FALSE) -> 67% | I13: =VLOOKUP($C13,'RECAP SECT'!$G$6:$DC$253,59,FALSE) -> 17 | J13: =VLOOKUP($C13,'RECAP SECT'!$G$6:$DC$253,60,FALSE) -> 2,797 | K13: =VLOOKUP($C13,'RECAP SECT'!$G$6:$DC$253,61,FALSE) -> 46.82 | L13: =VLOOKUP($C13,'RECAP SECT'!$G$6:$DC$253,62,FALSE) -> 20% | M13: =VLOOKUP($C13,'RECAP SECT'!$G$6:$DC$253,63,FALSE) -> 6 | N13: =VLOOKUP($C13,'RECAP SECT'!$G$6:$DC$253,64,FALSE) -> 631 | O13: =VLOOKUP($C13,'RECAP SECT'!$G$6:$DC$253,65,FALSE) -> 10.56 | P13: =VLOOKUP($C13,'RECAP SECT'!$G$6:$DC$253,66,FALSE) -> 41% | Q13: =VLOOKUP($C13,'RECAP SECT'!$G$6:$DC$253,67,FALSE) -> 15 | R13: =VLOOKUP($C13,'RECAP SECT'!$G$6:$DC$253,68,FALSE) -> 45% | S13: =VLOOKUP($C13,'RECAP SECT'!$G$6:$DC$253,69,FALSE) -> 39% | T13: =VLOOKUP($C13,'RECAP SECT'!$G$6:$DC$253,70,FALSE) -> 16
A14: 262 | B14: BAS-RHIN | C14: 5006 | D14: STRASBOURG | E14: =VLOOKUP($C14,'RECAP SECT'!$G$6:$DC$253,3,FALSE) -> 75.6 | F14: =VLOOKUP($C14,'RECAP SECT'!$G$6:$DC$253,56,FALSE) -> 7,921 | G14: =VLOOKUP($C14,'RECAP SECT'!$G$6:$DC$253,57,FALSE) -> 104.74 | H14: =VLOOKUP($C14,'RECAP SECT'!$G$6:$DC$253,58,FALSE) -> 43% | I14: =VLOOKUP($C14,'RECAP SECT'!$G$6:$DC$253,59,FALSE) -> 8 | J14: =VLOOKUP($C14,'RECAP SECT'!$G$6:$DC$253,60,FALSE) -> 2,846 | K14: =VLOOKUP($C14,'RECAP SECT'!$G$6:$DC$253,61,FALSE) -> 37.63 | L14: =VLOOKUP($C14,'RECAP SECT'!$G$6:$DC$253,62,FALSE) -> 36% | M14: =VLOOKUP($C14,'RECAP SECT'!$G$6:$DC$253,63,FALSE) -> 18 | N14: =VLOOKUP($C14,'RECAP SECT'!$G$6:$DC$253,64,FALSE) -> 892 | O14: =VLOOKUP($C14,'RECAP SECT'!$G$6:$DC$253,65,FALSE) -> 11.79 | P14: =VLOOKUP($C14,'RECAP SECT'!$G$6:$DC$253,66,FALSE) -> 34% | Q14: =VLOOKUP($C14,'RECAP SECT'!$G$6:$DC$253,67,FALSE) -> 12 | R14: =VLOOKUP($C14,'RECAP SECT'!$G$6:$DC$253,68,FALSE) -> 38% | S14: =VLOOKUP($C14,'RECAP SECT'!$G$6:$DC$253,69,FALSE) -> 32% | T14: =VLOOKUP($C14,'RECAP SECT'!$G$6:$DC$253,70,FALSE) -> 12
A15: 264 | B15: HAUT-RHIN | C15: 5130 | D15: COLMAR | E15: =VLOOKUP($C15,'RECAP SECT'!$G$6:$DC$253,3,FALSE) -> 61.6 | F15: =VLOOKUP($C15,'RECAP SECT'!$G$6:$DC$253,56,FALSE) -> 3,558 | G15: =VLOOKUP($C15,'RECAP SECT'!$G$6:$DC$253,57,FALSE) -> 57.72 | H15: =VLOOKUP($C15,'RECAP SECT'!$G$6:$DC$253,58,FALSE) -> 68% | I15: =VLOOKUP($C15,'RECAP SECT'!$G$6:$DC$253,59,FALSE) -> 18 | J15: =VLOOKUP($C15,'RECAP SECT'!$G$6:$DC$253,60,FALSE) -> 2,503 | K15: =VLOOKUP($C15,'RECAP SECT'!$G$6:$DC$253,61,FALSE) -> 40.61 | L15: =VLOOKUP($C15,'RECAP SECT'!$G$6:$DC$253,62,FALSE) -> 30% | M15: =VLOOKUP($C15,'RECAP SECT'!$G$6:$DC$253,63,FALSE) -> 15 | N15: =VLOOKUP($C15,'RECAP SECT'!$G$6:$DC$253,64,FALSE) -> 560 | O15: =VLOOKUP($C15,'RECAP SECT'!$G$6:$DC$253,65,FALSE) -> 9.08 | P15: =VLOOKUP($C15,'RECAP SECT'!$G$6:$DC$253,66,FALSE) -> 49% | Q15: =VLOOKUP($C15,'RECAP SECT'!$G$6:$DC$253,67,FALSE) -> 17 | R15: =VLOOKUP($C15,'RECAP SECT'!$G$6:$DC$253,68,FALSE) -> 51% | S15: =VLOOKUP($C15,'RECAP SECT'!$G$6:$DC$253,69,FALSE) -> 45% | T15: =VLOOKUP($C15,'RECAP SECT'!$G$6:$DC$253,70,FALSE) -> 18
A16: 264 | B16: HAUT-RHIN | C16: 5169 | D16: MULHOUSE | E16: =VLOOKUP($C16,'RECAP SECT'!$G$6:$DC$253,3,FALSE) -> 61.0 | F16: =VLOOKUP($C16,'RECAP SECT'!$G$6:$DC$253,56,FALSE) -> 4,140 | G16: =VLOOKUP($C16,'RECAP SECT'!$G$6:$DC$253,57,FALSE) -> 67.86 | H16: =VLOOKUP($C16,'RECAP SECT'!$G$6:$DC$253,58,FALSE) -> 63% | I16: =VLOOKUP($C16,'RECAP SECT'!$G$6:$DC$253,59,FALSE) -> 16 | J16: =VLOOKUP($C16,'RECAP SECT'!$G$6:$DC$253,60,FALSE) -> 2,473 | K16: =VLOOKUP($C16,'RECAP SECT'!$G$6:$DC$253,61,FALSE) -> 40.54 | L16: =VLOOKUP($C16,'RECAP SECT'!$G$6:$DC$253,62,FALSE) -> 31% | M16: =VLOOKUP($C16,'RECAP SECT'!$G$6:$DC$253,63,FALSE) -> 16 | N16: =VLOOKUP($C16,'RECAP SECT'!$G$6:$DC$253,64,FALSE) -> 538 | O16: =VLOOKUP($C16,'RECAP SECT'!$G$6:$DC$253,65,FALSE) -> 8.82 | P16: =VLOOKUP($C16,'RECAP SECT'!$G$6:$DC$253,66,FALSE) -> 51% | Q16: =VLOOKUP($C16,'RECAP SECT'!$G$6:$DC$253,67,FALSE) -> 18 | R16: =VLOOKUP($C16,'RECAP SECT'!$G$6:$DC$253,68,FALSE) -> 50% | S16: =VLOOKUP($C16,'RECAP SECT'!$G$6:$DC$253,69,FALSE) -> 43% | T16: =VLOOKUP($C16,'RECAP SECT'!$G$6:$DC$253,70,FALSE) -> 17
A17: 30 | B17: MARNE-ARDENNES | C17: 6 | D17: CHALONS EN CHAMPAGNE | E17: =VLOOKUP($C17,'RECAP SECT'!$G$6:$DC$253,3,FALSE) -> 44.6 | F17: =VLOOKUP($C17,'RECAP SECT'!$G$6:$DC$253,56,FALSE) -> 5,279 | G17: =VLOOKUP($C17,'RECAP SECT'!$G$6:$DC$253,57,FALSE) -> 118.34 | H17: =VLOOKUP($C17,'RECAP SECT'!$G$6:$DC$253,58,FALSE) -> 35% | I17: =VLOOKUP($C17,'RECAP SECT'!$G$6:$DC$253,59,FALSE) -> 6 | J17: =VLOOKUP($C17,'RECAP SECT'!$G$6:$DC$253,60,FALSE) -> 1,945 | K17: =VLOOKUP($C17,'RECAP SECT'!$G$6:$DC$253,61,FALSE) -> 43.61 | L17: =VLOOKUP($C17,'RECAP SECT'!$G$6:$DC$253,62,FALSE) -> 25% | M17: =VLOOKUP($C17,'RECAP SECT'!$G$6:$DC$253,63,FALSE) -> 12 | N17: =VLOOKUP($C17,'RECAP SECT'!$G$6:$DC$253,64,FALSE) -> 620 | O17: =VLOOKUP($C17,'RECAP SECT'!$G$6:$DC$253,65,FALSE) -> 13.90 | P17: =VLOOKUP($C17,'RECAP SECT'!$G$6:$DC$253,66,FALSE) -> 22% | Q17: =VLOOKUP($C17,'RECAP SECT'!$G$6:$DC$253,67,FALSE) -> 5 | R17: =VLOOKUP($C17,'RECAP SECT'!$G$6:$DC$253,68,FALSE) -> 28% | S17: =VLOOKUP($C17,'RECAP SECT'!$G$6:$DC$253,69,FALSE) -> 22% | T17: =VLOOKUP($C17,'RECAP SECT'!$G$6:$DC$253,70,FALSE) -> 7
A18: 30 | B18: MARNE-ARDENNES | C18: 2 | D18: CHARLEVILLE MEZIERES | E18: =VLOOKUP($C18,'RECAP SECT'!$G$6:$DC$253,3,FALSE) -> 56.3 | F18: =VLOOKUP($C18,'RECAP SECT'!$G$6:$DC$253,56,FALSE) -> 7,884 | G18: =VLOOKUP($C18,'RECAP SECT'!$G$6:$DC$253,57,FALSE) -> 140.16 | H18: =VLOOKUP($C18,'RECAP SECT'!$G$6:$DC$253,58,FALSE) -> 23% | I18: =VLOOKUP($C18,'RECAP SECT'!$G$6:$DC$253,59,FALSE) -> 4 | J18: =VLOOKUP($C18,'RECAP SECT'!$G$6:$DC$253,60,FALSE) -> 2,475 | K18: =VLOOKUP($C18,'RECAP SECT'!$G$6:$DC$253,61,FALSE) -> 44.00 | L18: =VLOOKUP($C18,'RECAP SECT'!$G$6:$DC$253,62,FALSE) -> 25% | M18: =VLOOKUP($C18,'RECAP SECT'!$G$6:$DC$253,63,FALSE) -> 10 | N18: =VLOOKUP($C18,'RECAP SECT'!$G$6:$DC$253,64,FALSE) -> 853 | O18: =VLOOKUP($C18,'RECAP SECT'!$G$6:$DC$253,65,FALSE) -> 15.16 | P18: =VLOOKUP($C18,'RECAP SECT'!$G$6:$DC$253,66,FALSE) -> 15% | Q18: =VLOOKUP($C18,'RECAP SECT'!$G$6:$DC$253,67,FALSE) -> 4 | R18: =VLOOKUP($C18,'RECAP SECT'!$G$6:$DC$253,68,FALSE) -> 21% | S18: =VLOOKUP($C18,'RECAP SECT'!$G$6:$DC$253,69,FALSE) -> 15% | T18: =VLOOKUP($C18,'RECAP SECT'!$G$6:$DC$253,70,FALSE) -> 4
A19: 30 | B19: MARNE-ARDENNES | C19: 11 | D19: REIMS | E19: =VLOOKUP($C19,'RECAP SECT'!$G$6:$DC$253,3,FALSE) -> 79.9 | F19: =VLOOKUP($C19,'RECAP SECT'!$G$6:$DC$253,56,FALSE) -> 14,029 | G19: =VLOOKUP($C19,'RECAP SECT'!$G$6:$DC$253,57,FALSE) -> 175.62 | H19: =VLOOKUP($C19,'RECAP SECT'!$G$6:$DC$253,58,FALSE) -> 4% | I19: =VLOOKUP($C19,'RECAP SECT'!$G$6:$DC$253,59,FALSE) -> 3 | J19: =VLOOKUP($C19,'RECAP SECT'!$G$6:$DC$253,60,FALSE) -> 3,414 | K19: =VLOOKUP($C19,'RECAP SECT'!$G$6:$DC$253,61,FALSE) -> 42.74 | L19: =VLOOKUP($C19,'RECAP SECT'!$G$6:$DC$253,62,FALSE) -> 27% | M19: =VLOOKUP($C19,'RECAP SECT'!$G$6:$DC$253,63,FALSE) -> 13 | N19: =VLOOKUP($C19,'RECAP SECT'!$G$6:$DC$253,64,FALSE) -> 1,262 | O19: =VLOOKUP($C19,'RECAP SECT'!$G$6:$DC$253,65,FALSE) -> 15.80 | P19: =VLOOKUP($C19,'RECAP SECT'!$G$6:$DC$253,66,FALSE) -> 12% | Q19: =VLOOKUP($C19,'RECAP SECT'!$G$6:$DC$253,67,FALSE) -> 3 | R19: =VLOOKUP($C19,'RECAP SECT'!$G$6:$DC$253,68,FALSE) -> 13% | S19: =VLOOKUP($C19,'RECAP SECT'!$G$6:$DC$253,69,FALSE) -> 7% | T19: =VLOOKUP($C19,'RECAP SECT'!$G$6:$DC$253,70,FALSE) -> 3
A20: 110 | B20: MEURTHE ET MOSELLE MEUSE | C20: 26 | D20: NANCY | E20: =VLOOKUP($C20,'RECAP SECT'!$G$6:$DC$253,3,FALSE) -> 66.4 | F20: =VLOOKUP($C20,'RECAP SECT'!$G$6:$DC$253,56,FALSE) -> 12,108 | G20: =VLOOKUP($C20,'RECAP SECT'!$G$6:$DC$253,57,FALSE) -> 182.44 | H20: =VLOOKUP($C20,'RECAP SECT'!$G$6:$DC$253,58,FALSE) -> 0% | I20: =VLOOKUP($C20,'RECAP SECT'!$G$6:$DC$253,59,FALSE) -> 1 | J20: =VLOOKUP($C20,'RECAP SECT'!$G$6:$DC$253,60,FALSE) -> 3,054 | K20: =VLOOKUP($C20,'RECAP SECT'!$G$6:$DC$253,61,FALSE) -> 46.01 | L20: =VLOOKUP($C20,'RECAP SECT'!$G$6:$DC$253,62,FALSE) -> 21% | M20: =VLOOKUP($C20,'RECAP SECT'!$G$6:$DC$253,63,FALSE) -> 7 | N20: =VLOOKUP($C20,'RECAP SECT'!$G$6:$DC$253,64,FALSE) -> 1,188 | O20: =VLOOKUP($C20,'RECAP SECT'!$G$6:$DC$253,65,FALSE) -> 17.90 | P20: =VLOOKUP($C20,'RECAP SECT'!$G$6:$DC$253,66,FALSE) -> 0% | Q20: =VLOOKUP($C20,'RECAP SECT'!$G$6:$DC$253,67,FALSE) -> 1 | R20: =VLOOKUP($C20,'RECAP SECT'!$G$6:$DC$253,68,FALSE) -> 6% | S20: =VLOOKUP($C20,'RECAP SECT'!$G$6:$DC$253,69,FALSE) -> 0% | T20: =VLOOKUP($C20,'RECAP SECT'!$G$6:$DC$253,70,FALSE) -> 1
A21: 110 | B21: MEURTHE ET MOSELLE MEUSE | C21: 27 | D21: PONT A MOUSSON | E21: =VLOOKUP($C21,'RECAP SECT'!$G$6:$DC$253,3,FALSE) -> 76.3 | F21: =VLOOKUP($C21,'RECAP SECT'!$G$6:$DC$253,56,FALSE) -> 13,417 | G21: =VLOOKUP($C21,'RECAP SECT'!$G$6:$DC$253,57,FALSE) -> 175.76 | H21: =VLOOKUP($C21,'RECAP SECT'!$G$6:$DC$253,58,FALSE) -> 4% | I21: =VLOOKUP($C21,'RECAP SECT'!$G$6:$DC$253,59,FALSE) -> 2 | J21: =VLOOKUP($C21,'RECAP SECT'!$G$6:$DC$253,60,FALSE) -> 3,497 | K21: =VLOOKUP($C21,'RECAP SECT'!$G$6:$DC$253,61,FALSE) -> 45.81 | L21: =VLOOKUP($C21,'RECAP SECT'!$G$6:$DC$253,62,FALSE) -> 22% | M21: =VLOOKUP($C21,'RECAP SECT'!$G$6:$DC$253,63,FALSE) -> 9 | N21: =VLOOKUP($C21,'RECAP SECT'!$G$6:$DC$253,64,FALSE) -> 1,213 | O21: =VLOOKUP($C21,'RECAP SECT'!$G$6:$DC$253,65,FALSE) -> 15.89 | P21: =VLOOKUP($C21,'RECAP SECT'!$G$6:$DC$253,66,FALSE) -> 11% | Q21: =VLOOKUP($C21,'RECAP SECT'!$G$6:$DC$253,67,FALSE) -> 2 | R21: =VLOOKUP($C21,'RECAP SECT'!$G$6:$DC$253,68,FALSE) -> 11% | S21: =VLOOKUP($C21,'RECAP SECT'!$G$6:$DC$253,69,FALSE) -> 5% | T21: =VLOOKUP($C21,'RECAP SECT'!$G$6:$DC$253,70,FALSE) -> 2
A22: 110 | B22: MEURTHE ET MOSELLE MEUSE | C22: 31 | D22: VERDUN | E22: =VLOOKUP($C22,'RECAP SECT'!$G$6:$DC$253,3,FALSE) -> 54.9 | F22: =VLOOKUP($C22,'RECAP SECT'!$G$6:$DC$253,56,FALSE) -> 6,368 | G22: =VLOOKUP($C22,'RECAP SECT'!$G$6:$DC$253,57,FALSE) -> 116.06 | H22: =VLOOKUP($C22,'RECAP SECT'!$G$6:$DC$253,58,FALSE) -> 36% | I22: =VLOOKUP($C22,'RECAP SECT'!$G$6:$DC$253,59,FALSE) -> 7 | J22: =VLOOKUP($C22,'RECAP SECT'!$G$6:$DC$253,60,FALSE) -> 2,908 | K22: =VLOOKUP($C22,'RECAP SECT'!$G$6:$DC$253,61,FALSE) -> 53.00 | L22: =VLOOKUP($C22,'RECAP SECT'!$G$6:$DC$253,62,FALSE) -> 9% | M22: =VLOOKUP($C22,'RECAP SECT'!$G$6:$DC$253,63,FALSE) -> 2 | N22: =VLOOKUP($C22,'RECAP SECT'!$G$6:$DC$253,64,FALSE) -> 757 | O22: =VLOOKUP($C22,'RECAP SECT'!$G$6:$DC$253,65,FALSE) -> 13.80 | P22: =VLOOKUP($C22,'RECAP SECT'!$G$6:$DC$253,66,FALSE) -> 23% | Q22: =VLOOKUP($C22,'RECAP SECT'!$G$6:$DC$253,67,FALSE) -> 6 | R22: =VLOOKUP($C22,'RECAP SECT'!$G$6:$DC$253,68,FALSE) -> 24% | S22: =VLOOKUP($C22,'RECAP SECT'!$G$6:$DC$253,69,FALSE) -> 18% | T22: =VLOOKUP($C22,'RECAP SECT'!$G$6:$DC$253,70,FALSE) -> 5
A23: 160 | B23: MOSELLE | C23: 45 | D23: METZ | E23: =VLOOKUP($C23,'RECAP SECT'!$G$6:$DC$253,3,FALSE) -> 89.0 | F23: =VLOOKUP($C23,'RECAP SECT'!$G$6:$DC$253,56,FALSE) -> 8,506 | G23: =VLOOKUP($C23,'RECAP SECT'!$G$6:$DC$253,57,FALSE) -> 95.53 | H23: =VLOOKUP($C23,'RECAP SECT'!$G$6:$DC$253,58,FALSE) -> 48% | I23: =VLOOKUP($C23,'RECAP SECT'!$G$6:$DC$253,59,FALSE) -> 9 | J23: =VLOOKUP($C23,'RECAP SECT'!$G$6:$DC$253,60,FALSE) -> 3,788 | K23: =VLOOKUP($C23,'RECAP SECT'!$G$6:$DC$253,61,FALSE) -> 42.54 | L23: =VLOOKUP($C23,'RECAP SECT'!$G$6:$DC$253,62,FALSE) -> 27% | M23: =VLOOKUP($C23,'RECAP SECT'!$G$6:$DC$253,63,FALSE) -> 14 | N23: =VLOOKUP($C23,'RECAP SECT'!$G$6:$DC$253,64,FALSE) -> 980 | O23: =VLOOKUP($C23,'RECAP SECT'!$G$6:$DC$253,65,FALSE) -> 11.01 | P23: =VLOOKUP($C23,'RECAP SECT'!$G$6:$DC$253,66,FALSE) -> 39% | Q23: =VLOOKUP($C23,'RECAP SECT'!$G$6:$DC$253,67,FALSE) -> 13 | R23: =VLOOKUP($C23,'RECAP SECT'!$G$6:$DC$253,68,FALSE) -> 39% | S23: =VLOOKUP($C23,'RECAP SECT'!$G$6:$DC$253,69,FALSE) -> 32% | T23: =VLOOKUP($C23,'RECAP SECT'!$G$6:$DC$253,70,FALSE) -> 13
A24: 160 | B24: MOSELLE | C24: 42 | D24: MOSELLE EST | E24: =VLOOKUP($C24,'RECAP SECT'!$G$6:$DC$253,3,FALSE) -> 70.4 | F24: =VLOOKUP($C24,'RECAP SECT'!$G$6:$DC$253,56,FALSE) -> 5,947 | G24: =VLOOKUP($C24,'RECAP SECT'!$G$6:$DC$253,57,FALSE) -> 84.49 | H24: =VLOOKUP($C24,'RECAP SECT'!$G$6:$DC$253,58,FALSE) -> 54% | I24: =VLOOKUP($C24,'RECAP SECT'!$G$6:$DC$253,59,FALSE) -> 11 | J24: =VLOOKUP($C24,'RECAP SECT'!$G$6:$DC$253,60,FALSE) -> 3,564 | K24: =VLOOKUP($C24,'RECAP SECT'!$G$6:$DC$253,61,FALSE) -> 50.64 | L24: =VLOOKUP($C24,'RECAP SECT'!$G$6:$DC$253,62,FALSE) -> 13% | M24: =VLOOKUP($C24,'RECAP SECT'!$G$6:$DC$253,63,FALSE) -> 3 | N24: =VLOOKUP($C24,'RECAP SECT'!$G$6:$DC$253,64,FALSE) -> 773 | O24: =VLOOKUP($C24,'RECAP SECT'!$G$6:$DC$253,65,FALSE) -> 10.98 | P24: =VLOOKUP($C24,'RECAP SECT'!$G$6:$DC$253,66,FALSE) -> 39% | Q24: =VLOOKUP($C24,'RECAP SECT'!$G$6:$DC$253,67,FALSE) -> 14 | R24: =VLOOKUP($C24,'RECAP SECT'!$G$6:$DC$253,68,FALSE) -> 37% | S24: =VLOOKUP($C24,'RECAP SECT'!$G$6:$DC$253,69,FALSE) -> 31% | T24: =VLOOKUP($C24,'RECAP SECT'!$G$6:$DC$253,70,FALSE) -> 9
A25: 160 | B25: MOSELLE | C25: 44 | D25: MOSELLE NORD | E25: =VLOOKUP($C25,'RECAP SECT'!$G$6:$DC$253,3,FALSE) -> 65.5 | F25: =VLOOKUP($C25,'RECAP SECT'!$G$6:$DC$253,56,FALSE) -> 8,077 | G25: =VLOOKUP($C25,'RECAP SECT'!$G$6:$DC$253,57,FALSE) -> 123.32 | H25: =VLOOKUP($C25,'RECAP SECT'!$G$6:$DC$253,58,FALSE) -> 32% | I25: =VLOOKUP($C25,'RECAP SECT'!$G$6:$DC$253,59,FALSE) -> 5 | J25: =VLOOKUP($C25,'RECAP SECT'!$G$6:$DC$253,60,FALSE) -> 3,109 | K25: =VLOOKUP($C25,'RECAP SECT'!$G$6:$DC$253,61,FALSE) -> 47.46 | L25: =VLOOKUP($C25,'RECAP SECT'!$G$6:$DC$253,62,FALSE) -> 19% | M25: =VLOOKUP($C25,'RECAP SECT'!$G$6:$DC$253,63,FALSE) -> 4 | N25: =VLOOKUP($C25,'RECAP SECT'!$G$6:$DC$253,64,FALSE) -> 808 | O25: =VLOOKUP($C25,'RECAP SECT'!$G$6:$DC$253,65,FALSE) -> 12.34 | P25: =VLOOKUP($C25,'RECAP SECT'!$G$6:$DC$253,66,FALSE) -> 31% | Q25: =VLOOKUP($C25,'RECAP SECT'!$G$6:$DC$253,67,FALSE) -> 9 | R25: =VLOOKUP($C25,'RECAP SECT'!$G$6:$DC$253,68,FALSE) -> 28% | S25: =VLOOKUP($C25,'RECAP SECT'!$G$6:$DC$253,69,FALSE) -> 22% | T25: =VLOOKUP($C25,'RECAP SECT'!$G$6:$DC$253,70,FALSE) -> 6
A26: 80 | B26: VOSGES | C26: 57 | D26: EPINAL | E26: =VLOOKUP($C26,'RECAP SECT'!$G$6:$DC$253,3,FALSE) -> 61.2 | F26: =VLOOKUP($C26,'RECAP SECT'!$G$6:$DC$253,56,FALSE) -> 5,600 | G26: =VLOOKUP($C26,'RECAP SECT'!$G$6:$DC$253,57,FALSE) -> 91.47 | H26: =VLOOKUP($C26,'RECAP SECT'!$G$6:$DC$253,58,FALSE) -> 50% | I26: =VLOOKUP($C26,'RECAP SECT'!$G$6:$DC$253,59,FALSE) -> 10 | J26: =VLOOKUP($C26,'RECAP SECT'!$G$6:$DC$253,60,FALSE) -> 2,441 | K26: =VLOOKUP($C26,'RECAP SECT'!$G$6:$DC$253,61,FALSE) -> 39.87 | L26: =VLOOKUP($C26,'RECAP SECT'!$G$6:$DC$253,62,FALSE) -> 32% | M26: =VLOOKUP($C26,'RECAP SECT'!$G$6:$DC$253,63,FALSE) -> 17 | N26: =VLOOKUP($C26,'RECAP SECT'!$G$6:$DC$253,64,FALSE) -> 810 | O26: =VLOOKUP($C26,'RECAP SECT'!$G$6:$DC$253,65,FALSE) -> 13.23 | P26: =VLOOKUP($C26,'RECAP SECT'!$G$6:$DC$253,66,FALSE) -> 26% | Q26: =VLOOKUP($C26,'RECAP SECT'!$G$6:$DC$253,67,FALSE) -> 8 | R26: =VLOOKUP($C26,'RECAP SECT'!$G$6:$DC$253,68,FALSE) -> 37% | S26: =VLOOKUP($C26,'RECAP SECT'!$G$6:$DC$253,69,FALSE) -> 31% | T26: =VLOOKUP($C26,'RECAP SECT'!$G$6:$DC$253,70,FALSE) -> 10
A27: 80 | B27: VOSGES | C27: 55 | D27: SAINT DIE | E27: =VLOOKUP($C27,'RECAP SECT'!$G$6:$DC$253,3,FALSE) -> 47.1 | F27: =VLOOKUP($C27,'RECAP SECT'!$G$6:$DC$253,56,FALSE) -> 3,970 | G27: =VLOOKUP($C27,'RECAP SECT'!$G$6:$DC$253,57,FALSE) -> 84.37 | H27: =VLOOKUP($C27,'RECAP SECT'!$G$6:$DC$253,58,FALSE) -> 54% | I27: =VLOOKUP($C27,'RECAP SECT'!$G$6:$DC$253,59,FALSE) -> 12 | J27: =VLOOKUP($C27,'RECAP SECT'!$G$6:$DC$253,60,FALSE) -> 2,212 | K27: =VLOOKUP($C27,'RECAP SECT'!$G$6:$DC$253,61,FALSE) -> 47.01 | L27: =VLOOKUP($C27,'RECAP SECT'!$G$6:$DC$253,62,FALSE) -> 19% | M27: =VLOOKUP($C27,'RECAP SECT'!$G$6:$DC$253,63,FALSE) -> 5 | N27: =VLOOKUP($C27,'RECAP SECT'!$G$6:$DC$253,64,FALSE) -> 561 | O27: =VLOOKUP($C27,'RECAP SECT'!$G$6:$DC$253,65,FALSE) -> 11.92 | P27: =VLOOKUP($C27,'RECAP SECT'!$G$6:$DC$253,66,FALSE) -> 33% | Q27: =VLOOKUP($C27,'RECAP SECT'!$G$6:$DC$253,67,FALSE) -> 10 | R27: =VLOOKUP($C27,'RECAP SECT'!$G$6:$DC$253,68,FALSE) -> 37% | S27: =VLOOKUP($C27,'RECAP SECT'!$G$6:$DC$253,69,FALSE) -> 31% | T27: =VLOOKUP($C27,'RECAP SECT'!$G$6:$DC$253,70,FALSE) -> 11
A28: Total CEGEE Directions Régionales | E28: =SUM(E10:E27) -> 1140

Sheet SE_IARD
B1: Accueil | F1: BAROMETRE BDD - TERRITOIRES
F2: IARD ET PREVOYANCE
F3: =ACCUEIL!F7 -> 2021-07-25
F7: Ventes Nettes produits pondérés | J7: Ventes sur client non détenteur de l’univers | N7: Total IARD Prévoyance
F8: =DATEMAJ!C23 -> au 25/07 | H8: coef | I8: ='RECAP DIRCOM'!CF4 -> 14% | J8: =DATEMAJ!C24 -> au 25/07 | L8: coef | M8: ='RECAP DIRCOM'!CJ4 -> 6% | O8: coef | P8: ='RECAP DIRCOM'!CM4 -> 20%
B9: Direction | C9: eds | D9: Territoire | E9: ="ETP perf "&DATEMAJ!$C$28 -> ETP perf 31-mai | F9: VN | G9: VN / ETP | H9: % Ecart au 1er | I9: Rang | J9: VB | K9: VB / ETP | L9: % Ecart au 1er | M9: Rang | N9: Moyenne ecart au 1er | O9: % Ecart au 1er | P9: Rang CEGEE
A10: 50 | B10: AUBE HAUTE MARNE | C10: 21 | D10: CHAUMONT | E10: =VLOOKUP($C10,'RECAP SECT'!$G$6:$DC$253,3,FALSE) -> 33.8 | F10: =VLOOKUP($C10,'RECAP SECT'!$G$6:$DC$253,75,FALSE) -> 5,571 | G10: =VLOOKUP($C10,'RECAP SECT'!$G$6:$DC$253,76,FALSE) -> 164.86 | H10: =VLOOKUP($C10,'RECAP SECT'!$G$6:$DC$253,77,FALSE) -> 20% | I10: =VLOOKUP($C10,'RECAP SECT'!$G$6:$DC$253,78,FALSE) -> 9 | J10: =VLOOKUP($C10,'RECAP SECT'!$G$6:$DC$253,79,FALSE) -> 1,018 | K10: =VLOOKUP($C10,'RECAP SECT'!$G$6:$DC$253,80,FALSE) -> 30.13 | L10: =VLOOKUP($C10,'RECAP SECT'!$G$6:$DC$253,81,FALSE) -> 15% | M10: =VLOOKUP($C10,'RECAP SECT'!$G$6:$DC$253,82,FALSE) -> 4 | N10: =VLOOKUP($C10,'RECAP SECT'!$G$6:$DC$253,83,FALSE) -> 19% | O10: =VLOOKUP($C10,'RECAP SECT'!$G$6:$DC$253,84,FALSE) -> 16% | P10: =VLOOKUP($C10,'RECAP SECT'!$G$6:$DC$253,85,FALSE) -> 8
A11: 50 | B11: AUBE HAUTE MARNE | C11: 14 | D11: TROYES | E11: =VLOOKUP($C11,'RECAP SECT'!$G$6:$DC$253,3,FALSE) -> 66.8 | F11: =VLOOKUP($C11,'RECAP SECT'!$G$6:$DC$253,75,FALSE) -> 7,224 | G11: =VLOOKUP($C11,'RECAP SECT'!$G$6:$DC$253,76,FALSE) -> 108.15 | H11: =VLOOKUP($C11,'RECAP SECT'!$G$6:$DC$253,77,FALSE) -> 48% | I11: =VLOOKUP($C11,'RECAP SECT'!$G$6:$DC$253,78,FALSE) -> 17 | J11: =VLOOKUP($C11,'RECAP SECT'!$G$6:$DC$253,79,FALSE) -> 1,684 | K11: =VLOOKUP($C11,'RECAP SECT'!$G$6:$DC$253,80,FALSE) -> 25.21 | L11: =VLOOKUP($C11,'RECAP SECT'!$G$6:$DC$253,81,FALSE) -> 29% | M11: =VLOOKUP($C11,'RECAP SECT'!$G$6:$DC$253,82,FALSE) -> 15 | N11: =VLOOKUP($C11,'RECAP SECT'!$G$6:$DC$253,83,FALSE) -> 42% | O11: =VLOOKUP($C11,'RECAP SECT'!$G$6:$DC$253,84,FALSE) -> 39% | P11: =VLOOKUP($C11,'RECAP SECT'!$G$6:$DC$253,85,FALSE) -> 17
A12: 262 | B12: BAS-RHIN | C12: 5060 | D12: HAGUENAU | E12: =VLOOKUP($C12,'RECAP SECT'!$G$6:$DC$253,3,FALSE) -> 69.7 | F12: =VLOOKUP($C12,'RECAP SECT'!$G$6:$DC$253,75,FALSE) -> 8,938 | G12: =VLOOKUP($C12,'RECAP SECT'!$G$6:$DC$253,76,FALSE) -> 128.24 | H12: =VLOOKUP($C12,'RECAP SECT'!$G$6:$DC$253,77,FALSE) -> 38% | I12: =VLOOKUP($C12,'RECAP SECT'!$G$6:$DC$253,78,FALSE) -> 16 | J12: =VLOOKUP($C12,'RECAP SECT'!$G$6:$DC$253,79,FALSE) -> 1,594 | K12: =VLOOKUP($C12,'RECAP SECT'!$G$6:$DC$253,80,FALSE) -> 22.87 | L12: =VLOOKUP($C12,'RECAP SECT'!$G$6:$DC$253,81,FALSE) -> 36% | M12: =VLOOKUP($C12,'RECAP SECT'!$G$6:$DC$253,82,FALSE) -> 18 | N12: =VLOOKUP($C12,'RECAP SECT'!$G$6:$DC$253,83,FALSE) -> 37% | O12: =VLOOKUP($C12,'RECAP SECT'!$G$6:$DC$253,84,FALSE) -> 34% | P12: =VLOOKUP($C12,'RECAP SECT'!$G$6:$DC$253,85,FALSE) -> 16
A13: 262 | B13: BAS-RHIN | C13: 5101 | D13: SELESTAT | E13: =VLOOKUP($C13,'RECAP SECT'!$G$6:$DC$253,3,FALSE) -> 59.7 | F13: =VLOOKUP($C13,'RECAP SECT'!$G$6:$DC$253,75,FALSE) -> 9,800 | G13: =VLOOKUP($C13,'RECAP SECT'!$G$6:$DC$253,76,FALSE) -> 164.03 | H13: =VLOOKUP($C13,'RECAP SECT'!$G$6:$DC$253,77,FALSE) -> 21% | I13: =VLOOKUP($C13,'RECAP SECT'!$G$6:$DC$253,78,FALSE) -> 10 | J13: =VLOOKUP($C13,'RECAP SECT'!$G$6:$DC$253,79,FALSE) -> 1,574 | K13: =VLOOKUP($C13,'RECAP SECT'!$G$6:$DC$253,80,FALSE) -> 26.35 | L13: =VLOOKUP($C13,'RECAP SECT'!$G$6:$DC$253,81,FALSE) -> 26% | M13: =VLOOKUP($C13,'RECAP SECT'!$G$6:$DC$253,82,FALSE) -> 12 | N13: =VLOOKUP($C13,'RECAP SECT'!$G$6:$DC$253,83,FALSE) -> 22% | O13: =VLOOKUP($C13,'RECAP SECT'!$G$6:$DC$253,84,FALSE) -> 19% | P13: =VLOOKUP($C13,'RECAP SECT'!$G$6:$DC$253,85,FALSE) -> 11
A14: 262 | B14: BAS-RHIN | C14: 5006 | D14: STRASBOURG | E14: =VLOOKUP($C14,'RECAP SECT'!$G$6:$DC$253,3,FALSE) -> 75.6 | F14: =VLOOKUP($C14,'RECAP SECT'!$G$6:$DC$253,75,FALSE) -> 15,671 | G14: =VLOOKUP($C14,'RECAP SECT'!$G$6:$DC$253,76,FALSE) -> 207.20 | H14: =VLOOKUP($C14,'RECAP SECT'!$G$6:$DC$253,77,FALSE) -> 0% | I14: =VLOOKUP($C14,'RECAP SECT'!$G$6:$DC$253,78,FALSE) -> 1 | J14: =VLOOKUP($C14,'RECAP SECT'!$G$6:$DC$253,79,FALSE) -> 2,264 | K14: =VLOOKUP($C14,'RECAP SECT'!$G$6:$DC$253,80,FALSE) -> 29.93 | L14: =VLOOKUP($C14,'RECAP SECT'!$G$6:$DC$253,81,FALSE) -> 16% | M14: =VLOOKUP($C14,'RECAP SECT'!$G$6:$DC$253,82,FALSE) -> 5 | N14: =VLOOKUP($C14,'RECAP SECT'!$G$6:$DC$253,83,FALSE) -> 5% | O14: =VLOOKUP($C14,'RECAP SECT'!$G$6:$DC$253,84,FALSE) -> 2% | P14: =VLOOKUP($C14,'RECAP SECT'!$G$6:$DC$253,85,FALSE) -> 2
A15: 264 | B15: HAUT-RHIN | C15: 5130 | D15: COLMAR | E15: =VLOOKUP($C15,'RECAP SECT'!$G$6:$DC$253,3,FALSE) -> 61.6 | F15: =VLOOKUP($C15,'RECAP SECT'!$G$6:$DC$253,75,FALSE) -> 9,954 | G15: =VLOOKUP($C15,'RECAP SECT'!$G$6:$DC$253,76,FALSE) -> 161.47 | H15: =VLOOKUP($C15,'RECAP SECT'!$G$6:$DC$253,77,FALSE) -> 22% | I15: =VLOOKUP($C15,'RECAP SECT'!$G$6:$DC$253,78,FALSE) -> 12 | J15: =VLOOKUP($C15,'RECAP SECT'!$G$6:$DC$253,79,FALSE) -> 1,492 | K15: =VLOOKUP($C15,'RECAP SECT'!$G$6:$DC$253,80,FALSE) -> 24.20 | L15: =VLOOKUP($C15,'RECAP SECT'!$G$6:$DC$253,81,FALSE) -> 32% | M15: =VLOOKUP($C15,'RECAP SECT'!$G$6:$DC$253,82,FALSE) -> 16 | N15: =VLOOKUP($C15,'RECAP SECT'!$G$6:$DC$253,83,FALSE) -> 25% | O15: =VLOOKUP($C15,'RECAP SECT'!$G$6:$DC$253,84,FALSE) -> 22% | P15: =VLOOKUP($C15,'RECAP SECT'!$G$6:$DC$253,85,FALSE) -> 12
A16: 264 | B16: HAUT-RHIN | C16: 5169 | D16: MULHOUSE | E16: =VLOOKUP($C16,'RECAP SECT'!$G$6:$DC$253,3,FALSE) -> 61.0 | F16: =VLOOKUP($C16,'RECAP SECT'!$G$6:$DC$253,75,FALSE) -> 5,660 | G16: =VLOOKUP($C16,'RECAP SECT'!$G$6:$DC$253,76,FALSE) -> 92.79 | H16: =VLOOKUP($C16,'RECAP SECT'!$G$6:$DC$253,77,FALSE) -> 55% | I16: =VLOOKUP($C16,'RECAP SECT'!$G$6:$DC$253,78,FALSE) -> 18 | J16: =VLOOKUP($C16,'RECAP SECT'!$G$6:$DC$253,79,FALSE) -> 1,596 | K16: =VLOOKUP($C16,'RECAP SECT'!$G$6:$DC$253,80,FALSE) -> 26.16 | L16: =VLOOKUP($C16,'RECAP SECT'!$G$6:$DC$253,81,FALSE) -> 26% | M16: =VLOOKUP($C16,'RECAP SECT'!$G$6:$DC$253,82,FALSE) -> 13 | N16: =VLOOKUP($C16,'RECAP SECT'!$G$6:$DC$253,83,FALSE) -> 47% | O16: =VLOOKUP($C16,'RECAP SECT'!$G$6:$DC$253,84,FALSE) -> 44% | P16: =VLOOKUP($C16,'RECAP SECT'!$G$6:$DC$253,85,FALSE) -> 18
A17: 30 | B17: MARNE-ARDENNES | C17: 6 | D17: CHALONS EN CHAMPAGNE | E17: =VLOOKUP($C17,'RECAP SECT'!$G$6:$DC$253,3,FALSE) -> 44.6 | F17: =VLOOKUP($C17,'RECAP SECT'!$G$6:$DC$253,75,FALSE) -> 7,876 | G17: =VLOOKUP($C17,'RECAP SECT'!$G$6:$DC$253,76,FALSE) -> 176.57 | H17: =VLOOKUP($C17,'RECAP SECT'!$G$6:$DC$253,77,FALSE) -> 15% | I17: =VLOOKUP($C17,'RECAP SECT'!$G$6:$DC$253,78,FALSE) -> 6 | J17: =VLOOKUP($C17,'RECAP SECT'!$G$6:$DC$253,79,FALSE) -> 1,323 | K17: =VLOOKUP($C17,'RECAP SECT'!$G$6:$DC$253,80,FALSE) -> 29.66 | L17: =VLOOKUP($C17,'RECAP SECT'!$G$6:$DC$253,81,FALSE) -> 17% | M17: =VLOOKUP($C17,'RECAP SECT'!$G$6:$DC$253,82,FALSE) -> 6 | N17: =VLOOKUP($C17,'RECAP SECT'!$G$6:$DC$253,83,FALSE) -> 15% | O17: =VLOOKUP($C17,'RECAP SECT'!$G$6:$DC$253,84,FALSE) -> 12% | P17: =VLOOKUP($C17,'RECAP SECT'!$G$6:$DC$253,85,FALSE) -> 5
A18: 30 | B18: MARNE-ARDENNES | C18: 2 | D18: CHARLEVILLE MEZIERES | E18: =VLOOKUP($C18,'RECAP SECT'!$G$6:$DC$253,3,FALSE) -> 56.3 | F18: =VLOOKUP($C18,'RECAP SECT'!$G$6:$DC$253,75,FALSE) -> 11,581 | G18: =VLOOKUP($C18,'RECAP SECT'!$G$6:$DC$253,76,FALSE) -> 205.88 | H18: =VLOOKUP($C18,'RECAP SECT'!$G$6:$DC$253,77,FALSE) -> 1% | I18: =VLOOKUP($C18,'RECAP SECT'!$G$6:$DC$253,78,FALSE) -> 2 | J18: =VLOOKUP($C18,'RECAP SECT'!$G$6:$DC$253,79,FALSE) -> 1,599 | K18: =VLOOKUP($C18,'RECAP SECT'!$G$6:$DC$253,80,FALSE) -> 28.43 | L18: =VLOOKUP($C18,'RECAP SECT'!$G$6:$DC$253,81,FALSE) -> 20% | M18: =VLOOKUP($C18,'RECAP SECT'!$G$6:$DC$253,82,FALSE) -> 9 | N18: =VLOOKUP($C18,'RECAP SECT'!$G$6:$DC$253,83,FALSE) -> 6% | O18: =VLOOKUP($C18,'RECAP SECT'!$G$6:$DC$253,84,FALSE) -> 3% | P18: =VLOOKUP($C18,'RECAP SECT'!$G$6:$DC$253,85,FALSE) -> 4
A19: 30 | B19: MARNE-ARDENNES | C19: 11 | D19: REIMS | E19: =VLOOKUP($C19,'RECAP SECT'!$G$6:$DC$253,3,FALSE) -> 79.9 | F19: =VLOOKUP($C19,'RECAP SECT'!$G$6:$DC$253,75,FALSE) -> 15,685 | G19: =VLOOKUP($C19,'RECAP SECT'!$G$6:$DC$253,76,FALSE) -> 196.35 | H19: =VLOOKUP($C19,'RECAP SECT'!$G$6:$DC$253,77,FALSE) -> 5% | I19: =VLOOKUP($C19,'RECAP SECT'!$G$6:$DC$253,78,FALSE) -> 4 | J19: =VLOOKUP($C19,'RECAP SECT'!$G$6:$DC$253,79,FALSE) -> 2,647 | K19: =VLOOKUP($C19,'RECAP SECT'!$G$6:$DC$253,80,FALSE) -> 33.14 | L19: =VLOOKUP($C19,'RECAP SECT'!$G$6:$DC$253,81,FALSE) -> 7% | M19: =VLOOKUP($C19,'RECAP SECT'!$G$6:$DC$253,82,FALSE) -> 2 | N19: =VLOOKUP($C19,'RECAP SECT'!$G$6:$DC$253,83,FALSE) -> 6% | O19: =VLOOKUP($C19,'RECAP SECT'!$G$6:$DC$253,84,FALSE) -> 3% | P19: =VLOOKUP($C19,'RECAP SECT'!$G$6:$DC$253,85,FALSE) -> 3
A20: 110 | B20: MEURTHE ET MOSELLE MEUSE | C20: 26 | D20: NANCY | E20: =VLOOKUP($C20,'RECAP SECT'!$G$6:$DC$253,3,FALSE) -> 66.4 | F20: =VLOOKUP($C20,'RECAP SECT'!$G$6:$DC$253,75,FALSE) -> 13,156 | G20: =VLOOKUP($C20,'RECAP SECT'!$G$6:$DC$253,76,FALSE) -> 198.24 | H20: =VLOOKUP($C20,'RECAP SECT'!$G$6:$DC$253,77,FALSE) -> 4% | I20: =VLOOKUP($C20,'RECAP SECT'!$G$6:$DC$253,78,FALSE) -> 3 | J20: =VLOOKUP($C20,'RECAP SECT'!$G$6:$DC$253,79,FALSE) -> 2,360 | K20: =VLOOKUP($C20,'RECAP SECT'!$G$6:$DC$253,80,FALSE) -> 35.56 | L20: =VLOOKUP($C20,'RECAP SECT'!$G$6:$DC$253,81,FALSE) -> 0% | M20: =VLOOKUP($C20,'RECAP SECT'!$G$6:$DC$253,82,FALSE) -> 1 | N20: =VLOOKUP($C20,'RECAP SECT'!$G$6:$DC$253,83,FALSE) -> 3% | O20: =VLOOKUP($C20,'RECAP SECT'!$G$6:$DC$253,84,FALSE) -> 0% | P20: =VLOOKUP($C20,'RECAP SECT'!$G$6:$DC$253,85,FALSE) -> 1
A21: 110 | B21: MEURTHE ET MOSELLE MEUSE | C21: 27 | D21: PONT A MOUSSON | E21: =VLOOKUP($C21,'RECAP SECT'!$G$6:$DC$253,3,FALSE) -> 76.3 | F21: =VLOOKUP($C21,'RECAP SECT'!$G$6:$DC$253,75,FALSE) -> 12,440 | G21: =VLOOKUP($C21,'RECAP SECT'!$G$6:$DC$253,76,FALSE) -> 162.97 | H21: =VLOOKUP($C21,'RECAP SECT'!$G$6:$DC$253,77,FALSE) -> 21% | I21: =VLOOKUP($C21,'RECAP SECT'!$G$6:$DC$253,78,FALSE) -> 11 | J21: =VLOOKUP($C21,'RECAP SECT'!$G$6:$DC$253,79,FALSE) -> 2,465 | K21: =VLOOKUP($C21,'RECAP SECT'!$G$6:$DC$253,80,FALSE) -> 32.29 | L21: =VLOOKUP($C21,'RECAP SECT'!$G$6:$DC$253,81,FALSE) -> 9% | M21: =VLOOKUP($C21,'RECAP SECT'!$G$6:$DC$253,82,FALSE) -> 3 | N21: =VLOOKUP($C21,'RECAP SECT'!$G$6:$DC$253,83,FALSE) -> 18% | O21: =VLOOKUP($C21,'RECAP SECT'!$G$6:$DC$253,84,FALSE) -> 15% | P21: =VLOOKUP($C21,'RECAP SECT'!$G$6:$DC$253,85,FALSE) -> 7
A22: 110 | B22: MEURTHE ET MOSELLE MEUSE | C22: 31 | D22: VERDUN | E22: =VLOOKUP($C22,'RECAP SECT'!$G$6:$DC$253,3,FALSE) -> 54.9 | F22: =VLOOKUP($C22,'RECAP SECT'!$G$6:$DC$253,75,FALSE) -> 8,119 | G22: =VLOOKUP($C22,'RECAP SECT'!$G$6:$DC$253,76,FALSE) -> 147.97 | H22: =VLOOKUP($C22,'RECAP SECT'!$G$6:$DC$253,77,FALSE) -> 29% | I22: =VLOOKUP($C22,'RECAP SECT'!$G$6:$DC$253,78,FALSE) -> 13 | J22: =VLOOKUP($C22,'RECAP SECT'!$G$6:$DC$253,79,FALSE) -> 1,566 | K22: =VLOOKUP($C22,'RECAP SECT'!$G$6:$DC$253,80,FALSE) -> 28.54 | L22: =VLOOKUP($C22,'RECAP SECT'!$G$6:$DC$253,81,FALSE) -> 20% | M22: =VLOOKUP($C22,'RECAP SECT'!$G$6:$DC$253,82,FALSE) -> 8 | N22: =VLOOKUP($C22,'RECAP SECT'!$G$6:$DC$253,83,FALSE) -> 26% | O22: =VLOOKUP($C22,'RECAP SECT'!$G$6:$DC$253,84,FALSE) -> 23% | P22: =VLOOKUP($C22,'RECAP SECT'!$G$6:$DC$253,85,FALSE) -> 13
A23: 160 | B23: MOSELLE | C23: 45 | D23: METZ | E23: =VLOOKUP($C23,'RECAP SECT'!$G$6:$DC$253,3,FALSE) -> 89.0 | F23: =VLOOKUP($C23,'RECAP SECT'!$G$6:$DC$253,75,FALSE) -> 12,134 | G23: =VLOOKUP($C23,'RECAP SECT'!$G$6:$DC$253,76,FALSE) -> 136.28 | H23: =VLOOKUP($C23,'RECAP SECT'!$G$6:$DC$253,77,FALSE) -> 34% | I23: =VLOOKUP($C23,'RECAP SECT'!$G$6:$DC$253,78,FALSE) -> 15 | J23: =VLOOKUP($C23,'RECAP SECT'!$G$6:$DC$253,79,FALSE) -> 2,394 | K23: =VLOOKUP($C23,'RECAP SECT'!$G$6:$DC$253,80,FALSE) -> 26.89 | L23: =VLOOKUP($C23,'RECAP SECT'!$G$6:$DC$253,81,FALSE) -> 24% | M23: =VLOOKUP($C23,'RECAP SECT'!$G$6:$DC$253,82,FALSE) -> 11 | N23: =VLOOKUP($C23,'RECAP SECT'!$G$6:$DC$253,83,FALSE) -> 31% | O23: =VLOOKUP($C23,'RECAP SECT'!$G$6:$DC$253,84,FALSE) -> 28% | P23: =VLOOKUP($C23,'RECAP SECT'!$G$6:$DC$253,85,FALSE) -> 14
A24: 160 | B24: MOSELLE | C24: 42 | D24: MOSELLE EST | E24: =VLOOKUP($C24,'RECAP SECT'!$G$6:$DC$253,3,FALSE) -> 70.4 | F24: =VLOOKUP($C24,'RECAP SECT'!$G$6:$DC$253,75,FALSE) -> 11,782 | G24: =VLOOKUP($C24,'RECAP SECT'!$G$6:$DC$253,76,FALSE) -> 167.41 | H24: =VLOOKUP($C24,'RECAP SECT'!$G$6:$DC$253,77,FALSE) -> 19% | I24: =VLOOKUP($C24,'RECAP SECT'!$G$6:$DC$253,78,FALSE) -> 7 | J24: =VLOOKUP($C24,'RECAP SECT'!$G$6:$DC$253,79,FALSE) -> 1,905 | K24: =VLOOKUP($C24,'RECAP SECT'!$G$6:$DC$253,80,FALSE) -> 27.07 | L24: =VLOOKUP($C24,'RECAP SECT'!$G$6:$DC$253,81,FALSE) -> 24% | M24: =VLOOKUP($C24,'RECAP SECT'!$G$6:$DC$253,82,FALSE) -> 10 | N24: =VLOOKUP($C24,'RECAP SECT'!$G$6:$DC$253,83,FALSE) -> 21% | O24: =VLOOKUP($C24,'RECAP SECT'!$G$6:$DC$253,84,FALSE) -> 18% | P24: =VLOOKUP($C24,'RECAP SECT'!$G$6:$DC$253,85,FALSE) -> 10
A25: 160 | B25: MOSELLE | C25: 44 | D25: MOSELLE NORD | E25: =VLOOKUP($C25,'RECAP SECT'!$G$6:$DC$253,3,FALSE) -> 65.5 | F25: =VLOOKUP($C25,'RECAP SECT'!$G$6:$DC$253,75,FALSE) -> 10,926 | G25: =VLOOKUP($C25,'RECAP SECT'!$G$6:$DC$253,76,FALSE) -> 166.81 | H25: =VLOOKUP($C25,'RECAP SECT'!$G$6:$DC$253,77,FALSE) -> 19% | I25: =VLOOKUP($C25,'RECAP SECT'!$G$6:$DC$253,78,FALSE) -> 8 | J25: =VLOOKUP($C25,'RECAP SECT'!$G$6:$DC$253,79,FALSE) -> 1,910 | K25: =VLOOKUP($C25,'RECAP SECT'!$G$6:$DC$253,80,FALSE) -> 29.16 | L25: =VLOOKUP($C25,'RECAP SECT'!$G$6:$DC$253,81,FALSE) -> 18% | M25: =VLOOKUP($C25,'RECAP SECT'!$G$6:$DC$253,82,FALSE) -> 7 | N25: =VLOOKUP($C25,'RECAP SECT'!$G$6:$DC$253,83,FALSE) -> 19% | O25: =VLOOKUP($C25,'RECAP SECT'!$G$6:$DC$253,84,FALSE) -> 16% | P25: =VLOOKUP($C25,'RECAP SECT'!$G$6:$DC$253,85,FALSE) -> 9
A26: 80 | B26: VOSGES | C26: 57 | D26: EPINAL | E26: =VLOOKUP($C26,'RECAP SECT'!$G$6:$DC$253,3,FALSE) -> 61.2 | F26: =VLOOKUP($C26,'RECAP SECT'!$G$6:$DC$253,75,FALSE) -> 11,040 | G26: =VLOOKUP($C26,'RECAP SECT'!$G$6:$DC$253,76,FALSE) -> 180.31 | H26: =VLOOKUP($C26,'RECAP SECT'!$G$6:$DC$253,77,FALSE) -> 13% | I26: =VLOOKUP($C26,'RECAP SECT'!$G$6:$DC$253,78,FALSE) -> 5 | J26: =VLOOKUP($C26,'RECAP SECT'!$G$6:$DC$253,79,FALSE) -> 1,589 | K26: =VLOOKUP($C26,'RECAP SECT'!$G$6:$DC$253,80,FALSE) -> 25.95 | L26: =VLOOKUP($C26,'RECAP SECT'!$G$6:$DC$253,81,FALSE) -> 27% | M26: =VLOOKUP($C26,'RECAP SECT'!$G$6:$DC$253,82,FALSE) -> 14 | N26: =VLOOKUP($C26,'RECAP SECT'!$G$6:$DC$253,83,FALSE) -> 17% | O26: =VLOOKUP($C26,'RECAP SECT'!$G$6:$DC$253,84,FALSE) -> 14% | P26: =VLOOKUP($C26,'RECAP SECT'!$G$6:$DC$253,85,FALSE) -> 6
A27: 80 | B27: VOSGES | C27: 55 | D27: SAINT DIE | E27: =VLOOKUP($C27,'RECAP SECT'!$G$6:$DC$253,3,FALSE) -> 47.1 | F27: =VLOOKUP($C27,'RECAP SECT'!$G$6:$DC$253,75,FALSE) -> 6,442 | G27: =VLOOKUP($C27,'RECAP SECT'!$G$6:$DC$253,76,FALSE) -> 136.91 | H27: =VLOOKUP($C27,'RECAP SECT'!$G$6:$DC$253,77,FALSE) -> 34% | I27: =VLOOKUP($C27,'RECAP SECT'!$G$6:$DC$253,78,FALSE) -> 14 | J27: =VLOOKUP($C27,'RECAP SECT'!$G$6:$DC$253,79,FALSE) -> 1,084 | K27: =VLOOKUP($C27,'RECAP SECT'!$G$6:$DC$253,80,FALSE) -> 23.04 | L27: =VLOOKUP($C27,'RECAP SECT'!$G$6:$DC$253,81,FALSE) -> 35% | M27: =VLOOKUP($C27,'RECAP SECT'!$G$6:$DC$253,82,FALSE) -> 17 | N27: =VLOOKUP($C27,'RECAP SECT'!$G$6:$DC$253,83,FALSE) -> 34% | O27: =VLOOKUP($C27,'RECAP SECT'!$G$6:$DC$253,84,FALSE) -> 31% | P27: =VLOOKUP($C27,'RECAP SECT'!$G$6:$DC$253,85,FALSE) -> 15
A28: Total CEGEE Directions Régionales | E28: =SUM(E10:E27) -> 1140

Sheet SE_SATISFACTION
B1: Accueil | F1: BAROMETRE BDD - TERRITOIRES
F2: SATISFACTION
F3: =ACCUEIL!F7 -> 2021-07-25
F7: NPS à froid (SAE) | I7: NPS à chaud (QHD) | L7: Total Satisfaction Clients
F8: =DATEMAJ!E4 -> au 31/05 | G8: coef | H8: ='RECAP DIRCOM'!M4 -> 10% | I8: =DATEMAJ!C5 -> au 31/05 | J8: coef | K8: ='RECAP DIRCOM'!P4 -> 10% | M8: coef | N8: ='RECAP DIRCOM'!S4 -> 20%
B9: Direction | C9: eds | D9: Territoire | E9: ="ETP perf "&DATEMAJ!$C$28 -> ETP perf 31-mai | G9: % Ecart au 1er | H9: Rang | J9: % Ecart au 1er | K9: Rang | L9: Moyenne ecart au 1er | M9: % Ecart au 1er | N9: Rang CEGEE
A10: 50 | B10: AUBE HAUTE MARNE | C10: 21 | D10: CHAUMONT | E10: =VLOOKUP($C10,'RECAP SECT'!$G$6:$DC$253,3,FALSE) -> 33.8 | F10: =VLOOKUP($C10,'RECAP SECT'!$G$6:$DC$253,5,FALSE) -> 10 | G10: =VLOOKUP($C10,'RECAP SECT'!$G$6:$DC$253,6,FALSE) -> 58% | H10: =VLOOKUP($C10,'RECAP SECT'!$G$6:$DC$253,7,FALSE) -> 12 | I10: =VLOOKUP($C10,'RECAP SECT'!$G$6:$DC$253,8,FALSE) -> 63% | J10: =VLOOKUP($C10,'RECAP SECT'!$G$6:$DC$253,9,FALSE) -> 14% | K10: =VLOOKUP($C10,'RECAP SECT'!$G$6:$DC$253,10,FALSE) -> 5 | L10: =VLOOKUP($C10,'RECAP SECT'!$G$6:$DC$253,11,FALSE) -> 36% | M10: =VLOOKUP($C10,'RECAP SECT'!$G$6:$DC$253,12,FALSE) -> 32% | N10: =VLOOKUP($C10,'RECAP SECT'!$G$6:$DC$253,13,FALSE) -> 11
A11: 50 | B11: AUBE HAUTE MARNE | C11: 14 | D11: TROYES | E11: =VLOOKUP($C11,'RECAP SECT'!$G$6:$DC$253,3,FALSE) -> 66.8 | F11: =VLOOKUP($C11,'RECAP SECT'!$G$6:$DC$253,5,FALSE) -> 19 | G11: =VLOOKUP($C11,'RECAP SECT'!$G$6:$DC$253,6,FALSE) -> 21% | H11: =VLOOKUP($C11,'RECAP SECT'!$G$6:$DC$253,7,FALSE) -> 5 | I11: =VLOOKUP($C11,'RECAP SECT'!$G$6:$DC$253,8,FALSE) -> 53% | J11: =VLOOKUP($C11,'RECAP SECT'!$G$6:$DC$253,9,FALSE) -> 28% | K11: =VLOOKUP($C11,'RECAP SECT'!$G$6:$DC$253,10,FALSE) -> 13 | L11: =VLOOKUP($C11,'RECAP SECT'!$G$6:$DC$253,11,FALSE) -> 24% | M11: =VLOOKUP($C11,'RECAP SECT'!$G$6:$DC$253,12,FALSE) -> 20% | N11: =VLOOKUP($C11,'RECAP SECT'!$G$6:$DC$253,13,FALSE) -> 6
A12: 262 | B12: BAS-RHIN | C12: 5060 | D12: HAGUENAU | E12: =VLOOKUP($C12,'RECAP SECT'!$G$6:$DC$253,3,FALSE) -> 69.7 | F12: =VLOOKUP($C12,'RECAP SECT'!$G$6:$DC$253,5,FALSE) -> 12 | G12: =VLOOKUP($C12,'RECAP SECT'!$G$6:$DC$253,6,FALSE) -> 50% | H12: =VLOOKUP($C12,'RECAP SECT'!$G$6:$DC$253,7,FALSE) -> 9 | I12: =VLOOKUP($C12,'RECAP SECT'!$G$6:$DC$253,8,FALSE) -> 54% | J12: =VLOOKUP($C12,'RECAP SECT'!$G$6:$DC$253,9,FALSE) -> 25% | K12: =VLOOKUP($C12,'RECAP SECT'!$G$6:$DC$253,10,FALSE) -> 11 | L12: =VLOOKUP($C12,'RECAP SECT'!$G$6:$DC$253,11,FALSE) -> 38% | M12: =VLOOKUP($C12,'RECAP SECT'!$G$6:$DC$253,12,FALSE) -> 34% | N12: =VLOOKUP($C12,'RECAP SECT'!$G$6:$DC$253,13,FALSE) -> 13
A13: 262 | B13: BAS-RHIN | C13: 5101 | D13: SELESTAT | E13: =VLOOKUP($C13,'RECAP SECT'!$G$6:$DC$253,3,FALSE) -> 59.7 | F13: =VLOOKUP($C13,'RECAP SECT'!$G$6:$DC$253,5,FALSE) -> 10 | G13: =VLOOKUP($C13,'RECAP SECT'!$G$6:$DC$253,6,FALSE) -> 58% | H13: =VLOOKUP($C13,'RECAP SECT'!$G$6:$DC$253,7,FALSE) -> 12 | I13: =VLOOKUP($C13,'RECAP SECT'!$G$6:$DC$253,8,FALSE) -> 53% | J13: =VLOOKUP($C13,'RECAP SECT'!$G$6:$DC$253,9,FALSE) -> 28% | K13: =VLOOKUP($C13,'RECAP SECT'!$G$6:$DC$253,10,FALSE) -> 12 | L13: =VLOOKUP($C13,'RECAP SECT'!$G$6:$DC$253,11,FALSE) -> 43% | M13: =VLOOKUP($C13,'RECAP SECT'!$G$6:$DC$253,12,FALSE) -> 39% | N13: =VLOOKUP($C13,'RECAP SECT'!$G$6:$DC$253,13,FALSE) -> 14
A14: 262 | B14: BAS-RHIN | C14: 5006 | D14: STRASBOURG | E14: =VLOOKUP($C14,'RECAP SECT'!$G$6:$DC$253,3,FALSE) -> 75.6 | F14: =VLOOKUP($C14,'RECAP SECT'!$G$6:$DC$253,5,FALSE) -> 14 | G14: =VLOOKUP($C14,'RECAP SECT'!$G$6:$DC$253,6,FALSE) -> 42% | H14: =VLOOKUP($C14,'RECAP SECT'!$G$6:$DC$253,7,FALSE) -> 8 | I14: =VLOOKUP($C14,'RECAP SECT'!$G$6:$DC$253,8,FALSE) -> 51% | J14: =VLOOKUP($C14,'RECAP SECT'!$G$6:$DC$253,9,FALSE) -> 30% | K14: =VLOOKUP($C14,'RECAP SECT'!$G$6:$DC$253,10,FALSE) -> 15 | L14: =VLOOKUP($C14,'RECAP SECT'!$G$6:$DC$253,11,FALSE) -> 36% | M14: =VLOOKUP($C14,'RECAP SECT'!$G$6:$DC$253,12,FALSE) -> 32% | N14: =VLOOKUP($C14,'RECAP SECT'!$G$6:$DC$253,13,FALSE) -> 10
A15: 264 | B15: HAUT-RHIN | C15: 5130 | D15: COLMAR | E15: =VLOOKUP($C15,'RECAP SECT'!$G$6:$DC$253,3,FALSE) -> 61.6 | F15: =VLOOKUP($C15,'RECAP SECT'!$G$6:$DC$253,5,FALSE) -> 6 | G15: =VLOOKUP($C15,'RECAP SECT'!$G$6:$DC$253,6,FALSE) -> 75% | H15: =VLOOKUP($C15,'RECAP SECT'!$G$6:$DC$253,7,FALSE) -> 17 | I15: =VLOOKUP($C15,'RECAP SECT'!$G$6:$DC$253,8,FALSE) -> 47% | J15: =VLOOKUP($C15,'RECAP SECT'!$G$6:$DC$253,9,FALSE) -> 35% | K15: =VLOOKUP($C15,'RECAP SECT'!$G$6:$DC$253,10,FALSE) -> 17 | L15: =VLOOKUP($C15,'RECAP SECT'!$G$6:$DC$253,11,FALSE) -> 55% | M15: =VLOOKUP($C15,'RECAP SECT'!$G$6:$DC$253,12,FALSE) -> 51% | N15: =VLOOKUP($C15,'RECAP SECT'!$G$6:$DC$253,13,FALSE) -> 17
A16: 264 | B16: HAUT-RHIN | C16: 5169 | D16: MULHOUSE | E16: =VLOOKUP($C16,'RECAP SECT'!$G$6:$DC$253,3,FALSE) -> 61.0 | F16: =VLOOKUP($C16,'RECAP SECT'!$G$6:$DC$253,5,FALSE) -> 6 | G16: =VLOOKUP($C16,'RECAP SECT'!$G$6:$DC$253,6,FALSE) -> 75% | H16: =VLOOKUP($C16,'RECAP SECT'!$G$6:$DC$253,7,FALSE) -> 17 | I16: =VLOOKUP($C16,'RECAP SECT'!$G$6:$DC$253,8,FALSE) -> 31% | J16: =VLOOKUP($C16,'RECAP SECT'!$G$6:$DC$253,9,FALSE) -> 58% | K16: =VLOOKUP($C16,'RECAP SECT'!$G$6:$DC$253,10,FALSE) -> 18 | L16: =VLOOKUP($C16,'RECAP SECT'!$G$6:$DC$253,11,FALSE) -> 66% | M16: =VLOOKUP($C16,'RECAP SECT'!$G$6:$DC$253,12,FALSE) -> 63% | N16: =VLOOKUP($C16,'RECAP SECT'!$G$6:$DC$253,13,FALSE) -> 18
A17: 30 | B17: MARNE-ARDENNES | C17: 6 | D17: CHALONS EN CHAMPAGNE | E17: =VLOOKUP($C17,'RECAP SECT'!$G$6:$DC$253,3,FALSE) -> 44.6 | F17: =VLOOKUP($C17,'RECAP SECT'!$G$6:$DC$253,5,FALSE) -> 21 | G17: =VLOOKUP($C17,'RECAP SECT'!$G$6:$DC$253,6,FALSE) -> 13% | H17: =VLOOKUP($C17,'RECAP SECT'!$G$6:$DC$253,7,FALSE) -> 3 | I17: =VLOOKUP($C17,'RECAP SECT'!$G$6:$DC$253,8,FALSE) -> 73% | J17: =VLOOKUP($C17,'RECAP SECT'!$G$6:$DC$253,9,FALSE) -> 0% | K17: =VLOOKUP($C17,'RECAP SECT'!$G$6:$DC$253,10,FALSE) -> 1 | L17: =VLOOKUP($C17,'RECAP SECT'!$G$6:$DC$253,11,FALSE) -> 6% | M17: =VLOOKUP($C17,'RECAP SECT'!$G$6:$DC$253,12,FALSE) -> 2% | N17: =VLOOKUP($C17,'RECAP SECT'!$G$6:$DC$253,13,FALSE) -> 3
A18: 30 | B18: MARNE-ARDENNES | C18: 2 | D18: CHARLEVILLE MEZIERES | E18: =VLOOKUP($C18,'RECAP SECT'!$G$6:$DC$253,3,FALSE) -> 56.3 | F18: =VLOOKUP($C18,'RECAP SECT'!$G$6:$DC$253,5,FALSE) -> 21 | G18: =VLOOKUP($C18,'RECAP SECT'!$G$6:$DC$253,6,FALSE) -> 13% | H18: =VLOOKUP($C18,'RECAP SECT'!$G$6:$DC$253,7,FALSE) -> 3 | I18: =VLOOKUP($C18,'RECAP SECT'!$G$6:$DC$253,8,FALSE) -> 66% | J18: =VLOOKUP($C18,'RECAP SECT'!$G$6:$DC$253,9,FALSE) -> 9% | K18: =VLOOKUP($C18,'RECAP SECT'!$G$6:$DC$253,10,FALSE) -> 4 | L18: =VLOOKUP($C18,'RECAP SECT'!$G$6:$DC$253,11,FALSE) -> 11% | M18: =VLOOKUP($C18,'RECAP SECT'!$G$6:$DC$253,12,FALSE) -> 7% | N18: =VLOOKUP($C18,'RECAP SECT'!$G$6:$DC$253,13,FALSE) -> 4
A19: 30 | B19: MARNE-ARDENNES | C19: 11 | D19: REIMS | E19: =VLOOKUP($C19,'RECAP SECT'!$G$6:$DC$253,3,FALSE) -> 79.9 | F19: =VLOOKUP($C19,'RECAP SECT'!$G$6:$DC$253,5,FALSE) -> 10 | G19: =VLOOKUP($C19,'RECAP SECT'!$G$6:$DC$253,6,FALSE) -> 58% | H19: =VLOOKUP($C19,'RECAP SECT'!$G$6:$DC$253,7,FALSE) -> 12 | I19: =VLOOKUP($C19,'RECAP SECT'!$G$6:$DC$253,8,FALSE) -> 61% | J19: =VLOOKUP($C19,'RECAP SECT'!$G$6:$DC$253,9,FALSE) -> 17% | K19: =VLOOKUP($C19,'RECAP SECT'!$G$6:$DC$253,10,FALSE) -> 8 | L19: =VLOOKUP($C19,'RECAP SECT'!$G$6:$DC$253,11,FALSE) -> 37% | M19: =VLOOKUP($C19,'RECAP SECT'!$G$6:$DC$253,12,FALSE) -> 34% | N19: =VLOOKUP($C19,'RECAP SECT'!$G$6:$DC$253,13,FALSE) -> 12
A20: 110 | B20: MEURTHE ET MOSELLE MEUSE | C20: 26 | D20: NANCY | E20: =VLOOKUP($C20,'RECAP SECT'!$G$6:$DC$253,3,FALSE) -> 66.4 | F20: =VLOOKUP($C20,'RECAP SECT'!$G$6:$DC$253,5,FALSE) -> 12 | G20: =VLOOKUP($C20,'RECAP SECT'!$G$6:$DC$253,6,FALSE) -> 50% | H20: =VLOOKUP($C20,'RECAP SECT'!$G$6:$DC$253,7,FALSE) -> 9 | I20: =VLOOKUP($C20,'RECAP SECT'!$G$6:$DC$253,8,FALSE) -> 57% | J20: =VLOOKUP($C20,'RECAP SECT'!$G$6:$DC$253,9,FALSE) -> 21% | K20: =VLOOKUP($C20,'RECAP SECT'!$G$6:$DC$253,10,FALSE) -> 10 | L20: =VLOOKUP($C20,'RECAP SECT'!$G$6:$DC$253,11,FALSE) -> 36% | M20: =VLOOKUP($C20,'RECAP SECT'!$G$6:$DC$253,12,FALSE) -> 32% | N20: =VLOOKUP($C20,'RECAP SECT'!$G$6:$DC$253,13,FALSE) -> 9
A21: 110 | B21: MEURTHE ET MOSELLE MEUSE | C21: 27 | D21: PONT A MOUSSON | E21: =VLOOKUP($C21,'RECAP SECT'!$G$6:$DC$253,3,FALSE) -> 76.3 | F21: =VLOOKUP($C21,'RECAP SECT'!$G$6:$DC$253,5,FALSE) -> 9 | G21: =VLOOKUP($C21,'RECAP SECT'!$G$6:$DC$253,6,FALSE) -> 63% | H21: =VLOOKUP($C21,'RECAP SECT'!$G$6:$DC$253,7,FALSE) -> 15 | I21: =VLOOKUP($C21,'RECAP SECT'!$G$6:$DC$253,8,FALSE) -> 51% | J21: =VLOOKUP($C21,'RECAP SECT'!$G$6:$DC$253,9,FALSE) -> 31% | K21: =VLOOKUP($C21,'RECAP SECT'!$G$6:$DC$253,10,FALSE) -> 16 | L21: =VLOOKUP($C21,'RECAP SECT'!$G$6:$DC$253,11,FALSE) -> 47% | M21: =VLOOKUP($C21,'RECAP SECT'!$G$6:$DC$253,12,FALSE) -> 43% | N21: =VLOOKUP($C21,'RECAP SECT'!$G$6:$DC$253,13,FALSE) -> 15
A22: 110 | B22: MEURTHE ET MOSELLE MEUSE | C22: 31 | D22: VERDUN | E22: =VLOOKUP($C22,'RECAP SECT'!$G$6:$DC$253,3,FALSE) -> 54.9 | F22: =VLOOKUP($C22,'RECAP SECT'!$G$6:$DC$253,5,FALSE) -> 19 | G22: =VLOOKUP($C22,'RECAP SECT'!$G$6:$DC$253,6,FALSE) -> 21% | H22: =VLOOKUP($C22,'RECAP SECT'!$G$6:$DC$253,7,FALSE) -> 5 | I22: =VLOOKUP($C22,'RECAP SECT'!$G$6:$DC$253,8,FALSE) -> 62% | J22: =VLOOKUP($C22,'RECAP SECT'!$G$6:$DC$253,9,FALSE) -> 15% | K22: =VLOOKUP($C22,'RECAP SECT'!$G$6:$DC$253,10,FALSE) -> 6 | L22: =VLOOKUP($C22,'RECAP SECT'!$G$6:$DC$253,11,FALSE) -> 18% | M22: =VLOOKUP($C22,'RECAP SECT'!$G$6:$DC$253,12,FALSE) -> 14% | N22: =VLOOKUP($C22,'RECAP SECT'!$G$6:$DC$253,13,FALSE) -> 5
A23: 160 | B23: MOSELLE | C23: 45 | D23: METZ | E23: =VLOOKUP($C23,'RECAP SECT'!$G$6:$DC$253,3,FALSE) -> 89.0 | F23: =VLOOKUP($C23,'RECAP SECT'!$G$6:$DC$253,5,FALSE) -> 12 | G23: =VLOOKUP($C23,'RECAP SECT'!$G$6:$DC$253,6,FALSE) -> 50% | H23: =VLOOKUP($C23,'RECAP SECT'!$G$6:$DC$253,7,FALSE) -> 9 | I23: =VLOOKUP($C23,'RECAP SECT'!$G$6:$DC$253,8,FALSE) -> 58% | J23: =VLOOKUP($C23,'RECAP SECT'!$G$6:$DC$253,9,FALSE) -> 21% | K23: =VLOOKUP($C23,'RECAP SECT'!$G$6:$DC$253,10,FALSE) -> 9 | L23: =VLOOKUP($C23,'RECAP SECT'!$G$6:$DC$253,11,FALSE) -> 36% | M23: =VLOOKUP($C23,'RECAP SECT'!$G$6:$DC$253,12,FALSE) -> 32% | N23: =VLOOKUP($C23,'RECAP SECT'!$G$6:$DC$253,13,FALSE) -> 8
A24: 160 | B24: MOSELLE | C24: 42 | D24: MOSELLE EST | E24: =VLOOKUP($C24,'RECAP SECT'!$G$6:$DC$253,3,FALSE) -> 70.4 | F24: =VLOOKUP($C24,'RECAP SECT'!$G$6:$DC$253,5,FALSE) -> 16 | G24: =VLOOKUP($C24,'RECAP SECT'!$G$6:$DC$253,6,FALSE) -> 33% | H24: =VLOOKUP($C24,'RECAP SECT'!$G$6:$DC$253,7,FALSE) -> 7 | I24: =VLOOKUP($C24,'RECAP SECT'!$G$6:$DC$253,8,FALSE) -> 62% | J24: =VLOOKUP($C24,'RECAP SECT'!$G$6:$DC$253,9,FALSE) -> 16% | K24: =VLOOKUP($C24,'RECAP SECT'!$G$6:$DC$253,10,FALSE) -> 7 | L24: =VLOOKUP($C24,'RECAP SECT'!$G$6:$DC$253,11,FALSE) -> 24% | M24: =VLOOKUP($C24,'RECAP SECT'!$G$6:$DC$253,12,FALSE) -> 21% | N24: =VLOOKUP($C24,'RECAP SECT'!$G$6:$DC$253,13,FALSE) -> 7
A25: 160 | B25: MOSELLE | C25: 44 | D25: MOSELLE NORD | E25: =VLOOKUP($C25,'RECAP SECT'!$G$6:$DC$253,3,FALSE) -> 65.5 | F25: =VLOOKUP($C25,'RECAP SECT'!$G$6:$DC$253,5,FALSE) -> 8 | G25: =VLOOKUP($C25,'RECAP SECT'!$G$6:$DC$253,6,FALSE) -> 67% | H25: =VLOOKUP($C25,'RECAP SECT'!$G$6:$DC$253,7,FALSE) -> 16 | I25: =VLOOKUP($C25,'RECAP SECT'!$G$6:$DC$253,8,FALSE) -> 51% | J25: =VLOOKUP($C25,'RECAP SECT'!$G$6:$DC$253,9,FALSE) -> 29% | K25: =VLOOKUP($C25,'RECAP SECT'!$G$6:$DC$253,10,FALSE) -> 14 | L25: =VLOOKUP($C25,'RECAP SECT'!$G$6:$DC$253,11,FALSE) -> 48% | M25: =VLOOKUP($C25,'RECAP SECT'!$G$6:$DC$253,12,FALSE) -> 44% | N25: =VLOOKUP($C25,'RECAP SECT'!$G$6:$DC$253,13,FALSE) -> 16
A26: 80 | B26: VOSGES | C26: 57 | D26: EPINAL | E26: =VLOOKUP($C26,'RECAP SECT'!$G$6:$DC$253,3,FALSE) -> 61.2 | F26: =VLOOKUP($C26,'RECAP SECT'!$G$6:$DC$253,5,FALSE) -> 24 | G26: =VLOOKUP($C26,'RECAP SECT'!$G$6:$DC$253,6,FALSE) -> 0% | H26: =VLOOKUP($C26,'RECAP SECT'!$G$6:$DC$253,7,FALSE) -> 1 | I26: =VLOOKUP($C26,'RECAP SECT'!$G$6:$DC$253,8,FALSE) -> 67% | J26: =VLOOKUP($C26,'RECAP SECT'!$G$6:$DC$253,9,FALSE) -> 8% | K26: =VLOOKUP($C26,'RECAP SECT'!$G$6:$DC$253,10,FALSE) -> 3 | L26: =VLOOKUP($C26,'RECAP SECT'!$G$6:$DC$253,11,FALSE) -> 4% | M26: =VLOOKUP($C26,'RECAP SECT'!$G$6:$DC$253,12,FALSE) -> 0% | N26: =VLOOKUP($C26,'RECAP SECT'!$G$6:$DC$253,13,FALSE) -> 1
A27: 80 | B27: VOSGES | C27: 55 | D27: SAINT DIE | E27: =VLOOKUP($C27,'RECAP SECT'!$G$6:$DC$253,3,FALSE) -> 47.1 | F27: =VLOOKUP($C27,'RECAP SECT'!$G$6:$DC$253,5,FALSE) -> 23 | G27: =VLOOKUP($C27,'RECAP SECT'!$G$6:$DC$253,6,FALSE) -> 4% | H27: =VLOOKUP($C27,'RECAP SECT'!$G$6:$DC$253,7,FALSE) -> 2 | I27: =VLOOKUP($C27,'RECAP SECT'!$G$6:$DC$253,8,FALSE) -> 69% | J27: =VLOOKUP($C27,'RECAP SECT'!$G$6:$DC$253,9,FALSE) -> 6% | K27: =VLOOKUP($C27,'RECAP SECT'!$G$6:$DC$253,10,FALSE) -> 2 | L27: =VLOOKUP($C27,'RECAP SECT'!$G$6:$DC$253,11,FALSE) -> 5% | M27: =VLOOKUP($C27,'RECAP SECT'!$G$6:$DC$253,12,FALSE) -> 1% | N27: =VLOOKUP($C27,'RECAP SECT'!$G$6:$DC$253,13,FALSE) -> 2
A28: Total CEGEE Directions Régionales | E28: =SUM(E10:E27) -> 1140

Sheet AG_CLASS
B1: Accueil | H1: BAROMETRE BDD - AGENCES
H2: CLASSEMENTS
H3: =ACCUEIL!F7 -> 2021-07-25
H8: CLASSEMENT GENERAL | I8: CRITERE Satisfaction Clients | J8: NPS à froid (SAE) | K8: NPS à chaud (QHD) | L8: CRITERE BANCARISATION | M8: Ventes Nettes produits pondérés | N8: Ventes sur client non détenteur de l’univers | O8: Mobilité Macron | P8: Remises commerciales | Q8: CRITERE EPARGNE | R8: Excédent Epargne y/c DAV pondéré | S8: Ventes sur client non détenteur de l’univers | T8: CRITERE IARD PREVOYANCE | U8: Ventes Nettes produits pondérés | V8: Ventes sur client non détenteur de l’univers | W8: CRITERE CREDITS | X8: Engagements et ventes accessoires pondérés Immo | Y8: Engagements et ventes accessoires pondérés Conso | Z8: Ventes sur client non détenteur de l’univers
B9: Direction | C9: eds | D9: Territoire | E9: eds | F9: Agence | G9: ="ETP perf "&DATEMAJ!$C$28 -> ETP perf 31-mai | H9: Rang | I9: Rang | J9: Rang | K9: Rang | L9: Rang | M9: Rang | N9: Rang | O9: Rang | P9: Rang | Q9: Rang | R9: Rang | S9: Rang | T9: Rang | U9: Rang | V9: Rang | W9: Rang | X9: Rang | Y9: Rang | Z9: Rang
A10: 50 | B10: MEURTHE ET MOSELLE MEUSE | C10: 26 | D10: NANCY | E10: 454481 | F10: NANCY PLACE DOMBASLE | G10: 11.7 | H10: 1 | I10: 122 | J10: 128 | K10: 128 | L10: 1 | M10: 2 | N10: 1 | O10: 1 | P10: 233 | Q10: 9 | R10: 44 | S10: 3 | T10: 4 | U10: 7 | V10: 4 | W10: 2 | X10: 2 | Y10: 75 | Z10: 2
A11: 50 | B11: MEURTHE ET MOSELLE MEUSE | C11: 27 | D11: PONT A MOUSSON | E11: 554531 | F11: POMPEY | G11: 2.8 | H11: 2 | I11: 94 | J11: 116 | K11: 72 | L11: 2 | M11: 1 | N11: 10 | O11: 4 | P11: 87 | Q11: 3 | R11: 13 | S11: 4 | T11: 14 | U11: 17 | V11: 12 | W11: 7 | X11: 9 | Y11: 9 | Z11: 16
A12: 50 | B12: MEURTHE ET MOSELLE MEUSE | C12: 26 | D12: NANCY | E12: 554356 | F12: JARVILLE LA MALGRANGE | G12: 3.6 | H12: 3 | I12: 36 | J12: 46 | K12: 55 | L12: 4 | M12: 10 | N12: 6 | O12: 2 | P12: 141 | Q12: 45 | R12: 79 | S12: 22 | T12: 17 | U12: 20 | V12: 21 | W12: 5 | X12: 4 | Y12: 130 | Z12: 4
A13: 50 | B13: MOSELLE | C13: 42 | D13: MOSELLE EST | E13: 457163 | F13: BEHREN LES FORBACH | G13: 2.4 | H13: 4 | I13: 3 | J13: 3 | K13: 16 | L13: 11 | M13: 41 | N13: 7 | O13: 19 | P13: 90 | Q13: 93 | R13: 166 | S13: 21 | T13: 42 | U13: 58 | V13: 27 | W13: 4 | X13: 11 | Y13: 6 | Z13: 3
A14: 50 | B14: MARNE-ARDENNES | C14: 2 | D14: CHARLEVILLE MEZIERES | E14: 408822 | F14: CHARLEVILLE MEZIERES | G14: 3.8 | H14: 5 | I14: 116 | J14: 128 | K14: 118 | L14: 41 | M14: 108 | N14: 8 | O14: 8 | P14: 167 | Q14: 2 | R14: 12 | S14: 2 | T14: 8 | U14: 12 | V14: 8 | W14: 18 | X14: 10 | Y14: 192 | Z14: 13
A15: 50 | B15: MARNE-ARDENNES | C15: 6 | D15: CHALONS EN CHAMPAGNE | E15: 451115 | F15: MOURMELON LE GRAND | G15: 2.9 | H15: 6 | I15: 49 | J15: 91 | K15: 11 | L15: 8 | M15: 8 | N15: 38 | O15: 3 | P15: 238 | Q15: 18 | R15: 148 | S15: 1 | T15: 27 | U15: 31 | V15: 30 | W15: 12 | X15: 39 | Y15: 3 | Z15: 14
A16: 50 | B16: MARNE-ARDENNES | C16: 2 | D16: CHARLEVILLE MEZIERES | E16: 508820 | F16: VOUZIERS | G16: 2.9 | H16: 7 | I16: 73 | J16: 71 | K16: 94 | L16: 59 | M16: 82 | N16: 13 | O16: 39 | P16: 197 | Q16: 95 | R16: 81 | S16: 141 | T16: 1 | U16: 1 | V16: 15 | W16: 24 | X16: 43 | Y16: 40 | Z16: 24
A17: 50 | B17: MOSELLE | C17: 44 | D17: MOSELLE NORD | E17: 557508 | F17: NILVANGE | G17: 2.6 | H17: 8 | I17: 109 | J17: 128 | K17: 101 | L17: 14 | M17: 11 | N17: 44 | O17: 45 | P17: 160 | Q17: 20 | R17: 86 | S17: 5 | T17: 6 | U17: 8 | V17: 6 | W17: 21 | X17: 32 | Y17: 47 | Z17: 22
A18: 50 | B18: MOSELLE | C18: 44 | D18: MOSELLE NORD | E18: 557113 | F18: AUDUN LE TICHE | G18: 2.0 | H18: 9 | I18: 75 | J18: 31 | K18: 172 | L18: 16 | M18: 17 | N18: 2 | O18: 235 | P18: 202 | Q18: 60 | R18: 101 | S18: 29 | T18: 49 | U18: 66 | V18: 24 | W18: 3 | X18: 3 | Y18: 26 | Z18: 6
A19: 50 | B19: MARNE-ARDENNES | C19: 11 | D19: REIMS | E19: 551349 | F19: REIMS SAINT REMI | G19: 3.0 | H19: 10 | I19: 111 | J19: 136 | K19: 95 | L19: 26 | M19: 37 | N19: 14 | O19: 11 | P19: 224 | Q19: 21 | R19: 57 | S19: 12 | T19: 7 | U19: 5 | V19: 11 | W19: 16 | X19: 14 | Y19: 118 | Z19: 10
A20: 50 | B20: BAS-RHIN | C20: 5101 | D20: SELESTAT | E20: 4126 | F20: MUTZIG | G20: 2.0 | H20: 11 | I20: 62 | J20: 42 | K20: 130 | L20: 27 | M20: 33 | N20: 19 | O20: 15 | P20: 230 | Q20: 10 | R20: 28 | S20: 9 | T20: 75 | U20: 126 | V20: 28 | W20: 6 | X20: 42 | Y20: 1 | Z20: 9
A21: 50 | B21: VOSGES | C21: 57 | D21: EPINAL | E21: 488288 | F21: EPINAL LEOPOLD BOURG | G21: 1.9 | H21: 12 | I21: 56 | J21: 86 | K21: 44 | L21: 17 | M21: 23 | N21: 20 | O21: 9 | P21: 175 | Q21: 12 | R21: 4 | S21: 124 | T21: 91 | U21: 67 | V21: 167 | W21: 8 | X21: 8 | Y21: 25 | Z21: 19
A22: 50 | B22: MARNE-ARDENNES | C22: 11 | D22: REIMS | E22: 451336 | F22: TINQUEUX | G22: 5.7 | H22: 13 | I22: 118 | J22: 145 | K22: 102 | L22: 49 | M22: 56 | N22: 21 | O22: 17 | P22: 234 | Q22: 1 | R22: 1 | S22: 149 | T22: 28 | U22: 30 | V22: 39 | W22: 35 | X22: 22 | Y22: 175 | Z22: 37
A23: 50 | B23: BAS-RHIN | C23: 5101 | D23: SELESTAT | E23: 4113 | F23: BARR | G23: 3.0 | H23: 14 | I23: 48 | J23: 105 | K23: 7 | L23: 21 | M23: 36 | N23: 160 | O23: 26 | P23: 17 | Q23: 4 | R23: 11 | S23: 8 | T23: 40 | U23: 27 | V23: 129 | W23: 155 | X23: 120 | Y23: 218 | Z23: 101
A24: 50 | B24: MEURTHE ET MOSELLE MEUSE | C24: 27 | D24: PONT A MOUSSON | E24: 454651 | F24: TOUL | G24: 10.3 | H24: 15 | I24: 236 | J24: 105 | K24: 260 | L24: 7 | M24: 13 | N24: 5 | O24: 6 | P24: 245 | Q24: 89 | R24: 89 | S24: 100 | T24: 51 | U24: 85 | V24: 14 | W24: 1 | X24: 1 | Y24: 28 | Z24: 1
A25: 50 | B25: MEURTHE ET MOSELLE MEUSE | C25: 31 | D25: VERDUN | E25: 554413 | F25: LONGWY BAS | G25: 3.5 | H25: 16 | I25: 32 | J25: 36 | K25: 60 | L25: 25 | M25: 29 | N25: 81 | O25: 190 | P25: 39 | Q25: 8 | R25: 14 | S25: 11 | T25: 120 | U25: 118 | V25: 115 | W25: 42 | X25: 30 | Y25: 39 | Z25: 129
A26: 50 | B26: MEURTHE ET MOSELLE MEUSE | C26: 31 | D26: VERDUN | E26: 454414 | F26: LONGWY HAUT | G26: 3.6 | H26: 17 | I26: 53 | J26: 22 | K26: 141 | L26: 70 | M26: 80 | N26: 55 | O26: 97 | P26: 129 | Q26: 6 | R26: 3 | S26: 37 | T26: 45 | U26: 57 | V26: 31 | W26: 60 | X26: 72 | Y26: 126 | Z26: 33
A27: 50 | B27: MOSELLE | C27: 42 | D27: MOSELLE EST | E27: 457165 | F27: BITCHE | G27: 2.0 | H27: 18 | I27: 112 | J27: 116 | K27: 119 | L27: 6 | M27: 5 | N27: 12 | O27: 131 | P27: 51 | Q27: 205 | R27: 255 | S27: 7 | T27: 9 | U27: 15 | V27: 2 | W27: 69 | X27: 149 | Y27: 17 | Z27: 100
A28: 50 | B28: BAS-RHIN | C28: 5060 | D28: HAGUENAU | E28: 4092 | F28: HOCHFELDEN | G28: 2.3 | H28: 19 | I28: 139 | J28: 178 | K28: 80 | L28: 5 | M28: 3 | N28: 36 | O28: 77 | P28: 74 | Q28: 196 | R28: 238 | S28: 34 | T28: 30 | U28: 37 | V28: 25 | W28: 15 | X28: 23 | Y28: 7 | Z28: 38
A29: 50 | B29: BAS-RHIN | C29: 5006 | D29: STRASBOURG | E29: 4010 | F29: STRASBOURG MEINAU | G29: 3.1 | H29: 20 | I29: 169 | J29: 152 | K29: 181 | L29: 12 | M29: 18 | N29: 4 | O29: 47 | P29: 207 | Q29: 75 | R29: 209 | S29: 6 | T29: 5 | U29: 6 | V29: 9 | W29: 105 | X29: 243 | Y29: 20 | Z29: 86
A30: 50 | B30: MARNE-ARDENNES | C30: 2 | D30: CHARLEVILLE MEZIERES | E30: 508839 | F30: GIVET | G30: 3.6 | H30: 21 | I30: 23 | J30: 10 | K30: 112 | L30: 134 | M30: 200 | N30: 72 | O30: 91 | P30: 33 | Q30: 136 | R30: 173 | S30: 56 | T30: 3 | U30: 2 | V30: 69 | W30: 125 | X30: 148 | Y30: 57 | Z30: 158
A31: 262 | B31: MOSELLE | C31: 45 | D31: METZ | E31: 557444 | F31: SAINT JULIEN LES METZ | G31: 4.9 | H31: 22 | I31: 131 | J31: 159 | K31: 107 | L31: 106 | M31: 102 | N31: 74 | O31: 140 | P31: 154 | Q31: 28 | R31: 30 | S31: 42 | T31: 10 | U31: 14 | V31: 7 | W31: 59 | X31: 82 | Y31: 19 | Z31: 125
A32: 262 | B32: MARNE-ARDENNES | C32: 6 | D32: CHALONS EN CHAMPAGNE | E32: 551330 | F32: MONTMIRAIL | G32: 2.9 | H32: 23 | I32: 11 | J32: 18 | K32: 13 | L32: 186 | M32: 219 | N32: 215 | O32: 71 | P32: 40 | Q32: 26 | R32: 49 | S32: 13 | T32: 43 | U32: 50 | V32: 43 | W32: 62 | X32: 48 | Y32: 73 | Z32: 111
A33: 262 | B33: BAS-RHIN | C33: 5006 | D33: STRASBOURG | E33: 4047 | F33: STRASBOURG CRONENBOURG | G33: 5.1 | H33: 24 | I33: 44 | J33: 54 | K33: 45 | L33: 117 | M33: 139 | N33: 49 | O33: 20 | P33: 219 | Q33: 39 | R33: 109 | S33: 10 | T33: 31 | U33: 25 | V33: 111 | W33: 45 | X33: 20 | Y33: 204 | Z33: 57
A34: 262 | B34: MARNE-ARDENNES | C34: 11 | D34: REIMS | E34: 551340 | F34: BETHENY | G34: 3.0 | H34: 25 | I34: 110 | J34: 128 | K34: 108 | L34: 128 | M34: 142 | N34: 25 | O34: 13 | P34: 248 | Q34: 16 | R34: 26 | S34: 25 | T34: 71 | U34: 73 | V34: 68 | W34: 11 | X34: 15 | Y34: 68 | Z34: 5
A35: 262 | B35: MEURTHE ET MOSELLE MEUSE | C35: 26 | D35: NANCY | E35: 554476 | F35: NANCY ARTEM | G35: 2.7 | H35: 26 | I35: 117 | J35: 194 | K35: 28 | L35: 38 | M35: 35 | N35: 33 | O35: 14 | P35: 253 | Q35: 14 | R35: 9 | S35: 99 | T35: 70 | U35: 84 | V35: 47 | W35: 38 | X35: 50 | Y35: 131 | Z35: 12
A36: 262 | B36: BAS-RHIN | C36: 5101 | D36: SELESTAT | E36: 4121 | F36: SCHIRMECK | G36: 3.2 | H36: 27 | I36: 14 | J36: 18 | K36: 38 | L36: 82 | M36: 100 | N36: 157 | O36: 84 | P36: 48 | Q36: 33 | R36: 59 | S36: 26 | T36: 69 | U36: 56 | V36: 114 | W36: 80 | X36: 86 | Y36: 127 | Z36: 51
A37: 262 | B37: MARNE-ARDENNES | C37: 2 | D37: CHARLEVILLE MEZIERES | E37: 508833 | F37: VILLERS SEMEUSE CORA | G37: 3.6 | H37: 28 | I37: 136 | J37: 152 | K37: 131 | L37: 33 | M37: 62 | N37: 9 | O37: 28 | P37: 155 | Q37: 34 | R37: 69 | S37: 17 | T37: 52 | U37: 49 | V37: 58 | W37: 27 | X37: 52 | Y37: 33 | Z37: 29
A38: 262 | B38: MOSELLE | C38: 42 | D38: MOSELLE EST | E38: 557250 | F38: CREUTZWALD | G38: 2.7 | H38: 29 | I38: 129 | J38: 187 | K38: 58 | L38: 125 | M38: 176 | N38: 75 | O38: 175 | P38: 42 | Q38: 17 | R38: 31 | S38: 14 | T38: 21 | U38: 21 | V38: 38 | W38: 61 | X38: 132 | Y38: 10 | Z38: 117
A39: 262 | B39: AUBE HAUTE MARNE | C39: 21 | D39: CHAUMONT | E39: 451151 | F39: WASSY | G39: 2.0 | H39: 30 | I39: 17 | J39: 14 | K39: 56 | L39: 42 | M39: 55 | N39: 70 | O39: 123 | P39: 54 | Q39: 171 | R39: 239 | S39: 15 | T39: 97 | U39: 99 | V39: 88 | W39: 26 | X39: 127 | Y39: 2 | Z39: 76
A40: 262 | B40: MARNE-ARDENNES | C40: 11 | D40: REIMS | E40: 551367 | F40: AY CHAMPAGNE | G40: 2.7 | H40: 31 | I40: 102 | J40: 71 | K40: 163 | L40: 30 | M40: 88 | N40: 17 | O40: 5 | P40: 99 | Q40: 240 | R40: 234 | S40: 197 | T40: 41 | U40: 53 | V40: 37 | W40: 10 | X40: 5 | Y40: 138 | Z40: 11
A41: 262 | B41: MARNE-ARDENNES | C41: 11 | D41: REIMS | E41: 451350 | F41: REIMS CENTRE VILLE | G41: 7.2 | H41: 32 | I41: 166 | J41: 168 | K41: 159 | L41: 132 | M41: 151 | N41: 29 | O41: 24 | P41: 237 | Q41: 49 | R41: 38 | S41: 101 | T41: 34 | U41: 47 | V41: 35 | W41: 9 | X41: 7 | Y41: 52 | Z41: 21
A42: 262 | B42: MARNE-ARDENNES | C42: 2 | D42: CHARLEVILLE MEZIERES | E42: 408801 | F42: CHARLEVILLE JEAN JAURES | G42: 9.4 | H42: 33 | I42: 58 | J42: 54 | K42: 84 | L42: 58 | M42: 106 | N42: 46 | O42: 7 | P42: 164 | Q42: 72 | R42: 136 | S42: 24 | T42: 146 | U42: 148 | V42: 128 | W42: 17 | X42: 17 | Y42: 137 | Z42: 8
A43: 262 | B43: MARNE-ARDENNES | C43: 2 | D43: CHARLEVILLE MEZIERES | E43: 408862 | F43: REVIN | G43: 4.3 | H43: 34 | I43: 5 | J43: 2 | K43: 47 | L43: 110 | M43: 166 | N43: 95 | O43: 105 | P43: 38 | Q43: 51 | R43: 64 | S43: 50 | T43: 110 | U43: 110 | V43: 120 | W43: 122 | X43: 104 | Y43: 206 | Z43: 68
A44: 262 | B44: MEURTHE ET MOSELLE MEUSE | C44: 31 | D44: VERDUN | E44: 555624 | F44: STENAY | G44: 2.8 | H44: 35 | I44: 21 | J44: 14 | K44: 70 | L44: 9 | M44: 20 | N44: 35 | O44: 136 | P44: 20 | Q44: 104 | R44: 156 | S44: 38 | T44: 129 | U44: 135 | V44: 112 | W44: 120 | X44: 150 | Y44: 65 | Z44: 133
A45: 262 | B45: VOSGES | C45: 57 | D45: EPINAL | E45: 588631 | F45: THAON LES VOSGES | G45: 5.5 | H45: 36 | I45: 41 | J45: 57 | K45: 35 | L45: 64 | M45: 57 | N45: 60 | O45: 62 | P45: 179 | Q45: 126 | R45: 76 | S45: 240 | T45: 24 | U45: 24 | V45: 40 | W45: 115 | X45: 140 | Y45: 76 | Z45: 118
A46: 262 | B46: MOSELLE | C46: 42 | D46: MOSELLE EST | E46: 557305 | F46: FAULQUEMONT | G46: 2.5 | H46: 37 | I46: 27 | J46: 12 | K46: 120 | L46: 54 | M46: 74 | N46: 52 | O46: 34 | P46: 136 | Q46: 102 | R46: 134 | S46: 61 | T46: 88 | U46: 102 | V46: 66 | W46: 46 | X46: 47 | Y46: 56 | Z46: 67
A47: 262 | B47: MARNE-ARDENNES | C47: 2 | D47: CHARLEVILLE MEZIERES | E47: 508815 | F47: CARIGNAN | G47: 2.9 | H47: 38 | I47: 74 | J47: 78 | K47: 83 | L47: 85 | M47: 164 | N47: 45 | O47: 148 | P47: 23 | Q47: 5 | R47: 7 | S47: 16 | T47: 142 | U47: 136 | V47: 155 | W47: 78 | X47: 58 | Y47: 113 | Z47: 106
A48: 262 | B48: MEURTHE ET MOSELLE MEUSE | C48: 27 | D48: PONT A MOUSSON | E48: 554533 | F48: PONT A MOUSSON BREUIL | G48: 2.8 | H48: 39 | I48: 170 | J48: 145 | K48: 195 | L48: 47 | M48: 77 | N48: 30 | O48: 31 | P48: 128 | Q48: 7 | R48: 2 | S48: 158 | T48: 157 | U48: 164 | V48: 135 | W48: 20 | X48: 13 | Y48: 114 | Z48: 32
A49: 262 | B49: VOSGES | C49: 55 | D49: SAINT DIE | E49: 488246 | F49: CORNIMONT LA BRESSE | G49: 2.6 | H49: 40 | I49: 10 | J49: 31 | K49: 6 | L49: 158 | M49: 144 | N49: 122 | O49: 196 | P49: 149 | Q49: 188 | R49: 161 | S49: 217 | T49: 35 | U49: 28 | V49: 100 | W49: 41 | X49: 64 | Y49: 18 | Z49: 63
A50: 262 | B50: MEURTHE ET MOSELLE MEUSE | C50: 27 | D50: PONT A MOUSSON | E50: 554376 | F50: LAXOU BOUFFLERS | G50: 2.7 | H50: 41 | I50: 175 | J50: 219 | K50: 89 | L50: 55 | M50: 39 | N50: 18 | O50: 25 | P50: 259 | Q50: 19 | R50: 5 | S50: 182 | T50: 68 | U50: 72 | V50: 62 | W50: 29 | X50: 45 | Y50: 13 | Z50: 79
A51: 262 | B51: MARNE-ARDENNES | C51: 6 | D51: CHALONS EN CHAMPAGNE | E51: 451120 | F51: SARRY | G51: 2.5 | H51: 42 | I51: 9 | J51: 25 | K51: 4 | L51: 131 | M51: 202 | N51: 181 | O51: 60 | P51: 9 | Q51: 23 | R51: 24 | S51: 53 | T51: 125 | U51: 121 | V51: 132 | W51: 165 | X51: 123 | Y51: 210 | Z51: 142
A52: 262 | B52: BAS-RHIN | C52: 5060 | D52: HAGUENAU | E52: 4079 | F52: SOULTZ SOUS FORETS | G52: 2.2 | H52: 43 | I52: 137 | J52: 187 | K52: 71 | L52: 20 | M52: 14 | N52: 172 | O52: 55 | P52: 60 | Q52: 118 | R52: 174 | S52: 35 | T52: 57 | U52: 54 | V52: 49 | W52: 63 | X52: 60 | Y52: 63 | Z52: 93
A53: 262 | B53: MEURTHE ET MOSELLE MEUSE | C53: 27 | D53: PONT A MOUSSON | E53: 454535 | F53: PONT A MOUSSON CENTRALE | G53: 7.8 | H53: 44 | I53: 186 | J53: 159 | K53: 208 | L53: 10 | M53: 12 | N53: 26 | O53: 29 | P53: 171 | Q53: 50 | R53: 34 | S53: 134 | T53: 72 | U53: 88 | V53: 50 | W53: 56 | X53: 24 | Y53: 241 | Z53: 46
A54: 262 | B54: MEURTHE ET MOSELLE MEUSE | C54: 27 | D54: PONT A MOUSSON | E54: 554381 | F54: LAXOU ARISTIDE BRIAND | G54: 4.1 | H54: 45 | I54: 85 | J54: 57 | K54: 145 | L54: 29 | M54: 6 | N54: 97 | O54: 90 | P54: 252 | Q54: 74 | R54: 87 | S54: 66 | T54: 67 | U54: 63 | V54: 72 | W54: 117 | X54: 89 | Y54: 176 | Z54: 98
A55: 262 | B55: MOSELLE | C55: 42 | D55: MOSELLE EST | E55: 457308 | F55: FORBACH CENTRALE | G55: 11.3 | H55: 46 | I55: 43 | J55: 36 | K55: 76 | L55: 46 | M55: 48 | N55: 115 | O55: 149 | P55: 77 | Q55: 73 | R55: 94 | S55: 58 | T55: 87 | U55: 62 | V55: 165 | W55: 131 | X55: 146 | Y55: 50 | Z55: 181
A56: 262 | B56: MARNE-ARDENNES | C56: 11 | D56: REIMS | E56: 551305 | F56: REIMS HIPPODROME | G56: 3.9 | H56: 47 | I56: 12 | J56: 42 | K56: 5 | L56: 224 | M56: 222 | N56: 37 | O56: 12 | P56: 262 | Q56: 166 | R56: 185 | S56: 92 | T56: 38 | U56: 33 | V56: 78 | W56: 37 | X56: 27 | Y56: 168 | Z56: 26
A57: 262 | B57: MEURTHE ET MOSELLE MEUSE | C57: 31 | D57: VERDUN | E57: 555679 | F57: VERDUN MAZEL | G57: 3.8 | H57: 48 | I57: 19 | J57: 25 | K57: 40 | L57: 63 | M57: 85 | N57: 77 | O57: 104 | P57: 46 | Q57: 59 | R57: 100 | S57: 30 | T57: 179 | U57: 188 | V57: 153 | W57: 70 | X57: 79 | Y57: 66 | Z57: 92
A58: 262 | B58: MEURTHE ET MOSELLE MEUSE | C58: 31 | D58: VERDUN | E58: 554412 | F58: LONGUYON | G58: 2.8 | H58: 49 | I58: 40 | J58: 57 | K58: 33 | L58: 126 | M58: 171 | N58: 89 | O58: 72 | P58: 104 | Q58: 127 | R58: 95 | S58: 211 | T58: 107 | U58: 108 | V58: 105 | W58: 22 | X58: 29 | Y58: 41 | Z58: 42
A59: 262 | B59: BAS-RHIN | C59: 5060 | D59: HAGUENAU | E59: 4082 | F59: BOUXWILLER | G59: 2.5 | H59: 50 | I59: 70 | J59: 91 | K59: 59 | L59: 103 | M59: 66 | N59: 132 | O59: 150 | P59: 183 | Q59: 32 | R59: 35 | S59: 55 | T59: 134 | U59: 173 | V59: 55 | W59: 54 | X59: 38 | Y59: 71 | Z59: 104
A60: 262 | B60: AUBE HAUTE MARNE | C60: 21 | D60: CHAUMONT | E60: 510590 | F60: CHAUMONT REPUBLIQUE | G60: 4.4 | H60: 51 | I60: 120 | J60: 136 | K60: 115 | L60: 81 | M60: 146 | N60: 47 | O60: 79 | P60: 45 | Q60: 57 | R60: 37 | S60: 151 | T60: 44 | U60: 39 | V60: 70 | W60: 66 | X60: 160 | Y60: 15 | Z60: 95
A61: 262 | B61: HAUT-RHIN | C61: 5130 | D61: COLMAR | E61: 4144 | F61: RIBEAUVILLE | G61: 2.9 | H61: 52 | I61: 66 | J61: 57 | K61: 86 | L61: 36 | M61: 52 | N61: 64 | O61: 152 | P61: 28 | Q61: 43 | R61: 46 | S61: 62 | T61: 60 | U61: 26 | V61: 208 | W61: 237 | X61: 212 | Y61: 201 | Z61: 243
A62: 262 | B62: VOSGES | C62: 57 | D62: EPINAL | E62: 588716 | F62: XERTIGNY | G62: 2.9 | H62: 53 | I62: 145 | J62: 116 | K62: 173 | L62: 53 | M62: 68 | N62: 139 | O62: 170 | P62: 21 | Q62: 111 | R62: 116 | S62: 123 | T62: 13 | U62: 3 | V62: 101 | W62: 178 | X62: 184 | Y62: 174 | Z62: 137
A63: 262 | B63: MEURTHE ET MOSELLE MEUSE | C63: 27 | D63: PONT A MOUSSON | E63: 554506 | F63: CHALIGNY NEUVES MAISONS | G63: 3.8 | H63: 54 | I63: 226 | J63: 203 | K63: 231 | L63: 3 | M63: 4 | N63: 16 | O63: 10 | P63: 119 | Q63: 223 | R63: 202 | S63: 231 | T63: 90 | U63: 106 | V63: 67 | W63: 13 | X63: 6 | Y63: 224 | Z63: 7
A64: 262 | B64: MARNE-ARDENNES | C64: 6 | D64: CHALONS EN CHAMPAGNE | E64: 551110 | F64: CHALONS ROOSEVELT | G64: 5.0 | H64: 55 | I64: 22 | J64: 51 | K64: 15 | L64: 121 | M64: 168 | N64: 114 | O64: 53 | P64: 103 | Q64: 66 | R64: 83 | S64: 52 | T64: 86 | U64: 70 | V64: 145 | W64: 127 | X64: 76 | Y64: 215 | Z64: 107
A65: 262 | B65: MOSELLE | C65: 44 | D65: MOSELLE NORD | E65: 457348 | F65: HAGONDANGE | G65: 9.3 | H65: 56 | I65: 173 | J65: 203 | K65: 136 | L65: 32 | M65: 34 | N65: 193 | O65: 102 | P65: 52 | Q65: 87 | R65: 75 | S65: 138 | T65: 64 | U65: 40 | V65: 126 | W65: 48 | X65: 36 | Y65: 120 | Z65: 52
A66: 262 | B66: MARNE-ARDENNES | C66: 6 | D66: CHALONS EN CHAMPAGNE | E66: 551354 | F66: VERTUS | G66: 2.5 | H66: 57 | I66: 4 | J66: 14 | K66: 1 | L66: 212 | M66: 154 | N66: 209 | O66: 142 | P66: 229 | Q66: 113 | R66: 118 | S66: 110 | T66: 95 | U66: 95 | V66: 79 | W66: 112 | X66: 107 | Y66: 94 | Z66: 135
A67: 262 | B67: MARNE-ARDENNES | C67: 2 | D67: CHARLEVILLE MEZIERES | E67: 508802 | F67: CHARLEVILLE NEVERS | G67: 3.0 | H67: 58 | I67: 24 | J67: 22 | K67: 67 | L67: 174 | M67: 214 | N67: 173 | O67: 32 | P67: 68 | Q67: 227 | R67: 246 | S67: 47 | T67: 18 | U67: 13 | V67: 44 | W67: 106 | X67: 151 | Y67: 21 | Z67: 192
A68: 262 | B68: MARNE-ARDENNES | C68: 11 | D68: REIMS | E68: 551310 | F68: REIMS CHATILLONS | G68: 4.2 | H68: 59 | I68: 148 | J68: 178 | K68: 97 | L68: 76 | M68: 109 | N68: 99 | O68: 43 | P68: 71 | Q68: 97 | R68: 119 | S68: 77 | T68: 59 | U68: 45 | V68: 97 | W68: 33 | X68: 18 | Y68: 128 | Z68: 60
A69: 262 | B69: MEURTHE ET MOSELLE MEUSE | C69: 27 | D69: PONT A MOUSSON | E69: 554357 | F69: JOEUF | G69: 3.8 | H69: 60 | I69: 147 | J69: 194 | K69: 75 | L69: 84 | M69: 123 | N69: 50 | O69: 23 | P69: 150 | Q69: 248 | R69: 242 | S69: 216 | T69: 23 | U69: 29 | V69: 16 | W69: 14 | X69: 21 | Y69: 38 | Z69: 17
A70: 262 | B70: MOSELLE | C70: 44 | D70: MOSELLE NORD | E70: 457306 | F70: FLORANGE | G70: 3.7 | H70: 61 | I70: 126 | J70: 78 | K70: 184 | L70: 72 | M70: 64 | N70: 140 | O70: 165 | P70: 89 | Q70: 25 | R70: 22 | S70: 65 | T70: 84 | U70: 91 | V70: 80 | W70: 102 | X70: 55 | Y70: 135 | Z70: 175
A71: 262 | B71: MEURTHE ET MOSELLE MEUSE | C71: 26 | D71: NANCY | E71: 454426 | F71: LUNEVILLE CARNOT | G71: 10.1 | H71: 62 | I71: 133 | J71: 128 | K71: 150 | L71: 68 | M71: 65 | N71: 101 | O71: 66 | P71: 148 | Q71: 137 | R71: 111 | S71: 196 | T71: 56 | U71: 44 | V71: 75 | W71: 44 | X71: 40 | Y71: 83 | Z71: 50
A72: 262 | B72: MEURTHE ET MOSELLE MEUSE | C72: 27 | D72: PONT A MOUSSON | E72: 554416 | F72: LUDRES | G72: 3.7 | H72: 63 | I72: 42 | J72: 57 | K72: 37 | L72: 116 | M72: 121 | N72: 65 | O72: 38 | P72: 180 | Q72: 31 | R72: 25 | S72: 84 | T72: 232 | U72: 233 | V72: 215 | W72: 49 | X72: 51 | Y72: 122 | Z72: 27
A73: 262 | B73: VOSGES | C73: 57 | D73: EPINAL | E73: 588501 | F73: NEUFCHATEAU | G73: 5.0 | H73: 64 | I73: 13 | J73: 10 | K73: 63 | L73: 173 | M73: 204 | N73: 104 | O73: 37 | P73: 140 | Q73: 103 | R73: 93 | S73: 152 | T73: 144 | U73: 142 | V73: 143 | W73: 58 | X73: 98 | Y73: 91 | Z73: 25
A74: 262 | B74: MOSELLE | C74: 45 | D74: METZ | E74: 557447 | F74: METZ SAINT MAXIMIN | G74: 3.1 | H74: 65 | I74: 113 | J74: 152 | K74: 77 | L74: 31 | M74: 170 | N74: 3 | O74: 16 | P74: 34 | Q74: 94 | R74: 92 | S74: 118 | T74: 153 | U74: 184 | V74: 76 | W74: 47 | X74: 31 | Y74: 163 | Z74: 43
A75: 262 | B75: MEURTHE ET MOSELLE MEUSE | C75: 26 | D75: NANCY | E75: 554636 | F75: TOMBLAINE | G75: 2.5 | H75: 66 | I75: 18 | J75: 46 | K75: 8 | L75: 223 | M75: 231 | N75: 79 | O75: 138 | P75: 204 | Q75: 84 | R75: 78 | S75: 103 | T75: 55 | U75: 82 | V75: 17 | W75: 134 | X75: 204 | Y75: 156 | Z75: 40
A76: 262 | B76: MEURTHE ET MOSELLE MEUSE | C76: 26 | D76: NANCY | E76: 554601 | F76: SAINT MAX | G76: 4.5 | H76: 67 | I76: 28 | J76: 12 | K76: 123 | L76: 127 | M76: 119 | N76: 234 | O76: 59 | P76: 105 | Q76: 68 | R76: 135 | S76: 20 | T76: 74 | U76: 78 | V76: 83 | W76: 168 | X76: 136 | Y76: 181 | Z76: 167
A77: 262 | B77: MOSELLE | C77: 44 | D77: MOSELLE NORD | E77: 557352 | F77: HETTANGE GRANDE | G77: 4.1 | H77: 68 | I77: 174 | J77: 145 | K77: 200 | L77: 22 | M77: 7 | N77: 73 | O77: 210 | P77: 178 | Q77: 132 | R77: 124 | S77: 142 | T77: 46 | U77: 35 | V77: 92 | W77: 87 | X77: 91 | Y77: 46 | Z77: 146
A78: 262 | B78: BAS-RHIN | C78: 5006 | D78: STRASBOURG | E78: 4037 | F78: MUNDOLSHEIM | G78: 4.0 | H78: 69 | I78: 195 | J78: 230 | K78: 135 | L78: 24 | M78: 16 | N78: 51 | O78: 58 | P78: 192 | Q78: 52 | R78: 48 | S78: 81 | T78: 62 | U78: 42 | V78: 102 | W78: 124 | X78: 159 | Y78: 117 | Z78: 77
A79: 264 | B79: MARNE-ARDENNES | C79: 6 | D79: CHALONS EN CHAMPAGNE | E79: 451101 | F79: CHALONS VIVIERS | G79: 9.2 | H79: 70 | I79: 38 | J79: 66 | K79: 26 | L79: 111 | M79: 113 | N79: 103 | O79: 51 | P79: 162 | Q79: 121 | R79: 170 | S79: 40 | T79: 109 | U79: 127 | V79: 87 | W79: 79 | X79: 69 | Y79: 123 | Z79: 81
A80: 264 | B80: BAS-RHIN | C80: 5101 | D80: SELESTAT | E80: 4120 | F80: WASSELONNE | G80: 4.4 | H80: 71 | I80: 183 | J80: 234 | K80: 81 | L80: 177 | M80: 134 | N80: 168 | O80: 249 | P80: 159 | Q80: 11 | R80: 16 | S80: 27 | T80: 48 | U80: 43 | V80: 56 | W80: 71 | X80: 195 | Y80: 14 | Z80: 75
A81: 264 | B81: MEURTHE ET MOSELLE MEUSE | C81: 31 | D81: VERDUN | E81: 455456 | F81: MONTMEDY | G81: 1.8 | H81: 72 | I81: 97 | J81: 116 | K81: 78 | L81: 69 | M81: 84 | N81: 71 | O81: 195 | P81: 47 | Q81: 114 | R81: 115 | S81: 131 | T81: 121 | U81: 92 | V81: 169 | W81: 51 | X81: 84 | Y81: 32 | Z81: 53
A82: 264 | B82: VOSGES | C82: 57 | D82: EPINAL | E82: 588206 | F82: CHARMES | G82: 2.8 | H82: 73 | I82: 52 | J82: 71 | K82: 43 | L82: 154 | M82: 89 | N82: 153 | O82: 181 | P82: 215 | Q82: 236 | R82: 207 | S82: 248 | T82: 25 | U82: 18 | V82: 82 | W82: 89 | X82: 102 | Y82: 64 | Z82: 116
A83: 264 | B83: MARNE-ARDENNES | C83: 11 | D83: REIMS | E83: 551314 | F83: FISMES | G83: 3.0 | H83: 74 | I83: 72 | J83: 128 | K83: 27 | L83: 60 | M83: 101 | N83: 61 | O83: 18 | P83: 120 | Q83: 200 | R83: 229 | S83: 63 | T83: 138 | U83: 156 | V83: 86 | W83: 39 | X83: 33 | Y83: 140 | Z83: 28
A84: 264 | B84: BAS-RHIN | C84: 5006 | D84: STRASBOURG | E84: 4019 | F84: STRASBOURG ANVERS | G84: 4.3 | H84: 75 | I84: 107 | J84: 42 | K84: 204 | L84: 50 | M84: 21 | N84: 43 | O84: 50 | P84: 261 | Q84: 55 | R84: 56 | S84: 79 | T84: 99 | U84: 101 | V84: 84 | W84: 173 | X84: 100 | Y84: 216 | Z84: 177
A85: 264 | B85: VOSGES | C85: 55 | D85: SAINT DIE | E85: 488586 | F85: SAINT DIE | G85: 10.6 | H85: 76 | I85: 8 | J85: 7 | K85: 42 | L85: 188 | M85: 165 | N85: 152 | O85: 169 | P85: 174 | Q85: 86 | R85: 91 | S85: 94 | T85: 180 | U85: 158 | V85: 223 | W85: 143 | X85: 124 | Y85: 178 | Z85: 112
A86: 264 | B86: VOSGES | C86: 55 | D86: SAINT DIE | E86: 588666 | F86: VAGNEY | G86: 3.8 | H86: 77 | I86: 6 | J86: 5 | K86: 41 | L86: 136 | M86: 126 | N86: 201 | O86: 161 | P86: 70 | Q86: 108 | R86: 71 | S86: 218 | T86: 207 | U86: 163 | V86: 251 | W86: 161 | X86: 171 | Y86: 165 | Z86: 119
A87: 264 | B87: VOSGES | C87: 57 | D87: EPINAL | E87: 588396 | F87: LE VAL D AJOL | G87: 2.9 | H87: 78 | I87: 1 | J87: 1 | K87: 2 | L87: 228 | M87: 211 | N87: 260 | O87: 213 | P87: 75 | Q87: 117 | R87: 65 | S87: 250 | T87: 162 | U87: 104 | V87: 247 | W87: 236 | X87: 166 | Y87: 257 | Z87: 204
A88: 264 | B88: MEURTHE ET MOSELLE MEUSE | C88: 26 | D88: NANCY | E88: 554166 | F88: BLAINVILLE | G88: 3.1 | H88: 79 | I88: 230 | J88: 178 | K88: 242 | L88: 62 | M88: 97 | N88: 27 | O88: 33 | P88: 151 | Q88: 61 | R88: 54 | S88: 89 | T88: 81 | U88: 139 | V88: 29 | W88: 36 | X88: 70 | Y88: 42 | Z88: 23
A89: 264 | B89: BAS-RHIN | C89: 5006 | D89: STRASBOURG | E89: 4038 | F89: OBERHAUSBERGEN | G89: 4.8 | H89: 80 | I89: 127 | J89: 187 | K89: 51 | L89: 137 | M89: 75 | N89: 90 | O89: 70 | P89: 246 | Q89: 44 | R89: 68 | S89: 33 | T89: 105 | U89: 79 | V89: 182 | W89: 100 | X89: 75 | Y89: 134 | Z89: 134
A90: 264 | B90: BAS-RHIN | C90: 5006 | D90: STRASBOURG | E90: 4054 | F90: STRASBOURG MONTAGNE VERTE | G90: 2.5 | H90: 81 | I90: 196 | J90: 194 | K90: 190 | L90: 167 | M90: 225 | N90: 15 | O90: 120 | P90: 131 | Q90: 238 | R90: 230 | S90: 192 | T90: 2 | U90: 4 | V90: 1 | W90: 121 | X90: 202 | Y90: 81 | Z90: 65
A91: 264 | B91: MOSELLE | C91: 45 | D91: METZ | E91: 457453 | F91: MONTIGNY LES METZ | G91: 8.1 | H91: 82 | I91: 45 | J91: 78 | K91: 18 | L91: 104 | M91: 50 | N91: 208 | O91: 75 | P91: 227 | Q91: 71 | R91: 137 | S91: 23 | T91: 241 | U91: 217 | V91: 252 | W91: 67 | X91: 56 | Y91: 141 | Z91: 70
A92: 264 | B92: VOSGES | C92: 57 | D92: EPINAL | E92: 488706 | F92: VITTEL | G92: 3.7 | H92: 83 | I92: 46 | J92: 78 | K92: 20 | L92: 229 | M92: 235 | N92: 195 | O92: 98 | P92: 161 | Q92: 81 | R92: 47 | S92: 205 | T92: 77 | U92: 51 | V92: 195 | W92: 133 | X92: 206 | Y92: 133 | Z92: 48
A93: 264 | B93: VOSGES | C93: 55 | D93: SAINT DIE | E93: 488326 | F93: GERARDMER | G93: 5.2 | H93: 84 | I93: 47 | J93: 66 | K93: 34 | L93: 189 | M93: 124 | N93: 245 | O93: 128 | P93: 182 | Q93: 29 | R93: 8 | S93: 242 | T93: 209 | U93: 177 | V93: 243 | W93: 119 | X93: 93 | Y93: 97 | Z93: 162
A94: 264 | B94: MARNE-ARDENNES | C94: 2 | D94: CHARLEVILLE MEZIERES | E94: 508819 | F94: MOUZON | G94: 2.0 | H94: 85 | I94: 99 | J94: 78 | K94: 147 | L94: 241 | M94: 242 | N94: 88 | O94: 157 | P94: 217 | Q94: 92 | R94: 41 | S94: 254 | T94: 111 | U94: 151 | V94: 48 | W94: 19 | X94: 28 | Y94: 60 | Z94: 18
A95: 264 | B95: BAS-RHIN | C95: 5006 | D95: STRASBOURG | E95: 4024 | F95: STRASBOURG AUSTERLITZ | G95: 2.4 | H95: 86 | I95: 249 | J95: 236 | K95: 248 | L95: 15 | M95: 9 | N95: 22 | O95: 52 | P95: 206 | Q95: 64 | R95: 82 | S95: 51 | T95: 54 | U95: 77 | V95: 20 | W95: 81 | X95: 68 | Y95: 203 | Z95: 44
A96: 264 | B96: BAS-RHIN | C96: 5006 | D96: STRASBOURG | E96: 4023 | F96: STRASBOURG VOSGES | G96: 3.3 | H96: 87 | I96: 149 | J96: 36 | K96: 243 | L96: 65 | M96: 63 | N96: 83 | O96: 83 | P96: 152 | Q96: 13 | R96: 17 | S96: 31 | T96: 164 | U96: 123 | V96: 240 | W96: 179 | X96: 163 | Y96: 187 | Z96: 159
A97: 264 | B97: MOSELLE | C97: 45 | D97: METZ | E97: 457443 | F97: METZ REPUBLIQUE | G97: 4.2 | H97: 88 | I97: 7 | J97: 7 | K97: 23 | L97: 187 | M97: 198 | N97: 197 | O97: 199 | P97: 55 | Q97: 109 | R97: 66 | S97: 237 | T97: 235 | U97: 244 | V97: 171 | W97: 99 | X97: 87 | Y97: 159 | Z97: 80
A98: 264 | B98: BAS-RHIN | C98: 5101 | D98: SELESTAT | E98: 4107 | F98: VILLE | G98: 2.8 | H98: 89 | I98: 254 | J98: 258 | K98: 171 | L98: 19 | M98: 15 | N98: 147 | O98: 156 | P98: 19 | Q98: 38 | R98: 36 | S98: 80 | T98: 26 | U98: 10 | V98: 220 | W98: 189 | X98: 260 | Y98: 74 | Z98: 113
A99: 264 | B99: VOSGES | C99: 55 | D99: SAINT DIE | E99: 588386 | F99: LE THILLOT | G99: 2.4 | H99: 90 | I99: 92 | J99: 71 | K99: 143 | L99: 144 | M99: 192 | N99: 200 | O99: 172 | P99: 7 | Q99: 90 | R99: 131 | S99: 44 | T99: 47 | U99: 34 | V99: 93 | W99: 220 | X99: 250 | Y99: 80 | Z99: 227
A100: 264 | B100: MARNE-ARDENNES | C100: 6 | D100: CHALONS EN CHAMPAGNE | E100: 551103 | F100: FAGNIERES LECLERC | G100: 3.0 | H100: 91 | I100: 33 | J100: 36 | K100: 61 | L100: 95 | M100: 128 | N100: 56 | O100: 48 | P100: 123 | Q100: 234 | R100: 219 | S100: 210 | T100: 147 | U100: 199 | V100: 53 | W100: 73 | X100: 96 | Y100: 70 | Z100: 59
A101: 264 | B101: MEURTHE ET MOSELLE MEUSE | C101: 31 | D101: VERDUN | E101: 455151 | F101: BAR LE DUC | G101: 8.8 | H101: 92 | I101: 103 | J101: 97 | K101: 133 | L101: 71 | M101: 67 | N101: 166 | O101: 92 | P101: 92 | Q101: 150 | R101: 110 | S101: 239 | T101: 126 | U101: 141 | V101: 96 | W101: 94 | X101: 161 | Y101: 62 | Z101: 71
A102: 264 | B102: MEURTHE ET MOSELLE MEUSE | C102: 31 | D102: VERDUN | E102: 455298 | F102: ETAIN | G102: 1.6 | H102: 93 | I102: 235 | J102: 230 | K102: 217 | L102: 113 | M102: 46 | N102: 187 | O102: 241 | P102: 222 | Q102: 124 | R102: 120 | S102: 120 | T102: 16 | U102: 19 | V102: 13 | W102: 90 | X102: 114 | Y102: 12 | Z102: 232
A103: 30 | B103: BAS-RHIN | C103: 5006 | D103: STRASBOURG | E103: 4006 | F103: STRASBOURG NEUDORF | G103: 8.6 | H103: 94 | I103: 50 | J103: 31 | K103: 103 | L103: 77 | M103: 76 | N103: 63 | O103: 89 | P103: 156 | Q103: 194 | R103: 189 | S103: 163 | T103: 83 | U103: 87 | V103: 89 | W103: 211 | X103: 154 | Y103: 248 | Z103: 161
A104: 30 | B104: MARNE-ARDENNES | C104: 11 | D104: REIMS | E104: 451370 | F104: EPERNAY | G104: 11.5 | H104: 95 | I104: 76 | J104: 111 | K104: 49 | L104: 89 | M104: 94 | N104: 141 | O104: 54 | P104: 126 | Q104: 138 | R104: 108 | S104: 202 | T104: 135 | U104: 112 | V104: 176 | W104: 149 | X104: 105 | Y104: 199 | Z104: 115
A105: 30 | B105: MEURTHE ET MOSELLE MEUSE | C105: 26 | D105: NANCY | E105: 554266 | F105: DOMBASLE SUR MEURTHE | G105: 3.7 | H105: 96 | I105: 224 | J105: 213 | K105: 219 | L105: 162 | M105: 130 | N105: 67 | O105: 63 | P105: 232 | Q105: 40 | R105: 42 | S105: 69 | T105: 61 | U105: 76 | V105: 33 | W105: 55 | X105: 62 | Y105: 35 | Z105: 110
A106: 30 | B106: MEURTHE ET MOSELLE MEUSE | C106: 26 | D106: NANCY | E106: 554116 | F106: BACCARAT | G106: 2.5 | H106: 97 | I106: 64 | J106: 91 | K106: 46 | L106: 97 | M106: 95 | N106: 189 | O106: 162 | P106: 64 | Q106: 122 | R106: 99 | S106: 187 | T106: 165 | U106: 159 | V106: 184 | W106: 135 | X106: 143 | Y106: 67 | Z106: 165
A107: 30 | B107: MARNE-ARDENNES | C107: 11 | D107: REIMS | E107: 451361 | F107: PIERRY LECLERC | G107: 1.9 | H107: 98 | I107: 79 | J107: 136 | K107: 30 | L107: 96 | M107: 193 | N107: 66 | O107: 44 | P107: 14 | Q107: 173 | R107: 133 | S107: 243 | T107: 104 | U107: 97 | V107: 116 | W107: 126 | X107: 115 | Y107: 125 | Z107: 120
A108: 30 | B108: MEURTHE ET MOSELLE MEUSE | C108: 31 | D108: VERDUN | E108: 554700 | F108: VILLERUPT | G108: 2.9 | H108: 99 | I108: 26 | J108: 9 | K108: 146 | L108: 150 | M108: 141 | N108: 150 | O108: 225 | P108: 91 | Q108: 79 | R108: 98 | S108: 72 | T108: 216 | U108: 205 | V108: 213 | W108: 153 | X108: 185 | Y108: 31 | Z108: 225
A109: 30 | B109: MARNE-ARDENNES | C109: 6 | D109: CHALONS EN CHAMPAGNE | E109: 551128 | F109: SAINTE MENEHOULD | G109: 3.3 | H109: 100 | I109: 96 | J109: 91 | K109: 117 | L109: 91 | M109: 112 | N109: 117 | O109: 82 | P109: 69 | Q109: 190 | R109: 226 | S109: 59 | T109: 50 | U109: 46 | V109: 64 | W109: 199 | X109: 214 | Y109: 153 | Z109: 180
A110: 30 | B110: BAS-RHIN | C110: 5060 | D110: HAGUENAU | E110: 4030 | F110: BRUMATH | G110: 5.3 | H110: 101 | I110: 128 | J110: 71 | K110: 192 | L110: 124 | M110: 59 | N110: 170 | O110: 111 | P110: 235 | Q110: 35 | R110: 52 | S110: 39 | T110: 204 | U110: 185 | V110: 226 | W110: 77 | X110: 71 | Y110: 105 | Z110: 85
A111: 30 | B111: VOSGES | C111: 57 | D111: EPINAL | E111: 488451 | F111: MIRECOURT | G111: 4.8 | H111: 102 | I111: 39 | J111: 57 | K111: 31 | L111: 216 | M111: 217 | N111: 120 | O111: 85 | P111: 177 | Q111: 123 | R111: 117 | S111: 148 | T111: 115 | U111: 111 | V111: 121 | W111: 148 | X111: 152 | Y111: 185 | Z111: 73
A112: 30 | B112: HAUT-RHIN | C112: 5130 | D112: COLMAR | E112: 4153 | F112: ROUFFACH | G112: 3.7 | H112: 103 | I112: 108 | J112: 128 | K112: 98 | L112: 222 | M112: 215 | N112: 112 | O112: 232 | P112: 176 | Q112: 189 | R112: 196 | S112: 135 | T112: 22 | U112: 22 | V112: 36 | W112: 146 | X112: 205 | Y112: 61 | Z112: 136
A113: 30 | B113: VOSGES | C113: 57 | D113: EPINAL | E113: 488561 | F113: REMIREMONT | G113: 6.6 | H113: 104 | I113: 90 | J113: 128 | K113: 62 | L113: 118 | M113: 117 | N113: 134 | O113: 117 | P113: 115 | Q113: 67 | R113: 50 | S113: 159 | T113: 150 | U113: 130 | V113: 199 | W113: 159 | X113: 133 | Y113: 221 | Z113: 97
A114: 30 | B114: VOSGES | C114: 57 | D114: EPINAL | E114: 588336 | F114: GOLBEY | G114: 3.1 | H114: 105 | I114: 121 | J114: 145 | K114: 106 | L114: 201 | M114: 196 | N114: 85 | O114: 64 | P114: 208 | Q114: 116 | R114: 72 | S114: 227 | T114: 131 | U114: 134 | V114: 133 | W114: 40 | X114: 37 | Y114: 200 | Z114: 15
A115: 30 | B115: VOSGES | C115: 57 | D115: EPINAL | E115: 488286 | F115: EPINAL ARISTIDE BRIAND | G115: 9.1 | H115: 106 | I115: 31 | J115: 18 | K115: 90 | L115: 122 | M115: 86 | N115: 62 | O115: 113 | P115: 226 | Q115: 210 | R115: 180 | S115: 230 | T115: 78 | U115: 68 | V115: 127 | W115: 216 | X115: 165 | Y115: 252 | Z115: 148
A116: 30 | B116: AUBE HAUTE MARNE | C116: 14 | D116: TROYES | E116: 510523 | F116: LA CHAPELLE ST LUC | G116: 5.5 | H116: 107 | I116: 180 | J116: 168 | K116: 188 | L116: 37 | M116: 47 | N116: 40 | O116: 139 | P116: 121 | Q116: 195 | R116: 223 | S116: 73 | T116: 29 | U116: 60 | V116: 5 | W116: 204 | X116: 200 | Y116: 170 | Z116: 193
A117: 30 | B117: AUBE HAUTE MARNE | C117: 21 | D117: CHAUMONT | E117: 410560 | F117: BOURBONNE LES BAINS | G117: 2.0 | H117: 108 | I117: 25 | J117: 57 | K117: 10 | L117: 105 | M117: 79 | N117: 224 | O117: 179 | P117: 81 | Q117: 206 | R117: 194 | S117: 178 | T117: 130 | U117: 146 | V117: 85 | W117: 212 | X117: 223 | Y117: 85 | Z117: 239
A118: 30 | B118: AUBE HAUTE MARNE | C118: 14 | D118: TROYES | E118: 510570 | F118: NOGENT SUR SEINE | G118: 4.4 | H118: 109 | I118: 15 | J118: 25 | K118: 25 | L118: 129 | M118: 148 | N118: 148 | O118: 69 | P118: 108 | Q118: 185 | R118: 154 | S118: 223 | T118: 237 | U118: 204 | V118: 257 | W118: 84 | X118: 81 | Y118: 102 | Z118: 91
A119: 30 | B119: AUBE HAUTE MARNE | C119: 21 | D119: CHAUMONT | E119: 451154 | F119: JOINVILLE | G119: 1.9 | H119: 110 | I119: 2 | J119: 5 | K119: 3 | L119: 235 | M119: 230 | N119: 100 | O119: 188 | P119: 225 | Q119: 258 | R119: 252 | S119: 258 | T119: 124 | U119: 169 | V119: 45 | W119: 91 | X119: 207 | Y119: 78 | Z119: 31
A120: 30 | B120: MOSELLE | C120: 42 | D120: MOSELLE EST | E120: 557210 | F120: CHATEAU SALINS | G120: 2.6 | H120: 111 | I120: 208 | J120: 248 | K120: 64 | L120: 23 | M120: 19 | N120: 149 | O120: 204 | P120: 25 | Q120: 119 | R120: 151 | S120: 68 | T120: 132 | U120: 107 | V120: 173 | W120: 93 | X120: 164 | Y120: 22 | Z120: 141
A121: 30 | B121: MARNE-ARDENNES | C121: 6 | D121: CHALONS EN CHAMPAGNE | E121: 451381 | F121: SEZANNE | G121: 6.5 | H121: 112 | I121: 83 | J121: 105 | K121: 68 | L121: 115 | M121: 147 | N121: 135 | O121: 49 | P121: 93 | Q121: 182 | R121: 198 | S121: 116 | T121: 127 | U121: 98 | V121: 166 | W121: 114 | X121: 95 | Y121: 196 | Z121: 69
A122: 30 | B122: AUBE HAUTE MARNE | C122: 21 | D122: CHAUMONT | E122: 451156 | F122: SAINT DIZIER CENTRE | G122: 9.4 | H122: 113 | I122: 104 | J122: 91 | K122: 144 | L122: 148 | M122: 136 | N122: 92 | O122: 110 | P122: 169 | Q122: 133 | R122: 128 | S122: 130 | T122: 103 | U122: 119 | V122: 81 | W122: 123 | X122: 188 | Y122: 82 | Z122: 72
A123: 30 | B123: MOSELLE | C123: 45 | D123: METZ | E123: 457574 | F123: ROMBAS | G123: 3.2 | H123: 114 | I123: 200 | J123: 222 | K123: 155 | L123: 34 | M123: 72 | N123: 69 | O123: 155 | P123: 3 | Q123: 22 | R123: 20 | S123: 70 | T123: 123 | U123: 117 | V123: 125 | W123: 246 | X123: 213 | Y123: 242 | Z123: 229
A124: 30 | B124: MARNE-ARDENNES | C124: 11 | D124: REIMS | E124: 551309 | F124: REIMS EUROPE | G124: 2.7 | H124: 115 | I124: 86 | J124: 71 | K124: 132 | L124: 210 | M124: 227 | N124: 121 | O124: 122 | P124: 130 | Q124: 128 | R124: 125 | S124: 126 | T124: 73 | U124: 138 | V124: 22 | W124: 141 | X124: 131 | Y124: 150 | Z124: 122
A125: 30 | B125: BAS-RHIN | C125: 5006 | D125: STRASBOURG | E125: 4043 | F125: STRASBOURG HALLES | G125: 8.3 | H125: 116 | I125: 105 | J125: 86 | K125: 154 | L125: 195 | M125: 111 | N125: 28 | O125: 57 | P125: 264 | Q125: 56 | R125: 60 | S125: 74 | T125: 148 | U125: 149 | V125: 141 | W125: 132 | X125: 54 | Y125: 256 | Z125: 87
A126: 30 | B126: AUBE HAUTE MARNE | C126: 21 | D126: CHAUMONT | E126: 410541 | F126: LANGRES | G126: 6.5 | H126: 117 | I126: 159 | J126: 194 | K126: 111 | L126: 108 | M126: 87 | N126: 159 | O126: 101 | P126: 147 | Q126: 141 | R126: 152 | S126: 96 | T126: 79 | U126: 75 | V126: 106 | W126: 107 | X126: 196 | Y126: 69 | Z126: 61
A127: 30 | B127: BAS-RHIN | C127: 5060 | D127: HAGUENAU | E127: 4066 | F127: NIEDERBRONN LES BAINS | G127: 6.1 | H127: 118 | I127: 37 | J127: 71 | K127: 19 | L127: 196 | M127: 189 | N127: 229 | O127: 185 | P127: 80 | Q127: 88 | R127: 45 | S127: 235 | T127: 168 | U127: 143 | V127: 222 | W127: 193 | X127: 175 | Y127: 106 | Z127: 223
A128: 30 | B128: MOSELLE | C128: 42 | D128: MOSELLE EST | E128: 457614 | F128: SARREBOURG | G128: 8.5 | H128: 119 | I128: 144 | J128: 105 | K128: 183 | L128: 100 | M128: 107 | N128: 175 | O128: 143 | P128: 56 | Q128: 76 | R128: 85 | S128: 76 | T128: 151 | U128: 120 | V128: 214 | W128: 136 | X128: 126 | Y128: 100 | Z128: 152
A129: 30 | B129: BAS-RHIN | C129: 5101 | D129: SELESTAT | E129: 4109 | F129: MARCKOLSHEIM | G129: 2.7 | H129: 120 | I129: 67 | J129: 54 | K129: 105 | L129: 149 | M129: 99 | N129: 155 | O129: 173 | P129: 196 | Q129: 143 | R129: 164 | S129: 78 | T129: 167 | U129: 191 | V129: 110 | W129: 130 | X129: 157 | Y129: 53 | Z129: 163
A130: 30 | B130: MARNE-ARDENNES | C130: 11 | D130: REIMS | E130: 451301 | F130: REIMS HOTEL DE VILLE | G130: 7.7 | H130: 121 | I130: 153 | J130: 175 | K130: 121 | L130: 28 | M130: 31 | N130: 53 | O130: 27 | P130: 210 | Q130: 259 | R130: 257 | S130: 228 | T130: 58 | U130: 55 | V130: 63 | W130: 88 | X130: 59 | Y130: 182 | Z130: 88
A131: 30 | B131: VOSGES | C131: 57 | D131: EPINAL | E131: 488281 | F131: ELOYES | G131: 4.7 | H131: 122 | I131: 30 | J131: 18 | K131: 88 | L131: 157 | M131: 137 | N131: 230 | O131: 201 | P131: 72 | Q131: 99 | R131: 77 | S131: 175 | T131: 220 | U131: 230 | V131: 190 | W131: 164 | X131: 138 | Y131: 155 | Z131: 174
A132: 30 | B132: AUBE HAUTE MARNE | C132: 14 | D132: TROYES | E132: 510520 | F132: SAINT ANDRE LES VERGERS | G132: 4.1 | H132: 123 | I132: 123 | J132: 91 | K132: 168 | L132: 83 | M132: 114 | N132: 68 | O132: 115 | P132: 59 | Q132: 69 | R132: 70 | S132: 87 | T132: 240 | U132: 248 | V132: 191 | W132: 82 | X132: 144 | Y132: 43 | Z132: 74
A133: 30 | B133: AUBE HAUTE MARNE | C133: 14 | D133: TROYES | E133: 510511 | F133: TROYES BROSSOLETTE | G133: 2.6 | H133: 124 | I133: 89 | J133: 152 | K133: 39 | L133: 67 | M133: 61 | N133: 124 | O133: 126 | P133: 122 | Q133: 149 | R133: 157 | S133: 97 | T133: 190 | U133: 207 | V133: 158 | W133: 137 | X133: 103 | Y133: 115 | Z133: 171
A134: 30 | B134: MEURTHE ET MOSELLE MEUSE | C134: 31 | D134: VERDUN | E134: 455678 | F134: VERDUN CENTRALE | G134: 10.7 | H134: 125 | I134: 82 | J134: 97 | K134: 74 | L134: 94 | M134: 81 | N134: 109 | O134: 42 | P134: 188 | Q134: 211 | R134: 204 | S134: 180 | T134: 208 | U134: 220 | V134: 161 | W134: 57 | X134: 34 | Y134: 169 | Z134: 62
A135: 30 | B135: BAS-RHIN | C135: 5006 | D135: STRASBOURG | E135: 4027 | F135: SCHILTIGHEIM CENTRE | G135: 3.9 | H135: 126 | I135: 187 | J135: 168 | K135: 199 | L135: 90 | M135: 93 | N135: 41 | O135: 46 | P135: 209 | Q135: 37 | R135: 43 | S135: 54 | T135: 171 | U135: 162 | V135: 183 | W135: 118 | X135: 57 | Y135: 233 | Z135: 103
A136: 30 | B136: MARNE-ARDENNES | C136: 11 | D136: REIMS | E136: 551365 | F136: DORMANS | G136: 2.7 | H136: 127 | I136: 63 | J136: 36 | K136: 137 | L136: 244 | M136: 247 | N136: 231 | O136: 41 | P136: 184 | Q136: 107 | R136: 140 | S136: 71 | T136: 177 | U136: 187 | V136: 137 | W136: 64 | X136: 49 | Y136: 158 | Z136: 58
A137: 30 | B137: MOSELLE | C137: 42 | D137: MOSELLE EST | E137: 457583 | F137: SAINT AVOLD | G137: 7.7 | H137: 128 | I137: 119 | J137: 136 | K137: 114 | L137: 138 | M137: 131 | N137: 151 | O137: 103 | P137: 124 | Q137: 130 | R137: 123 | S137: 144 | T137: 119 | U137: 128 | V137: 99 | W137: 152 | X137: 137 | Y137: 119 | Z137: 149
A138: 30 | B138: MARNE-ARDENNES | C138: 11 | D138: REIMS | E138: 551369 | F138: DAMERY | G138: 2.4 | H138: 129 | I138: 209 | J138: 206 | K138: 205 | L138: 213 | M138: 191 | N138: 42 | O138: 22 | P138: 260 | Q138: 154 | R138: 143 | S138: 168 | T138: 53 | U138: 80 | V138: 18 | W138: 34 | X138: 26 | Y138: 95 | Z138: 49
A139: 30 | B139: BAS-RHIN | C139: 5060 | D139: HAGUENAU | E139: 4057 | F139: BISCHWILLER | G139: 6.2 | H139: 130 | I139: 190 | J139: 168 | K139: 202 | L139: 52 | M139: 43 | N139: 169 | O139: 226 | P139: 67 | Q139: 165 | R139: 172 | S139: 127 | T139: 65 | U139: 52 | V139: 98 | W139: 175 | X139: 192 | Y139: 54 | Z139: 237
A140: 30 | B140: MOSELLE | C140: 45 | D140: METZ | E140: 557612 | F140: SAINTE MARIE AUX CHENES | G140: 3.9 | H140: 131 | I140: 20 | J140: 22 | K140: 57 | L140: 232 | M140: 245 | N140: 244 | O140: 242 | P140: 43 | Q140: 167 | R140: 222 | S140: 36 | T140: 122 | U140: 115 | V140: 123 | W140: 188 | X140: 186 | Y140: 214 | Z140: 114
A141: 30 | B141: MEURTHE ET MOSELLE MEUSE | C141: 31 | D141: VERDUN | E141: 455231 | F141: COMMERCY | G141: 4.7 | H141: 132 | I141: 154 | J141: 136 | K141: 176 | L141: 120 | M141: 138 | N141: 93 | O141: 134 | P141: 116 | Q141: 163 | R141: 141 | S141: 204 | T141: 136 | U141: 100 | V141: 194 | W141: 65 | X141: 116 | Y141: 44 | Z141: 56
A142: 30 | B142: MEURTHE ET MOSELLE MEUSE | C142: 27 | D142: PONT A MOUSSON | E142: 454355 | F142: JARNY | G142: 4.6 | H142: 133 | I142: 202 | J142: 230 | K142: 148 | L142: 56 | M142: 38 | N142: 190 | O142: 93 | P142: 163 | Q142: 161 | R142: 153 | S142: 165 | T142: 76 | U142: 93 | V142: 51 | W142: 113 | X142: 44 | Y142: 243 | Z142: 131
A143: 30 | B143: MOSELLE | C143: 42 | D143: MOSELLE EST | E143: 457617 | F143: SARREGUEMINES | G143: 8.3 | H143: 134 | I143: 93 | J143: 86 | K143: 125 | L143: 153 | M143: 110 | N143: 216 | O143: 158 | P143: 139 | Q143: 112 | R143: 147 | S143: 64 | T143: 141 | U143: 133 | V143: 160 | W143: 187 | X143: 112 | Y143: 220 | Z143: 194
A144: 110 | B144: MEURTHE ET MOSELLE MEUSE | C144: 26 | D144: NANCY | E144: 454171 | F144: BLAMONT | G144: 1.5 | H144: 135 | I144: 244 | J144: 259 | K144: 91 | L144: 13 | M144: 25 | N144: 23 | O144: 114 | P144: 31 | Q144: 239 | R144: 210 | S144: 251 | T144: 33 | U144: 48 | V144: 32 | W144: 103 | X144: 88 | Y144: 193 | Z144: 66
A145: 110 | B145: MOSELLE | C145: 44 | D145: MOSELLE NORD | E145: 457632 | F145: THIONVILLE CENTRALE | G145: 11.7 | H145: 136 | I145: 140 | J145: 97 | K145: 187 | L145: 80 | M145: 103 | N145: 96 | O145: 202 | P145: 36 | Q145: 140 | R145: 176 | S145: 57 | T145: 114 | U145: 116 | V145: 113 | W145: 191 | X145: 173 | Y145: 111 | Z145: 222
A146: 110 | B146: MEURTHE ET MOSELLE MEUSE | C146: 31 | D146: VERDUN | E146: 555406 | F146: LIGNY EN BARROIS | G146: 2.8 | H146: 137 | I146: 34 | J146: 31 | K146: 73 | L146: 175 | M146: 160 | N146: 158 | O146: 167 | P146: 146 | Q146: 169 | R146: 169 | S146: 140 | T146: 184 | U146: 180 | V146: 203 | W146: 160 | X146: 193 | Y146: 84 | Z146: 155
A147: 110 | B147: MOSELLE | C147: 44 | D147: MOSELLE NORD | E147: 457158 | F147: YUTZ | G147: 4.6 | H147: 138 | I147: 125 | J147: 78 | K147: 182 | L147: 87 | M147: 58 | N147: 240 | O147: 233 | P147: 66 | Q147: 160 | R147: 138 | S147: 206 | T147: 133 | U147: 105 | V147: 175 | W147: 166 | X147: 129 | Y147: 154 | Z147: 191
A148: 110 | B148: MEURTHE ET MOSELLE MEUSE | C148: 27 | D148: PONT A MOUSSON | E148: 554321 | F148: FROUARD | G148: 3.0 | H148: 139 | I148: 241 | J148: 251 | K148: 177 | L148: 66 | M148: 115 | N148: 143 | O148: 61 | P148: 13 | Q148: 27 | R148: 10 | S148: 200 | T148: 140 | U148: 171 | V148: 73 | W148: 95 | X148: 53 | Y148: 211 | Z148: 96
A149: 110 | B149: AUBE HAUTE MARNE | C149: 14 | D149: TROYES | E149: 410550 | F149: BAR SUR AUBE | G149: 5.9 | H149: 140 | I149: 59 | J149: 51 | K149: 100 | L149: 164 | M149: 159 | N149: 179 | O149: 227 | P149: 84 | Q149: 241 | R149: 227 | S149: 238 | T149: 100 | U149: 113 | V149: 77 | W149: 142 | X149: 217 | Y149: 48 | Z149: 124
A150: 110 | B150: MEURTHE ET MOSELLE MEUSE | C150: 31 | D150: VERDUN | E150: 455676 | F150: VAUCOULEURS | G150: 1.8 | H150: 141 | I150: 262 | J150: 261 | K150: 244 | L150: 18 | M150: 30 | N150: 86 | O150: 36 | P150: 22 | Q150: 226 | R150: 191 | S150: 249 | T150: 19 | U150: 23 | V150: 19 | W150: 43 | X150: 77 | Y150: 30 | Z150: 45
A151: 110 | B151: AUBE HAUTE MARNE | C151: 14 | D151: TROYES | E151: 410571 | F151: ROMILLY SUR SEINE | G151: 6.7 | H151: 142 | I151: 69 | J151: 51 | K151: 129 | L151: 92 | M151: 91 | N151: 182 | O151: 96 | P151: 79 | Q151: 208 | R151: 200 | S151: 164 | T151: 194 | U151: 189 | V151: 201 | W151: 138 | X151: 139 | Y151: 108 | Z151: 138
A152: 110 | B152: MOSELLE | C152: 44 | D152: MOSELLE NORD | E152: 457350 | F152: HAYANGE | G152: 7.2 | H152: 143 | I152: 155 | J152: 78 | K152: 222 | L152: 39 | M152: 49 | N152: 133 | O152: 129 | P152: 27 | Q152: 212 | R152: 248 | S152: 18 | T152: 139 | U152: 144 | V152: 130 | W152: 154 | X152: 110 | Y152: 149 | Z152: 170
A153: 110 | B153: MOSELLE | C153: 44 | D153: MOSELLE NORD | E153: 557347 | F153: GUENANGE | G153: 5.0 | H153: 144 | I153: 233 | J153: 222 | K153: 218 | L153: 101 | M153: 153 | N153: 106 | O153: 146 | P153: 26 | Q153: 100 | R153: 80 | S153: 166 | T153: 149 | U153: 176 | V153: 90 | W153: 28 | X153: 25 | Y153: 162 | Z153: 20
A154: 110 | B154: BAS-RHIN | C154: 5060 | D154: HAGUENAU | E154: 4085 | F154: INGWILLER | G154: 3.2 | H154: 145 | I154: 95 | J154: 42 | K154: 185 | L154: 57 | M154: 26 | N154: 91 | O154: 261 | P154: 223 | Q154: 229 | R154: 240 | S154: 83 | T154: 160 | U154: 181 | V154: 108 | W154: 162 | X154: 240 | Y154: 11 | Z154: 246
A155: 110 | B155: MEURTHE ET MOSELLE MEUSE | C155: 27 | D155: PONT A MOUSSON | E155: 554184 | F155: BRIEY | G155: 4.6 | H155: 146 | I155: 106 | J155: 136 | K155: 82 | L155: 215 | M155: 240 | N155: 207 | O155: 166 | P155: 29 | Q155: 58 | R155: 33 | S155: 174 | T155: 221 | U155: 212 | V155: 224 | W155: 85 | X155: 117 | Y155: 45 | Z155: 126
A156: 110 | B156: MEURTHE ET MOSELLE MEUSE | C156: 27 | D156: PONT A MOUSSON | E156: 554496 | F156: NANCY TROIS MAISONS | G156: 2.5 | H156: 147 | I156: 253 | J156: 251 | K156: 225 | L156: 43 | M156: 53 | N156: 191 | O156: 193 | P156: 11 | Q156: 62 | R156: 74 | S156: 60 | T156: 63 | U156: 81 | V156: 34 | W156: 139 | X156: 178 | Y156: 16 | Z156: 240
A157: 110 | B157: VOSGES | C157: 55 | D157: SAINT DIE | E157: 588186 | F157: BRUYERES | G157: 3.7 | H157: 148 | I157: 78 | J157: 111 | K157: 52 | L157: 143 | M157: 184 | N157: 105 | O157: 177 | P157: 49 | Q157: 261 | R157: 261 | S157: 234 | T157: 93 | U157: 103 | V157: 71 | W157: 53 | X157: 128 | Y157: 23 | Z157: 36
A158: 110 | B158: MARNE-ARDENNES | C158: 2 | D158: CHARLEVILLE MEZIERES | E158: 408806 | F158: SEDAN | G158: 9.1 | H158: 149 | I158: 81 | J158: 163 | K158: 9 | L158: 199 | M158: 210 | N158: 186 | O158: 67 | P158: 111 | Q158: 98 | R158: 62 | S158: 232 | T158: 215 | U158: 182 | V158: 244 | W158: 111 | X158: 74 | Y158: 212 | Z158: 89
A159: 110 | B159: MOSELLE | C159: 45 | D159: METZ | E159: 557712 | F159: WOIPPY | G159: 5.5 | H159: 150 | I159: 114 | J159: 97 | K159: 152 | L159: 107 | M159: 129 | N159: 59 | O159: 127 | P159: 98 | Q159: 217 | R159: 199 | S159: 213 | T159: 94 | U159: 137 | V159: 42 | W159: 177 | X159: 118 | Y159: 226 | Z159: 157
A160: 110 | B160: BAS-RHIN | C160: 5060 | D160: HAGUENAU | E160: 4071 | F160: WISSEMBOURG | G160: 8.4 | H160: 151 | I160: 84 | J160: 163 | K160: 12 | L160: 180 | M160: 181 | N160: 188 | O160: 215 | P160: 86 | Q160: 65 | R160: 58 | S160: 125 | T160: 178 | U160: 179 | V160: 162 | W160: 228 | X160: 233 | Y160: 180 | Z160: 200
A161: 110 | B161: MOSELLE | C161: 45 | D161: METZ | E161: 557559 | F161: REMILLY | G161: 4.2 | H161: 152 | I161: 160 | J161: 168 | K161: 151 | L161: 182 | M161: 187 | N161: 222 | O161: 203 | P161: 53 | Q161: 83 | R161: 53 | S161: 198 | T161: 116 | U161: 114 | V161: 118 | W161: 157 | X161: 141 | Y161: 90 | Z161: 187
A162: 110 | B162: MEURTHE ET MOSELLE MEUSE | C162: 27 | D162: PONT A MOUSSON | E162: 454696 | F162: VILLERS GENERAL LECLERC | G162: 6.1 | H162: 153 | I162: 77 | J162: 66 | K162: 113 | L162: 156 | M162: 145 | N162: 225 | O162: 118 | P162: 101 | Q162: 115 | R162: 104 | S162: 162 | T162: 172 | U162: 167 | V162: 177 | W162: 219 | X162: 210 | Y162: 189 | Z162: 212
A163: 110 | B163: BAS-RHIN | C163: 5101 | D163: SELESTAT | E163: 4015 | F163: LINGOLSHEIM | G163: 4.5 | H163: 154 | I163: 141 | J163: 116 | K163: 167 | L163: 198 | M163: 179 | N163: 235 | O163: 230 | P163: 102 | Q163: 77 | R163: 67 | S163: 128 | T163: 89 | U163: 96 | V163: 74 | W163: 218 | X163: 198 | Y163: 152 | Z163: 238
A164: 110 | B164: MOSELLE | C164: 45 | D164: METZ | E164: 557437 | F164: METZ SARRE | G164: 3.8 | H164: 155 | I164: 168 | J164: 46 | K164: 247 | L164: 146 | M164: 152 | N164: 48 | O164: 197 | P164: 168 | Q164: 253 | R164: 250 | S164: 186 | T164: 12 | U164: 11 | V164: 26 | W164: 241 | X164: 241 | Y164: 146 | Z164: 249
A165: 110 | B165: BAS-RHIN | C165: 5101 | D165: SELESTAT | E165: 4007 | F165: ILLKIRCH CENTRE | G165: 7.3 | H165: 156 | I165: 167 | J165: 163 | K165: 166 | L165: 51 | M165: 24 | N165: 199 | O165: 137 | P165: 213 | Q165: 202 | R165: 215 | S165: 95 | T165: 102 | U165: 83 | V165: 159 | W165: 198 | X165: 208 | Y165: 136 | Z165: 196
A166: 110 | B166: VOSGES | C166: 55 | D166: SAINT DIE | E166: 588587 | F166: SAINT DIE CATHEDRALE | G166: 3.9 | H166: 157 | I166: 55 | J166: 105 | K166: 22 | L166: 206 | M166: 201 | N166: 213 | O166: 211 | P166: 82 | Q166: 82 | R166: 55 | S166: 191 | T166: 224 | U166: 235 | V166: 196 | W166: 185 | X166: 153 | Y166: 195 | Z166: 169
A167: 110 | B167: MEURTHE ET MOSELLE MEUSE | C167: 31 | D167: VERDUN | E167: 455566 | F167: REVIGNY SUR ORNAIN | G167: 3.4 | H167: 158 | I167: 80 | J167: 116 | K167: 48 | L167: 88 | M167: 135 | N167: 138 | O167: 160 | P167: 6 | Q167: 231 | R167: 216 | S167: 214 | T167: 163 | U167: 168 | V167: 146 | W167: 184 | X167: 229 | Y167: 77 | Z167: 184
A168: 110 | B168: HAUT-RHIN | C168: 5130 | D168: COLMAR | E168: 4143 | F168: MUNSTER | G168: 5.1 | H168: 159 | I168: 164 | J168: 163 | K168: 161 | L168: 48 | M168: 54 | N168: 119 | O168: 112 | P168: 78 | Q168: 186 | R168: 162 | S168: 212 | T168: 137 | U168: 109 | V168: 187 | W168: 194 | X168: 242 | Y168: 58 | Z168: 210
A169: 110 | B169: MOSELLE | C169: 42 | D169: MOSELLE EST | E169: 557503 | F169: NEUNKIRCH | G169: 3.8 | H169: 160 | I169: 29 | J169: 57 | K169: 21 | L169: 220 | M169: 205 | N169: 219 | O169: 250 | P169: 94 | Q169: 101 | R169: 51 | S169: 253 | T169: 223 | U169: 211 | V169: 232 | W169: 206 | X169: 244 | Y169: 79 | Z169: 218
A170: 110 | B170: HAUT-RHIN | C170: 5169 | D170: MULHOUSE | E170: 4195 | F170: CERNAY | G170: 2.5 | H170: 161 | I170: 135 | J170: 116 | K170: 160 | L170: 218 | M170: 250 | N170: 111 | O170: 144 | P170: 58 | Q170: 36 | R170: 21 | S170: 154 | T170: 245 | U170: 254 | V170: 138 | W170: 74 | X170: 73 | Y170: 132 | Z170: 55
A171: 110 | B171: MEURTHE ET MOSELLE MEUSE | C171: 26 | D171: NANCY | E171: 554296 | F171: ESSEY LES NANCY | G171: 3.9 | H171: 162 | I171: 138 | J171: 152 | K171: 134 | L171: 102 | M171: 69 | N171: 131 | O171: 80 | P171: 200 | Q171: 151 | R171: 112 | S171: 233 | T171: 213 | U171: 208 | V171: 204 | W171: 98 | X171: 65 | Y171: 191 | Z171: 99
A172: 110 | B172: BAS-RHIN | C172: 5006 | D172: STRASBOURG | E172: 4045 | F172: STRASBOURG FRANCS BOURGEOIS | G172: 4.6 | H172: 163 | I172: 203 | J172: 178 | K172: 213 | L172: 112 | M172: 104 | N172: 118 | O172: 130 | P172: 138 | Q172: 15 | R172: 6 | S172: 132 | T172: 238 | U172: 194 | V172: 259 | W172: 158 | X172: 66 | Y172: 228 | Z172: 185
A173: 110 | B173: MOSELLE | C173: 42 | D173: MOSELLE EST | E173: 557523 | F173: PHALSBOURG | G173: 2.2 | H173: 164 | I173: 171 | J173: 194 | K173: 139 | L173: 248 | M173: 229 | N173: 128 | O173: 86 | P173: 255 | Q173: 96 | R173: 102 | S173: 117 | T173: 161 | U173: 140 | V173: 209 | W173: 32 | X173: 97 | Y173: 4 | Z173: 47
A174: 110 | B174: MOSELLE | C174: 45 | D174: METZ | E174: 557105 | F174: ARS SUR MOSELLE | G174: 3.7 | H174: 165 | I174: 150 | J174: 145 | K174: 158 | L174: 219 | M174: 172 | N174: 161 | O174: 87 | P174: 241 | Q174: 180 | R174: 171 | S174: 181 | T174: 201 | U174: 198 | V174: 206 | W174: 23 | X174: 12 | Y174: 103 | Z174: 54
A175: 110 | B175: AUBE HAUTE MARNE | C175: 14 | D175: TROYES | E175: 510530 | F175: ARCIS SUR AUBE | G175: 3.9 | H175: 166 | I175: 57 | J175: 4 | K175: 226 | L175: 93 | M175: 98 | N175: 223 | O175: 135 | P175: 37 | Q175: 245 | R175: 247 | S175: 102 | T175: 173 | U175: 166 | V175: 188 | W175: 197 | X175: 209 | Y175: 177 | Z175: 150
A176: 110 | B176: MOSELLE | C176: 42 | D176: MOSELLE EST | E176: 457258 | F176: DIEUZE | G176: 3.1 | H176: 167 | I176: 143 | J176: 178 | K176: 85 | L176: 119 | M176: 169 | N176: 210 | O176: 171 | P176: 4 | Q176: 172 | R176: 163 | S176: 177 | T176: 101 | U176: 86 | V176: 140 | W176: 214 | X176: 247 | Y176: 112 | Z176: 195
A177: 110 | B177: MARNE-ARDENNES | C177: 2 | D177: CHARLEVILLE MEZIERES | E177: 408840 | F177: RETHEL | G177: 5.0 | H177: 168 | I177: 60 | J177: 97 | K177: 32 | L177: 139 | M177: 175 | N177: 174 | O177: 159 | P177: 30 | Q177: 170 | R177: 155 | S177: 183 | T177: 186 | U177: 165 | V177: 231 | W177: 230 | X177: 147 | Y177: 251 | Z177: 213
A178: 110 | B178: VOSGES | C178: 55 | D178: SAINT DIE | E178: 588461 | F178: MOYENMOUTIER | G178: 2.6 | H178: 169 | I178: 212 | J178: 178 | K178: 229 | L178: 79 | M178: 70 | N178: 116 | O178: 244 | P178: 76 | Q178: 54 | R178: 15 | S178: 255 | T178: 206 | U178: 193 | V178: 217 | W178: 144 | X178: 220 | Y178: 34 | Z178: 164
A179: 110 | B179: MARNE-ARDENNES | C179: 11 | D179: REIMS | E179: 451308 | F179: REIMS SAINT THOMAS | G179: 7.4 | H179: 170 | I179: 197 | J179: 145 | K179: 234 | L179: 178 | M179: 158 | N179: 110 | O179: 76 | P179: 218 | Q179: 207 | R179: 183 | S179: 203 | T179: 154 | U179: 172 | V179: 107 | W179: 25 | X179: 16 | Y179: 116 | Z179: 64
A180: 110 | B180: MARNE-ARDENNES | C180: 11 | D180: REIMS | E180: 551341 | F180: REIMS JEAN JAURES | G180: 4.4 | H180: 171 | I180: 194 | J180: 206 | K180: 175 | L180: 86 | M180: 163 | N180: 164 | O180: 40 | P180: 12 | Q180: 178 | R180: 231 | S180: 41 | T180: 112 | U180: 147 | V180: 65 | W180: 151 | X180: 99 | Y180: 231 | Z180: 84
A181: 110 | B181: BAS-RHIN | C181: 5060 | D181: HAGUENAU | E181: 4087 | F181: SAVERNE | G181: 7.8 | H181: 172 | I181: 178 | J181: 111 | K181: 228 | L181: 123 | M181: 45 | N181: 137 | O181: 107 | P181: 256 | Q181: 144 | R181: 130 | S181: 155 | T181: 166 | U181: 175 | V181: 147 | W181: 110 | X181: 94 | Y181: 87 | Z181: 145
A182: 110 | B182: MEURTHE ET MOSELLE MEUSE | C182: 26 | D182: NANCY | E182: 454671 | F182: VANDOEUVRE LES NANCY | G182: 4.6 | H182: 173 | I182: 211 | J182: 222 | K182: 178 | L182: 74 | M182: 92 | N182: 31 | O182: 30 | P182: 201 | Q182: 235 | R182: 221 | S182: 215 | T182: 176 | U182: 195 | V182: 131 | W182: 30 | X182: 19 | Y182: 173 | Z182: 30
A183: 110 | B183: MOSELLE | C183: 44 | D183: MOSELLE NORD | E183: 557622 | F183: SIERCK LES BAINS | G183: 1.3 | H183: 174 | I183: 181 | J183: 218 | K183: 124 | L183: 142 | M183: 228 | N183: 34 | O183: 99 | P183: 35 | Q183: 41 | R183: 23 | S183: 172 | T183: 250 | U183: 256 | V183: 150 | W183: 86 | X183: 61 | Y183: 239 | Z183: 39
A184: 110 | B184: MOSELLE | C184: 45 | D184: METZ | E184: 557178 | F184: BOULAY | G184: 4.0 | H184: 175 | I184: 51 | J184: 31 | K184: 104 | L184: 202 | M184: 208 | N184: 142 | O184: 168 | P184: 113 | Q184: 181 | R184: 188 | S184: 139 | T184: 192 | U184: 213 | V184: 144 | W184: 210 | X184: 230 | Y184: 107 | Z184: 221
A185: 110 | B185: VOSGES | C185: 55 | D185: SAINT DIE | E185: 588551 | F185: RAMBERVILLERS | G185: 3.5 | H185: 176 | I185: 61 | J185: 116 | K185: 14 | L185: 238 | M185: 203 | N185: 194 | O185: 81 | P185: 247 | Q185: 177 | R185: 132 | S185: 252 | T185: 193 | U185: 186 | V185: 202 | W185: 116 | X185: 85 | Y185: 109 | Z185: 154
A186: 110 | B186: AUBE HAUTE MARNE | C186: 14 | D186: TROYES | E186: 510513 | F186: TROYES 1ER MAI | G186: 3.4 | H186: 177 | I186: 199 | J186: 66 | K186: 255 | L186: 147 | M186: 207 | N186: 24 | O186: 94 | P186: 106 | Q186: 187 | R186: 203 | S186: 115 | T186: 169 | U186: 174 | V186: 154 | W186: 52 | X186: 46 | Y186: 143 | Z186: 35
A187: 110 | B187: MARNE-ARDENNES | C187: 11 | D187: REIMS | E187: 551306 | F187: REIMS SAINT MARCEAUX | G187: 4.4 | H187: 178 | I187: 221 | J187: 253 | K187: 65 | L187: 99 | M187: 83 | N187: 154 | O187: 21 | P187: 205 | Q187: 256 | R187: 259 | S187: 145 | T187: 37 | U187: 36 | V187: 61 | W187: 75 | X187: 41 | Y187: 184 | Z187: 109
A188: 110 | B188: MOSELLE | C188: 45 | D188: METZ | E188: 557439 | F188: METZ POMPIDOU | G188: 3.9 | H188: 179 | I188: 142 | J188: 116 | K188: 170 | L188: 214 | M188: 173 | N188: 212 | O188: 163 | P188: 198 | Q188: 156 | R188: 193 | S188: 67 | T188: 96 | U188: 132 | V188: 46 | W188: 208 | X188: 169 | Y188: 213 | Z188: 197
A189: 110 | B189: HAUT-RHIN | C189: 5169 | D189: MULHOUSE | E189: 4181 | F189: WITTELSHEIM | G189: 3.3 | H189: 180 | I189: 177 | J189: 194 | K189: 153 | L189: 217 | M189: 223 | N189: 84 | O189: 108 | P189: 186 | Q189: 230 | R189: 228 | S189: 170 | T189: 118 | U189: 150 | V189: 52 | W189: 50 | X189: 121 | Y189: 24 | Z189: 34
A190: 110 | B190: MOSELLE | C190: 42 | D190: MOSELLE EST | E190: 557668 | F190: VALMONT | G190: 4.6 | H190: 181 | I190: 16 | J190: 25 | K190: 29 | L190: 243 | M190: 233 | N190: 258 | O190: 246 | P190: 109 | Q190: 175 | R190: 184 | S190: 137 | T190: 170 | U190: 154 | V190: 198 | W190: 250 | X190: 224 | Y190: 229 | Z190: 251
A191: 110 | B191: AUBE HAUTE MARNE | C191: 21 | D191: CHAUMONT | E191: 410566 | F191: CHAUMONT HOTEL DE VILLE | G191: 7.7 | H191: 182 | I191: 158 | J191: 203 | K191: 96 | L191: 135 | M191: 140 | N191: 94 | O191: 109 | P191: 137 | Q191: 179 | R191: 186 | S191: 143 | T191: 188 | U191: 197 | V191: 179 | W191: 101 | X191: 170 | Y191: 29 | Z191: 144
A192: 160 | B192: MOSELLE | C192: 45 | D192: METZ | E192: 557434 | F192: MARLY | G192: 3.7 | H192: 183 | I192: 71 | J192: 86 | K192: 69 | L192: 133 | M192: 127 | N192: 163 | O192: 151 | P192: 96 | Q192: 162 | R192: 175 | S192: 107 | T192: 248 | U192: 249 | V192: 230 | W192: 180 | X192: 158 | Y192: 167 | Z192: 178
A193: 160 | B193: BAS-RHIN | C193: 5006 | D193: STRASBOURG | E193: 4020 | F193: STRASBOURG ROBERTSAU | G193: 6.1 | H193: 184 | I193: 207 | J193: 222 | K193: 169 | L193: 141 | M193: 90 | N193: 202 | O193: 88 | P193: 199 | Q193: 80 | R193: 90 | S193: 75 | T193: 187 | U193: 160 | V193: 241 | W193: 108 | X193: 67 | Y193: 172 | Z193: 132
A194: 160 | B194: HAUT-RHIN | C194: 5130 | D194: COLMAR | E194: 4157 | F194: NEUF BRISACH | G194: 3.6 | H194: 185 | I194: 100 | J194: 66 | K194: 162 | L194: 231 | M194: 236 | N194: 178 | O194: 239 | P194: 132 | Q194: 221 | R194: 214 | S194: 185 | T194: 92 | U194: 69 | V194: 168 | W194: 171 | X194: 189 | Y194: 98 | Z194: 172
A195: 160 | B195: MARNE-ARDENNES | C195: 2 | D195: CHARLEVILLE MEZIERES | E195: 508817 | F195: CHARLEVILLE MOHON | G195: 3.4 | H195: 186 | I195: 88 | J195: 136 | K195: 54 | L195: 165 | M195: 249 | N195: 102 | O195: 56 | P195: 5 | Q195: 218 | R195: 182 | S195: 246 | T195: 205 | U195: 216 | V195: 164 | W195: 150 | X195: 113 | Y195: 202 | Z195: 102
A196: 160 | B196: MEURTHE ET MOSELLE MEUSE | C196: 27 | D196: PONT A MOUSSON | E196: 554196 | F196: CHAMPIGNEULLES | G196: 3.5 | H196: 187 | I196: 201 | J196: 222 | K196: 157 | L196: 40 | M196: 32 | N196: 205 | O196: 145 | P196: 127 | Q196: 233 | R196: 237 | S196: 104 | T196: 113 | U196: 131 | V196: 95 | W196: 183 | X196: 156 | Y196: 145 | Z196: 206
A197: 160 | B197: MOSELLE | C197: 44 | D197: MOSELLE NORD | E197: 557660 | F197: UCKANGE | G197: 1.8 | H197: 188 | I197: 259 | J197: 248 | K197: 261 | L197: 179 | M197: 118 | N197: 113 | O197: 253 | P197: 211 | Q197: 91 | R197: 103 | S197: 88 | T197: 20 | U197: 38 | V197: 3 | W197: 72 | X197: 177 | Y197: 8 | Z197: 139
A198: 160 | B198: HAUT-RHIN | C198: 5130 | D198: COLMAR | E198: 4141 | F198: HORBOURG WIHR | G198: 5.7 | H198: 189 | I198: 182 | J198: 152 | K198: 210 | L198: 240 | M198: 209 | N198: 144 | O198: 154 | P198: 242 | Q198: 78 | R198: 61 | S198: 167 | T198: 158 | U198: 153 | V198: 151 | W198: 96 | X198: 83 | Y198: 129 | Z198: 90
A199: 160 | B199: BAS-RHIN | C199: 5006 | D199: STRASBOURG | E199: 4026 | F199: STRASBOURG DANUBE | G199: 4.5 | H199: 190 | I199: 188 | J199: 36 | K199: 258 | L199: 230 | M199: 162 | N199: 218 | O199: 254 | P199: 239 | Q199: 244 | R199: 254 | S199: 48 | T199: 15 | U199: 9 | V199: 60 | W199: 227 | X199: 232 | Y199: 88 | Z199: 250
A200: 160 | B200: BAS-RHIN | C200: 5060 | D200: HAGUENAU | E200: 4041 | F200: HOERDT | G200: 2.0 | H200: 191 | I200: 215 | J200: 255 | K200: 17 | L200: 78 | M200: 44 | N200: 252 | O200: 194 | P200: 97 | Q200: 42 | R200: 18 | S200: 201 | T200: 152 | U200: 89 | V200: 249 | W200: 255 | X200: 237 | Y200: 247 | Z200: 253
A201: 160 | B201: MARNE-ARDENNES | C201: 6 | D201: CHALONS EN CHAMPAGNE | E201: 451166 | F201: VITRY LE FRANCOIS | G201: 7.0 | H201: 192 | I201: 115 | J201: 175 | K201: 50 | L201: 211 | M201: 212 | N201: 180 | O201: 35 | P201: 172 | Q201: 214 | R201: 205 | S201: 176 | T201: 174 | U201: 152 | V201: 207 | W201: 128 | X201: 78 | Y201: 234 | Z201: 82
A202: 160 | B202: BAS-RHIN | C202: 5060 | D202: HAGUENAU | E202: 4031 | F202: TRUCHTERSHEIM | G202: 2.9 | H202: 193 | I202: 152 | J202: 187 | K202: 93 | L202: 75 | M202: 22 | N202: 256 | O202: 224 | P202: 212 | Q202: 63 | R202: 63 | S202: 93 | T202: 253 | U202: 234 | V202: 262 | W202: 239 | X202: 222 | Y202: 235 | Z202: 199
A203: 160 | B203: MOSELLE | C203: 45 | D203: METZ | E203: 557432 | F203: MAIZIERES LES METZ | G203: 3.9 | H203: 194 | I203: 130 | J203: 46 | K203: 224 | L203: 145 | M203: 156 | N203: 130 | O203: 95 | P203: 134 | Q203: 142 | R203: 146 | S203: 114 | T203: 197 | U203: 196 | V203: 200 | W203: 231 | X203: 162 | Y203: 255 | Z203: 203
A204: 160 | B204: BAS-RHIN | C204: 5101 | D204: SELESTAT | E204: 4116 | F204: MOLSHEIM | G204: 5.1 | H204: 195 | I204: 192 | J204: 178 | K204: 191 | L204: 194 | M204: 132 | N204: 217 | O204: 187 | P204: 187 | Q204: 53 | R204: 40 | S204: 108 | T204: 200 | U204: 190 | V204: 212 | W204: 181 | X204: 179 | Y204: 183 | Z204: 140
... 70 more rows

Sheet AG_FICHE
A1: Accueil
A2: BAROMETRE GRAND PUBLIC
A4: UNITE: | B4: Agence | E4: ETP perf : | F4: =VLOOKUP(A5,'RECAP AG'!$G$6:$DG$271,3,FALSE) -> 8.01
A5: =VLOOKUP(B5,LISTES!$C$6:$D$271,2,FALSE) -> 4189 | B5: ALTKIRCH
C6: Coefficient du critère | E6: Résultats | I6: Ecart au 1ier | K6: =IF(OR(A5=4017,A5=4022),"Rang estimé","Rang") -> Rang
E7: du 1ier | G7: de l'Agence | I7: Du mois
A9: RANG GRAND PUBLIC | K9: =VLOOKUP($A$5,'RECAP AG'!$G$6:$DG$271,104,FALSE) -> 256
A11: SATISFACTION CLIENTS | C11: 20% | K11: =VLOOKUP($A$5,'RECAP AG'!$G$6:$DG$271,13,FALSE) -> 220
B12: NPS à froid (SAE) | C12: 10% | E12: =+'RECAP AG'!K4 -> 51 | G12: =VLOOKUP($A$5,'RECAP AG'!$G$6:$DG$271,5,FALSE) -> 10.0 | I12: =VLOOKUP($A$5,'RECAP AG'!$G$6:$DG$271,6,FALSE) -> 60% | K12: =VLOOKUP($A$5,'RECAP AG'!$G$6:$DG$271,7,FALSE) -> 163
B13: NPS à chaud (QHD) | C13: 10% | E13: =+'RECAP AG'!M4 -> 10% | G13: =VLOOKUP($A$5,'RECAP AG'!$G$6:$DG$271,8,FALSE) -> 33% | I13: =VLOOKUP($A$5,'RECAP AG'!$G$6:$DG$271,9,FALSE) -> 62% | K13: =VLOOKUP($A$5,'RECAP AG'!$G$6:$DG$271,10,FALSE) -> 241
A15: BANCARISATION | C15: 20% | K15: =VLOOKUP($A$5,'RECAP AG'!$G$6:$DG$271,36,FALSE) -> 263
B16: Ventes Nettes produits pondérés | C16: 10% | E16: ='RECAP AG'!X4 -> 136.3 | G16: =VLOOKUP($A$5,'RECAP AG'!$G$6:$DG$271,19,FALSE) -> 9.0 | I16: =VLOOKUP($A$5,'RECAP AG'!$G$6:$DG$271,20,FALSE) -> 93% | K16: =VLOOKUP($A$5,'RECAP AG'!$G$6:$DG$271,21,FALSE) -> 259
B17: Ventes sur client non détenteur de l’univers | C17: 4% | E17: ='RECAP AG'!AB4 -> 65.0 | G17: =VLOOKUP($A$5,'RECAP AG'!$G$6:$DG$271,23,FALSE) -> 17.9 | I17: =VLOOKUP($A$5,'RECAP AG'!$G$6:$DG$271,24,FALSE) -> 73% | K17: =VLOOKUP($A$5,'RECAP AG'!$G$6:$DG$271,25,FALSE) -> 257
B18: Mobilité Macron | C18: 3% | E18: ='RECAP AG'!AF4 -> 34.3 | G18: =VLOOKUP($A$5,'RECAP AG'!$G$6:$DG$271,27,FALSE) -> 2.6 | I18: =VLOOKUP($A$5,'RECAP AG'!$G$6:$DG$271,28,FALSE) -> 92% | K18: =VLOOKUP($A$5,'RECAP AG'!$G$6:$DG$271,29,FALSE) -> 216
B19: Remises commerciales | C19: 3% | E19: ='RECAP AG'!AJ4 -> -0.0 | G19: =VLOOKUP($A$5,'RECAP AG'!$G$6:$DG$271,31,FALSE) -> -2.7 | I19: =VLOOKUP($A$5,'RECAP AG'!$G$6:$DG$271,32,FALSE) -> 114% | K19: =VLOOKUP($A$5,'RECAP AG'!$G$6:$DG$271,33,FALSE) -> 244
A21: EPARGNE | C21: 20% | K21: =VLOOKUP($A$5,'RECAP AG'!$G$6:$DG$271,51,FALSE) -> 251
B22: Excédent Epargne y/c DAV pondéré | C22: 14% | E22: ='RECAP AG'!AU4 -> 1858.7 | G22: =VLOOKUP($A$5,'RECAP AG'!$G$6:$DG$271,42,FALSE) -> 19.0 | I22: =VLOOKUP($A$5,'RECAP AG'!$G$6:$DG$271,43,FALSE) -> 73% | K22: =VLOOKUP($A$5,'RECAP AG'!$G$6:$DG$271,44,FALSE) -> 232
B23: Ventes sur client non détenteur de l’univers | C23: 6% | E23: ='RECAP AG'!AY4 -> 50.2 | G23: =VLOOKUP($A$5,'RECAP AG'!$G$6:$DG$271,46,FALSE) -> 6.7 | I23: =VLOOKUP($A$5,'RECAP AG'!$G$6:$DG$271,47,FALSE) -> 87% | K23: =VLOOKUP($A$5,'RECAP AG'!$G$6:$DG$271,48,FALSE) -> 260
A25: IARD PREVOYANCE | C25: 20% | K25: =VLOOKUP($A$5,'RECAP AG'!$G$6:$DG$271,85,FALSE) -> 258
B26: Ventes Nettes produits pondérés | C26: 14% | E26: ='RECAP AG'!CC4 -> 572.3 | G26: =VLOOKUP($A$5,'RECAP AG'!$G$6:$DG$271,76,FALSE) -> 7.6 | I26: =VLOOKUP($A$5,'RECAP AG'!$G$6:$DG$271,77,FALSE) -> 99% | K26: =VLOOKUP($A$5,'RECAP AG'!$G$6:$DG$271,78,FALSE) -> 258
B27: Ventes sur client non détenteur de l’univers | C27: 6% | E27: ='RECAP AG'!CG4 -> 57.4 | G27: =VLOOKUP($A$5,'RECAP AG'!$G$6:$DG$271,80,FALSE) -> 18.9 | I27: =VLOOKUP($A$5,'RECAP AG'!$G$6:$DG$271,81,FALSE) -> 67% | K27: =VLOOKUP($A$5,'RECAP AG'!$G$6:$DG$271,82,FALSE) -> 236
A29: CREDITS | C29: 20% | K29: =VLOOKUP($A$5,'RECAP AG'!$G$6:$DG$271,70,FALSE) -> 224
B30: Engagements et ventes accessoires pondérés Immo | C30: 8% | E30: ='RECAP AG'!BJ4 -> 416.6 | G30: =VLOOKUP($A$5,'RECAP AG'!$G$6:$DG$271,57,FALSE) -> 43.0 | I30: =VLOOKUP($A$5,'RECAP AG'!$G$6:$DG$271,58,FALSE) -> 90% | K30: =VLOOKUP($A$5,'RECAP AG'!$G$6:$DG$271,59,FALSE) -> 238
B31: Engagements et ventes accessoires pondérés Conso | C31: 6% | E31: ='RECAP AG'!BN4 -> 103.2 | G31: =VLOOKUP($A$5,'RECAP AG'!$G$6:$DG$271,61,FALSE) -> 48.7 | I31: =VLOOKUP($A$5,'RECAP AG'!$G$6:$DG$271,62,FALSE) -> 53% | K31: =VLOOKUP($A$5,'RECAP AG'!$G$6:$DG$271,63,FALSE) -> 96
B32: Ventes sur client non détenteur de l’univers | C32: 6% | E32: ='RECAP AG'!BR4 -> 31.9 | G32: =VLOOKUP($A$5,'RECAP AG'!$G$6:$DG$271,65,FALSE) -> 7.1 | I32: =VLOOKUP($A$5,'RECAP AG'!$G$6:$DG$271,66,FALSE) -> 78% | K32: =VLOOKUP($A$5,'RECAP AG'!$G$6:$DG$271,67,FALSE) -> 244

Sheet AG_TOTAL
B1: Accueil | H1: BAROMETRE BDD - AGENCES
H2: TOTAL GENERAL
H3: =ACCUEIL!F7 -> 2021-07-25
H7: TOTAL GENERAL | K7: Total Satisfaction Clients | N7: Total Bancarisation | Q7: Total Epargne | T7: Total IARD Prévoyance | W7: Total Crédits
I8: coef | J8: 100% | L8: coef | M8: =AG_SATISFACTION!P8 -> 20% | O8: coef | P8: =AG_BANCA!Z8 -> 20% | R8: coef | S8: =AG_EPARGNE!R8 -> 20% | U8: coef | V8: =AG_IARD!R8 -> 20% | X8: coef | Y8: =AG_CREDIT!V8 -> 20%
B9: Direction | C9: eds | D9: Territoire | E9: eds | F9: Agence | G9: ="ETP perf "&DATEMAJ!$C$28 -> ETP perf 31-mai | H9: Moyenne ecart au 1er | I9: % Ecart au 1er | J9: Rang CEGEE | K9: Moyenne ecart au 1er | L9: % Ecart au 1er | M9: Rang CEGEE | N9: Moyenne ecart au 1er | O9: % Ecart au 1er | P9: Rang CEGEE | Q9: Moyenne ecart au 1er | R9: % Ecart au 1er | S9: Rang CEGEE | T9: Moyenne ecart au 1er | U9: % Ecart au 1er | V9: Rang CEGEE | W9: Moyenne ecart au 1er | X9: % Ecart au 1er | Y9: Rang CEGEE
A10: 50 | B10: MEURTHE ET MOSELLE MEUSE | C10: 26 | D10: NANCY | E10: 454481 | F10: NANCY PLACE DOMBASLE | G10: 11.7 | H10: 18% | I10: 0% | J10: 1 | K10: 43% | L10: 41% | M10: 122 | N10: 19% | O10: 0% | P10: 1 | Q10: 37% | R10: 17% | S10: 9 | T10: 29% | U10: 22% | V10: 4 | W10: 20% | X10: 9% | Y10: 2
A11: 50 | B11: MEURTHE ET MOSELLE MEUSE | C11: 27 | D11: PONT A MOUSSON | E11: 554531 | F11: POMPEY | G11: 2.8 | H11: 20% | I11: 2% | J11: 2 | K11: 38% | L11: 36% | M11: 94 | N11: 20% | O11: 1% | P11: 2 | Q11: 29% | R11: 9% | S11: 3 | T11: 38% | U11: 31% | V11: 14 | W11: 35% | X11: 23% | Y11: 7
A12: 50 | B12: MEURTHE ET MOSELLE MEUSE | C12: 26 | D12: NANCY | E12: 554356 | F12: JARVILLE LA MALGRANGE | G12: 3.6 | H12: 25% | I12: 7% | J12: 3 | K12: 28% | L12: 26% | M12: 36 | N12: 34% | O12: 15% | P12: 4 | Q12: 50% | R12: 29% | S12: 45 | T12: 40% | U12: 34% | V12: 17 | W12: 33% | X12: 21% | Y12: 5
A13: 50 | B13: MOSELLE | C13: 42 | D13: MOSELLE EST | E13: 457163 | F13: BEHREN LES FORBACH | G13: 2.4 | H13: 27% | I13: 9% | J13: 4 | K13: 10% | L13: 8% | M13: 3 | N13: 45% | O13: 26% | P13: 11 | Q13: 57% | R13: 37% | S13: 93 | T13: 53% | U13: 46% | V13: 42 | W13: 30% | X13: 19% | Y13: 4
A14: 50 | B14: MARNE-ARDENNES | C14: 2 | D14: CHARLEVILLE MEZIERES | E14: 408822 | F14: CHARLEVILLE MEZIERES | G14: 3.8 | H14: 28% | I14: 11% | J14: 5 | K14: 42% | L14: 40% | M14: 116 | N14: 55% | O14: 36% | P14: 41 | Q14: 25% | R14: 4% | S14: 2 | T14: 33% | U14: 26% | V14: 8 | W14: 47% | X14: 35% | Y14: 18
A15: 50 | B15: MARNE-ARDENNES | C15: 6 | D15: CHALONS EN CHAMPAGNE | E15: 451115 | F15: MOURMELON LE GRAND | G15: 2.9 | H15: 29% | I15: 11% | J15: 6 | K15: 29% | L15: 28% | M15: 49 | N15: 43% | O15: 24% | P15: 8 | Q15: 43% | R15: 22% | S15: 18 | T15: 47% | U15: 40% | V15: 27 | W15: 42% | X15: 30% | Y15: 12
A16: 50 | B16: MARNE-ARDENNES | C16: 2 | D16: CHARLEVILLE MEZIERES | E16: 508820 | F16: VOUZIERS | G16: 2.9 | H16: 29% | I16: 12% | J16: 7 | K16: 35% | L16: 33% | M16: 73 | N16: 58% | O16: 39% | P16: 59 | Q16: 58% | R16: 37% | S16: 95 | T16: 7% | U16: 0% | V16: 1 | W16: 50% | X16: 38% | Y16: 24
A17: 50 | B17: MOSELLE | C17: 44 | D17: MOSELLE NORD | E17: 557508 | F17: NILVANGE | G17: 2.6 | H17: 30% | I17: 12% | J17: 8 | K17: 41% | L17: 39% | M17: 109 | N17: 45% | O17: 26% | P17: 14 | Q17: 43% | R17: 23% | S17: 20 | T17: 30% | U17: 23% | V17: 6 | W17: 48% | X17: 37% | Y17: 21
A18: 50 | B18: MOSELLE | C18: 44 | D18: MOSELLE NORD | E18: 557113 | F18: AUDUN LE TICHE | G18: 2.0 | H18: 30% | I18: 12% | J18: 9 | K18: 35% | L18: 33% | M18: 75 | N18: 45% | O18: 26% | P18: 16 | Q18: 52% | R18: 31% | S18: 60 | T18: 53% | U18: 46% | V18: 49 | W18: 25% | X18: 14% | Y18: 3
A19: 50 | B19: MARNE-ARDENNES | C19: 11 | D19: REIMS | E19: 551349 | F19: REIMS SAINT REMI | G19: 3.0 | H19: 30% | I19: 13% | J19: 10 | K19: 41% | L19: 40% | M19: 111 | N19: 50% | O19: 31% | P19: 26 | Q19: 45% | R19: 24% | S19: 21 | T19: 31% | U19: 24% | V19: 7 | W19: 45% | X19: 33% | Y19: 16
A20: 50 | B20: BAS-RHIN | C20: 5101 | D20: SELESTAT | E20: 4126 | F20: MUTZIG | G20: 2.0 | H20: 31% | I20: 13% | J20: 11 | K20: 33% | L20: 31% | M20: 62 | N20: 51% | O20: 32% | P20: 27 | Q20: 39% | R20: 18% | S20: 10 | T20: 60% | U20: 53% | V20: 75 | W20: 34% | X20: 23% | Y20: 6
A21: 50 | B21: VOSGES | C21: 57 | D21: EPINAL | E21: 488288 | F21: EPINAL LEOPOLD BOURG | G21: 1.9 | H21: 32% | I21: 14% | J21: 12 | K21: 32% | L21: 30% | M21: 56 | N21: 45% | O21: 27% | P21: 17 | Q21: 40% | R21: 20% | S21: 12 | T21: 62% | U21: 55% | V21: 91 | W21: 38% | X21: 26% | Y21: 8
A22: 50 | B22: MARNE-ARDENNES | C22: 11 | D22: REIMS | E22: 451336 | F22: TINQUEUX | G22: 5.7 | H22: 32% | I22: 14% | J22: 13 | K22: 43% | L22: 41% | M22: 118 | N22: 57% | O22: 38% | P22: 49 | Q22: 21% | R22: 0% | S22: 1 | T22: 48% | U22: 41% | V22: 28 | W22: 53% | X22: 41% | Y22: 35
A23: 50 | B23: BAS-RHIN | C23: 5101 | D23: SELESTAT | E23: 4113 | F23: BARR | G23: 3.0 | H23: 34% | I23: 16% | J23: 14 | K23: 29% | L23: 27% | M23: 48 | N23: 48% | O23: 29% | P23: 21 | Q23: 33% | R23: 12% | S23: 4 | T23: 52% | U23: 46% | V23: 40 | W23: 68% | X23: 56% | Y23: 155
A24: 50 | B24: MEURTHE ET MOSELLE MEUSE | C24: 27 | D24: PONT A MOUSSON | E24: 454651 | F24: TOUL | G24: 10.3 | H24: 34% | I24: 16% | J24: 15 | K24: 66% | L24: 64% | M24: 236 | N24: 42% | O24: 23% | P24: 7 | Q24: 57% | R24: 36% | S24: 89 | T24: 54% | U24: 47% | V24: 51 | W24: 12% | X24: 0% | Y24: 1
A25: 50 | B25: MEURTHE ET MOSELLE MEUSE | C25: 31 | D25: VERDUN | E25: 554413 | F25: LONGWY BAS | G25: 3.5 | H25: 34% | I25: 16% | J25: 16 | K25: 27% | L25: 25% | M25: 32 | N25: 50% | O25: 31% | P25: 25 | Q25: 35% | R25: 15% | S25: 8 | T25: 65% | U25: 58% | V25: 120 | W25: 54% | X25: 42% | Y25: 42
A26: 50 | B26: MEURTHE ET MOSELLE MEUSE | C26: 31 | D26: VERDUN | E26: 454414 | F26: LONGWY HAUT | G26: 3.6 | H26: 35% | I26: 17% | J26: 17 | K26: 31% | L26: 29% | M26: 53 | N26: 60% | O26: 41% | P26: 70 | Q26: 34% | R26: 13% | S26: 6 | T26: 53% | U26: 46% | V26: 45 | W26: 58% | X26: 46% | Y26: 60
A27: 50 | B27: MOSELLE | C27: 42 | D27: MOSELLE EST | E27: 457165 | F27: BITCHE | G27: 2.0 | H27: 36% | I27: 18% | J27: 18 | K27: 41% | L27: 40% | M27: 112 | N27: 36% | O27: 17% | P27: 6 | Q27: 68% | R27: 47% | S27: 205 | T27: 33% | U27: 26% | V27: 9 | W27: 60% | X27: 48% | Y27: 69
A28: 50 | B28: BAS-RHIN | C28: 5060 | D28: HAGUENAU | E28: 4092 | F28: HOCHFELDEN | G28: 2.3 | H28: 36% | I28: 19% | J28: 19 | K28: 46% | L28: 44% | M28: 139 | N28: 36% | O28: 17% | P28: 5 | Q28: 67% | R28: 47% | S28: 196 | T28: 48% | U28: 42% | V28: 30 | W28: 44% | X28: 32% | Y28: 15
A29: 50 | B29: BAS-RHIN | C29: 5006 | D29: STRASBOURG | E29: 4010 | F29: STRASBOURG MEINAU | G29: 3.1 | H29: 37% | I29: 19% | J29: 20 | K29: 50% | L29: 48% | M29: 169 | N29: 45% | O29: 26% | P29: 12 | Q29: 55% | R29: 34% | S29: 75 | T29: 30% | U29: 23% | V29: 5 | W29: 64% | X29: 53% | Y29: 105
A30: 50 | B30: MARNE-ARDENNES | C30: 2 | D30: CHARLEVILLE MEZIERES | E30: 508839 | F30: GIVET | G30: 3.6 | H30: 37% | I30: 19% | J30: 21 | K30: 25% | L30: 23% | M30: 23 | N30: 67% | O30: 48% | P30: 134 | Q30: 62% | R30: 41% | S30: 136 | T30: 26% | U30: 20% | V30: 3 | W30: 66% | X30: 54% | Y30: 125
A31: 262 | B31: MOSELLE | C31: 45 | D31: METZ | E31: 557444 | F31: SAINT JULIEN LES METZ | G31: 4.9 | H31: 37% | I31: 20% | J31: 22 | K31: 44% | L31: 42% | M31: 131 | N31: 64% | O31: 45% | P31: 106 | Q31: 45% | R31: 25% | S31: 28 | T31: 35% | U31: 28% | V31: 10 | W31: 58% | X31: 46% | Y31: 59
A32: 262 | B32: MARNE-ARDENNES | C32: 6 | D32: CHALONS EN CHAMPAGNE | E32: 551330 | F32: MONTMIRAIL | G32: 2.9 | H32: 38% | I32: 20% | J32: 23 | K32: 19% | L32: 18% | M32: 11 | N32: 72% | O32: 53% | P32: 186 | Q32: 45% | R32: 25% | S32: 26 | T32: 53% | U32: 46% | V32: 43 | W32: 58% | X32: 47% | Y32: 62
A33: 262 | B33: BAS-RHIN | C33: 5006 | D33: STRASBOURG | E33: 4047 | F33: STRASBOURG CRONENBOURG | G33: 5.1 | H33: 38% | I33: 20% | J33: 24 | K33: 28% | L33: 27% | M33: 44 | N33: 65% | O33: 46% | P33: 117 | Q33: 49% | R33: 29% | S33: 39 | T33: 50% | U33: 43% | V33: 31 | W33: 55% | X33: 43% | Y33: 45
A34: 262 | B34: MARNE-ARDENNES | C34: 11 | D34: REIMS | E34: 551340 | F34: BETHENY | G34: 3.0 | H34: 38% | I34: 20% | J34: 25 | K34: 41% | L34: 40% | M34: 110 | N34: 66% | O34: 48% | P34: 128 | Q34: 42% | R34: 22% | S34: 16 | T34: 58% | U34: 51% | V34: 71 | W34: 40% | X34: 28% | Y34: 11
A35: 262 | B35: MEURTHE ET MOSELLE MEUSE | C35: 26 | D35: NANCY | E35: 554476 | F35: NANCY ARTEM | G35: 2.7 | H35: 38% | I35: 20% | J35: 26 | K35: 42% | L35: 40% | M35: 117 | N35: 55% | O35: 36% | P35: 38 | Q35: 41% | R35: 21% | S35: 14 | T35: 58% | U35: 51% | V35: 70 | W35: 53% | X35: 41% | Y35: 38
A36: 262 | B36: BAS-RHIN | C36: 5101 | D36: SELESTAT | E36: 4121 | F36: SCHIRMECK | G36: 3.2 | H36: 38% | I36: 20% | J36: 27 | K36: 22% | L36: 20% | M36: 14 | N36: 62% | O36: 43% | P36: 82 | Q36: 47% | R36: 27% | S36: 33 | T36: 58% | U36: 51% | V36: 69 | W36: 61% | X36: 50% | Y36: 80
A37: 262 | B37: MARNE-ARDENNES | C37: 2 | D37: CHARLEVILLE MEZIERES | E37: 508833 | F37: VILLERS SEMEUSE CORA | G37: 3.6 | H37: 38% | I37: 20% | J37: 28 | K37: 45% | L37: 43% | M37: 136 | N37: 53% | O37: 34% | P37: 33 | Q37: 48% | R37: 27% | S37: 34 | T37: 54% | U37: 47% | V37: 52 | W37: 51% | X37: 39% | Y37: 27
A38: 262 | B38: MOSELLE | C38: 42 | D38: MOSELLE EST | E38: 557250 | F38: CREUTZWALD | G38: 2.7 | H38: 39% | I38: 21% | J38: 29 | K38: 44% | L38: 42% | M38: 129 | N38: 66% | O38: 47% | P38: 125 | Q38: 42% | R38: 22% | S38: 17 | T38: 43% | U38: 36% | V38: 21 | W38: 58% | X38: 47% | Y38: 61
A39: 262 | B39: AUBE HAUTE MARNE | C39: 21 | D39: CHAUMONT | E39: 451151 | F39: WASSY | G39: 2.0 | H39: 39% | I39: 22% | J39: 30 | K39: 23% | L39: 21% | M39: 17 | N39: 56% | O39: 37% | P39: 42 | Q39: 65% | R39: 45% | S39: 171 | T39: 63% | U39: 56% | V39: 97 | W39: 51% | X39: 39% | Y39: 26
A40: 262 | B40: MARNE-ARDENNES | C40: 11 | D40: REIMS | E40: 551367 | F40: AY CHAMPAGNE | G40: 2.7 | H40: 40% | I40: 22% | J40: 31 | K40: 40% | L40: 38% | M40: 102 | N40: 52% | O40: 33% | P40: 30 | Q40: 74% | R40: 53% | S40: 240 | T40: 53% | U40: 46% | V40: 41 | W40: 39% | X40: 28% | Y40: 10
A41: 262 | B41: MARNE-ARDENNES | C41: 11 | D41: REIMS | E41: 451350 | F41: REIMS CENTRE VILLE | G41: 7.2 | H41: 40% | I41: 22% | J41: 32 | K41: 50% | L41: 48% | M41: 166 | N41: 67% | O41: 48% | P41: 132 | Q41: 51% | R41: 30% | S41: 49 | T41: 51% | U41: 44% | V41: 34 | W41: 39% | X41: 28% | Y41: 9
A42: 262 | B42: MARNE-ARDENNES | C42: 2 | D42: CHARLEVILLE MEZIERES | E42: 408801 | F42: CHARLEVILLE JEAN JAURES | G42: 9.4 | H42: 40% | I42: 22% | J42: 33 | K42: 32% | L42: 30% | M42: 58 | N42: 58% | O42: 39% | P42: 58 | Q42: 55% | R42: 34% | S42: 72 | T42: 68% | U42: 61% | V42: 146 | W42: 45% | X42: 33% | Y42: 17
A43: 262 | B43: MARNE-ARDENNES | C43: 2 | D43: CHARLEVILLE MEZIERES | E43: 408862 | F43: REVIN | G43: 4.3 | H43: 40% | I43: 22% | J43: 34 | K43: 12% | L43: 11% | M43: 5 | N43: 65% | O43: 46% | P43: 110 | Q43: 51% | R43: 30% | S43: 51 | T43: 64% | U43: 58% | V43: 110 | W43: 65% | X43: 54% | Y43: 122
A44: 262 | B44: MEURTHE ET MOSELLE MEUSE | C44: 31 | D44: VERDUN | E44: 555624 | F44: STENAY | G44: 2.8 | H44: 40% | I44: 22% | J44: 35 | K44: 24% | L44: 23% | M44: 21 | N44: 44% | O44: 25% | P44: 9 | Q44: 59% | R44: 38% | S44: 104 | T44: 66% | U44: 59% | V44: 129 | W44: 65% | X44: 54% | Y44: 120
A45: 262 | B45: VOSGES | C45: 57 | D45: EPINAL | E45: 588631 | F45: THAON LES VOSGES | G45: 5.5 | H45: 40% | I45: 22% | J45: 36 | K45: 28% | L45: 26% | M45: 41 | N45: 59% | O45: 40% | P45: 64 | Q45: 61% | R45: 40% | S45: 126 | T45: 45% | U45: 38% | V45: 24 | W45: 65% | X45: 53% | Y45: 115
A46: 262 | B46: MOSELLE | C46: 42 | D46: MOSELLE EST | E46: 557305 | F46: FAULQUEMONT | G46: 2.5 | H46: 40% | I46: 22% | J46: 37 | K46: 26% | L46: 24% | M46: 27 | N46: 58% | O46: 39% | P46: 54 | Q46: 58% | R46: 38% | S46: 102 | T46: 62% | U46: 55% | V46: 88 | W46: 55% | X46: 43% | Y46: 46
A47: 262 | B47: MARNE-ARDENNES | C47: 2 | D47: CHARLEVILLE MEZIERES | E47: 508815 | F47: CARIGNAN | G47: 2.9 | H47: 40% | I47: 22% | J47: 38 | K47: 35% | L47: 33% | M47: 74 | N47: 62% | O47: 43% | P47: 85 | Q47: 34% | R47: 13% | S47: 5 | T47: 68% | U47: 61% | V47: 142 | W47: 61% | X47: 49% | Y47: 78
A48: 262 | B48: MEURTHE ET MOSELLE MEUSE | C48: 27 | D48: PONT A MOUSSON | E48: 554533 | F48: PONT A MOUSSON BREUIL | G48: 2.8 | H48: 40% | I48: 22% | J48: 39 | K48: 51% | L48: 49% | M48: 170 | N48: 57% | O48: 38% | P48: 47 | Q48: 35% | R48: 15% | S48: 7 | T48: 70% | U48: 63% | V48: 157 | W48: 48% | X48: 36% | Y48: 20
A49: 262 | B49: VOSGES | C49: 55 | D49: SAINT DIE | E49: 488246 | F49: CORNIMONT LA BRESSE | G49: 2.6 | H49: 40% | I49: 22% | J49: 40 | K49: 19% | L49: 17% | M49: 10 | N49: 69% | O49: 50% | P49: 158 | Q49: 67% | R49: 46% | S49: 188 | T49: 51% | U49: 45% | V49: 35 | W49: 54% | X49: 42% | Y49: 41
A50: 262 | B50: MEURTHE ET MOSELLE MEUSE | C50: 27 | D50: PONT A MOUSSON | E50: 554376 | F50: LAXOU BOUFFLERS | G50: 2.7 | H50: 40% | I50: 23% | J50: 41 | K50: 52% | L50: 50% | M50: 175 | N50: 58% | O50: 39% | P50: 55 | Q50: 43% | R50: 22% | S50: 19 | T50: 58% | U50: 51% | V50: 68 | W50: 51% | X50: 40% | Y50: 29
A51: 262 | B51: MARNE-ARDENNES | C51: 6 | D51: CHALONS EN CHAMPAGNE | E51: 451120 | F51: SARRY | G51: 2.5 | H51: 41% | I51: 23% | J51: 42 | K51: 18% | L51: 16% | M51: 9 | N51: 67% | O51: 48% | P51: 131 | Q51: 45% | R51: 24% | S51: 23 | T51: 65% | U51: 59% | V51: 125 | W51: 69% | X51: 58% | Y51: 165
A52: 262 | B52: BAS-RHIN | C52: 5060 | D52: HAGUENAU | E52: 4079 | F52: SOULTZ SOUS FORETS | G52: 2.2 | H52: 41% | I52: 23% | J52: 43 | K52: 45% | L52: 44% | M52: 137 | N52: 46% | O52: 28% | P52: 20 | Q52: 60% | R52: 39% | S52: 118 | T52: 54% | U52: 47% | V52: 57 | W52: 58% | X52: 47% | Y52: 63
A53: 262 | B53: MEURTHE ET MOSELLE MEUSE | C53: 27 | D53: PONT A MOUSSON | E53: 454535 | F53: PONT A MOUSSON CENTRALE | G53: 7.8 | H53: 41% | I53: 23% | J53: 44 | K53: 54% | L53: 52% | M53: 186 | N53: 44% | O53: 25% | P53: 10 | Q53: 51% | R53: 30% | S53: 50 | T53: 59% | U53: 52% | V53: 72 | W53: 57% | X53: 46% | Y53: 56
A54: 262 | B54: MEURTHE ET MOSELLE MEUSE | C54: 27 | D54: PONT A MOUSSON | E54: 554381 | F54: LAXOU ARISTIDE BRIAND | G54: 4.1 | H54: 41% | I54: 24% | J54: 45 | K54: 37% | L54: 35% | M54: 85 | N54: 52% | O54: 33% | P54: 29 | Q54: 55% | R54: 34% | S54: 74 | T54: 57% | U54: 51% | V54: 67 | W54: 65% | X54: 54% | Y54: 117
A55: 262 | B55: MOSELLE | C55: 42 | D55: MOSELLE EST | E55: 457308 | F55: FORBACH CENTRALE | G55: 11.3 | H55: 41% | I55: 24% | J55: 46 | K55: 28% | L55: 27% | M55: 43 | N55: 57% | O55: 38% | P55: 46 | Q55: 55% | R55: 34% | S55: 73 | T55: 61% | U55: 54% | V55: 87 | W55: 66% | X55: 54% | Y55: 131
A56: 262 | B56: MARNE-ARDENNES | C56: 11 | D56: REIMS | E56: 551305 | F56: REIMS HIPPODROME | G56: 3.9 | H56: 41% | I56: 24% | J56: 47 | K56: 20% | L56: 18% | M56: 12 | N56: 77% | O56: 58% | P56: 224 | Q56: 65% | R56: 44% | S56: 166 | T56: 52% | U56: 45% | V56: 38 | W56: 53% | X56: 41% | Y56: 37
A57: 262 | B57: MEURTHE ET MOSELLE MEUSE | C57: 31 | D57: VERDUN | E57: 555679 | F57: VERDUN MAZEL | G57: 3.8 | H57: 42% | I57: 24% | J57: 48 | K57: 24% | L57: 22% | M57: 19 | N57: 59% | O57: 40% | P57: 63 | Q57: 52% | R57: 31% | S57: 59 | T57: 73% | U57: 66% | V57: 179 | W57: 60% | X57: 49% | Y57: 70
A58: 262 | B58: MEURTHE ET MOSELLE MEUSE | C58: 31 | D58: VERDUN | E58: 554412 | F58: LONGUYON | G58: 2.8 | H58: 42% | I58: 24% | J58: 49 | K58: 28% | L58: 26% | M58: 40 | N58: 66% | O58: 47% | P58: 126 | Q58: 61% | R58: 40% | S58: 127 | T58: 64% | U58: 57% | V58: 107 | W58: 49% | X58: 37% | Y58: 22
A59: 262 | B59: BAS-RHIN | C59: 5060 | D59: HAGUENAU | E59: 4082 | F59: BOUXWILLER | G59: 2.5 | H59: 42% | I59: 24% | J59: 50 | K59: 34% | L59: 32% | M59: 70 | N59: 64% | O59: 45% | P59: 103 | Q59: 47% | R59: 27% | S59: 32 | T59: 67% | U59: 60% | V59: 134 | W59: 57% | X59: 45% | Y59: 54
A60: 262 | B60: AUBE HAUTE MARNE | C60: 21 | D60: CHAUMONT | E60: 510590 | F60: CHAUMONT REPUBLIQUE | G60: 4.4 | H60: 42% | I60: 24% | J60: 51 | K60: 43% | L60: 41% | M60: 120 | N60: 62% | O60: 43% | P60: 81 | Q60: 52% | R60: 31% | S60: 57 | T60: 53% | U60: 46% | V60: 44 | W60: 60% | X60: 48% | Y60: 66
A61: 262 | B61: HAUT-RHIN | C61: 5130 | D61: COLMAR | E61: 4144 | F61: RIBEAUVILLE | G61: 2.9 | H61: 42% | I61: 24% | J61: 52 | K61: 33% | L61: 31% | M61: 66 | N61: 54% | O61: 35% | P61: 36 | Q61: 50% | R61: 29% | S61: 43 | T61: 55% | U61: 48% | V61: 60 | W61: 77% | X61: 65% | Y61: 237
A62: 262 | B62: VOSGES | C62: 57 | D62: EPINAL | E62: 588716 | F62: XERTIGNY | G62: 2.9 | H62: 42% | I62: 24% | J62: 53 | K62: 46% | L62: 44% | M62: 145 | N62: 58% | O62: 39% | P62: 53 | Q62: 59% | R62: 39% | S62: 111 | T62: 37% | U62: 30% | V62: 13 | W62: 71% | X62: 59% | Y62: 178
A63: 262 | B63: MEURTHE ET MOSELLE MEUSE | C63: 27 | D63: PONT A MOUSSON | E63: 554506 | F63: CHALIGNY NEUVES MAISONS | G63: 3.8 | H63: 42% | I63: 24% | J63: 54 | K63: 63% | L63: 61% | M63: 226 | N63: 33% | O63: 14% | P63: 3 | Q63: 71% | R63: 50% | S63: 223 | T63: 62% | U63: 55% | V63: 90 | W63: 42% | X63: 31% | Y63: 13
A64: 262 | B64: MARNE-ARDENNES | C64: 6 | D64: CHALONS EN CHAMPAGNE | E64: 551110 | F64: CHALONS ROOSEVELT | G64: 5.0 | H64: 42% | I64: 25% | J64: 55 | K64: 25% | L64: 23% | M64: 22 | N64: 66% | O64: 47% | P64: 121 | Q64: 54% | R64: 33% | S64: 66 | T64: 61% | U64: 54% | V64: 86 | W64: 66% | X64: 54% | Y64: 127
A65: 262 | B65: MOSELLE | C65: 44 | D65: MOSELLE NORD | E65: 457348 | F65: HAGONDANGE | G65: 9.3 | H65: 42% | I65: 25% | J65: 56 | K65: 51% | L65: 50% | M65: 173 | N65: 53% | O65: 34% | P65: 32 | Q65: 57% | R65: 36% | S65: 87 | T65: 56% | U65: 49% | V65: 64 | W65: 55% | X65: 44% | Y65: 48
A66: 262 | B66: MARNE-ARDENNES | C66: 6 | D66: CHALONS EN CHAMPAGNE | E66: 551354 | F66: VERTUS | G66: 2.5 | H66: 42% | I66: 25% | J66: 57 | K66: 12% | L66: 10% | M66: 4 | N66: 75% | O66: 56% | P66: 212 | Q66: 60% | R66: 39% | S66: 113 | T66: 62% | U66: 55% | V66: 95 | W66: 65% | X66: 53% | Y66: 112
A67: 262 | B67: MARNE-ARDENNES | C67: 2 | D67: CHARLEVILLE MEZIERES | E67: 508802 | F67: CHARLEVILLE NEVERS | G67: 3.0 | H67: 43% | I67: 25% | J67: 58 | K67: 25% | L67: 23% | M67: 24 | N67: 70% | O67: 51% | P67: 174 | Q67: 71% | R67: 51% | S67: 227 | T67: 41% | U67: 35% | V67: 18 | W67: 64% | X67: 53% | Y67: 106
A68: 262 | B68: MARNE-ARDENNES | C68: 11 | D68: REIMS | E68: 551310 | F68: REIMS CHATILLONS | G68: 4.2 | H68: 43% | I68: 25% | J68: 59 | K68: 47% | L68: 45% | M68: 148 | N68: 61% | O68: 42% | P68: 76 | Q68: 58% | R68: 37% | S68: 97 | T68: 55% | U68: 48% | V68: 59 | W68: 52% | X68: 40% | Y68: 33
A69: 262 | B69: MEURTHE ET MOSELLE MEUSE | C69: 27 | D69: PONT A MOUSSON | E69: 554357 | F69: JOEUF | G69: 3.8 | H69: 43% | I69: 25% | J69: 60 | K69: 46% | L69: 45% | M69: 147 | N69: 62% | O69: 43% | P69: 84 | Q69: 76% | R69: 56% | S69: 248 | T69: 45% | U69: 38% | V69: 23 | W69: 43% | X69: 32% | Y69: 14
A70: 262 | B70: MOSELLE | C70: 44 | D70: MOSELLE NORD | E70: 457306 | F70: FLORANGE | G70: 3.7 | H70: 43% | I70: 25% | J70: 61 | K70: 43% | L70: 42% | M70: 126 | N70: 61% | O70: 42% | P70: 72 | Q70: 45% | R70: 24% | S70: 25 | T70: 61% | U70: 54% | V70: 84 | W70: 64% | X70: 52% | Y70: 102
A71: 262 | B71: MEURTHE ET MOSELLE MEUSE | C71: 26 | D71: NANCY | E71: 454426 | F71: LUNEVILLE CARNOT | G71: 10.1 | H71: 43% | I71: 25% | J71: 62 | K71: 45% | L71: 43% | M71: 133 | N71: 60% | O71: 41% | P71: 68 | Q71: 62% | R71: 41% | S71: 137 | T71: 54% | U71: 47% | V71: 56 | W71: 54% | X71: 43% | Y71: 44
A72: 262 | B72: MEURTHE ET MOSELLE MEUSE | C72: 27 | D72: PONT A MOUSSON | E72: 554416 | F72: LUDRES | G72: 3.7 | H72: 43% | I72: 25% | J72: 63 | K72: 28% | L72: 26% | M72: 42 | N72: 65% | O72: 46% | P72: 116 | Q72: 47% | R72: 27% | S72: 31 | T72: 79% | U72: 72% | V72: 232 | W72: 56% | X72: 44% | Y72: 49
A73: 262 | B73: VOSGES | C73: 57 | D73: EPINAL | E73: 588501 | F73: NEUFCHATEAU | G73: 5.0 | H73: 43% | I73: 25% | J73: 64 | K73: 21% | L73: 19% | M73: 13 | N73: 70% | O73: 51% | P73: 173 | Q73: 59% | R73: 38% | S73: 103 | T73: 68% | U73: 61% | V73: 144 | W73: 58% | X73: 46% | Y73: 58
A74: 262 | B74: MOSELLE | C74: 45 | D74: METZ | E74: 557447 | F74: METZ SAINT MAXIMIN | G74: 3.1 | H74: 43% | I74: 25% | J74: 65 | K74: 42% | L74: 40% | M74: 113 | N74: 52% | O74: 34% | P74: 31 | Q74: 57% | R74: 37% | S74: 94 | T74: 69% | U74: 62% | V74: 153 | W74: 55% | X74: 44% | Y74: 47
A75: 262 | B75: MEURTHE ET MOSELLE MEUSE | C75: 26 | D75: NANCY | E75: 554636 | F75: TOMBLAINE | G75: 2.5 | H75: 43% | I75: 25% | J75: 66 | K75: 23% | L75: 21% | M75: 18 | N75: 77% | O75: 58% | P75: 223 | Q75: 56% | R75: 35% | S75: 84 | T75: 54% | U75: 47% | V75: 55 | W75: 66% | X75: 54% | Y75: 134
A76: 262 | B76: MEURTHE ET MOSELLE MEUSE | C76: 26 | D76: NANCY | E76: 554601 | F76: SAINT MAX | G76: 4.5 | H76: 43% | I76: 25% | J76: 67 | K76: 26% | L76: 24% | M76: 28 | N76: 66% | O76: 47% | P76: 127 | Q76: 54% | R76: 34% | S76: 68 | T76: 60% | U76: 53% | V76: 74 | W76: 70% | X76: 58% | Y76: 168
A77: 262 | B77: MOSELLE | C77: 44 | D77: MOSELLE NORD | E77: 557352 | F77: HETTANGE GRANDE | G77: 4.1 | H77: 43% | I77: 26% | J77: 68 | K77: 52% | L77: 50% | M77: 174 | N77: 49% | O77: 30% | P77: 22 | Q77: 61% | R77: 41% | S77: 132 | T77: 53% | U77: 46% | V77: 46 | W77: 62% | X77: 51% | Y77: 87
A78: 262 | B78: BAS-RHIN | C78: 5006 | D78: STRASBOURG | E78: 4037 | F78: MUNDOLSHEIM | G78: 4.0 | H78: 44% | I78: 26% | J78: 69 | K78: 56% | L78: 55% | M78: 195 | N78: 49% | O78: 30% | P78: 24 | Q78: 51% | R78: 31% | S78: 52 | T78: 56% | U78: 49% | V78: 62 | W78: 66% | X78: 54% | Y78: 124
A79: 264 | B79: MARNE-ARDENNES | C79: 6 | D79: CHALONS EN CHAMPAGNE | E79: 451101 | F79: CHALONS VIVIERS | G79: 9.2 | H79: 44% | I79: 26% | J79: 70 | K79: 28% | L79: 26% | M79: 38 | N79: 65% | O79: 46% | P79: 111 | Q79: 60% | R79: 39% | S79: 121 | T79: 64% | U79: 57% | V79: 109 | W79: 61% | X79: 49% | Y79: 79
A80: 264 | B80: BAS-RHIN | C80: 5101 | D80: SELESTAT | E80: 4120 | F80: WASSELONNE | G80: 4.4 | H80: 44% | I80: 26% | J80: 71 | K80: 54% | L80: 52% | M80: 183 | N80: 71% | O80: 52% | P80: 177 | Q80: 40% | R80: 20% | S80: 11 | T80: 53% | U80: 46% | V80: 48 | W80: 60% | X80: 49% | Y80: 71
A81: 264 | B81: MEURTHE ET MOSELLE MEUSE | C81: 31 | D81: VERDUN | E81: 455456 | F81: MONTMEDY | G81: 1.8 | H81: 44% | I81: 26% | J81: 72 | K81: 39% | L81: 37% | M81: 97 | N81: 60% | O81: 41% | P81: 69 | Q81: 60% | R81: 39% | S81: 114 | T81: 65% | U81: 58% | V81: 121 | W81: 56% | X81: 44% | Y81: 51
A82: 264 | B82: VOSGES | C82: 57 | D82: EPINAL | E82: 588206 | F82: CHARMES | G82: 2.8 | H82: 44% | I82: 26% | J82: 73 | K82: 30% | L82: 29% | M82: 52 | N82: 68% | O82: 49% | P82: 154 | Q82: 73% | R82: 52% | S82: 236 | T82: 46% | U82: 39% | V82: 25 | W82: 62% | X82: 51% | Y82: 89
A83: 264 | B83: MARNE-ARDENNES | C83: 11 | D83: REIMS | E83: 551314 | F83: FISMES | G83: 3.0 | H83: 44% | I83: 27% | J83: 74 | K83: 35% | L83: 33% | M83: 72 | N83: 58% | O83: 39% | P83: 60 | Q83: 68% | R83: 47% | S83: 200 | T83: 67% | U83: 60% | V83: 138 | W83: 54% | X83: 42% | Y83: 39
A84: 264 | B84: BAS-RHIN | C84: 5006 | D84: STRASBOURG | E84: 4019 | F84: STRASBOURG ANVERS | G84: 4.3 | H84: 45% | I84: 27% | J84: 75 | K84: 41% | L84: 39% | M84: 107 | N84: 57% | O84: 38% | P84: 50 | Q84: 52% | R84: 31% | S84: 55 | T84: 63% | U84: 56% | V84: 99 | W84: 70% | X84: 58% | Y84: 173
A85: 264 | B85: VOSGES | C85: 55 | D85: SAINT DIE | E85: 488586 | F85: SAINT DIE | G85: 10.6 | H85: 45% | I85: 27% | J85: 76 | K85: 17% | L85: 16% | M85: 8 | N85: 72% | O85: 53% | P85: 188 | Q85: 57% | R85: 36% | S85: 86 | T85: 73% | U85: 66% | V85: 180 | W85: 67% | X85: 55% | Y85: 143
A86: 264 | B86: VOSGES | C86: 55 | D86: SAINT DIE | E86: 588666 | F86: VAGNEY | G86: 3.8 | H86: 45% | I86: 27% | J86: 77 | K86: 15% | L86: 13% | M86: 6 | N86: 67% | O86: 48% | P86: 136 | Q86: 59% | R86: 38% | S86: 108 | T86: 76% | U86: 69% | V86: 207 | W86: 69% | X86: 57% | Y86: 161
A87: 264 | B87: VOSGES | C87: 57 | D87: EPINAL | E87: 588396 | F87: LE VAL D AJOL | G87: 2.9 | H87: 45% | I87: 28% | J87: 78 | K87: 2% | L87: 0% | M87: 1 | N87: 78% | O87: 59% | P87: 228 | Q87: 60% | R87: 39% | S87: 117 | T87: 70% | U87: 64% | V87: 162 | W87: 77% | X87: 65% | Y87: 236
A88: 264 | B88: MEURTHE ET MOSELLE MEUSE | C88: 26 | D88: NANCY | E88: 554166 | F88: BLAINVILLE | G88: 3.1 | H88: 46% | I88: 28% | J88: 79 | K88: 63% | L88: 61% | M88: 230 | N88: 59% | O88: 40% | P88: 62 | Q88: 52% | R88: 31% | S88: 61 | T88: 60% | U88: 54% | V88: 81 | W88: 53% | X88: 41% | Y88: 36
A89: 264 | B89: BAS-RHIN | C89: 5006 | D89: STRASBOURG | E89: 4038 | F89: OBERHAUSBERGEN | G89: 4.8 | H89: 46% | I89: 28% | J89: 80 | K89: 43% | L89: 42% | M89: 127 | N89: 67% | O89: 48% | P89: 137 | Q89: 50% | R89: 29% | S89: 44 | T89: 64% | U89: 57% | V89: 105 | W89: 64% | X89: 52% | Y89: 100
A90: 264 | B90: BAS-RHIN | C90: 5006 | D90: STRASBOURG | E90: 4054 | F90: STRASBOURG MONTAGNE VERTE | G90: 2.5 | H90: 46% | I90: 28% | J90: 81 | K90: 56% | L90: 55% | M90: 196 | N90: 70% | O90: 51% | P90: 167 | Q90: 73% | R90: 52% | S90: 238 | T90: 23% | U90: 16% | V90: 2 | W90: 65% | X90: 54% | Y90: 121
A91: 264 | B91: MOSELLE | C91: 45 | D91: METZ | E91: 457453 | F91: MONTIGNY LES METZ | G91: 8.1 | H91: 46% | I91: 28% | J91: 82 | K91: 28% | L91: 27% | M91: 45 | N91: 64% | O91: 45% | P91: 104 | Q91: 55% | R91: 34% | S91: 71 | T91: 81% | U91: 74% | V91: 241 | W91: 60% | X91: 48% | Y91: 67
A92: 264 | B92: VOSGES | C92: 57 | D92: EPINAL | E92: 488706 | F92: VITTEL | G92: 3.7 | H92: 46% | I92: 28% | J92: 83 | K92: 29% | L92: 27% | M92: 46 | N92: 78% | O92: 59% | P92: 229 | Q92: 56% | R92: 35% | S92: 81 | T92: 60% | U92: 53% | V92: 77 | W92: 66% | X92: 54% | Y92: 133
A93: 264 | B93: VOSGES | C93: 55 | D93: SAINT DIE | E93: 488326 | F93: GERARDMER | G93: 5.2 | H93: 46% | I93: 28% | J93: 84 | K93: 29% | L93: 27% | M93: 47 | N93: 72% | O93: 53% | P93: 189 | Q93: 46% | R93: 25% | S93: 29 | T93: 76% | U93: 69% | V93: 209 | W93: 65% | X93: 54% | Y93: 119
A94: 264 | B94: MARNE-ARDENNES | C94: 2 | D94: CHARLEVILLE MEZIERES | E94: 508819 | F94: MOUZON | G94: 2.0 | H94: 46% | I94: 28% | J94: 85 | K94: 39% | L94: 38% | M94: 99 | N94: 80% | O94: 61% | P94: 241 | Q94: 57% | R94: 36% | S94: 92 | T94: 65% | U94: 58% | V94: 111 | W94: 47% | X94: 36% | Y94: 19
A95: 264 | B95: BAS-RHIN | C95: 5006 | D95: STRASBOURG | E95: 4024 | F95: STRASBOURG AUSTERLITZ | G95: 2.4 | H95: 46% | I95: 28% | J95: 86 | K95: 75% | L95: 73% | M95: 249 | N95: 45% | O95: 26% | P95: 15 | Q95: 54% | R95: 33% | S95: 64 | T95: 54% | U95: 47% | V95: 54 | W95: 61% | X95: 50% | Y95: 81
A96: 264 | B96: BAS-RHIN | C96: 5006 | D96: STRASBOURG | E96: 4023 | F96: STRASBOURG VOSGES | G96: 3.3 | H96: 46% | I96: 28% | J96: 87 | K96: 47% | L96: 45% | M96: 149 | N96: 60% | O96: 41% | P96: 65 | Q96: 41% | R96: 21% | S96: 13 | T96: 71% | U96: 64% | V96: 164 | W96: 71% | X96: 59% | Y96: 179
A97: 264 | B97: MOSELLE | C97: 45 | D97: METZ | E97: 457443 | F97: METZ REPUBLIQUE | G97: 4.2 | H97: 46% | I97: 28% | J97: 88 | K97: 15% | L97: 13% | M97: 7 | N97: 72% | O97: 53% | P97: 187 | Q97: 59% | R97: 38% | S97: 109 | T97: 80% | U97: 73% | V97: 235 | W97: 64% | X97: 52% | Y97: 99
A98: 264 | B98: BAS-RHIN | C98: 5101 | D98: SELESTAT | E98: 4107 | F98: VILLE | G98: 2.8 | H98: 46% | I98: 28% | J98: 89 | K98: 77% | L98: 75% | M98: 254 | N98: 46% | O98: 27% | P98: 19 | Q98: 49% | R98: 28% | S98: 38 | T98: 47% | U98: 40% | V98: 26 | W98: 71% | X98: 60% | Y98: 189
A99: 264 | B99: VOSGES | C99: 55 | D99: SAINT DIE | E99: 588386 | F99: LE THILLOT | G99: 2.4 | H99: 46% | I99: 28% | J99: 90 | K99: 38% | L99: 36% | M99: 92 | N99: 68% | O99: 49% | P99: 144 | Q99: 57% | R99: 36% | S99: 90 | T99: 53% | U99: 46% | V99: 47 | W99: 75% | X99: 63% | Y99: 220
A100: 264 | B100: MARNE-ARDENNES | C100: 6 | D100: CHALONS EN CHAMPAGNE | E100: 551103 | F100: FAGNIERES LECLERC | G100: 3.0 | H100: 46% | I100: 29% | J100: 91 | K100: 27% | L100: 25% | M100: 33 | N100: 63% | O100: 44% | P100: 95 | Q100: 72% | R100: 52% | S100: 234 | T100: 69% | U100: 62% | V100: 147 | W100: 60% | X100: 49% | Y100: 73
A101: 264 | B101: MEURTHE ET MOSELLE MEUSE | C101: 31 | D101: VERDUN | E101: 455151 | F101: BAR LE DUC | G101: 8.8 | H101: 47% | I101: 29% | J101: 92 | K101: 40% | L101: 39% | M101: 103 | N101: 60% | O101: 41% | P101: 71 | Q101: 63% | R101: 43% | S101: 150 | T101: 66% | U101: 59% | V101: 126 | W101: 63% | X101: 51% | Y101: 94
A102: 264 | B102: MEURTHE ET MOSELLE MEUSE | C102: 31 | D102: VERDUN | E102: 455298 | F102: ETAIN | G102: 1.6 | H102: 47% | I102: 29% | J102: 93 | K102: 66% | L102: 64% | M102: 235 | N102: 65% | O102: 46% | P102: 113 | Q102: 60% | R102: 40% | S102: 124 | T102: 39% | U102: 32% | V102: 16 | W102: 63% | X102: 51% | Y102: 90
A103: 30 | B103: BAS-RHIN | C103: 5006 | D103: STRASBOURG | E103: 4006 | F103: STRASBOURG NEUDORF | G103: 8.6 | H103: 47% | I103: 29% | J103: 94 | K103: 29% | L103: 28% | M103: 50 | N103: 61% | O103: 42% | P103: 77 | Q103: 67% | R103: 47% | S103: 194 | T103: 61% | U103: 54% | V103: 83 | W103: 74% | X103: 62% | Y103: 211
A104: 30 | B104: MARNE-ARDENNES | C104: 11 | D104: REIMS | E104: 451370 | F104: EPERNAY | G104: 11.5 | H104: 47% | I104: 29% | J104: 95 | K104: 35% | L104: 33% | M104: 76 | N104: 62% | O104: 44% | P104: 89 | Q104: 62% | R104: 41% | S104: 138 | T104: 67% | U104: 60% | V104: 135 | W104: 67% | X104: 56% | Y104: 149
A105: 30 | B105: MEURTHE ET MOSELLE MEUSE | C105: 26 | D105: NANCY | E105: 554266 | F105: DOMBASLE SUR MEURTHE | G105: 3.7 | H105: 47% | I105: 29% | J105: 96 | K105: 62% | L105: 61% | M105: 224 | N105: 69% | O105: 50% | P105: 162 | Q105: 49% | R105: 29% | S105: 40 | T105: 55% | U105: 49% | V105: 61 | W105: 57% | X105: 45% | Y105: 55
A106: 30 | B106: MEURTHE ET MOSELLE MEUSE | C106: 26 | D106: NANCY | E106: 554116 | F106: BACCARAT | G106: 2.5 | H106: 47% | I106: 29% | J106: 97 | K106: 33% | L106: 31% | M106: 64 | N106: 64% | O106: 45% | P106: 97 | Q106: 60% | R106: 39% | S106: 122 | T106: 71% | U106: 64% | V106: 165 | W106: 66% | X106: 55% | Y106: 135
A107: 30 | B107: MARNE-ARDENNES | C107: 11 | D107: REIMS | E107: 451361 | F107: PIERRY LECLERC | G107: 1.9 | H107: 47% | I107: 29% | J107: 98 | K107: 36% | L107: 34% | M107: 79 | N107: 63% | O107: 44% | P107: 96 | Q107: 66% | R107: 45% | S107: 173 | T107: 64% | U107: 57% | V107: 104 | W107: 66% | X107: 54% | Y107: 126
A108: 30 | B108: MEURTHE ET MOSELLE MEUSE | C108: 31 | D108: VERDUN | E108: 554700 | F108: VILLERUPT | G108: 2.9 | H108: 47% | I108: 29% | J108: 99 | K108: 26% | L108: 24% | M108: 26 | N108: 68% | O108: 49% | P108: 150 | Q108: 55% | R108: 35% | S108: 79 | T108: 77% | U108: 70% | V108: 216 | W108: 68% | X108: 56% | Y108: 153
A109: 30 | B109: MARNE-ARDENNES | C109: 6 | D109: CHALONS EN CHAMPAGNE | E109: 551128 | F109: SAINTE MENEHOULD | G109: 3.3 | H109: 47% | I109: 29% | J109: 100 | K109: 38% | L109: 37% | M109: 96 | N109: 63% | O109: 44% | P109: 91 | Q109: 67% | R109: 46% | S109: 190 | T109: 53% | U109: 47% | V109: 50 | W109: 73% | X109: 61% | Y109: 199
A110: 30 | B110: BAS-RHIN | C110: 5060 | D110: HAGUENAU | E110: 4030 | F110: BRUMATH | G110: 5.3 | H110: 47% | I110: 29% | J110: 101 | K110: 43% | L110: 42% | M110: 128 | N110: 66% | O110: 47% | P110: 124 | Q110: 48% | R110: 28% | S110: 35 | T110: 76% | U110: 69% | V110: 204 | W110: 61% | X110: 49% | Y110: 77
A111: 30 | B111: VOSGES | C111: 57 | D111: EPINAL | E111: 488451 | F111: MIRECOURT | G111: 4.8 | H111: 47% | I111: 29% | J111: 102 | K111: 28% | L111: 26% | M111: 39 | N111: 75% | O111: 56% | P111: 216 | Q111: 60% | R111: 39% | S111: 123 | T111: 65% | U111: 58% | V111: 115 | W111: 67% | X111: 56% | Y111: 148
A112: 30 | B112: HAUT-RHIN | C112: 5130 | D112: COLMAR | E112: 4153 | F112: ROUFFACH | G112: 3.7 | H112: 47% | I112: 29% | J112: 103 | K112: 41% | L112: 39% | M112: 108 | N112: 77% | O112: 58% | P112: 222 | Q112: 67% | R112: 46% | S112: 189 | T112: 43% | U112: 36% | V112: 22 | W112: 67% | X112: 55% | Y112: 146
A113: 30 | B113: VOSGES | C113: 57 | D113: EPINAL | E113: 488561 | F113: REMIREMONT | G113: 6.6 | H113: 47% | I113: 29% | J113: 104 | K113: 38% | L113: 36% | M113: 90 | N113: 66% | O113: 47% | P113: 118 | Q113: 54% | R113: 33% | S113: 67 | T113: 69% | U113: 62% | V113: 150 | W113: 69% | X113: 57% | Y113: 159
A114: 30 | B114: VOSGES | C114: 57 | D114: EPINAL | E114: 588336 | F114: GOLBEY | G114: 3.1 | H114: 47% | I114: 29% | J114: 105 | K114: 43% | L114: 41% | M114: 121 | N114: 73% | O114: 54% | P114: 201 | Q114: 60% | R114: 39% | S114: 116 | T114: 66% | U114: 60% | V114: 131 | W114: 54% | X114: 42% | Y114: 40
A115: 30 | B115: VOSGES | C115: 57 | D115: EPINAL | E115: 488286 | F115: EPINAL ARISTIDE BRIAND | G115: 9.1 | H115: 47% | I115: 30% | J115: 106 | K115: 27% | L115: 25% | M115: 31 | N115: 66% | O115: 47% | P115: 122 | Q115: 69% | R115: 48% | S115: 210 | T115: 60% | U115: 53% | V115: 78 | W115: 74% | X115: 63% | Y115: 216
A116: 30 | B116: AUBE HAUTE MARNE | C116: 14 | D116: TROYES | E116: 510523 | F116: LA CHAPELLE ST LUC | G116: 5.5 | H116: 47% | I116: 30% | J116: 107 | K116: 53% | L116: 52% | M116: 180 | N116: 55% | O116: 36% | P116: 37 | Q116: 67% | R116: 47% | S116: 195 | T116: 48% | U116: 41% | V116: 29 | W116: 73% | X116: 61% | Y116: 204
A117: 30 | B117: AUBE HAUTE MARNE | C117: 21 | D117: CHAUMONT | E117: 410560 | F117: BOURBONNE LES BAINS | G117: 2.0 | H117: 47% | I117: 30% | J117: 108 | K117: 25% | L117: 23% | M117: 25 | N117: 64% | O117: 45% | P117: 105 | Q117: 68% | R117: 48% | S117: 206 | T117: 66% | U117: 59% | V117: 130 | W117: 74% | X117: 62% | Y117: 212
A118: 30 | B118: AUBE HAUTE MARNE | C118: 14 | D118: TROYES | E118: 510570 | F118: NOGENT SUR SEINE | G118: 4.4 | H118: 47% | I118: 30% | J118: 109 | K118: 22% | L118: 20% | M118: 15 | N118: 67% | O118: 48% | P118: 129 | Q118: 67% | R118: 46% | S118: 185 | T118: 80% | U118: 73% | V118: 237 | W118: 62% | X118: 50% | Y118: 84
A119: 30 | B119: AUBE HAUTE MARNE | C119: 21 | D119: CHAUMONT | E119: 451154 | F119: JOINVILLE | G119: 1.9 | H119: 48% | I119: 30% | J119: 110 | K119: 7% | L119: 5% | M119: 2 | N119: 80% | O119: 61% | P119: 235 | Q119: 83% | R119: 62% | S119: 258 | T119: 65% | U119: 58% | V119: 124 | W119: 63% | X119: 51% | Y119: 91
A120: 30 | B120: MOSELLE | C120: 42 | D120: MOSELLE EST | E120: 557210 | F120: CHATEAU SALINS | G120: 2.6 | H120: 48% | I120: 30% | J120: 111 | K120: 59% | L120: 58% | M120: 208 | N120: 49% | O120: 30% | P120: 23 | Q120: 60% | R120: 39% | S120: 119 | T120: 66% | U120: 60% | V120: 132 | W120: 63% | X120: 51% | Y120: 93
A121: 30 | B121: MARNE-ARDENNES | C121: 6 | D121: CHALONS EN CHAMPAGNE | E121: 451381 | F121: SEZANNE | G121: 6.5 | H121: 48% | I121: 30% | J121: 112 | K121: 36% | L121: 35% | M121: 83 | N121: 65% | O121: 46% | P121: 115 | Q121: 66% | R121: 46% | S121: 182 | T121: 66% | U121: 59% | V121: 127 | W121: 65% | X121: 53% | Y121: 114
A122: 30 | B122: AUBE HAUTE MARNE | C122: 21 | D122: CHAUMONT | E122: 451156 | F122: SAINT DIZIER CENTRE | G122: 9.4 | H122: 48% | I122: 30% | J122: 113 | K122: 40% | L122: 39% | M122: 104 | N122: 68% | O122: 49% | P122: 148 | Q122: 61% | R122: 41% | S122: 133 | T122: 63% | U122: 57% | V122: 103 | W122: 66% | X122: 54% | Y122: 123
A123: 30 | B123: MOSELLE | C123: 45 | D123: METZ | E123: 457574 | F123: ROMBAS | G123: 3.2 | H123: 48% | I123: 30% | J123: 114 | K123: 57% | L123: 56% | M123: 200 | N123: 53% | O123: 34% | P123: 34 | Q123: 45% | R123: 24% | S123: 22 | T123: 65% | U123: 58% | V123: 123 | W123: 78% | X123: 67% | Y123: 246
A124: 30 | B124: MARNE-ARDENNES | C124: 11 | D124: REIMS | E124: 551309 | F124: REIMS EUROPE | G124: 2.7 | H124: 48% | I124: 30% | J124: 115 | K124: 37% | L124: 35% | M124: 86 | N124: 75% | O124: 56% | P124: 210 | Q124: 61% | R124: 40% | S124: 128 | T124: 60% | U124: 53% | V124: 73 | W124: 67% | X124: 55% | Y124: 141
A125: 30 | B125: BAS-RHIN | C125: 5006 | D125: STRASBOURG | E125: 4043 | F125: STRASBOURG HALLES | G125: 8.3 | H125: 48% | I125: 30% | J125: 116 | K125: 41% | L125: 39% | M125: 105 | N125: 73% | O125: 54% | P125: 195 | Q125: 52% | R125: 31% | S125: 56 | T125: 69% | U125: 62% | V125: 148 | W125: 66% | X125: 54% | Y125: 132
A126: 30 | B126: AUBE HAUTE MARNE | C126: 21 | D126: CHAUMONT | E126: 410541 | F126: LANGRES | G126: 6.5 | H126: 48% | I126: 30% | J126: 117 | K126: 49% | L126: 47% | M126: 159 | N126: 64% | O126: 45% | P126: 108 | Q126: 62% | R126: 41% | S126: 141 | T126: 60% | U126: 54% | V126: 79 | W126: 64% | X126: 53% | Y126: 107
A127: 30 | B127: BAS-RHIN | C127: 5060 | D127: HAGUENAU | E127: 4066 | F127: NIEDERBRONN LES BAINS | G127: 6.1 | H127: 48% | I127: 30% | J127: 118 | K127: 28% | L127: 26% | M127: 37 | N127: 73% | O127: 54% | P127: 196 | Q127: 57% | R127: 36% | S127: 88 | T127: 71% | U127: 64% | V127: 168 | W127: 72% | X127: 60% | Y127: 193
A128: 30 | B128: MOSELLE | C128: 42 | D128: MOSELLE EST | E128: 457614 | F128: SARREBOURG | G128: 8.5 | H128: 48% | I128: 30% | J128: 119 | K128: 46% | L128: 44% | M128: 144 | N128: 64% | O128: 45% | P128: 100 | Q128: 55% | R128: 35% | S128: 76 | T128: 69% | U128: 62% | V128: 151 | W128: 66% | X128: 55% | Y128: 136
A129: 30 | B129: BAS-RHIN | C129: 5101 | D129: SELESTAT | E129: 4109 | F129: MARCKOLSHEIM | G129: 2.7 | H129: 48% | I129: 30% | J129: 120 | K129: 33% | L129: 31% | M129: 67 | N129: 68% | O129: 49% | P129: 149 | Q129: 62% | R129: 41% | S129: 143 | T129: 71% | U129: 64% | V129: 167 | W129: 66% | X129: 54% | Y129: 130
A130: 30 | B130: MARNE-ARDENNES | C130: 11 | D130: REIMS | E130: 451301 | F130: REIMS HOTEL DE VILLE | G130: 7.7 | H130: 48% | I130: 30% | J130: 121 | K130: 47% | L130: 46% | M130: 153 | N130: 52% | O130: 33% | P130: 28 | Q130: 84% | R130: 63% | S130: 259 | T130: 55% | U130: 48% | V130: 58 | W130: 62% | X130: 51% | Y130: 88
A131: 30 | B131: VOSGES | C131: 57 | D131: EPINAL | E131: 488281 | F131: ELOYES | G131: 4.7 | H131: 48% | I131: 30% | J131: 122 | K131: 27% | L131: 25% | M131: 30 | N131: 69% | O131: 50% | P131: 157 | Q131: 58% | R131: 38% | S131: 99 | T131: 78% | U131: 71% | V131: 220 | W131: 69% | X131: 58% | Y131: 164
A132: 30 | B132: AUBE HAUTE MARNE | C132: 14 | D132: TROYES | E132: 510520 | F132: SAINT ANDRE LES VERGERS | G132: 4.1 | H132: 48% | I132: 31% | J132: 123 | K132: 43% | L132: 41% | M132: 123 | N132: 62% | O132: 43% | P132: 83 | Q132: 54% | R132: 34% | S132: 69 | T132: 81% | U132: 74% | V132: 240 | W132: 61% | X132: 50% | Y132: 82
A133: 30 | B133: AUBE HAUTE MARNE | C133: 14 | D133: TROYES | E133: 510511 | F133: TROYES BROSSOLETTE | G133: 2.6 | H133: 48% | I133: 31% | J133: 124 | K133: 38% | L133: 36% | M133: 89 | N133: 60% | O133: 41% | P133: 67 | Q133: 63% | R133: 42% | S133: 149 | T133: 74% | U133: 67% | V133: 190 | W133: 67% | X133: 55% | Y133: 137
A134: 30 | B134: MEURTHE ET MOSELLE MEUSE | C134: 31 | D134: VERDUN | E134: 455678 | F134: VERDUN CENTRALE | G134: 10.7 | H134: 48% | I134: 31% | J134: 125 | K134: 36% | L134: 34% | M134: 82 | N134: 63% | O134: 44% | P134: 94 | Q134: 69% | R134: 48% | S134: 211 | T134: 76% | U134: 69% | V134: 208 | W134: 57% | X134: 46% | Y134: 57
A135: 30 | B135: BAS-RHIN | C135: 5006 | D135: STRASBOURG | E135: 4027 | F135: SCHILTIGHEIM CENTRE | G135: 3.9 | H135: 49% | I135: 31% | J135: 126 | K135: 54% | L135: 53% | M135: 187 | N135: 63% | O135: 44% | P135: 90 | Q135: 49% | R135: 28% | S135: 37 | T135: 71% | U135: 65% | V135: 171 | W135: 65% | X135: 54% | Y135: 118
A136: 30 | B136: MARNE-ARDENNES | C136: 11 | D136: REIMS | E136: 551365 | F136: DORMANS | G136: 2.7 | H136: 49% | I136: 31% | J136: 127 | K136: 33% | L136: 31% | M136: 63 | N136: 80% | O136: 61% | P136: 244 | Q136: 59% | R136: 38% | S136: 107 | T136: 72% | U136: 65% | V136: 177 | W136: 59% | X136: 47% | Y136: 64
A137: 30 | B137: MOSELLE | C137: 42 | D137: MOSELLE EST | E137: 457583 | F137: SAINT AVOLD | G137: 7.7 | H137: 49% | I137: 31% | J137: 128 | K137: 43% | L137: 41% | M137: 119 | N137: 67% | O137: 48% | P137: 138 | Q137: 61% | R137: 40% | S137: 130 | T137: 65% | U137: 58% | V137: 119 | W137: 67% | X137: 56% | Y137: 152
A138: 30 | B138: MARNE-ARDENNES | C138: 11 | D138: REIMS | E138: 551369 | F138: DAMERY | G138: 2.4 | H138: 49% | I138: 31% | J138: 129 | K138: 60% | L138: 58% | M138: 209 | N138: 75% | O138: 56% | P138: 213 | Q138: 63% | R138: 43% | S138: 154 | T138: 54% | U138: 47% | V138: 53 | W138: 52% | X138: 41% | Y138: 34
A139: 30 | B139: BAS-RHIN | C139: 5060 | D139: HAGUENAU | E139: 4057 | F139: BISCHWILLER | G139: 6.2 | H139: 49% | I139: 31% | J139: 130 | K139: 55% | L139: 53% | M139: 190 | N139: 58% | O139: 39% | P139: 52 | Q139: 65% | R139: 44% | S139: 165 | T139: 56% | U139: 49% | V139: 65 | W139: 70% | X139: 59% | Y139: 175
A140: 30 | B140: MOSELLE | C140: 45 | D140: METZ | E140: 557612 | F140: SAINTE MARIE AUX CHENES | G140: 3.9 | H140: 49% | I140: 31% | J140: 131 | K140: 24% | L140: 22% | M140: 20 | N140: 79% | O140: 60% | P140: 232 | Q140: 65% | R140: 44% | S140: 167 | T140: 65% | U140: 58% | V140: 122 | W140: 71% | X140: 60% | Y140: 188
A141: 30 | B141: MEURTHE ET MOSELLE MEUSE | C141: 31 | D141: VERDUN | E141: 455231 | F141: COMMERCY | G141: 4.7 | H141: 49% | I141: 31% | J141: 132 | K141: 48% | L141: 46% | M141: 154 | N141: 66% | O141: 47% | P141: 120 | Q141: 64% | R141: 44% | S141: 163 | T141: 67% | U141: 60% | V141: 136 | W141: 59% | X141: 48% | Y141: 65
A142: 30 | B142: MEURTHE ET MOSELLE MEUSE | C142: 27 | D142: PONT A MOUSSON | E142: 454355 | F142: JARNY | G142: 4.6 | H142: 49% | I142: 31% | J142: 133 | K142: 58% | L142: 56% | M142: 202 | N142: 58% | O142: 39% | P142: 56 | Q142: 64% | R142: 44% | S142: 161 | T142: 60% | U142: 53% | V142: 76 | W142: 65% | X142: 53% | Y142: 113
A143: 30 | B143: MOSELLE | C143: 42 | D143: MOSELLE EST | E143: 457617 | F143: SARREGUEMINES | G143: 8.3 | H143: 49% | I143: 31% | J143: 134 | K143: 38% | L143: 36% | M143: 93 | N143: 68% | O143: 49% | P143: 153 | Q143: 59% | R143: 39% | S143: 112 | T143: 68% | U143: 61% | V143: 141 | W143: 71% | X143: 60% | Y143: 187
A144: 110 | B144: MEURTHE ET MOSELLE MEUSE | C144: 26 | D144: NANCY | E144: 454171 | F144: BLAMONT | G144: 1.5 | H144: 49% | I144: 31% | J144: 135 | K144: 71% | L144: 69% | M144: 244 | N144: 45% | O144: 26% | P144: 13 | Q144: 73% | R144: 53% | S144: 239 | T144: 51% | U144: 44% | V144: 33 | W144: 64% | X144: 53% | Y144: 103
A145: 110 | B145: MOSELLE | C145: 44 | D145: MOSELLE NORD | E145: 457632 | F145: THIONVILLE CENTRALE | G145: 11.7 | H145: 49% | I145: 31% | J145: 136 | K145: 46% | L145: 44% | M145: 140 | N145: 62% | O145: 43% | P145: 80 | Q145: 62% | R145: 41% | S145: 140 | T145: 65% | U145: 58% | V145: 114 | W145: 72% | X145: 60% | Y145: 191
A146: 110 | B146: MEURTHE ET MOSELLE MEUSE | C146: 31 | D146: VERDUN | E146: 555406 | F146: LIGNY EN BARROIS | G146: 2.8 | H146: 49% | I146: 31% | J146: 137 | K146: 27% | L146: 26% | M146: 34 | N146: 70% | O146: 51% | P146: 175 | Q146: 65% | R146: 44% | S146: 169 | T146: 74% | U146: 67% | V146: 184 | W146: 69% | X146: 57% | Y146: 160
A147: 110 | B147: MOSELLE | C147: 44 | D147: MOSELLE NORD | E147: 457158 | F147: YUTZ | G147: 4.6 | H147: 49% | I147: 31% | J147: 138 | K147: 43% | L147: 41% | M147: 125 | N147: 62% | O147: 43% | P147: 87 | Q147: 64% | R147: 44% | S147: 160 | T147: 66% | U147: 60% | V147: 133 | W147: 69% | X147: 58% | Y147: 166
A148: 110 | B148: MEURTHE ET MOSELLE MEUSE | C148: 27 | D148: PONT A MOUSSON | E148: 554321 | F148: FROUARD | G148: 3.0 | H148: 49% | I148: 31% | J148: 139 | K148: 70% | L148: 68% | M148: 241 | N148: 60% | O148: 41% | P148: 66 | Q148: 45% | R148: 25% | S148: 27 | T148: 67% | U148: 61% | V148: 140 | W148: 63% | X148: 51% | Y148: 95
A149: 110 | B149: AUBE HAUTE MARNE | C149: 14 | D149: TROYES | E149: 410550 | F149: BAR SUR AUBE | G149: 5.9 | H149: 49% | I149: 31% | J149: 140 | K149: 32% | L149: 31% | M149: 59 | N149: 70% | O149: 51% | P149: 164 | Q149: 74% | R149: 54% | S149: 241 | T149: 63% | U149: 56% | V149: 100 | W149: 67% | X149: 55% | Y149: 142
A150: 110 | B150: MEURTHE ET MOSELLE MEUSE | C150: 31 | D150: VERDUN | E150: 455676 | F150: VAUCOULEURS | G150: 1.8 | H150: 49% | I150: 32% | J150: 141 | K150: 93% | L150: 92% | M150: 262 | N150: 46% | O150: 27% | P150: 18 | Q150: 71% | R150: 51% | S150: 226 | T150: 42% | U150: 35% | V150: 19 | W150: 54% | X150: 43% | Y150: 43
A151: 110 | B151: AUBE HAUTE MARNE | C151: 14 | D151: TROYES | E151: 410571 | F151: ROMILLY SUR SEINE | G151: 6.7 | H151: 49% | I151: 32% | J151: 142 | K151: 34% | L151: 32% | M151: 69 | N151: 63% | O151: 44% | P151: 92 | Q151: 68% | R151: 48% | S151: 208 | T151: 75% | U151: 68% | V151: 194 | W151: 67% | X151: 55% | Y151: 138
A152: 110 | B152: MOSELLE | C152: 44 | D152: MOSELLE NORD | E152: 457350 | F152: HAYANGE | G152: 7.2 | H152: 49% | I152: 32% | J152: 143 | K152: 48% | L152: 46% | M152: 155 | N152: 55% | O152: 36% | P152: 39 | Q152: 69% | R152: 48% | S152: 212 | T152: 67% | U152: 60% | V152: 139 | W152: 68% | X152: 56% | Y152: 154
A153: 110 | B153: MOSELLE | C153: 44 | D153: MOSELLE NORD | E153: 557347 | F153: GUENANGE | G153: 5.0 | H153: 49% | I153: 32% | J153: 144 | K153: 65% | L153: 63% | M153: 233 | N153: 64% | O153: 45% | P153: 101 | Q153: 58% | R153: 38% | S153: 100 | T153: 69% | U153: 62% | V153: 149 | W153: 51% | X153: 40% | Y153: 28
A154: 110 | B154: BAS-RHIN | C154: 5060 | D154: HAGUENAU | E154: 4085 | F154: INGWILLER | G154: 3.2 | H154: 49% | I154: 32% | J154: 145 | K154: 38% | L154: 37% | M154: 95 | N154: 58% | O154: 39% | P154: 57 | Q154: 72% | R154: 51% | S154: 229 | T154: 70% | U154: 63% | V154: 160 | W154: 69% | X154: 57% | Y154: 162
A155: 110 | B155: MEURTHE ET MOSELLE MEUSE | C155: 27 | D155: PONT A MOUSSON | E155: 554184 | F155: BRIEY | G155: 4.6 | H155: 50% | I155: 32% | J155: 146 | K155: 41% | L155: 39% | M155: 106 | N155: 75% | O155: 56% | P155: 215 | Q155: 52% | R155: 31% | S155: 58 | T155: 78% | U155: 71% | V155: 221 | W155: 62% | X155: 50% | Y155: 85
A156: 110 | B156: MEURTHE ET MOSELLE MEUSE | C156: 27 | D156: PONT A MOUSSON | E156: 554496 | F156: NANCY TROIS MAISONS | G156: 2.5 | H156: 50% | I156: 32% | J156: 147 | K156: 76% | L156: 75% | M156: 253 | N156: 56% | O156: 37% | P156: 43 | Q156: 53% | R156: 32% | S156: 62 | T156: 56% | U156: 49% | V156: 63 | W156: 67% | X156: 55% | Y156: 139
A157: 110 | B157: VOSGES | C157: 55 | D157: SAINT DIE | E157: 588186 | F157: BRUYERES | G157: 3.7 | H157: 50% | I157: 32% | J157: 148 | K157: 35% | L157: 34% | M157: 78 | N157: 68% | O157: 49% | P157: 143 | Q157: 87% | R157: 66% | S157: 261 | T157: 62% | U157: 55% | V157: 93 | W157: 56% | X157: 45% | Y157: 53
A158: 110 | B158: MARNE-ARDENNES | C158: 2 | D158: CHARLEVILLE MEZIERES | E158: 408806 | F158: SEDAN | G158: 9.1 | H158: 50% | I158: 32% | J158: 149 | K158: 36% | L158: 34% | M158: 81 | N158: 73% | O158: 54% | P158: 199 | Q158: 58% | R158: 37% | S158: 98 | T158: 77% | U158: 70% | V158: 215 | W158: 65% | X158: 53% | Y158: 111
A159: 110 | B159: MOSELLE | C159: 45 | D159: METZ | E159: 557712 | F159: WOIPPY | G159: 5.5 | H159: 50% | I159: 32% | J159: 150 | K159: 42% | L159: 40% | M159: 114 | N159: 64% | O159: 45% | P159: 107 | Q159: 70% | R159: 49% | S159: 217 | T159: 62% | U159: 55% | V159: 94 | W159: 70% | X159: 59% | Y159: 177
A160: 110 | B160: BAS-RHIN | C160: 5060 | D160: HAGUENAU | E160: 4071 | F160: WISSEMBOURG | G160: 8.4 | H160: 50% | I160: 32% | J160: 151 | K160: 37% | L160: 35% | M160: 84 | N160: 71% | O160: 52% | P160: 180 | Q160: 54% | R160: 33% | S160: 65 | T160: 72% | U160: 65% | V160: 178 | W160: 75% | X160: 64% | Y160: 228
A161: 110 | B161: MOSELLE | C161: 45 | D161: METZ | E161: 557559 | F161: REMILLY | G161: 4.2 | H161: 50% | I161: 32% | J161: 152 | K161: 49% | L161: 47% | M161: 160 | N161: 72% | O161: 53% | P161: 182 | Q161: 56% | R161: 35% | S161: 83 | T161: 65% | U161: 58% | V161: 116 | W161: 68% | X161: 56% | Y161: 157
A162: 110 | B162: MEURTHE ET MOSELLE MEUSE | C162: 27 | D162: PONT A MOUSSON | E162: 454696 | F162: VILLERS GENERAL LECLERC | G162: 6.1 | H162: 50% | I162: 32% | J162: 153 | K162: 35% | L162: 33% | M162: 77 | N162: 69% | O162: 50% | P162: 156 | Q162: 60% | R162: 39% | S162: 115 | T162: 71% | U162: 65% | V162: 172 | W162: 74% | X162: 63% | Y162: 219
A163: 110 | B163: BAS-RHIN | C163: 5101 | D163: SELESTAT | E163: 4015 | F163: LINGOLSHEIM | G163: 4.5 | H163: 50% | I163: 32% | J163: 154 | K163: 46% | L163: 44% | M163: 141 | N163: 73% | O163: 54% | P163: 198 | Q163: 55% | R163: 35% | S163: 77 | T163: 62% | U163: 55% | V163: 89 | W163: 74% | X163: 63% | Y163: 218
A164: 110 | B164: MOSELLE | C164: 45 | D164: METZ | E164: 557437 | F164: METZ SARRE | G164: 3.8 | H164: 50% | I164: 32% | J164: 155 | K164: 50% | L164: 48% | M164: 168 | N164: 68% | O164: 49% | P164: 146 | Q164: 79% | R164: 58% | S164: 253 | T164: 37% | U164: 30% | V164: 12 | W164: 77% | X164: 66% | Y164: 241
A165: 110 | B165: BAS-RHIN | C165: 5101 | D165: SELESTAT | E165: 4007 | F165: ILLKIRCH CENTRE | G165: 7.3 | H165: 50% | I165: 33% | J165: 156 | K165: 50% | L165: 48% | M165: 167 | N165: 58% | O165: 39% | P165: 51 | Q165: 68% | R165: 47% | S165: 202 | T165: 63% | U165: 56% | V165: 102 | W165: 72% | X165: 61% | Y165: 198
A166: 110 | B166: VOSGES | C166: 55 | D166: SAINT DIE | E166: 588587 | F166: SAINT DIE CATHEDRALE | G166: 3.9 | H166: 50% | I166: 33% | J166: 157 | K166: 32% | L166: 30% | M166: 55 | N166: 74% | O166: 55% | P166: 206 | Q166: 56% | R166: 35% | S166: 82 | T166: 79% | U166: 72% | V166: 224 | W166: 71% | X166: 60% | Y166: 185
A167: 110 | B167: MEURTHE ET MOSELLE MEUSE | C167: 31 | D167: VERDUN | E167: 455566 | F167: REVIGNY SUR ORNAIN | G167: 3.4 | H167: 50% | I167: 33% | J167: 158 | K167: 36% | L167: 34% | M167: 80 | N167: 62% | O167: 43% | P167: 88 | Q167: 72% | R167: 51% | S167: 231 | T167: 70% | U167: 64% | V167: 163 | W167: 71% | X167: 59% | Y167: 184
A168: 110 | B168: HAUT-RHIN | C168: 5130 | D168: COLMAR | E168: 4143 | F168: MUNSTER | G168: 5.1 | H168: 50% | I168: 33% | J168: 159 | K168: 49% | L168: 48% | M168: 164 | N168: 57% | O168: 38% | P168: 48 | Q168: 67% | R168: 46% | S168: 186 | T168: 67% | U168: 60% | V168: 137 | W168: 72% | X168: 60% | Y168: 194
A169: 110 | B169: MOSELLE | C169: 42 | D169: MOSELLE EST | E169: 557503 | F169: NEUNKIRCH | G169: 3.8 | H169: 50% | I169: 33% | J169: 160 | K169: 27% | L169: 25% | M169: 29 | N169: 76% | O169: 57% | P169: 220 | Q169: 58% | R169: 38% | S169: 101 | T169: 78% | U169: 71% | V169: 223 | W169: 73% | X169: 62% | Y169: 206
A170: 110 | B170: HAUT-RHIN | C170: 5169 | D170: MULHOUSE | E170: 4195 | F170: CERNAY | G170: 2.5 | H170: 50% | I170: 33% | J170: 161 | K170: 45% | L170: 43% | M170: 135 | N170: 75% | O170: 56% | P170: 218 | Q170: 49% | R170: 28% | S170: 36 | T170: 82% | U170: 76% | V170: 245 | W170: 60% | X170: 49% | Y170: 74
A171: 110 | B171: MEURTHE ET MOSELLE MEUSE | C171: 26 | D171: NANCY | E171: 554296 | F171: ESSEY LES NANCY | G171: 3.9 | H171: 51% | I171: 33% | J171: 162 | K171: 45% | L171: 44% | M171: 138 | N171: 64% | O171: 45% | P171: 102 | Q171: 63% | R171: 43% | S171: 151 | T171: 76% | U171: 69% | V171: 213 | W171: 64% | X171: 52% | Y171: 98
A172: 110 | B172: BAS-RHIN | C172: 5006 | D172: STRASBOURG | E172: 4045 | F172: STRASBOURG FRANCS BOURGEOIS | G172: 4.6 | H172: 51% | I172: 33% | J172: 163 | K172: 58% | L172: 56% | M172: 203 | N172: 65% | O172: 46% | P172: 112 | Q172: 41% | R172: 21% | S172: 15 | T172: 80% | U172: 74% | V172: 238 | W172: 69% | X172: 57% | Y172: 158
A173: 110 | B173: MOSELLE | C173: 42 | D173: MOSELLE EST | E173: 557523 | F173: PHALSBOURG | G173: 2.2 | H173: 51% | I173: 33% | J173: 164 | K173: 51% | L173: 49% | M173: 171 | N173: 82% | O173: 64% | P173: 248 | Q173: 58% | R173: 37% | S173: 96 | T173: 70% | U173: 64% | V173: 161 | W173: 52% | X173: 40% | Y173: 32
A174: 110 | B174: MOSELLE | C174: 45 | D174: METZ | E174: 557105 | F174: ARS SUR MOSELLE | G174: 3.7 | H174: 51% | I174: 33% | J174: 165 | K174: 47% | L174: 45% | M174: 150 | N174: 75% | O174: 57% | P174: 219 | Q174: 66% | R174: 46% | S174: 180 | T174: 76% | U174: 69% | V174: 201 | W174: 49% | X174: 38% | Y174: 23
A175: 110 | B175: AUBE HAUTE MARNE | C175: 14 | D175: TROYES | E175: 510530 | F175: ARCIS SUR AUBE | G175: 3.9 | H175: 51% | I175: 33% | J175: 166 | K175: 32% | L175: 30% | M175: 57 | N175: 63% | O175: 44% | P175: 93 | Q175: 75% | R175: 54% | S175: 245 | T175: 72% | U175: 65% | V175: 173 | W175: 72% | X175: 61% | Y175: 197
A176: 110 | B176: MOSELLE | C176: 42 | D176: MOSELLE EST | E176: 457258 | F176: DIEUZE | G176: 3.1 | H176: 51% | I176: 33% | J176: 167 | K176: 46% | L176: 44% | M176: 143 | N176: 66% | O176: 47% | P176: 119 | Q176: 66% | R176: 45% | S176: 172 | T176: 63% | U176: 56% | V176: 101 | W176: 74% | X176: 62% | Y176: 214
A177: 110 | B177: MARNE-ARDENNES | C177: 2 | D177: CHARLEVILLE MEZIERES | E177: 408840 | F177: RETHEL | G177: 5.0 | H177: 51% | I177: 33% | J177: 168 | K177: 32% | L177: 31% | M177: 60 | N177: 67% | O177: 48% | P177: 139 | Q177: 65% | R177: 45% | S177: 170 | T177: 74% | U177: 67% | V177: 186 | W177: 76% | X177: 64% | Y177: 230
A178: 110 | B178: VOSGES | C178: 55 | D178: SAINT DIE | E178: 588461 | F178: MOYENMOUTIER | G178: 2.6 | H178: 51% | I178: 33% | J178: 169 | K178: 60% | L178: 58% | M178: 212 | N178: 61% | O178: 42% | P178: 79 | Q178: 52% | R178: 31% | S178: 54 | T178: 76% | U178: 69% | V178: 206 | W178: 67% | X178: 55% | Y178: 144
A179: 110 | B179: MARNE-ARDENNES | C179: 11 | D179: REIMS | E179: 451308 | F179: REIMS SAINT THOMAS | G179: 7.4 | H179: 51% | I179: 33% | J179: 170 | K179: 57% | L179: 55% | M179: 197 | N179: 71% | O179: 52% | P179: 178 | Q179: 68% | R179: 48% | S179: 207 | T179: 69% | U179: 62% | V179: 154 | W179: 51% | X179: 39% | Y179: 25
A180: 110 | B180: MARNE-ARDENNES | C180: 11 | D180: REIMS | E180: 551341 | F180: REIMS JEAN JAURES | G180: 4.4 | H180: 51% | I180: 34% | J180: 171 | K180: 56% | L180: 54% | M180: 194 | N180: 62% | O180: 43% | P180: 86 | Q180: 66% | R180: 46% | S180: 178 | T180: 65% | U180: 58% | V180: 112 | W180: 67% | X180: 56% | Y180: 151
A181: 110 | B181: BAS-RHIN | C181: 5060 | D181: HAGUENAU | E181: 4087 | F181: SAVERNE | G181: 7.8 | H181: 51% | I181: 34% | J181: 172 | K181: 53% | L181: 51% | M181: 178 | N181: 66% | O181: 47% | P181: 123 | Q181: 62% | R181: 41% | S181: 144 | T181: 71% | U181: 64% | V181: 166 | W181: 65% | X181: 53% | Y181: 110
A182: 110 | B182: MEURTHE ET MOSELLE MEUSE | C182: 26 | D182: NANCY | E182: 454671 | F182: VANDOEUVRE LES NANCY | G182: 4.6 | H182: 51% | I182: 34% | J182: 173 | K182: 60% | L182: 58% | M182: 211 | N182: 61% | O182: 42% | P182: 74 | Q182: 73% | R182: 52% | S182: 235 | T182: 72% | U182: 65% | V182: 176 | W182: 51% | X182: 40% | Y182: 30
A183: 110 | B183: MOSELLE | C183: 44 | D183: MOSELLE NORD | E183: 557622 | F183: SIERCK LES BAINS | G183: 1.3 | H183: 52% | I183: 34% | J183: 174 | K183: 53% | L183: 52% | M183: 181 | N183: 68% | O183: 49% | P183: 142 | Q183: 50% | R183: 29% | S183: 41 | T183: 85% | U183: 78% | V183: 250 | W183: 62% | X183: 50% | Y183: 86
A184: 110 | B184: MOSELLE | C184: 45 | D184: METZ | E184: 557178 | F184: BOULAY | G184: 4.0 | H184: 52% | I184: 34% | J184: 175 | K184: 29% | L184: 28% | M184: 51 | N184: 73% | O184: 54% | P184: 202 | Q184: 66% | R184: 46% | S184: 181 | T184: 75% | U184: 68% | V184: 192 | W184: 74% | X184: 62% | Y184: 210
A185: 110 | B185: VOSGES | C185: 55 | D185: SAINT DIE | E185: 588551 | F185: RAMBERVILLERS | G185: 3.5 | H185: 52% | I185: 34% | J185: 176 | K185: 33% | L185: 31% | M185: 61 | N185: 80% | O185: 61% | P185: 238 | Q185: 66% | R185: 46% | S185: 177 | T185: 75% | U185: 68% | V185: 193 | W185: 65% | X185: 53% | Y185: 116
A186: 110 | B186: AUBE HAUTE MARNE | C186: 14 | D186: TROYES | E186: 510513 | F186: TROYES 1ER MAI | G186: 3.4 | H186: 52% | I186: 34% | J186: 177 | K186: 57% | L186: 55% | M186: 199 | N186: 68% | O186: 49% | P186: 147 | Q186: 67% | R186: 46% | S186: 187 | T186: 71% | U186: 64% | V186: 169 | W186: 56% | X186: 44% | Y186: 52
A187: 110 | B187: MARNE-ARDENNES | C187: 11 | D187: REIMS | E187: 551306 | F187: REIMS SAINT MARCEAUX | G187: 4.4 | H187: 52% | I187: 34% | J187: 178 | K187: 62% | L187: 60% | M187: 221 | N187: 64% | O187: 45% | P187: 99 | Q187: 82% | R187: 61% | S187: 256 | T187: 52% | U187: 45% | V187: 37 | W187: 61% | X187: 49% | Y187: 75
A188: 110 | B188: MOSELLE | C188: 45 | D188: METZ | E188: 557439 | F188: METZ POMPIDOU | G188: 3.9 | H188: 52% | I188: 34% | J188: 179 | K188: 46% | L188: 44% | M188: 142 | N188: 75% | O188: 56% | P188: 214 | Q188: 64% | R188: 43% | S188: 156 | T188: 62% | U188: 55% | V188: 96 | W188: 74% | X188: 62% | Y188: 208
A189: 110 | B189: HAUT-RHIN | C189: 5169 | D189: MULHOUSE | E189: 4181 | F189: WITTELSHEIM | G189: 3.3 | H189: 52% | I189: 34% | J189: 180 | K189: 52% | L189: 51% | M189: 177 | N189: 75% | O189: 56% | P189: 217 | Q189: 72% | R189: 51% | S189: 230 | T189: 65% | U189: 58% | V189: 118 | W189: 56% | X189: 44% | Y189: 50
A190: 110 | B190: MOSELLE | C190: 42 | D190: MOSELLE EST | E190: 557668 | F190: VALMONT | G190: 4.6 | H190: 52% | I190: 34% | J190: 181 | K190: 23% | L190: 21% | M190: 16 | N190: 80% | O190: 61% | P190: 243 | Q190: 66% | R190: 45% | S190: 175 | T190: 71% | U190: 65% | V190: 170 | W190: 80% | X190: 68% | Y190: 250
A191: 110 | B191: AUBE HAUTE MARNE | C191: 21 | D191: CHAUMONT | E191: 410566 | F191: CHAUMONT HOTEL DE VILLE | G191: 7.7 | H191: 52% | I191: 34% | J191: 182 | K191: 49% | L191: 47% | M191: 158 | N191: 67% | O191: 48% | P191: 135 | Q191: 66% | R191: 46% | S191: 179 | T191: 74% | U191: 67% | V191: 188 | W191: 64% | X191: 52% | Y191: 101
A192: 160 | B192: MOSELLE | C192: 45 | D192: METZ | E192: 557434 | F192: MARLY | G192: 3.7 | H192: 52% | I192: 34% | J192: 183 | K192: 34% | L192: 33% | M192: 71 | N192: 67% | O192: 48% | P192: 133 | Q192: 64% | R192: 44% | S192: 162 | T192: 84% | U192: 77% | V192: 248 | W192: 71% | X192: 59% | Y192: 180
A193: 160 | B193: BAS-RHIN | C193: 5006 | D193: STRASBOURG | E193: 4020 | F193: STRASBOURG ROBERTSAU | G193: 6.1 | H193: 52% | I193: 34% | J193: 184 | K193: 59% | L193: 57% | M193: 207 | N193: 67% | O193: 49% | P193: 141 | Q193: 55% | R193: 35% | S193: 80 | T193: 74% | U193: 67% | V193: 187 | W193: 64% | X193: 53% | Y193: 108
A194: 160 | B194: HAUT-RHIN | C194: 5130 | D194: COLMAR | E194: 4157 | F194: NEUF BRISACH | G194: 3.6 | H194: 52% | I194: 34% | J194: 185 | K194: 39% | L194: 38% | M194: 100 | N194: 79% | O194: 60% | P194: 231 | Q194: 71% | R194: 50% | S194: 221 | T194: 62% | U194: 55% | V194: 92 | W194: 70% | X194: 58% | Y194: 171
A195: 160 | B195: MARNE-ARDENNES | C195: 2 | D195: CHARLEVILLE MEZIERES | E195: 508817 | F195: CHARLEVILLE MOHON | G195: 3.4 | H195: 52% | I195: 34% | J195: 186 | K195: 38% | L195: 36% | M195: 88 | N195: 70% | O195: 51% | P195: 165 | Q195: 70% | R195: 50% | S195: 218 | T195: 76% | U195: 69% | V195: 205 | W195: 67% | X195: 56% | Y195: 150
A196: 160 | B196: MEURTHE ET MOSELLE MEUSE | C196: 27 | D196: PONT A MOUSSON | E196: 554196 | F196: CHAMPIGNEULLES | G196: 3.5 | H196: 52% | I196: 34% | J196: 187 | K196: 58% | L196: 56% | M196: 201 | N196: 55% | O196: 36% | P196: 40 | Q196: 72% | R196: 52% | S196: 233 | T196: 65% | U196: 58% | V196: 113 | W196: 71% | X196: 59% | Y196: 183
A197: 160 | B197: MOSELLE | C197: 44 | D197: MOSELLE NORD | E197: 557660 | F197: UCKANGE | G197: 1.8 | H197: 52% | I197: 34% | J197: 188 | K197: 90% | L197: 88% | M197: 259 | N197: 71% | O197: 52% | P197: 179 | Q197: 57% | R197: 36% | S197: 91 | T197: 43% | U197: 36% | V197: 20 | W197: 60% | X197: 49% | Y197: 72
A198: 160 | B198: HAUT-RHIN | C198: 5130 | D198: COLMAR | E198: 4141 | F198: HORBOURG WIHR | G198: 5.7 | H198: 52% | I198: 35% | J198: 189 | K198: 53% | L198: 52% | M198: 182 | N198: 80% | O198: 61% | P198: 240 | Q198: 55% | R198: 35% | S198: 78 | T198: 70% | U198: 63% | V198: 158 | W198: 63% | X198: 51% | Y198: 96
A199: 160 | B199: BAS-RHIN | C199: 5006 | D199: STRASBOURG | E199: 4026 | F199: STRASBOURG DANUBE | G199: 4.5 | H199: 52% | I199: 35% | J199: 190 | K199: 54% | L199: 53% | M199: 188 | N199: 78% | O199: 59% | P199: 230 | Q199: 75% | R199: 54% | S199: 244 | T199: 39% | U199: 32% | V199: 15 | W199: 75% | X199: 64% | Y199: 227
A200: 160 | B200: BAS-RHIN | C200: 5060 | D200: HAGUENAU | E200: 4041 | F200: HOERDT | G200: 2.0 | H200: 52% | I200: 35% | J200: 191 | K200: 60% | L200: 59% | M200: 215 | N200: 61% | O200: 42% | P200: 78 | Q200: 50% | R200: 29% | S200: 42 | T200: 69% | U200: 62% | V200: 152 | W200: 82% | X200: 70% | Y200: 255
A201: 160 | B201: MARNE-ARDENNES | C201: 6 | D201: CHALONS EN CHAMPAGNE | E201: 451166 | F201: VITRY LE FRANCOIS | G201: 7.0 | H201: 53% | I201: 35% | J201: 192 | K201: 42% | L201: 40% | M201: 115 | N201: 75% | O201: 56% | P201: 211 | Q201: 69% | R201: 49% | S201: 214 | T201: 72% | U201: 65% | V201: 174 | W201: 66% | X201: 54% | Y201: 128
A202: 160 | B202: BAS-RHIN | C202: 5060 | D202: HAGUENAU | E202: 4031 | F202: TRUCHTERSHEIM | G202: 2.9 | H202: 53% | I202: 35% | J202: 193 | K202: 47% | L202: 45% | M202: 152 | N202: 61% | O202: 42% | P202: 75 | Q202: 54% | R202: 33% | S202: 63 | T202: 86% | U202: 79% | V202: 253 | W202: 77% | X202: 66% | Y202: 239
A203: 160 | B203: MOSELLE | C203: 45 | D203: METZ | E203: 557432 | F203: MAIZIERES LES METZ | G203: 3.9 | H203: 53% | I203: 35% | J203: 194 | K203: 44% | L203: 42% | M203: 130 | N203: 68% | O203: 49% | P203: 145 | Q203: 62% | R203: 41% | S203: 142 | T203: 75% | U203: 68% | V203: 197 | W203: 76% | X203: 64% | Y203: 231
... 71 more rows

Sheet AG_BANCA
B1: Accueil | H1: BAROMETRE BDD - AGENCES
H2: BANCARISATION
H3: =ACCUEIL!F7 -> 2021-07-25
H7: Ventes Nettes produits pondérés | L7: Ventes sur client non détenteur de l’univers | P7: Mobilité Macron | T7: Remises commerciales | X7: Total Bancarisation
H8: =DATEMAJ!C8 -> au 25/07 | J8: coef | K8: ='RECAP DIRCOM'!AA4 -> 10% | L8: =DATEMAJ!C9 -> au 25/07 | N8: coef | O8: ='RECAP DIRCOM'!AE4 -> 4% | P8: =DATEMAJ!C10 -> au 25/07 | R8: coef | S8: ='RECAP DIRCOM'!AI4 -> 3% | T8: =DATEMAJ!C11 -> au 31/05 | V8: coef | W8: ='RECAP DIRCOM'!AM4 -> 3% | Y8: coef | Z8: ='RECAP DIRCOM'!$AP$4 -> 20%
B9: Direction | C9: eds | D9: Territoire | E9: eds | F9: Agence | G9: ="ETP perf "&DATEMAJ!$C$28 -> ETP perf 31-mai | H9: VN | I9: VN / ETP | J9: % Ecart au 1er | K9: Rang | L9: VB | M9: VB / ETP | N9: % Ecart au 1er | O9: Rang | P9: Nb | Q9: Nb / ETP | R9: % Ecart au 1er | S9: Rang | T9: Montant | U9: Montant / ETP | V9: % Ecart au 1er | W9: Rang | X9: Moyenne ecart au 1er | Y9: % Ecart au 1er | Z9: Rang CEGEE
A10: 50 | B10: AUBE HAUTE MARNE | C10: 21 | D10: CHAUMONT | E10: 410560 | F10: BOURBONNE LES BAINS | G10: =VLOOKUP($E10,'RECAP AG'!$G$6:$DC$270,3,FALSE) -> 2.0 | H10: =VLOOKUP($E10,'RECAP AG'!$G$6:$DC$270,18,FALSE) -> 113.7 | I10: =VLOOKUP($E10,'RECAP AG'!$G$6:$DC$270,19,FALSE) -> 56.85 | J10: =VLOOKUP($E10,'RECAP AG'!$G$6:$DC$270,20,FALSE) -> 58% | K10: =VLOOKUP($E10,'RECAP AG'!$G$6:$DC$270,21,FALSE) -> 79 | L10: =VLOOKUP($E10,'RECAP AG'!$G$6:$DC$270,22,FALSE) -> 47 | M10: =VLOOKUP($E10,'RECAP AG'!$G$6:$DC$270,23,FALSE) -> 23.50 | N10: =VLOOKUP($E10,'RECAP AG'!$G$6:$DC$270,24,FALSE) -> 64% | O10: =VLOOKUP($E10,'RECAP AG'!$G$6:$DC$270,25,FALSE) -> 224 | P10: =VLOOKUP($E10,'RECAP AG'!$G$6:$DC$270,26,FALSE) -> 8 | Q10: =VLOOKUP($E10,'RECAP AG'!$G$6:$DC$270,27,FALSE) -> 4.00 | R10: =VLOOKUP($E10,'RECAP AG'!$G$6:$DC$270,28,FALSE) -> 88% | S10: =VLOOKUP($E10,'RECAP AG'!$G$6:$DC$270,29,FALSE) -> 179 | T10: =VLOOKUP($E10,'RECAP AG'!$G$6:$DC$270,30,FALSE) -> -2.77 | U10: =VLOOKUP($E10,'RECAP AG'!$G$6:$DC$270,31,FALSE) -> -1.39 | V10: =VLOOKUP($E10,'RECAP AG'!$G$6:$DC$270,32,FALSE) -> 59% | W10: =VLOOKUP($E10,'RECAP AG'!$G$6:$DC$270,33,FALSE) -> 81 | X10: =VLOOKUP($E10,'RECAP AG'!$G$6:$DC$270,34,FALSE) -> 64% | Y10: =VLOOKUP($E10,'RECAP AG'!$G$6:$DC$270,35,FALSE) -> 45% | Z10: =VLOOKUP($E10,'RECAP AG'!$G$6:$DC$270,36,FALSE) -> 105
A11: 50 | B11: AUBE HAUTE MARNE | C11: 21 | D11: CHAUMONT | E11: 410566 | F11: CHAUMONT HOTEL DE VILLE | G11: =VLOOKUP($E11,'RECAP AG'!$G$6:$DC$270,3,FALSE) -> 7.7 | H11: =VLOOKUP($E11,'RECAP AG'!$G$6:$DC$270,18,FALSE) -> 332.6 | I11: =VLOOKUP($E11,'RECAP AG'!$G$6:$DC$270,19,FALSE) -> 43.39 | J11: =VLOOKUP($E11,'RECAP AG'!$G$6:$DC$270,20,FALSE) -> 68% | K11: =VLOOKUP($E11,'RECAP AG'!$G$6:$DC$270,21,FALSE) -> 140 | L11: =VLOOKUP($E11,'RECAP AG'!$G$6:$DC$270,22,FALSE) -> 257 | M11: =VLOOKUP($E11,'RECAP AG'!$G$6:$DC$270,23,FALSE) -> 33.53 | N11: =VLOOKUP($E11,'RECAP AG'!$G$6:$DC$270,24,FALSE) -> 48% | O11: =VLOOKUP($E11,'RECAP AG'!$G$6:$DC$270,25,FALSE) -> 94 | P11: =VLOOKUP($E11,'RECAP AG'!$G$6:$DC$270,26,FALSE) -> 46 | Q11: =VLOOKUP($E11,'RECAP AG'!$G$6:$DC$270,27,FALSE) -> 6.00 | R11: =VLOOKUP($E11,'RECAP AG'!$G$6:$DC$270,28,FALSE) -> 82% | S11: =VLOOKUP($E11,'RECAP AG'!$G$6:$DC$270,29,FALSE) -> 109 | T11: =VLOOKUP($E11,'RECAP AG'!$G$6:$DC$270,30,FALSE) -> -12.82 | U11: =VLOOKUP($E11,'RECAP AG'!$G$6:$DC$270,31,FALSE) -> -1.67 | V11: =VLOOKUP($E11,'RECAP AG'!$G$6:$DC$270,32,FALSE) -> 72% | W11: =VLOOKUP($E11,'RECAP AG'!$G$6:$DC$270,33,FALSE) -> 137 | X11: =VLOOKUP($E11,'RECAP AG'!$G$6:$DC$270,34,FALSE) -> 67% | Y11: =VLOOKUP($E11,'RECAP AG'!$G$6:$DC$270,35,FALSE) -> 48% | Z11: =VLOOKUP($E11,'RECAP AG'!$G$6:$DC$270,36,FALSE) -> 135
A12: 50 | B12: AUBE HAUTE MARNE | C12: 21 | D12: CHAUMONT | E12: 510590 | F12: CHAUMONT REPUBLIQUE | G12: =VLOOKUP($E12,'RECAP AG'!$G$6:$DC$270,3,FALSE) -> 4.4 | H12: =VLOOKUP($E12,'RECAP AG'!$G$6:$DC$270,18,FALSE) -> 189.0 | I12: =VLOOKUP($E12,'RECAP AG'!$G$6:$DC$270,19,FALSE) -> 42.97 | J12: =VLOOKUP($E12,'RECAP AG'!$G$6:$DC$270,20,FALSE) -> 68% | K12: =VLOOKUP($E12,'RECAP AG'!$G$6:$DC$270,21,FALSE) -> 146 | L12: =VLOOKUP($E12,'RECAP AG'!$G$6:$DC$270,22,FALSE) -> 173 | M12: =VLOOKUP($E12,'RECAP AG'!$G$6:$DC$270,23,FALSE) -> 39.33 | N12: =VLOOKUP($E12,'RECAP AG'!$G$6:$DC$270,24,FALSE) -> 40% | O12: =VLOOKUP($E12,'RECAP AG'!$G$6:$DC$270,25,FALSE) -> 47 | P12: =VLOOKUP($E12,'RECAP AG'!$G$6:$DC$270,26,FALSE) -> 32 | Q12: =VLOOKUP($E12,'RECAP AG'!$G$6:$DC$270,27,FALSE) -> 7.28 | R12: =VLOOKUP($E12,'RECAP AG'!$G$6:$DC$270,28,FALSE) -> 79% | S12: =VLOOKUP($E12,'RECAP AG'!$G$6:$DC$270,29,FALSE) -> 79 | T12: =VLOOKUP($E12,'RECAP AG'!$G$6:$DC$270,30,FALSE) -> -5.26 | U12: =VLOOKUP($E12,'RECAP AG'!$G$6:$DC$270,31,FALSE) -> -1.19 | V12: =VLOOKUP($E12,'RECAP AG'!$G$6:$DC$270,32,FALSE) -> 51% | W12: =VLOOKUP($E12,'RECAP AG'!$G$6:$DC$270,33,FALSE) -> 45 | X12: =VLOOKUP($E12,'RECAP AG'!$G$6:$DC$270,34,FALSE) -> 62% | Y12: =VLOOKUP($E12,'RECAP AG'!$G$6:$DC$270,35,FALSE) -> 43% | Z12: =VLOOKUP($E12,'RECAP AG'!$G$6:$DC$270,36,FALSE) -> 81
A13: 50 | B13: AUBE HAUTE MARNE | C13: 21 | D13: CHAUMONT | E13: 451154 | F13: JOINVILLE | G13: =VLOOKUP($E13,'RECAP AG'!$G$6:$DC$270,3,FALSE) -> 1.9 | H13: =VLOOKUP($E13,'RECAP AG'!$G$6:$DC$270,18,FALSE) -> 43.8 | I13: =VLOOKUP($E13,'RECAP AG'!$G$6:$DC$270,19,FALSE) -> 23.51 | J13: =VLOOKUP($E13,'RECAP AG'!$G$6:$DC$270,20,FALSE) -> 83% | K13: =VLOOKUP($E13,'RECAP AG'!$G$6:$DC$270,21,FALSE) -> 230 | L13: =VLOOKUP($E13,'RECAP AG'!$G$6:$DC$270,22,FALSE) -> 61 | M13: =VLOOKUP($E13,'RECAP AG'!$G$6:$DC$270,23,FALSE) -> 32.74 | N13: =VLOOKUP($E13,'RECAP AG'!$G$6:$DC$270,24,FALSE) -> 50% | O13: =VLOOKUP($E13,'RECAP AG'!$G$6:$DC$270,25,FALSE) -> 100 | P13: =VLOOKUP($E13,'RECAP AG'!$G$6:$DC$270,26,FALSE) -> 7 | Q13: =VLOOKUP($E13,'RECAP AG'!$G$6:$DC$270,27,FALSE) -> 3.76 | R13: =VLOOKUP($E13,'RECAP AG'!$G$6:$DC$270,28,FALSE) -> 89% | S13: =VLOOKUP($E13,'RECAP AG'!$G$6:$DC$270,29,FALSE) -> 188 | T13: =VLOOKUP($E13,'RECAP AG'!$G$6:$DC$270,30,FALSE) -> -4.34 | U13: =VLOOKUP($E13,'RECAP AG'!$G$6:$DC$270,31,FALSE) -> -2.33 | V13: =VLOOKUP($E13,'RECAP AG'!$G$6:$DC$270,32,FALSE) -> 100% | W13: =VLOOKUP($E13,'RECAP AG'!$G$6:$DC$270,33,FALSE) -> 225 | X13: =VLOOKUP($E13,'RECAP AG'!$G$6:$DC$270,34,FALSE) -> 80% | Y13: =VLOOKUP($E13,'RECAP AG'!$G$6:$DC$270,35,FALSE) -> 61% | Z13: =VLOOKUP($E13,'RECAP AG'!$G$6:$DC$270,36,FALSE) -> 235
A14: 50 | B14: AUBE HAUTE MARNE | C14: 21 | D14: CHAUMONT | E14: 410541 | F14: LANGRES | G14: =VLOOKUP($E14,'RECAP AG'!$G$6:$DC$270,3,FALSE) -> 6.5 | H14: =VLOOKUP($E14,'RECAP AG'!$G$6:$DC$270,18,FALSE) -> 358.6 | I14: =VLOOKUP($E14,'RECAP AG'!$G$6:$DC$270,19,FALSE) -> 54.82 | J14: =VLOOKUP($E14,'RECAP AG'!$G$6:$DC$270,20,FALSE) -> 60% | K14: =VLOOKUP($E14,'RECAP AG'!$G$6:$DC$270,21,FALSE) -> 87 | L14: =VLOOKUP($E14,'RECAP AG'!$G$6:$DC$270,22,FALSE) -> 186 | M14: =VLOOKUP($E14,'RECAP AG'!$G$6:$DC$270,23,FALSE) -> 28.43 | N14: =VLOOKUP($E14,'RECAP AG'!$G$6:$DC$270,24,FALSE) -> 56% | O14: =VLOOKUP($E14,'RECAP AG'!$G$6:$DC$270,25,FALSE) -> 159 | P14: =VLOOKUP($E14,'RECAP AG'!$G$6:$DC$270,26,FALSE) -> 41 | Q14: =VLOOKUP($E14,'RECAP AG'!$G$6:$DC$270,27,FALSE) -> 6.27 | R14: =VLOOKUP($E14,'RECAP AG'!$G$6:$DC$270,28,FALSE) -> 82% | S14: =VLOOKUP($E14,'RECAP AG'!$G$6:$DC$270,29,FALSE) -> 101 | T14: =VLOOKUP($E14,'RECAP AG'!$G$6:$DC$270,30,FALSE) -> -11.26 | U14: =VLOOKUP($E14,'RECAP AG'!$G$6:$DC$270,31,FALSE) -> -1.72 | V14: =VLOOKUP($E14,'RECAP AG'!$G$6:$DC$270,32,FALSE) -> 74% | W14: =VLOOKUP($E14,'RECAP AG'!$G$6:$DC$270,33,FALSE) -> 147 | X14: =VLOOKUP($E14,'RECAP AG'!$G$6:$DC$270,34,FALSE) -> 64% | Y14: =VLOOKUP($E14,'RECAP AG'!$G$6:$DC$270,35,FALSE) -> 45% | Z14: =VLOOKUP($E14,'RECAP AG'!$G$6:$DC$270,36,FALSE) -> 108
A15: 50 | B15: AUBE HAUTE MARNE | C15: 21 | D15: CHAUMONT | E15: 451156 | F15: SAINT DIZIER CENTRE | G15: =VLOOKUP($E15,'RECAP AG'!$G$6:$DC$270,3,FALSE) -> 9.4 | H15: =VLOOKUP($E15,'RECAP AG'!$G$6:$DC$270,18,FALSE) -> 410.6 | I15: =VLOOKUP($E15,'RECAP AG'!$G$6:$DC$270,19,FALSE) -> 43.91 | J15: =VLOOKUP($E15,'RECAP AG'!$G$6:$DC$270,20,FALSE) -> 68% | K15: =VLOOKUP($E15,'RECAP AG'!$G$6:$DC$270,21,FALSE) -> 136 | L15: =VLOOKUP($E15,'RECAP AG'!$G$6:$DC$270,22,FALSE) -> 316 | M15: =VLOOKUP($E15,'RECAP AG'!$G$6:$DC$270,23,FALSE) -> 33.79 | N15: =VLOOKUP($E15,'RECAP AG'!$G$6:$DC$270,24,FALSE) -> 48% | O15: =VLOOKUP($E15,'RECAP AG'!$G$6:$DC$270,25,FALSE) -> 92 | P15: =VLOOKUP($E15,'RECAP AG'!$G$6:$DC$270,26,FALSE) -> 56 | Q15: =VLOOKUP($E15,'RECAP AG'!$G$6:$DC$270,27,FALSE) -> 5.99 | R15: =VLOOKUP($E15,'RECAP AG'!$G$6:$DC$270,28,FALSE) -> 83% | S15: =VLOOKUP($E15,'RECAP AG'!$G$6:$DC$270,29,FALSE) -> 110 | T15: =VLOOKUP($E15,'RECAP AG'!$G$6:$DC$270,30,FALSE) -> -17.76 | U15: =VLOOKUP($E15,'RECAP AG'!$G$6:$DC$270,31,FALSE) -> -1.90 | V15: =VLOOKUP($E15,'RECAP AG'!$G$6:$DC$270,32,FALSE) -> 81% | W15: =VLOOKUP($E15,'RECAP AG'!$G$6:$DC$270,33,FALSE) -> 169 | X15: =VLOOKUP($E15,'RECAP AG'!$G$6:$DC$270,34,FALSE) -> 68% | Y15: =VLOOKUP($E15,'RECAP AG'!$G$6:$DC$270,35,FALSE) -> 49% | Z15: =VLOOKUP($E15,'RECAP AG'!$G$6:$DC$270,36,FALSE) -> 148
A16: 50 | B16: AUBE HAUTE MARNE | C16: 21 | D16: CHAUMONT | E16: 451151 | F16: WASSY | G16: =VLOOKUP($E16,'RECAP AG'!$G$6:$DC$270,3,FALSE) -> 2.0 | H16: =VLOOKUP($E16,'RECAP AG'!$G$6:$DC$270,18,FALSE) -> 129.9 | I16: =VLOOKUP($E16,'RECAP AG'!$G$6:$DC$270,19,FALSE) -> 65.94 | J16: =VLOOKUP($E16,'RECAP AG'!$G$6:$DC$270,20,FALSE) -> 52% | K16: =VLOOKUP($E16,'RECAP AG'!$G$6:$DC$270,21,FALSE) -> 55 | L16: =VLOOKUP($E16,'RECAP AG'!$G$6:$DC$270,22,FALSE) -> 70 | M16: =VLOOKUP($E16,'RECAP AG'!$G$6:$DC$270,23,FALSE) -> 35.53 | N16: =VLOOKUP($E16,'RECAP AG'!$G$6:$DC$270,24,FALSE) -> 45% | O16: =VLOOKUP($E16,'RECAP AG'!$G$6:$DC$270,25,FALSE) -> 70 | P16: =VLOOKUP($E16,'RECAP AG'!$G$6:$DC$270,26,FALSE) -> 11 | Q16: =VLOOKUP($E16,'RECAP AG'!$G$6:$DC$270,27,FALSE) -> 5.58 | R16: =VLOOKUP($E16,'RECAP AG'!$G$6:$DC$270,28,FALSE) -> 84% | S16: =VLOOKUP($E16,'RECAP AG'!$G$6:$DC$270,29,FALSE) -> 123 | T16: =VLOOKUP($E16,'RECAP AG'!$G$6:$DC$270,30,FALSE) -> -2.48 | U16: =VLOOKUP($E16,'RECAP AG'!$G$6:$DC$270,31,FALSE) -> -1.26 | V16: =VLOOKUP($E16,'RECAP AG'!$G$6:$DC$270,32,FALSE) -> 54% | W16: =VLOOKUP($E16,'RECAP AG'!$G$6:$DC$270,33,FALSE) -> 54 | X16: =VLOOKUP($E16,'RECAP AG'!$G$6:$DC$270,34,FALSE) -> 56% | Y16: =VLOOKUP($E16,'RECAP AG'!$G$6:$DC$270,35,FALSE) -> 37% | Z16: =VLOOKUP($E16,'RECAP AG'!$G$6:$DC$270,36,FALSE) -> 42
A17: 50 | B17: AUBE HAUTE MARNE | C17: 14 | D17: TROYES | E17: 510530 | F17: ARCIS SUR AUBE | G17: =VLOOKUP($E17,'RECAP AG'!$G$6:$DC$270,3,FALSE) -> 3.9 | H17: =VLOOKUP($E17,'RECAP AG'!$G$6:$DC$270,18,FALSE) -> 209.8 | I17: =VLOOKUP($E17,'RECAP AG'!$G$6:$DC$270,19,FALSE) -> 53.18 | J17: =VLOOKUP($E17,'RECAP AG'!$G$6:$DC$270,20,FALSE) -> 61% | K17: =VLOOKUP($E17,'RECAP AG'!$G$6:$DC$270,21,FALSE) -> 98 | L17: =VLOOKUP($E17,'RECAP AG'!$G$6:$DC$270,22,FALSE) -> 93 | M17: =VLOOKUP($E17,'RECAP AG'!$G$6:$DC$270,23,FALSE) -> 23.57 | N17: =VLOOKUP($E17,'RECAP AG'!$G$6:$DC$270,24,FALSE) -> 64% | O17: =VLOOKUP($E17,'RECAP AG'!$G$6:$DC$270,25,FALSE) -> 223 | P17: =VLOOKUP($E17,'RECAP AG'!$G$6:$DC$270,26,FALSE) -> 21 | Q17: =VLOOKUP($E17,'RECAP AG'!$G$6:$DC$270,27,FALSE) -> 5.32 | R17: =VLOOKUP($E17,'RECAP AG'!$G$6:$DC$270,28,FALSE) -> 84% | S17: =VLOOKUP($E17,'RECAP AG'!$G$6:$DC$270,29,FALSE) -> 135 | T17: =VLOOKUP($E17,'RECAP AG'!$G$6:$DC$270,30,FALSE) -> -4.36 | U17: =VLOOKUP($E17,'RECAP AG'!$G$6:$DC$270,31,FALSE) -> -1.11 | V17: =VLOOKUP($E17,'RECAP AG'!$G$6:$DC$270,32,FALSE) -> 47% | W17: =VLOOKUP($E17,'RECAP AG'!$G$6:$DC$270,33,FALSE) -> 37 | X17: =VLOOKUP($E17,'RECAP AG'!$G$6:$DC$270,34,FALSE) -> 63% | Y17: =VLOOKUP($E17,'RECAP AG'!$G$6:$DC$270,35,FALSE) -> 44% | Z17: =VLOOKUP($E17,'RECAP AG'!$G$6:$DC$270,36,FALSE) -> 93
A18: 50 | B18: AUBE HAUTE MARNE | C18: 14 | D18: TROYES | E18: 410550 | F18: BAR SUR AUBE | G18: =VLOOKUP($E18,'RECAP AG'!$G$6:$DC$270,3,FALSE) -> 5.9 | H18: =VLOOKUP($E18,'RECAP AG'!$G$6:$DC$270,18,FALSE) -> 241.5 | I18: =VLOOKUP($E18,'RECAP AG'!$G$6:$DC$270,19,FALSE) -> 40.81 | J18: =VLOOKUP($E18,'RECAP AG'!$G$6:$DC$270,20,FALSE) -> 70% | K18: =VLOOKUP($E18,'RECAP AG'!$G$6:$DC$270,21,FALSE) -> 159 | L18: =VLOOKUP($E18,'RECAP AG'!$G$6:$DC$270,22,FALSE) -> 161 | M18: =VLOOKUP($E18,'RECAP AG'!$G$6:$DC$270,23,FALSE) -> 27.21 | N18: =VLOOKUP($E18,'RECAP AG'!$G$6:$DC$270,24,FALSE) -> 58% | O18: =VLOOKUP($E18,'RECAP AG'!$G$6:$DC$270,25,FALSE) -> 179 | P18: =VLOOKUP($E18,'RECAP AG'!$G$6:$DC$270,26,FALSE) -> 14 | Q18: =VLOOKUP($E18,'RECAP AG'!$G$6:$DC$270,27,FALSE) -> 2.37 | R18: =VLOOKUP($E18,'RECAP AG'!$G$6:$DC$270,28,FALSE) -> 93% | S18: =VLOOKUP($E18,'RECAP AG'!$G$6:$DC$270,29,FALSE) -> 227 | T18: =VLOOKUP($E18,'RECAP AG'!$G$6:$DC$270,30,FALSE) -> -8.28 | U18: =VLOOKUP($E18,'RECAP AG'!$G$6:$DC$270,31,FALSE) -> -1.40 | V18: =VLOOKUP($E18,'RECAP AG'!$G$6:$DC$270,32,FALSE) -> 60% | W18: =VLOOKUP($E18,'RECAP AG'!$G$6:$DC$270,33,FALSE) -> 84 | X18: =VLOOKUP($E18,'RECAP AG'!$G$6:$DC$270,34,FALSE) -> 70% | Y18: =VLOOKUP($E18,'RECAP AG'!$G$6:$DC$270,35,FALSE) -> 51% | Z18: =VLOOKUP($E18,'RECAP AG'!$G$6:$DC$270,36,FALSE) -> 164
A19: 50 | B19: AUBE HAUTE MARNE | C19: 14 | D19: TROYES | E19: 510556 | F19: BAR SUR SEINE | G19: =VLOOKUP($E19,'RECAP AG'!$G$6:$DC$270,3,FALSE) -> 3.5 | H19: =VLOOKUP($E19,'RECAP AG'!$G$6:$DC$270,18,FALSE) -> 163.6 | I19: =VLOOKUP($E19,'RECAP AG'!$G$6:$DC$270,19,FALSE) -> 47.17 | J19: =VLOOKUP($E19,'RECAP AG'!$G$6:$DC$270,20,FALSE) -> 65% | K19: =VLOOKUP($E19,'RECAP AG'!$G$6:$DC$270,21,FALSE) -> 120 | L19: =VLOOKUP($E19,'RECAP AG'!$G$6:$DC$270,22,FALSE) -> 120 | M19: =VLOOKUP($E19,'RECAP AG'!$G$6:$DC$270,23,FALSE) -> 34.60 | N19: =VLOOKUP($E19,'RECAP AG'!$G$6:$DC$270,24,FALSE) -> 47% | O19: =VLOOKUP($E19,'RECAP AG'!$G$6:$DC$270,25,FALSE) -> 78 | P19: =VLOOKUP($E19,'RECAP AG'!$G$6:$DC$270,26,FALSE) -> 27 | Q19: =VLOOKUP($E19,'RECAP AG'!$G$6:$DC$270,27,FALSE) -> 7.78 | R19: =VLOOKUP($E19,'RECAP AG'!$G$6:$DC$270,28,FALSE) -> 77% | S19: =VLOOKUP($E19,'RECAP AG'!$G$6:$DC$270,29,FALSE) -> 68 | T19: =VLOOKUP($E19,'RECAP AG'!$G$6:$DC$270,30,FALSE) -> -10.51 | U19: =VLOOKUP($E19,'RECAP AG'!$G$6:$DC$270,31,FALSE) -> -3.03 | V19: =VLOOKUP($E19,'RECAP AG'!$G$6:$DC$270,32,FALSE) -> 130% | W19: =VLOOKUP($E19,'RECAP AG'!$G$6:$DC$270,33,FALSE) -> 258 | X19: =VLOOKUP($E19,'RECAP AG'!$G$6:$DC$270,34,FALSE) -> 73% | Y19: =VLOOKUP($E19,'RECAP AG'!$G$6:$DC$270,35,FALSE) -> 54% | Z19: =VLOOKUP($E19,'RECAP AG'!$G$6:$DC$270,36,FALSE) -> 200
